Workbook

Sheet TIEOSAT
D1: Keski-Suomen ELY-keskuksen tieverkon merkittävyysluokitus
D2: PISTEYTYSTEKIJÄT JA PAINOARVOT | N2: PALAUTUS- JA LAJITTELUTYÖKALUT
D3: OSA-ALUEET | J3: Taajama | P3: Tietokannan palauttaminen oletusarvoihin
D4: Säännöllinen henkilöliikenne | G4: Yht. | H4: painotus | J4: tieosasta | K4: 0.5
D5: KVL | F5: 9 | G5: =SUM(F5:F7) -> 15 | H5: =1/3 -> 0.3333333333 | J5: Liikenne | K5: Vähä/loput | L5: KVL YHD
D6: Linja-autovuorot | F6: 3 | J6: KVL | K6: 500 | L6: 20
D7: Työmatkat | F7: 3 | J7: KVLRAS | K7: 20 | P7: Lajittele muutosten/ nollauksen jälkeen
D8: Säännöllinen tavaraliikenne | G8: Yht. | H8: painotus | J8: KKVL | K8: 500 | Q8: LUONNOS LOKAKUU 24
D9: KVLRAS | F9: 8 | G9: =SUM(F9:F20) -> 25 | H9: 0.3333333333 | J9: Työmatkat | CO9: KVL
D10: KVLYHD | F10: 1 | J10: Pisteet | L10: Työmatkoja | U10: TILASTOTIEDOT | CO10: Linja-auto
D11: Maito | F11: 3 | J11: =F7 -> 3 | K11: =CONCATENATE("≥ ",L11,) -> ≥ 400 | L11: 400 | CO11: Työmatkat
D12: Jäte | F12: 1 | J12: =CONCATENATE("0-",J11) -> 0-3 | K12: 1–399 lineaarisesti | N12: SUODATUS- JA HAKUTYÖKALUT | Q12: TIEJAKSO RAPORTTI | U12: Merkittävyysluokka | X12: % max pisteistä | Z12: Tieosista | CO12: KVLRAS
D13: Maa-aines | F13: 1 | J13: Linja-autovuorot | U13: 1 luokka | X13: =CT27 -> 0.8166990121 | Z13: 0.05 | CO13: Maito
D14: Viljansäilytys | F14: 1 | J14: Pisteet | L14: Vuoromäärä | P14: KVL tekijät poistetaan käytöstä | U14: 2 luokka | X14: =CT28 -> 0.6516803045 | Z14: 0.2 | CO14: Jäte
D15: Kasvihuoneet | F15: 1 | J15: =$F$6 -> 3 | K15: =CONCATENATE("≥ ",L15,) -> ≥ 20 | L15: 20 | U15: 3 luokka | X15: =CT29 -> 0.1848669063 | Z15: 0.5 | CO15: Vilja
D16: Eläintilat | F16: 2 | J16: =CONCATENATE("0-",J15) -> 0-3 | K16: 1–39 lineaariseti | U16: 4 luokka | X16: =CT30 -> 0.0009042120965 | Z16: =1-SUM(Z13:Z15) -> 0.25 | CO16: kasvihuone
D17: Elintarvikelaitos | F17: 2 | J17: Puun kuljetusreitit | P17: Järjestä tieosat luokan mukaan | Q17: NÄYTÄ VAIN SORATIET | CO17: eläintilat
D18: Tuotantolaitos | F18: 2 | J18: Pisteet | L18: Autoa/vrk | U18: Pituus km | W18: Km | X18: Km | Y18: LOPUT | Z18: VÄHÄ | CO18: elintarvirke
D19: Päivittäistavarakauppa | F19: 2 | J19: =$F$20 -> 1 | K19: =CONCATENATE("≥ ",L19,) -> ≥ 10 | L19: 10 | U19: Luokka | V19: 1 | W19: =SUMIFS(X37:X984,N37:N984,"LOPUT",K37:K984,1)/1000 -> 247.367 | X19: =SUMIFS(X37:X984,N37:N984,"VÄHÄ",K37:K984,1)/1000 -> 0 | CO19: tuotanto
D20: Puun kuljetusreitit | F20: 1 | J20: 0-2 | K20: 1–9 lineaariseti | P20: Poista käytössä olevat suodatukset | U20: Luokka | V20: 2 | W20: =SUMIFS(X37:X984,N37:N984,"LOPUT",K37:K984,2)/1000 -> 949.363 | X20: =SUMIFS(X37:X984,N37:N984,"VÄHÄ",K37:K984,2)/1000 -> 23.218 | CO20: päivittäin
D21: Muut tekijät | G21: Yht. | H21: painotus | J21: Eläintilat (tieosalle kumuloitunut lkm) | U21: Luokka | V21: 3 | W21: =SUMIFS(X37:X984,N37:N984,"LOPUT",K37:K984,3)/1000 -> 629.176 | X21: =SUMIFS(X37:X984,N37:N984,"VÄHÄ",K37:K984,3)/1000 -> 1937.359 | CT21: Luokkien min pist.
D22: Koulu | F22: 1 | G22: =SUM(F22:F30) -> 10 | H22: =1/3 -> 0.3333333333 | J22: Pisteet (0-1 lineaarisesti) | L22: Eläinten lkm | Q22: =HYPERLINK("","ONLINE-KARTTA") -> ONLINE-KARTTA | U22: Luokka | V22: 4 | W22: =SUMIFS(X37:X984,N37:N984,"LOPUT",K37:K984,4)/1000 -> 0 | X22: =SUMIFS(X37:X984,N37:N984,"VÄHÄ",K37:K984,4)/1000 -> 1333.282 | CT22: =MIN(IF(K37:K984=V19,G37:G984)) -> 12.32333333
D23: Eriku-reitti | F23: 1 | J23: =$F$16/4 -> 0.5 | K23: Nauta | L23: 100 | P23: Tienumerojärjestys | U23: Yht. | W23: =SUM(W19:W22) -> 1825.906 | X23: =SUM(X19:X22) -> 3293.859 | CT23: =MIN(IF(K37:K984=V20,G37:G984)) -> 9.833333333
D24: Varareitti | F24: 1 | J24: =$F$16/4 -> 0.5 | K24: Lammas/vuohi/hevonen | L24: 100 | CT24: =MIN(IF(K37:K984=V21,G37:G984)) -> 2.789493405
D25: Taajama | F25: 1 | J25: =$F$16/4 -> 0.5 | K25: Sika | L25: 400 | U25: Tieosia (kpl) | W25: kpl | X25: osuus | Y25: kpl | Z25: osuus | AA25: KAIKKI | CT25: =MIN(IF(K37:K984=V22,G37:G984)) -> 0.01364383562
D26: Asukastiheys | F26: 1 | J26: =$F$16/4 -> 0.5 | K26: Linnut | L26: 1000 | P26: Hae tiejakso | U26: Luokka 1 | W26: =COUNTIFS(N37:N984,"LOPUT",K37:K984,1) -> 47 | X26: =W26/$W$30 -> 0.1260053619 | Y26: =COUNTIFS(N37:N984,"VÄHÄ",K37:K984,1) -> 0 | Z26: =Y26/$Y$30 -> 0 | AA26: =(W26+Y26)/($W$30+$Y$30) -> 0.04957805907 | CT26: Osuusmax | CX26: Koulubufferi (3 km tieverkkoa pitkin)
D27: KKVL | F27: 2 | J27: Tuotantolaitokset (kumuloituneet) | Q27: TIENUMEROA TUPLA-KLIKKAAMALLA SIIRTYMINEN KVL-JAKSOIHIN | U27: Luokka 2 | W27: =COUNTIFS(N37:N984,"LOPUT",K37:K984,2) -> 186 | X27: =W27/$W$30 -> 0.4986595174 | Y27: =COUNTIFS(N37:N984,"VÄHÄ",K37:K984,2) -> 4 | Z27: =Y27/$Y$30 -> 0.006956521739 | AA27: =(W27+Y27)/($W$30+$Y$30) -> 0.2004219409 | CN27: Tieosia | CT27: =CT22/$CN$30 -> 0.8166990121 | CX27: Pisteet | CZ27: Tieosasta
D28: Matkailureitti | F28: 1 | J28: Pisteet | L28: Laitosten lkm | U28: Luokka 3 | W28: =COUNTIFS(N37:N984,"LOPUT",K37:K984,3) -> 140 | X28: =W28/$W$30 -> 0.3753351206 | Y28: =COUNTIFS(N37:N984,"VÄHÄ",K37:K984,3) -> 333 | Z28: =Y28/$Y$30 -> 0.5791304348 | AA28: =(W28+Y28)/($W$30+$Y$30) -> 0.4989451477 | CN28: =COUNTA(D37:D984) -> 948 | CT28: =CT23/$CN$30 -> 0.6516803045 | CX28: =$F$22 -> 1 | CY28: =CONCATENATE("≥ ",CZ28*100," %") -> ≥ 50 % | CZ28: 0.5
D29: Matkailukohde | F29: 1 | J29: =F18 -> 2 | K29: =CONCATENATE("≥ ",L29,) -> ≥ 5 | L29: 5 | P29: Suodata KVL:n perusteella | Q29: TIEOSA JAKAUTUU KVL-JAKSOIHIN | U29: Luokka 4 | W29: =COUNTIFS(N37:N984,"LOPUT",K37:K984,4) -> 0 | X29: =W29/$W$30 -> 0 | Y29: =COUNTIFS(N37:N984,"VÄHÄ",K37:K984,4) -> 238 | Z29: =Y29/$Y$30 -> 0.4139130435 | AA29: =(W29+Y29)/($W$30+$Y$30) -> 0.2510548523 | CN29: MAX | CT29: =CT24/$CN$30 -> 0.1848669063 | CX29: =F22/2 -> 0.5 | CY29: =CONCATENATE("1-",CZ28*100-1," %") -> 1-49 % | EF29: Luokka muuttunut VÄHÄ/LOPUT
D30: Tien verkollinen asema | F30: 1 | J30: 0-1 | K30: 1–2 lineaariseti | U30: Yht. | W30: =SUM(W26:W29) -> 373 | X30: =SUM(X26:X29) -> 1 | Y30: =SUM(Y26:Y29) -> 575 | Z30: =SUM(Z26:Z29) -> 1 | CN30: =MAX(CM37:CM984) -> 15.08919829 | CT30: =CT25/$CN$30 -> 0.0009042120965 | EF30: 4 x VÄHÄ → LOPUT ja 12 x LOPUT → VÄHÄ
A31: 1 | B31: 2 | D31: 1 | E31: 2 | F31: 3 | G31: 4 | K31: 5 | L31: 6 | M31: 7 | N31: 8 | O31: 9 | P31: 10 | U31: 14 | V31: 15 | W31: 16 | X31: 17 | Y31: 18 | Z31: 19 | AA31: 20 | AB31: 21 | AC31: 22 | AD31: 23 | AE31: 24 | AJ31: 28 | AM31: 31 | AR31: 32 | AS31: 33 | AW31: 35 | AX31: 36 | AY31: 37 | AZ31: 38 | BA31: 39 | BB31: 40 | BC31: 41 | BD31: 42 | BE31: 43 | BF31: 44 | BH31: 45 | BI31: 46 | BJ31: 47 | BK31: 48 | BL31: 49 | BR31: 50 | BS31: 51 | BT31: 52 | BU31: 53 | BV31: 54 | BW31: 55 | BX31: 56 | BY31: 57 | BZ31: 58 | CA31: 59 | CB31: 60 | CC31: 61 | CI31: 67 | CJ31: 68 | CK31: 69 | CL31: 70 | CM31: 10.6 | CN31: 71 | CT31: 72 | CU31: 73
A32: Lajittelu, ID | B32: LUOKKA | C32: Lajittelu | D32: Sija | E32: Herkkyys, sija ennen muutosta | F32: Herkkyys, sijamuutos | G32: Pisteet | H32: Sään. henkliik. pisteet | I32: Sään. tavaraliik. pisteet | J32: Muut tekijät pisteet | K32: Merkittävyys-luokka | L32: Luokan muutos | M32: Google Maps | S32: TIEOSAN OMINAISUUDET | AR32: SÄÄNNÖLLINEN HENKILÖLIIKENNE | AY32: PISTEET YHTEENSÄ (max. 15) | AZ32: PISTEET YHTEENSÄ, PAINOTETTU | BA32: SÄÄNNÖLLINEN TAVARALIIKENNE | BR32: PISTEET YHTEENSÄ (max. 25) | BS32: PISTEET YHTEENSÄ, PAINOTETTU | BT32: MUUT TEKIJÄT | CJ32: PISTEET YHTEENSÄ (max. 10) | CK32: PISTEET YHTEENSÄ, PAINOTETTU | CL32: PISTEET YHTEENSÄ (max. 50) | CM32: PISTEET YHTEENSÄ, PAINOTETTU | CN32: MERKITTÄVYYS-LUOKKA | CP32: Tukitoiminnot | DZ32: Pistotie = 1 | EF32: Muutokset 2020-2022
AN33: Kaduksi muutettava % | AO33: Jkpp-väylä % | AR33: Liikennemäärä | AS33: Linja-autoliikenne (matka.fi) | AW33: Työmatkareitti | BA33: Liikennemäärä | BF33: Maatilat | BP33: Puukuljetusreitit | BT33: 3 km koulubufferi | BW33: Erikoiskuljetusreitti | BZ33: Varareitti | CA33: Taajama | CD33: Asukastiheys | CF33: Liikennemäärä | CG33: Matkailureitti | CH33: Matkailukohde | CI33: Tien verkollinen asema | CP33: Pisteet | CQ33: Sään. henkliik. pisteet | CR33: Sään. tavaraliik. pisteet | CS33: Muut tekijät pisteet | DY33: vertailu | EF33: LUOKKA 2020 | EG33: Sija 2020 | EH33: Sija-muutos | EI33: Luokka 2020 | EJ33: Luokanmuutos
A34: Lajittelu, ID | B34: Lajittelu, KVL | N34: LUOKKA | O34: TOIML | P34: Tien nimi | Q34: Kunta | S34: TIE | T34: AOSA | U34: AET | V34: LOSA | W34: LET | X34: PITUUS | Y34: KVL, ka | Z34: KVLRAS | AA34: KKVL | AB34: KVL, ketjutus | AC34: Nopeusrajoitus | AD34: Hoitoluokka | AE34: Päällyste | AF34: PK | AG34: HEVAT 19-23 | AH34: kaikki onn. 19-23 | AI34: Huonokuntoinen päällyste | AJ34: KVLYHD | AK34: TEN-T | AL34: PÄÄVÄYLÄ | AM34: HCT | AR34: KVL pisteet | AS34: Vuorot | AT34: Uusi | AV34: Pisteet | AW34: Työmatkat | AX34: Pisteet | BA34: KVLRAS pisteet | BB34: KVLyhd | BC34: Maito | BD34: Jäte | BE34: Maa-aines | BF34: Vilja | BG34: Kasvih. | BH34: Nauta | BI34: Lammas | BJ34: Sika | BK34: Siipikarja | BL34: Elintarvikelaitos | BM34: Tuotantolaitos | BN34: Logistiikka-alue | BO34: Päivittäistavarakauppa | BP34: Autoa/vrk | BQ34: Pisteet | BT34: Pituus | BU34: Prosentti | BV34: Pisteet | BW34: Pituus | BX34: Prosentti | BY34: Pisteet | BZ34: Pisteet | CA34: Pituus | CB34: Prosentti | CC34: Pisteet | CD34: Asukkaat | CE34: Pisteet | CF34: KKVL pisteet | CG34: Pisteet | CH34: Pisteet | CI34: Pisteet | CO34: KVLosuus | CU34: Gmaps linkki | CX34: Maito, reititys lypsytilat | CY34: Maito, Arla | CZ34: Maito, Valio | DA34: Maito yht. | DB34: Jäte | DC34: Maa-aines | DD34: Turve | DE34: Viljan säilytys | DF34: Kasvihuone | DG34: Nauta | DH34: Lammas/Vuohi/Hevonen | DI34: Sika | DJ34: Siipikarja | DK34: Elintarvikelaitos | DM34: Koulubufferi | DN34: Tuotanto | DO34: Logistiikka | DP34: Varareitit | DQ34: Taajama | DR34: jos kkvl > raja | DS34: jos kkvl/kvl > 1,5 kertainen | DT34: kkvl yhteensä | DU34: Matkailukohde reititys | DV34: Matkailureitti | DW34: Pyörämatkailureitti | DX34: Matkailureitit yht | DY34: Matkailukohde | DZ34: Tien verkollinen asema | EA34: Kauppa | EB34: Katukohde, osuus | EC34: jkp-osuus | ED34: Logistiikka kerrosala | EL34: 2020 tiedot
G35: 15
D36: Sija | E36: Ennen muutosta | F36: Sijamuutos | G36: Pisteet | K36: Luokka | L36: Luokan muutos | M36: ID | N36: Gmaps | O36: LUOKKA | S36: TIE | T36: AOSA | U36: AET | V36: LOSA | W36: LET | X36: PITUUS | Y36: KVL | Z36: KVLRAS | AA36: KKVL | AB36: KVL, ketjutus | AC36: Nopeusrajoitus | AD36: Hoitoluokka | AE36: Päällyste | AF36: Kunta | AG36: HEVA 09-13 | AH36: kaikki onn. | AI36: Asukkaat (500m) | AJ36: Siltanumero | AK36: Kuntoluokka | AM36: Painorajoitus | AR36: KVL pisteet | AS36: Vuorot | AV36: Pisteet | AW36: Työmatkat | AX36: Pisteet | AY36: PISTEET YHTEENSÄ (max. 15) | AZ36: PISTEET YHTEENSÄ, PAINOTETTU | BA36: KVLRAS pisteet | BC36: Maito | BD36: Jäte | BE36: Maa-aines | BF36: Maatalousrakennukset | BI36: Lammas | BJ36: Sika | BK36: Siipikarja | BL36: Elintarvikelaitos | BM36: Tuotantolaitos | BN36: Logistiikka-alue | BR36: PISTEET YHTEENSÄ (max. 15) | BS36: PISTEET YHTEENSÄ, PAINOTETTU | BT36: Pituus | BU36: Prosentti | BV36: KOULU | BW36: Pituus | BX36: Prosentti | BY36: ERIKU | BZ36: VARAREITTI | CA36: Pituus | CB36: Prosentti | CC36: TAAJAMA | CD36: Asukkaat | CE36: KYLÄ | CF36: KKVL pisteet | CG36: Matkailureitti | CH36: Matkailukohde | CI36: Tien verkollinen asema | CJ36: PISTEET YHTEENSÄ (max. 15) | CK36: PISTEET YHTEENSÄ, PAINOTETTU | CL36: PISTEET YHTEENSÄ (max. 45) | CM36: PISTEET YHTEENSÄ, PAINOTETTU | CN36: MERKITSEVYYS-LUOKKA
A37: =CONCATENATE(S37,"_",T37) -> 637_1 | B37: 1 | D37: =RANK(CM37,$CM$37:$CM$984) -> 1 | E37: 1 | F37: =E37-D37 -> 0 | G37: =CM37 -> 15.08919829 | H37: =AZ37 -> 5 | I37: =BS37 -> 7.422531619 | J37: =CK37 -> 2.666666667 | K37: =CN37 -> 1 | L37: =B37-K37 -> 0 | M37: =HYPERLINK(CU37,"Gmaps") -> Gmaps | N37: =IF(Y37>$K$6,"LOPUT","VÄHÄ") -> LOPUT | O37: =IF(S37<40,"Valta",IF(S37<100,"Kanta",IF(S37<1000,"Seutu",IF(S37>999,"Yhdys")))) -> Seutu | P37: Laukaantie, Lohikoskentie | Q37: Jyväskylä | S37: 637 | T37: 1 | U37: 0 | V37: 1 | W37: 5244 | X37: 5244 | Y37: 14844.2807 | Z37: 1016.768116 | AA37: 15073 | AB37: 12388 (69 %), 20300 (31 %) | AC37: 50 (57 %), 60 (41 %) | AD37: Is (99 %) | AE37: Asfalttibetoni (18 %), Kivimastiksiasfaltti (81 %) | AF37: PK2 (99 %) | AG37: 7 | AH37: 37 | AJ37: 436.8451564 | AR37: =+IF(Y37>=$K$6,$F$5,($F$5/($K$6))*Y37) -> 9 | AS37: 868 | AV37: =+IF(AS37>=$L$15,$J$15,IF(AS37<($L$15),AS37*($J$15/($L$15)),)) -> 3 | AW37: =_xlfn.XLOOKUP(A37,[1]Työmatkat!$A:$A,[1]Työmatkat!$F:$F,"-",0) -> 9512 | AX37: =+IF(AW37>=$L$11,$J$11,IF(AW37<($L$11),AW37*($J$11/($L$11)),)) -> 3 | AY37: =SUM(AR37,AV37,AX37) -> 15 | AZ37: =+AY37*$H$5 -> 5 | BA37: =+IF(Z37=0,0,IF(Z37>$K$7,$F$9,($F$9/$K$7)*Z37)) -> 8 | BB37: =+IF(AJ37=0,0,IF(AJ37>$L$6,$F$10,($F$10/$L$6)*AJ37)) -> 1 | BC37: =IF(DA37>0,$F$11,0) -> 3 | BD37: =IF(DB37>0,$F$12,0) -> 1 | BE37: =IF(DC37>0,$F$13,0) -> 1 | BF37: =IF(DE37>0,$F$14,0) -> 1 | BG37: =IF(DF37>0,$F$15,0) -> 1 | BH37: =+IF(DG37>=$L$23,$J$23,IF(DG37<($L$23),DG37*($J$23/($L$23)),)) -> 0 | BI37: =+IF(DH37>=$L$24,$J$24,IF(DH37<($L$24),DH37*($J$24/($L$24)),)) -> 0.085 | BJ37: =+IF(DI37>=$L$25,$J$25,IF(DI37<($L$25),DI37*($J$25/($L$25)),)) -> 0 | BK37: =+IF(DJ37>=$L$26,$J$26,IF(DJ37<($L$26),DJ37*($J$26/($L$26)),)) -> 0 | BL37: =IF(DK37>0,$F$17,0) -> 2 | BM37: =+IF(DN37>=$L$29,$J$29,IF(DN37<($L$29),DN37*($J$29/($L$29)),)) -> 2 | BO37: =IF(EA37>0,$F$19,0) -> 2 | BP37: 1.825948582 | BQ37: =+IF(BP37>=$L$19,$J$19,IF(BP37<($L$19),BP37*($J$19/($L$19)),)) -> 0.1825948582 | BR37: =SUM(BA37+BC37+BD37+BE37+BB37+BF37+BL37+BH37+BI37+BJ37+BK37+BM37+BO37+BQ37+BG37) -> 22.26759486 | BS37: =+BR37*$H$9 -> 7.422531619 | BT37: =DM37 -> 4357.28 | BU37: =BT37/X37 -> 0.830907704 | BV37: =IF(BU37>0,IF(BU37>=$CZ$28,$CX$28,IF(BU37<$CZ$28,$CX$29,0)),0) -> 1 | BW37: =_xlfn.XLOOKUP(A37,[1]Erikoiskuljetukset!$A:$A,[1]Erikoiskuljetukset!$F:$F,"-",0) -> 5180.58 | BX37: =BW37/X37 -> 0.9879061785 | BY37: =IF(BX37,$F$23,0) -> 1 | BZ37: =IF(DP37>0,$F$24,0) -> 1 | CA37: =DQ37 -> 5174.62 | CB37: =CA37/X37 -> 0.9867696415 | CC37: =+IF(CB37>=$K$4,$F$25,0) -> 1 | CD37: =_xlfn.XLOOKUP(A37,'[1]2_Asukastiheys'!$A:$A,'[1]2_Asukastiheys'!$H:$H,"-",0)/X37 -> 610.2578185 | CE37: =IF(CD37>0,IF(CD37>=100,$F$26,IF(CD37<100,$F$26/2)),0) -> 1 | CF37: =SUM(DT37) -> 1 | CG37: =IF(DX37>0,$F$28,0) -> 1 | CH37: =IF(DU37>0,$F$29,0) -> 0 | CI37: =IF(DZ37=0,$F$30,0) -> 1 | CJ37: =SUM(BV37,BY37,CE37,BZ37,CC37,CF37,CG37,CH37,CI37) -> 8 | CK37: =+CJ37*$H$22 -> 2.666666667 | CL37: =SUM(AY37,BR37,CJ37) -> 45.26759486 | CM37: =SUM(AZ37,BS37,CK37) -> 15.08919829 | CN37: =IF(D37<($Z$13*$CN$28),1,IF(D37<(($Z$14+$Z$13)*$CN$28),2,IF(D37<(($Z$15+$Z$13+$Z$14)*$CN$28),3,4))) -> 1 | CO37: =VLOOKUP(A37,Taul1!$F$6:$G$953,2,FALSE) -> 2 | CP37: =AR37+AV37+AX37+BA37+BC37+BD37+BF37+BG37+BH37+BI37+BJ37+BK37+BL37+BM37+BO37+BV37+BY37+BZ37+CF37+CI37 -> 40.085 | CQ37: =AY37 -> 15 | CR37: =BA37+BC37+BD37+BF37+BG37+BH37+BI37+BJ37+BK37+BL37+BM37+BO37 -> 20.085 | CS37: =BV37+BY37+BZ37+CF37+CI37 -> 5 | CU37: https://www.google.com/maps/@62.25688153,25.75580776,3a,75y,90t/data=!3m3!1e1!3m1!2e0 | CZ37: =_xlfn.XLOOKUP(A37,[1]Maito!$A:$A,[1]Maito!$J:$J,"-",0) -> 26 | DA37: =SUM(CX37:CZ37) -> 26 | DB37: =_xlfn.XLOOKUP(A37,[1]Kaatopaikat_jäte!$A:$A,[1]Kaatopaikat_jäte!$F:$F,"-",0) -> 7 | DC37: =_xlfn.XLOOKUP(A37,'[1]Maa-aines'!$A:$A,'[1]Maa-aines'!$F:$F,"-",0) -> 3 | DD37: =_xlfn.XLOOKUP(A37,[1]Turve!$A:$A,[1]Turve!$F:$F,"-",0) -> 0 | DE37: =_xlfn.XLOOKUP(A37,[1]Vilja!$A:$A,[1]Vilja!$F:$F,"-",0) -> 1 | DF37: =_xlfn.XLOOKUP(A37,[1]Kasvihuoneet!$A:$A,[1]Kasvihuoneet!$F:$F,"-",0) -> 2 | DG37: =_xlfn.XLOOKUP(A37,[1]Eläintilat!$A:$A,[1]Eläintilat!$H:$H,"-",0) -> 0 | DH37: =_xlfn.XLOOKUP(A37,[1]Eläintilat!$A:$A,[1]Eläintilat!$J:$J,"-",0) -> 17 | DI37: =_xlfn.XLOOKUP(A37,[1]Eläintilat!$A:$A,[1]Eläintilat!$I:$I,"-",0) -> 0 | DJ37: =_xlfn.XLOOKUP(A37,[1]Eläintilat!$A:$A,[1]Eläintilat!$K:$K,"-",0) -> 0 | DK37: =_xlfn.XLOOKUP(A37,'[1]Elintarvike ja varasto'!$A:$A,'[1]Elintarvike ja varasto'!$F:$F,"-",0) -> 3 | DM37: =_xlfn.XLOOKUP(A37,[1]Koulut!$A:$A,[1]Koulut!$F:$F,"-",0) -> 4357.28 | DN37: =_xlfn.XLOOKUP(A37,'[1]Tuotanto ja teollisuus'!$A:$A,'[1]Tuotanto ja teollisuus'!$F:$F,"-",0) -> 33 | DP37: =_xlfn.XLOOKUP(A37,[1]Varareitit!$A:$A,[1]Varareitit!$F:$F,"-",0) -> 29 | DQ37: =_xlfn.XLOOKUP(A37,[1]Taajama!$A:$A,[1]Taajama!$F:$F,"-",0) -> 5174.62 | DR37: =+IF(AA37>$K$8,$F$27/2,0) -> 1 | DS37: =+IF(AA37/Y37>1.5,$F$27/2,0) -> 0 | DT37: =SUM(DR37:DS37) -> 1 | DU37: =_xlfn.XLOOKUP(A37,[1]Matkailukohteet!$A:$A,[1]Matkailukohteet!$F:$F,"-",0) -> 0 | DV37: =_xlfn.XLOOKUP(A37,[1]Matkailu!$A:$A,[1]Matkailu!$F:$F,"-",0) -> 0 | DW37: =_xlfn.XLOOKUP(A37,[1]Pyörämatkailu!$A:$A,[1]Pyörämatkailu!$F:$F,"-",0) -> 2 | DX37: =SUM(DV37:DW37) -> 2 | DZ37: =_xlfn.XLOOKUP(A37,'[1]Verkollinen asema'!$A:$A,'[1]Verkollinen asema'!$D:$D,"-",0) -> 0 | EA37: =_xlfn.XLOOKUP(A37,[1]Kaupat!$A:$A,[1]Kaupat!$F:$F,"-",0) -> 7 | EF37: =IFERROR(VLOOKUP(A37,$EL$37:$EN$992,2,FALSE),"--") -> -- | EG37: =IFERROR(VLOOKUP(A37,$EL$37:$EN$992,3,FALSE),"--") -> -- | EH37: =IFERROR(EG37-D37,"--") -> -- | EI37: =IFERROR(VLOOKUP(A37,$EL$37:$EO$992,4,FALSE),"--") -> -- | EJ37: =IFERROR(EI37-K37,"--") -> -- | EL37: 3191_2 | EM37: LOPUT | EN37: 224 | EO37: 2 | EQ37: 151 | ER37: 2
A38: 4_301 | B38: 1 | D38: 2 | E38: 2 | F38: 0 | G38: 14.85276294 | H38: 5 | I38: 7.519429607 | J38: 2.333333333 | K38: 1 | L38: 0 | M38: Gmaps | N38: LOPUT | O38: Valta | P38: Nelostie | Q38: Jyväskylä | S38: 4 | T38: 301 | U38: 0 | V38: 301 | W38: 7173 | X38: 7173 | Y38: 23211.65802 | Z38: 1462.927924 | AA38: 24345 | AB38: 19131 (17 %), 23245 (61 %), 26127 (23 %) | AC38: 100 (71 %), 70 (29 %) | AD38: Ise (100 %) | AE38: Asfalttibetoni (12 %), Kivimastiksiasfaltti (88 %) | AF38: PK1 (100 %) | AG38: 8 | AH38: 42 | AJ38: 963.696919 | AR38: =+IF(Y38>=$K$6,$F$5,($F$5/($K$6))*Y38) -> 9 | AS38: 3025 | AV38: =+IF(AS38>=$L$15,$J$15,IF(AS38<($L$15),AS38*($J$15/($L$15)),)) -> 3 | AW38: =_xlfn.XLOOKUP(A38,[1]Työmatkat!$A:$A,[1]Työmatkat!$F:$F,"-",0) -> 19964 | AX38: =+IF(AW38>=$L$11,$J$11,IF(AW38<($L$11),AW38*($J$11/($L$11)),)) -> 3 | AY38: 15 | AZ38: 5 | BA38: =+IF(Z38=0,0,IF(Z38>$K$7,$F$9,($F$9/$K$7)*Z38)) -> 8 | BB38: =+IF(AJ38=0,0,IF(AJ38>$L$6,$F$10,($F$10/$L$6)*AJ38)) -> 1 | BC38: =IF(DA38>0,$F$11,0) -> 3 | BD38: =IF(DB38>0,$F$12,0) -> 1 | BE38: =IF(DC38>0,$F$13,0) -> 1 | BF38: =IF(DE38>0,$F$14,0) -> 1 | BG38: =IF(DF38>0,$F$15,0) -> 1 | BH38: =+IF(DG38>=$L$23,$J$23,IF(DG38<($L$23),DG38*($J$23/($L$23)),)) -> 0 | BI38: =+IF(DH38>=$L$24,$J$24,IF(DH38<($L$24),DH38*($J$24/($L$24)),)) -> 0.085 | BJ38: =+IF(DI38>=$L$25,$J$25,IF(DI38<($L$25),DI38*($J$25/($L$25)),)) -> 0 | BK38: =+IF(DJ38>=$L$26,$J$26,IF(DJ38<($L$26),DJ38*($J$26/($L$26)),)) -> 0.0095 | BL38: =IF(DK38>0,$F$17,0) -> 2 | BM38: 2 | BO38: =IF(EA38>0,$F$19,0) -> 2 | BP38: 4.637888219 | BQ38: 0.4637888219 | BR38: 22.55828882 | BS38: 7.519429607 | BT38: 7186.54 | BU38: 1.001887634 | BV38: 1 | BW38: =_xlfn.XLOOKUP(A38,[1]Erikoiskuljetukset!$A:$A,[1]Erikoiskuljetukset!$F:$F,"-",0) -> 6635.49 | BX38: 0.9250648264 | BY38: 1 | BZ38: 1 | CA38: 5637.71 | CB38: 0.7859626377 | CC38: 1 | CD38: =_xlfn.XLOOKUP(A38,'[1]2_Asukastiheys'!$A:$A,'[1]2_Asukastiheys'!$H:$H,"-",0)/X38 -> 982.4912868 | CE38: 1 | CF38: 1 | CG38: 0 | CH38: 0 | CI38: 1 | CJ38: 7 | CK38: 2.333333333 | CL38: 44.55828882 | CM38: 14.85276294 | CN38: 1 | CO38: =VLOOKUP(A38,Taul1!$F$6:$G$953,2,FALSE) -> 3 | CP38: =AR38+AV38+AX38+BA38+BC38+BD38+BF38+BG38+BH38+BI38+BJ38+BK38+BL38+BM38+BO38+BV38+BY38+BZ38+CF38+CI38 -> 40.0945 | CQ38: 15 | CR38: =BA38+BC38+BD38+BF38+BG38+BH38+BI38+BJ38+BK38+BL38+BM38+BO38 -> 20.0945 | CS38: 5 | CU38: https://www.google.com/maps/@62.24653765,25.76999781,3a,75y,90t/data=!3m3!1e1!3m1!2e0 | CZ38: =_xlfn.XLOOKUP(A38,[1]Maito!$A:$A,[1]Maito!$J:$J,"-",0) -> 26 | DA38: 26 | DB38: =_xlfn.XLOOKUP(A38,[1]Kaatopaikat_jäte!$A:$A,[1]Kaatopaikat_jäte!$F:$F,"-",0) -> 12 | DC38: =_xlfn.XLOOKUP(A38,'[1]Maa-aines'!$A:$A,'[1]Maa-aines'!$F:$F,"-",0) -> 5 | DD38: =_xlfn.XLOOKUP(A38,[1]Turve!$A:$A,[1]Turve!$F:$F,"-",0) -> 0 | DE38: =_xlfn.XLOOKUP(A38,[1]Vilja!$A:$A,[1]Vilja!$F:$F,"-",0) -> 3 | DF38: =_xlfn.XLOOKUP(A38,[1]Kasvihuoneet!$A:$A,[1]Kasvihuoneet!$F:$F,"-",0) -> 2 | DG38: =_xlfn.XLOOKUP(A38,[1]Eläintilat!$A:$A,[1]Eläintilat!$H:$H,"-",0) -> 0 | DH38: =_xlfn.XLOOKUP(A38,[1]Eläintilat!$A:$A,[1]Eläintilat!$J:$J,"-",0) -> 17 | DI38: =_xlfn.XLOOKUP(A38,[1]Eläintilat!$A:$A,[1]Eläintilat!$I:$I,"-",0) -> 0 | DJ38: =_xlfn.XLOOKUP(A38,[1]Eläintilat!$A:$A,[1]Eläintilat!$K:$K,"-",0) -> 19 | DK38: =_xlfn.XLOOKUP(A38,'[1]Elintarvike ja varasto'!$A:$A,'[1]Elintarvike ja varasto'!$F:$F,"-",0) -> 3 | DM38: =_xlfn.XLOOKUP(A38,[1]Koulut!$A:$A,[1]Koulut!$F:$F,"-",0) -> 7186.54 | DN38: =_xlfn.XLOOKUP(A38,'[1]Tuotanto ja teollisuus'!$A:$A,'[1]Tuotanto ja teollisuus'!$F:$F,"-",0) -> 66 | DP38: =_xlfn.XLOOKUP(A38,[1]Varareitit!$A:$A,[1]Varareitit!$F:$F,"-",0) -> 12 | DQ38: =_xlfn.XLOOKUP(A38,[1]Taajama!$A:$A,[1]Taajama!$F:$F,"-",0) -> 5637.71 | DR38: 1 | DS38: 0 | DT38: 1 | DU38: =_xlfn.XLOOKUP(A38,[1]Matkailukohteet!$A:$A,[1]Matkailukohteet!$F:$F,"-",0) -> 0 | DV38: =_xlfn.XLOOKUP(A38,[1]Matkailu!$A:$A,[1]Matkailu!$F:$F,"-",0) -> 0 | DW38: =_xlfn.XLOOKUP(A38,[1]Pyörämatkailu!$A:$A,[1]Pyörämatkailu!$F:$F,"-",0) -> 0 | DX38: 0 | DZ38: =_xlfn.XLOOKUP(A38,'[1]Verkollinen asema'!$A:$A,'[1]Verkollinen asema'!$D:$D,"-",0) -> 0 | EA38: =_xlfn.XLOOKUP(A38,[1]Kaupat!$A:$A,[1]Kaupat!$F:$F,"-",0) -> 20 | EF38: -- | EG38: -- | EH38: -- | EI38: -- | EJ38: -- | EL38: 25_19 | EM38: LOPUT | EN38: 14 | EO38: 1 | EQ38: 11187 | ER38: 1
A39: 4_304 | B39: 1 | D39: 3 | E39: 3 | F39: 0 | G39: 14.50833333 | H39: 5 | I39: 7.508333333 | J39: 2 | K39: 1 | L39: 0 | M39: Gmaps | N39: LOPUT | O39: Valta | P39: Nelostie | Q39: Jyväskylä, Laukaa | S39: 4 | T39: 304 | U39: 0 | V39: 304 | W39: 5563 | X39: 5563 | Y39: 11408.58997 | Z39: 1000.933669 | AA39: 12549 | AB39: 11302 (51 %), 11520 (49 %) | AC39: 100 (100 %) | AD39: Ise (100 %) | AE39: Asfalttibetoni (100 %) | AF39: PK1 (100 %) | AG39: 0 | AH39: 3 | AJ39: 601.6020133 | AR39: 9 | AS39: 23 | AV39: 3 | AW39: =_xlfn.XLOOKUP(A39,[1]Työmatkat!$A:$A,[1]Työmatkat!$F:$F,"-",0) -> 3724 | AX39: 3 | AY39: 15 | AZ39: 5 | BA39: 8 | BB39: 1 | BC39: 3 | BD39: 1 | BE39: 1 | BF39: 1 | BG39: 1 | BH39: 0.5 | BI39: 0.025 | BJ39: 0 | BK39: 0 | BL39: 2 | BM39: 2 | BO39: 2 | BP39: 0 | BQ39: 0 | BR39: 22.525 | BS39: 7.508333333 | BT39: 2070.12 | BU39: 0.3721229552 | BV39: 0.5 | BW39: =_xlfn.XLOOKUP(A39,[1]Erikoiskuljetukset!$A:$A,[1]Erikoiskuljetukset!$F:$F,"-",0) -> 5563.29 | BX39: 1.00005213 | BY39: 1 | BZ39: 1 | CA39: 0 | CB39: 0 | CC39: 0 | CD39: =_xlfn.XLOOKUP(A39,'[1]2_Asukastiheys'!$A:$A,'[1]2_Asukastiheys'!$H:$H,"-",0)/X39 -> 14.12906705 | CE39: 0.5 | CF39: 1 | CG39: 0 | CH39: 1 | CI39: 1 | CJ39: 6 | CK39: 2 | CL39: 43.525 | CM39: 14.50833333 | CN39: 1 | CO39: =VLOOKUP(A39,Taul1!$F$6:$G$953,2,FALSE) -> 2 | CP39: 40.025 | CQ39: 15 | CR39: 20.525 | CS39: 4.5 | CU39: https://www.google.com/maps/@62.38513303,25.70733758,3a,75y,90t/data=!3m3!1e1!3m1!2e0 | CZ39: =_xlfn.XLOOKUP(A39,[1]Maito!$A:$A,[1]Maito!$J:$J,"-",0) -> 8 | DA39: 8 | DB39: =_xlfn.XLOOKUP(A39,[1]Kaatopaikat_jäte!$A:$A,[1]Kaatopaikat_jäte!$F:$F,"-",0) -> 8 | DC39: =_xlfn.XLOOKUP(A39,'[1]Maa-aines'!$A:$A,'[1]Maa-aines'!$F:$F,"-",0) -> 10 | DD39: =_xlfn.XLOOKUP(A39,[1]Turve!$A:$A,[1]Turve!$F:$F,"-",0) -> 0 | DE39: =_xlfn.XLOOKUP(A39,[1]Vilja!$A:$A,[1]Vilja!$F:$F,"-",0) -> 16 | DF39: =_xlfn.XLOOKUP(A39,[1]Kasvihuoneet!$A:$A,[1]Kasvihuoneet!$F:$F,"-",0) -> 5 | DG39: =_xlfn.XLOOKUP(A39,[1]Eläintilat!$A:$A,[1]Eläintilat!$H:$H,"-",0) -> 201 | DH39: =_xlfn.XLOOKUP(A39,[1]Eläintilat!$A:$A,[1]Eläintilat!$J:$J,"-",0) -> 5 | DI39: =_xlfn.XLOOKUP(A39,[1]Eläintilat!$A:$A,[1]Eläintilat!$I:$I,"-",0) -> 0 | DJ39: =_xlfn.XLOOKUP(A39,[1]Eläintilat!$A:$A,[1]Eläintilat!$K:$K,"-",0) -> 0 | DK39: =_xlfn.XLOOKUP(A39,'[1]Elintarvike ja varasto'!$A:$A,'[1]Elintarvike ja varasto'!$F:$F,"-",0) -> 1 | DM39: =_xlfn.XLOOKUP(A39,[1]Koulut!$A:$A,[1]Koulut!$F:$F,"-",0) -> 2070.12 | DN39: =_xlfn.XLOOKUP(A39,'[1]Tuotanto ja teollisuus'!$A:$A,'[1]Tuotanto ja teollisuus'!$F:$F,"-",0) -> 7 | DP39: =_xlfn.XLOOKUP(A39,[1]Varareitit!$A:$A,[1]Varareitit!$F:$F,"-",0) -> 10 | DQ39: =_xlfn.XLOOKUP(A39,[1]Taajama!$A:$A,[1]Taajama!$F:$F,"-",0) -> 0 | DR39: 1 | DS39: 0 | DT39: 1 | DU39: =_xlfn.XLOOKUP(A39,[1]Matkailukohteet!$A:$A,[1]Matkailukohteet!$F:$F,"-",0) -> 1 | DV39: =_xlfn.XLOOKUP(A39,[1]Matkailu!$A:$A,[1]Matkailu!$F:$F,"-",0) -> 0 | DW39: =_xlfn.XLOOKUP(A39,[1]Pyörämatkailu!$A:$A,[1]Pyörämatkailu!$F:$F,"-",0) -> 0 | DX39: 0 | DZ39: =_xlfn.XLOOKUP(A39,'[1]Verkollinen asema'!$A:$A,'[1]Verkollinen asema'!$D:$D,"-",0) -> 0 | EA39: =_xlfn.XLOOKUP(A39,[1]Kaupat!$A:$A,[1]Kaupat!$F:$F,"-",0) -> 7 | EF39: -- | EG39: -- | EH39: -- | EI39: -- | EJ39: -- | EL39: 12_224 | EM39: LOPUT | EN39: 19 | EO39: 1 | EQ39: 146 | ER39: 2
A40: 56_1 | B40: 1 | D40: 4 | E40: 4 | F40: 0 | G40: 14.335 | H40: 5 | I40: 7.001666667 | J40: 2.333333333 | K40: 1 | L40: 0 | M40: Gmaps | N40: LOPUT | O40: Kanta | P40: Kauhkialantie, Pääskysmäentie | Q40: Jämsä | S40: 56 | T40: 1 | U40: 0 | V40: 1 | W40: 7077 | X40: 7077 | Y40: 3807.410343 | Z40: 262.1449767 | AA40: 3880 | AB40: 3423 (82 %), 5527 (18 %) | AC40: 50 (36 %), 60 (38 %), 80 (26 %) | AD40: Is (100 %) | AE40: Asfalttibetoni (93 %), Kivimastiksiasfaltti (7 %) | AF40: PK2 (100 %) | AG40: 2 | AH40: 7 | AJ40: 120.3179313 | AR40: 9 | AS40: 42 | AV40: 3 | AW40: =_xlfn.XLOOKUP(A40,[1]Työmatkat!$A:$A,[1]Työmatkat!$F:$F,"-",0) -> 1850 | AX40: 3 | AY40: 15 | AZ40: 5 | BA40: 8 | BB40: 1 | BC40: 3 | BD40: 1 | BE40: 1 | BF40: 1 | BG40: 1 | BH40: 0.005 | BI40: 0 | BJ40: 0 | BK40: 0 | BL40: 0 | BM40: 2 | BO40: 2 | BP40: 19.75097258 | BQ40: 1 | BR40: 21.005 | BS40: 7.001666667 | BT40: 4172.78 | BU40: 0.5896255475 | BV40: 1 | BW40: =_xlfn.XLOOKUP(A40,[1]Erikoiskuljetukset!$A:$A,[1]Erikoiskuljetukset!$F:$F,"-",0) -> 7047.61 | BX40: 0.9958471104 | BY40: 1 | BZ40: 1 | CA40: 4868.57 | CB40: 0.6879426311 | CC40: 1 | CD40: =_xlfn.XLOOKUP(A40,'[1]2_Asukastiheys'!$A:$A,'[1]2_Asukastiheys'!$H:$H,"-",0)/X40 -> 140.5314399 | CE40: 1 | CF40: 1 | CG40: 0 | CH40: 0 | CI40: 1 | CJ40: 7 | CK40: 2.333333333 | CL40: 43.005 | CM40: 14.335 | CN40: 1 | CO40: =VLOOKUP(A40,Taul1!$F$6:$G$953,2,FALSE) -> 2 | CP40: 38.005 | CQ40: 15 | CR40: 18.005 | CS40: 5 | CU40: https://www.google.com/maps/@61.85076907,25.17533908,3a,75y,90t/data=!3m3!1e1!3m1!2e0 | CZ40: =_xlfn.XLOOKUP(A40,[1]Maito!$A:$A,[1]Maito!$J:$J,"-",0) -> 1 | DA40: 1 | DB40: =_xlfn.XLOOKUP(A40,[1]Kaatopaikat_jäte!$A:$A,[1]Kaatopaikat_jäte!$F:$F,"-",0) -> 1 | DC40: =_xlfn.XLOOKUP(A40,'[1]Maa-aines'!$A:$A,'[1]Maa-aines'!$F:$F,"-",0) -> 1 | DD40: =_xlfn.XLOOKUP(A40,[1]Turve!$A:$A,[1]Turve!$F:$F,"-",0) -> 0 | DE40: =_xlfn.XLOOKUP(A40,[1]Vilja!$A:$A,[1]Vilja!$F:$F,"-",0) -> 4 | DF40: =_xlfn.XLOOKUP(A40,[1]Kasvihuoneet!$A:$A,[1]Kasvihuoneet!$F:$F,"-",0) -> 1 | DG40: =_xlfn.XLOOKUP(A40,[1]Eläintilat!$A:$A,[1]Eläintilat!$H:$H,"-",0) -> 1 | DH40: =_xlfn.XLOOKUP(A40,[1]Eläintilat!$A:$A,[1]Eläintilat!$J:$J,"-",0) -> 0 | DI40: =_xlfn.XLOOKUP(A40,[1]Eläintilat!$A:$A,[1]Eläintilat!$I:$I,"-",0) -> 0 | DJ40: =_xlfn.XLOOKUP(A40,[1]Eläintilat!$A:$A,[1]Eläintilat!$K:$K,"-",0) -> 0 | DK40: =_xlfn.XLOOKUP(A40,'[1]Elintarvike ja varasto'!$A:$A,'[1]Elintarvike ja varasto'!$F:$F,"-",0) -> 0 | DM40: =_xlfn.XLOOKUP(A40,[1]Koulut!$A:$A,[1]Koulut!$F:$F,"-",0) -> 4172.78 | DN40: =_xlfn.XLOOKUP(A40,'[1]Tuotanto ja teollisuus'!$A:$A,'[1]Tuotanto ja teollisuus'!$F:$F,"-",0) -> 9 | DP40: =_xlfn.XLOOKUP(A40,[1]Varareitit!$A:$A,[1]Varareitit!$F:$F,"-",0) -> 46 | DQ40: =_xlfn.XLOOKUP(A40,[1]Taajama!$A:$A,[1]Taajama!$F:$F,"-",0) -> 4868.57 | DR40: 1 | DS40: 0 | DT40: 1 | DU40: =_xlfn.XLOOKUP(A40,[1]Matkailukohteet!$A:$A,[1]Matkailukohteet!$F:$F,"-",0) -> 0 | DV40: =_xlfn.XLOOKUP(A40,[1]Matkailu!$A:$A,[1]Matkailu!$F:$F,"-",0) -> 0 | DW40: =_xlfn.XLOOKUP(A40,[1]Pyörämatkailu!$A:$A,[1]Pyörämatkailu!$F:$F,"-",0) -> 0 | DX40: 0 | DZ40: =_xlfn.XLOOKUP(A40,'[1]Verkollinen asema'!$A:$A,'[1]Verkollinen asema'!$D:$D,"-",0) -> 0 | EA40: =_xlfn.XLOOKUP(A40,[1]Kaupat!$A:$A,[1]Kaupat!$F:$F,"-",0) -> 6 | EF40: -- | EG40: -- | EH40: -- | EI40: -- | EJ40: -- | EL40: 313_3 | EM40: LOPUT | EN40: 134 | EO40: 2
A41: 642_4 | B41: 1 | D41: 5 | E41: 5 | F41: 0 | G41: 14.31666667 | H41: 5 | I41: 6.816666667 | J41: 2.5 | K41: 1 | L41: 0 | M41: Gmaps | N41: LOPUT | O41: Seutu | P41: Äänekoskentie | Q41: Äänekoski | S41: 642 | T41: 4 | U41: 0 | V41: 4 | W41: 6919 | X41: 6919 | Y41: 5049.388206 | Z41: 258.2949848 | AA41: 5451 | AB41: 4999 (75 %), 5203 (25 %) | AC41: 50 (4 %), 60 (17 %), 70 (79 %) | AD41: Is (100 %) | AE41: Kivimastiksiasfaltti (94 %) | AF41: PK2 (100 %) | AG41: 2 | AH41: 7 | AJ41: 84.75299899 | AR41: 9 | AS41: 114 | AV41: 3 | AW41: =_xlfn.XLOOKUP(A41,[1]Työmatkat!$A:$A,[1]Työmatkat!$F:$F,"-",0) -> 1746 | AX41: 3 | AY41: 15 | AZ41: 5 | BA41: 8 | BB41: 1 | BC41: 3 | BD41: 1 | BE41: 0 | BF41: 1 | BG41: 1 | BH41: 0.45 | BI41: 0 | BJ41: 0 | BK41: 0 | BL41: 2 | BM41: 0 | BO41: 2 | BP41: 19.79905796 | BQ41: 1 | BR41: 20.45 | BS41: 6.816666667 | BT41: 1291.17 | BU41: 0.1866122272 | BV41: 0.5 | BW41: =_xlfn.XLOOKUP(A41,[1]Erikoiskuljetukset!$A:$A,[1]Erikoiskuljetukset!$F:$F,"-",0) -> 6532.33 | BX41: 0.9441147565 | BY41: 1 | BZ41: 1 | CA41: 5219.57 | CB41: 0.7543821361 | CC41: 1 | CD41: =_xlfn.XLOOKUP(A41,'[1]2_Asukastiheys'!$A:$A,'[1]2_Asukastiheys'!$H:$H,"-",0)/X41 -> 165.8910247 | CE41: 1 | CF41: 1 | CG41: 1 | CH41: 0 | CI41: 1 | CJ41: 7.5 | CK41: 2.5 | CL41: 42.95 | CM41: 14.31666667 | CN41: 1 | CO41: =VLOOKUP(A41,Taul1!$F$6:$G$953,2,FALSE) -> 2 | CP41: 37.95 | CQ41: 15 | CR41: 18.45 | CS41: 4.5 | CU41: https://www.google.com/maps/@62.56351828,25.84144018,3a,75y,90t/data=!3m3!1e1!3m1!2e0 | CZ41: =_xlfn.XLOOKUP(A41,[1]Maito!$A:$A,[1]Maito!$J:$J,"-",0) -> 1 | DA41: 1 | DB41: =_xlfn.XLOOKUP(A41,[1]Kaatopaikat_jäte!$A:$A,[1]Kaatopaikat_jäte!$F:$F,"-",0) -> 2 | DC41: =_xlfn.XLOOKUP(A41,'[1]Maa-aines'!$A:$A,'[1]Maa-aines'!$F:$F,"-",0) -> 0 | DD41: =_xlfn.XLOOKUP(A41,[1]Turve!$A:$A,[1]Turve!$F:$F,"-",0) -> 0 | DE41: =_xlfn.XLOOKUP(A41,[1]Vilja!$A:$A,[1]Vilja!$F:$F,"-",0) -> 1 | DF41: =_xlfn.XLOOKUP(A41,[1]Kasvihuoneet!$A:$A,[1]Kasvihuoneet!$F:$F,"-",0) -> 1 | DG41: =_xlfn.XLOOKUP(A41,[1]Eläintilat!$A:$A,[1]Eläintilat!$H:$H,"-",0) -> 90 | DH41: =_xlfn.XLOOKUP(A41,[1]Eläintilat!$A:$A,[1]Eläintilat!$J:$J,"-",0) -> 0 | DI41: =_xlfn.XLOOKUP(A41,[1]Eläintilat!$A:$A,[1]Eläintilat!$I:$I,"-",0) -> 0 | DJ41: =_xlfn.XLOOKUP(A41,[1]Eläintilat!$A:$A,[1]Eläintilat!$K:$K,"-",0) -> 0 | DK41: =_xlfn.XLOOKUP(A41,'[1]Elintarvike ja varasto'!$A:$A,'[1]Elintarvike ja varasto'!$F:$F,"-",0) -> 1 | DM41: =_xlfn.XLOOKUP(A41,[1]Koulut!$A:$A,[1]Koulut!$F:$F,"-",0) -> 1291.17 | DN41: =_xlfn.XLOOKUP(A41,'[1]Tuotanto ja teollisuus'!$A:$A,'[1]Tuotanto ja teollisuus'!$F:$F,"-",0) -> 0 | DP41: =_xlfn.XLOOKUP(A41,[1]Varareitit!$A:$A,[1]Varareitit!$F:$F,"-",0) -> 1 | DQ41: =_xlfn.XLOOKUP(A41,[1]Taajama!$A:$A,[1]Taajama!$F:$F,"-",0) -> 5219.57 | DR41: 1 | DS41: 0 | DT41: 1 | DU41: =_xlfn.XLOOKUP(A41,[1]Matkailukohteet!$A:$A,[1]Matkailukohteet!$F:$F,"-",0) -> 0 | DV41: =_xlfn.XLOOKUP(A41,[1]Matkailu!$A:$A,[1]Matkailu!$F:$F,"-",0) -> 0 | DW41: =_xlfn.XLOOKUP(A41,[1]Pyörämatkailu!$A:$A,[1]Pyörämatkailu!$F:$F,"-",0) -> 2 | DX41: 2 | DZ41: =_xlfn.XLOOKUP(A41,'[1]Verkollinen asema'!$A:$A,'[1]Verkollinen asema'!$D:$D,"-",0) -> 0 | EA41: =_xlfn.XLOOKUP(A41,[1]Kaupat!$A:$A,[1]Kaupat!$F:$F,"-",0) -> 1 | EF41: -- | EG41: -- | EH41: -- | EI41: -- | EJ41: -- | EL41: 10_20 | EM41: LOPUT | EN41: 299 | EO41: 2 | EQ41: 11337 | ER41: 2
A42: 13_134 | B42: 1 | D42: 6 | E42: 6 | F42: 0 | G42: 14.185 | H42: 5 | I42: 6.518333333 | J42: 2.666666667 | K42: 1 | L42: 0 | M42: Gmaps | N42: LOPUT | O42: Valta | P42: Jyväskyläntie | Q42: Saarijärvi | S42: 13 | T42: 134 | U42: 0 | V42: 134 | W42: 4044 | X42: 4044 | Y42: 5729.813056 | Z42: 455.6913947 | AA42: 6990 | AB42: 5171 (48 %), 6241 (52 %) | AC42: 50 (7 %), 60 (93 %) | AD42: Is (100 %) | AE42: Kivimastiksiasfaltti (97 %) | AF42: PK1 (100 %) | AG42: 3 | AH42: 7 | AJ42: 262.5905045 | AR42: 9 | AS42: 24 | AV42: 3 | AW42: =_xlfn.XLOOKUP(A42,[1]Työmatkat!$A:$A,[1]Työmatkat!$F:$F,"-",0) -> 1541 | AX42: 3 | AY42: 15 | AZ42: 5 | BA42: 8 | BB42: 1 | BC42: 3 | BD42: 0 | BE42: 0 | BF42: 1 | BG42: 1 | BH42: 0.5 | BI42: 0.055 | BJ42: 0 | BK42: 0 | BL42: 2 | BM42: 0 | BO42: 2 | BP42: 23.80297762 | BQ42: 1 | BR42: 19.555 | BS42: 6.518333333 | BT42: 2739.38 | BU42: 0.6773936696 | BV42: 1 | BW42: =_xlfn.XLOOKUP(A42,[1]Erikoiskuljetukset!$A:$A,[1]Erikoiskuljetukset!$F:$F,"-",0) -> 3905.54 | BX42: 0.9657616222 | BY42: 1 | BZ42: 1 | CA42: 4039.89 | CB42: 0.9989836795 | CC42: 1 | CD42: =_xlfn.XLOOKUP(A42,'[1]2_Asukastiheys'!$A:$A,'[1]2_Asukastiheys'!$H:$H,"-",0)/X42 -> 149.7012859 | CE42: 1 | CF42: 1 | CG42: 1 | CH42: 0 | CI42: 1 | CJ42: 8 | CK42: 2.666666667 | CL42: 42.555 | CM42: 14.185 | CN42: 1 | CO42: =VLOOKUP(A42,Taul1!$F$6:$G$953,2,FALSE) -> 2 | CP42: 37.555 | CQ42: 15 | CR42: 17.555 | CS42: 5 | CU42: https://www.google.com/maps/@62.69596744,25.2945793,3a,75y,90t/data=!3m3!1e1!3m1!2e0 | CZ42: =_xlfn.XLOOKUP(A42,[1]Maito!$A:$A,[1]Maito!$J:$J,"-",0) -> 8 | DA42: 8 | DB42: =_xlfn.XLOOKUP(A42,[1]Kaatopaikat_jäte!$A:$A,[1]Kaatopaikat_jäte!$F:$F,"-",0) -> 0 | DC42: =_xlfn.XLOOKUP(A42,'[1]Maa-aines'!$A:$A,'[1]Maa-aines'!$F:$F,"-",0) -> 0 | DD42: =_xlfn.XLOOKUP(A42,[1]Turve!$A:$A,[1]Turve!$F:$F,"-",0) -> 3 | DE42: =_xlfn.XLOOKUP(A42,[1]Vilja!$A:$A,[1]Vilja!$F:$F,"-",0) -> 6 | DF42: =_xlfn.XLOOKUP(A42,[1]Kasvihuoneet!$A:$A,[1]Kasvihuoneet!$F:$F,"-",0) -> 2 | DG42: =_xlfn.XLOOKUP(A42,[1]Eläintilat!$A:$A,[1]Eläintilat!$H:$H,"-",0) -> 490 | DH42: =_xlfn.XLOOKUP(A42,[1]Eläintilat!$A:$A,[1]Eläintilat!$J:$J,"-",0) -> 11 | DI42: =_xlfn.XLOOKUP(A42,[1]Eläintilat!$A:$A,[1]Eläintilat!$I:$I,"-",0) -> 0 | DJ42: =_xlfn.XLOOKUP(A42,[1]Eläintilat!$A:$A,[1]Eläintilat!$K:$K,"-",0) -> 0 | DK42: =_xlfn.XLOOKUP(A42,'[1]Elintarvike ja varasto'!$A:$A,'[1]Elintarvike ja varasto'!$F:$F,"-",0) -> 1 | DM42: =_xlfn.XLOOKUP(A42,[1]Koulut!$A:$A,[1]Koulut!$F:$F,"-",0) -> 2739.38 | DN42: =_xlfn.XLOOKUP(A42,'[1]Tuotanto ja teollisuus'!$A:$A,'[1]Tuotanto ja teollisuus'!$F:$F,"-",0) -> 0 | DP42: =_xlfn.XLOOKUP(A42,[1]Varareitit!$A:$A,[1]Varareitit!$F:$F,"-",0) -> 23 | DQ42: =_xlfn.XLOOKUP(A42,[1]Taajama!$A:$A,[1]Taajama!$F:$F,"-",0) -> 4039.89 | DR42: 1 | DS42: 0 | DT42: 1 | DU42: =_xlfn.XLOOKUP(A42,[1]Matkailukohteet!$A:$A,[1]Matkailukohteet!$F:$F,"-",0) -> 0 | DV42: =_xlfn.XLOOKUP(A42,[1]Matkailu!$A:$A,[1]Matkailu!$F:$F,"-",0) -> 0 | DW42: =_xlfn.XLOOKUP(A42,[1]Pyörämatkailu!$A:$A,[1]Pyörämatkailu!$F:$F,"-",0) -> 1 | DX42: 1 | DZ42: =_xlfn.XLOOKUP(A42,'[1]Verkollinen asema'!$A:$A,'[1]Verkollinen asema'!$D:$D,"-",0) -> 0 | EA42: =_xlfn.XLOOKUP(A42,[1]Kaupat!$A:$A,[1]Kaupat!$F:$F,"-",0) -> 5 | EF42: -- | EG42: -- | EH42: -- | EI42: -- | EJ42: -- | EL42: 1215_3 | EM42: LOPUT | EN42: 132 | EO42: 2 | EQ42: 186 | ER42: 15
A43: 16619_1 | B43: 1 | D43: 7 | E43: 7 | F43: 0 | G43: 14.04253894 | H43: 5 | I43: 6.375872275 | J43: 2.666666667 | K43: 1 | L43: 0 | M43: Gmaps | N43: LOPUT | O43: Yhdys | P43: Muuramentie, Teollisuustie | Q43: Muurame | S43: 16619 | T43: 1 | U43: 0 | V43: 1 | W43: 4775 | X43: 4775 | Y43: 2448.845026 | Z43: 103.4712042 | AA43: 2594 | AB43: 1695 (55 %), 3381 (45 %) | AC43: 40 (54 %), 50 (34 %), 60 (12 %) | AD43: Ic (100 %) | AE43: Asfalttibetoni (100 %) | AF43: PK2 (100 %) | AG43: 1 | AH43: 3 | AJ43: 27.12984293 | AR43: 9 | AS43: 643 | AV43: 3 | AW43: =_xlfn.XLOOKUP(A43,[1]Työmatkat!$A:$A,[1]Työmatkat!$F:$F,"-",0) -> 2152 | AX43: 3 | AY43: 15 | AZ43: 5 | BA43: 8 | BB43: 1 | BC43: 3 | BD43: 0 | BE43: 1 | BF43: 1 | BG43: 1 | BH43: 0.125 | BI43: 0 | BJ43: 0 | BK43: 0 | BL43: 2 | BM43: 0 | BO43: 2 | BP43: 0.02616825478 | BQ43: 0.002616825478 | BR43: 19.12761683 | BS43: 6.375872275 | BT43: 3749.33 | BU43: 0.7852 | BV43: 1 | BW43: =_xlfn.XLOOKUP(A43,[1]Erikoiskuljetukset!$A:$A,[1]Erikoiskuljetukset!$F:$F,"-",0) -> 0 | BX43: 0 | BY43: 0 | BZ43: 1 | CA43: 4713.59 | CB43: 0.987139267 | CC43: 1 | CD43: =_xlfn.XLOOKUP(A43,'[1]2_Asukastiheys'!$A:$A,'[1]2_Asukastiheys'!$H:$H,"-",0)/X43 -> 472 | CE43: 1 | CF43: 1 | CG43: 1 | CH43: 1 | CI43: 1 | CJ43: 8 | CK43: 2.666666667 | CL43: 42.12761683 | CM43: 14.04253894 | CN43: 1 | CO43: =VLOOKUP(A43,Taul1!$F$6:$G$953,2,FALSE) -> 2 | CP43: 36.125 | CQ43: 15 | CR43: 17.125 | CS43: 4 | CU43: https://www.google.com/maps/@62.10474915,25.64163166,3a,75y,90t/data=!3m3!1e1!3m1!2e0 | CZ43: =_xlfn.XLOOKUP(A43,[1]Maito!$A:$A,[1]Maito!$J:$J,"-",0) -> 1 | DA43: 1 | DB43: =_xlfn.XLOOKUP(A43,[1]Kaatopaikat_jäte!$A:$A,[1]Kaatopaikat_jäte!$F:$F,"-",0) -> 0 | DC43: =_xlfn.XLOOKUP(A43,'[1]Maa-aines'!$A:$A,'[1]Maa-aines'!$F:$F,"-",0) -> 1 | DD43: =_xlfn.XLOOKUP(A43,[1]Turve!$A:$A,[1]Turve!$F:$F,"-",0) -> 0 | DE43: =_xlfn.XLOOKUP(A43,[1]Vilja!$A:$A,[1]Vilja!$F:$F,"-",0) -> 1 | DF43: =_xlfn.XLOOKUP(A43,[1]Kasvihuoneet!$A:$A,[1]Kasvihuoneet!$F:$F,"-",0) -> 2 | DG43: =_xlfn.XLOOKUP(A43,[1]Eläintilat!$A:$A,[1]Eläintilat!$H:$H,"-",0) -> 25 | DH43: =_xlfn.XLOOKUP(A43,[1]Eläintilat!$A:$A,[1]Eläintilat!$J:$J,"-",0) -> 0 | DI43: =_xlfn.XLOOKUP(A43,[1]Eläintilat!$A:$A,[1]Eläintilat!$I:$I,"-",0) -> 0 | DJ43: =_xlfn.XLOOKUP(A43,[1]Eläintilat!$A:$A,[1]Eläintilat!$K:$K,"-",0) -> 0 | DK43: =_xlfn.XLOOKUP(A43,'[1]Elintarvike ja varasto'!$A:$A,'[1]Elintarvike ja varasto'!$F:$F,"-",0) -> 1 | DM43: =_xlfn.XLOOKUP(A43,[1]Koulut!$A:$A,[1]Koulut!$F:$F,"-",0) -> 3749.33 | DN43: =_xlfn.XLOOKUP(A43,'[1]Tuotanto ja teollisuus'!$A:$A,'[1]Tuotanto ja teollisuus'!$F:$F,"-",0) -> 0 | DP43: =_xlfn.XLOOKUP(A43,[1]Varareitit!$A:$A,[1]Varareitit!$F:$F,"-",0) -> 3 | DQ43: =_xlfn.XLOOKUP(A43,[1]Taajama!$A:$A,[1]Taajama!$F:$F,"-",0) -> 4713.59 | DR43: 1 | DS43: 0 | DT43: 1 | DU43: =_xlfn.XLOOKUP(A43,[1]Matkailukohteet!$A:$A,[1]Matkailukohteet!$F:$F,"-",0) -> 1 | DV43: =_xlfn.XLOOKUP(A43,[1]Matkailu!$A:$A,[1]Matkailu!$F:$F,"-",0) -> 0 | DW43: =_xlfn.XLOOKUP(A43,[1]Pyörämatkailu!$A:$A,[1]Pyörämatkailu!$F:$F,"-",0) -> 1 | DX43: 1 | DZ43: =_xlfn.XLOOKUP(A43,'[1]Verkollinen asema'!$A:$A,'[1]Verkollinen asema'!$D:$D,"-",0) -> 0 | EA43: =_xlfn.XLOOKUP(A43,[1]Kaupat!$A:$A,[1]Kaupat!$F:$F,"-",0) -> 2 | EF43: -- | EG43: -- | EH43: -- | EI43: -- | EJ43: -- | EL43: 11791_1 | EM43: VÄHÄ | EN43: 702 | EO43: 3 | EQ43: 45 | ER43: 4
A44: 16685_1 | B44: 1 | D44: 8 | E44: 8 | F44: 0 | G44: 14.03347311 | H44: 5 | I44: 6.366806443 | J44: 2.666666667 | K44: 1 | L44: 0 | M44: Gmaps | N44: LOPUT | O44: Yhdys | P44: Palokanorsi, Ruokkeentie | Q44: Jyväskylä | S44: 16685 | T44: 1 | U44: 0 | V44: 1 | W44: 9542 | X44: 9542 | Y44: 4395.397401 | Z44: 226.6977573 | AA44: 4804 | AB44: 1758 (69 %), 8676 (13 %), 10849 (8 %), 12336 (9 %) | AC44: 40 (26 %), 50 (37 %), 60 (37 %) | AD44: Is (100 %) | AE44: Asfalttibetoni (77 %), Kantavan kerroksen asfalttibetoni (ABK) (2 %), Kivimastiksiasfaltti (22 %) | AF44: PK2 (100 %) | AG44: 6 | AH44: 19 | AJ44: 67.78830434 | AR44: 9 | AS44: 1273 | AV44: 3 | AW44: =_xlfn.XLOOKUP(A44,[1]Työmatkat!$A:$A,[1]Työmatkat!$F:$F,"-",0) -> 4515 | AX44: 3 | AY44: 15 | AZ44: 5 | BA44: 8 | BB44: 1 | BC44: 3 | BD44: 0 | BE44: 1 | BF44: 1 | BG44: 1 | BH44: 0 | BI44: 0 | BJ44: 0 | BK44: 0.0095 | BL44: 0 | BM44: 2 | BO44: 2 | BP44: 0.9091932853 | BQ44: 0.09091932853 | BR44: 19.10041933 | BS44: 6.366806443 | BT44: 5718.52 | BU44: 0.5992999371 | BV44: 1 | BW44: =_xlfn.XLOOKUP(A44,[1]Erikoiskuljetukset!$A:$A,[1]Erikoiskuljetukset!$F:$F,"-",0) -> 9541.63 | BX44: 0.9999612241 | BY44: 1 | BZ44: 1 | CA44: 8563.12 | CB44: 0.8974135401 | CC44: 1 | CD44: =_xlfn.XLOOKUP(A44,'[1]2_Asukastiheys'!$A:$A,'[1]2_Asukastiheys'!$H:$H,"-",0)/X44 -> 234.5575351 | CE44: 1 | CF44: 1 | CG44: 1 | CH44: 0 | CI44: 1 | CJ44: 8 | CK44: 2.666666667 | CL44: 42.10041933 | CM44: 14.03347311 | CN44: 1 | CO44: =VLOOKUP(A44,Taul1!$F$6:$G$953,2,FALSE) -> 4 | CP44: 37.0095 | CQ44: 15 | CR44: 17.0095 | CS44: 5 | CU44: https://www.google.com/maps/@62.26028313,25.60020665,3a,75y,90t/data=!3m3!1e1!3m1!2e0 | CZ44: =_xlfn.XLOOKUP(A44,[1]Maito!$A:$A,[1]Maito!$J:$J,"-",0) -> 1 | DA44: 1 | DB44: =_xlfn.XLOOKUP(A44,[1]Kaatopaikat_jäte!$A:$A,[1]Kaatopaikat_jäte!$F:$F,"-",0) -> 0 | DC44: =_xlfn.XLOOKUP(A44,'[1]Maa-aines'!$A:$A,'[1]Maa-aines'!$F:$F,"-",0) -> 2 | DD44: =_xlfn.XLOOKUP(A44,[1]Turve!$A:$A,[1]Turve!$F:$F,"-",0) -> 0 | DE44: =_xlfn.XLOOKUP(A44,[1]Vilja!$A:$A,[1]Vilja!$F:$F,"-",0) -> 2 | DF44: =_xlfn.XLOOKUP(A44,[1]Kasvihuoneet!$A:$A,[1]Kasvihuoneet!$F:$F,"-",0) -> 1 | DG44: =_xlfn.XLOOKUP(A44,[1]Eläintilat!$A:$A,[1]Eläintilat!$H:$H,"-",0) -> 0 | DH44: =_xlfn.XLOOKUP(A44,[1]Eläintilat!$A:$A,[1]Eläintilat!$J:$J,"-",0) -> 0 | DI44: =_xlfn.XLOOKUP(A44,[1]Eläintilat!$A:$A,[1]Eläintilat!$I:$I,"-",0) -> 0 | DJ44: =_xlfn.XLOOKUP(A44,[1]Eläintilat!$A:$A,[1]Eläintilat!$K:$K,"-",0) -> 19 | DK44: =_xlfn.XLOOKUP(A44,'[1]Elintarvike ja varasto'!$A:$A,'[1]Elintarvike ja varasto'!$F:$F,"-",0) -> 0 | DM44: =_xlfn.XLOOKUP(A44,[1]Koulut!$A:$A,[1]Koulut!$F:$F,"-",0) -> 5718.52 | DN44: =_xlfn.XLOOKUP(A44,'[1]Tuotanto ja teollisuus'!$A:$A,'[1]Tuotanto ja teollisuus'!$F:$F,"-",0) -> 9 | DP44: =_xlfn.XLOOKUP(A44,[1]Varareitit!$A:$A,[1]Varareitit!$F:$F,"-",0) -> 20 | DQ44: =_xlfn.XLOOKUP(A44,[1]Taajama!$A:$A,[1]Taajama!$F:$F,"-",0) -> 8563.12 | DR44: 1 | DS44: 0 | DT44: 1 | DU44: =_xlfn.XLOOKUP(A44,[1]Matkailukohteet!$A:$A,[1]Matkailukohteet!$F:$F,"-",0) -> 0 | DV44: =_xlfn.XLOOKUP(A44,[1]Matkailu!$A:$A,[1]Matkailu!$F:$F,"-",0) -> 0 | DW44: =_xlfn.XLOOKUP(A44,[1]Pyörämatkailu!$A:$A,[1]Pyörämatkailu!$F:$F,"-",0) -> 1 | DX44: 1 | DZ44: =_xlfn.XLOOKUP(A44,'[1]Verkollinen asema'!$A:$A,'[1]Verkollinen asema'!$D:$D,"-",0) -> 0 | EA44: =_xlfn.XLOOKUP(A44,[1]Kaupat!$A:$A,[1]Kaupat!$F:$F,"-",0) -> 4 | EF44: -- | EG44: -- | EH44: -- | EI44: -- | EJ44: -- | EL44: 140_25 | EM44: LOPUT | EN44: 666 | EO44: 3 | EQ44: 14513 | ER44: 3
A45: 648_1 | B45: 1 | D45: 9 | E45: 9 | F45: 0 | G45: 13.95419463 | H45: 5 | I45: 6.287527967 | J45: 2.666666667 | K45: 1 | L45: 0 | M45: Gmaps | N45: LOPUT | O45: Seutu | P45: Kannonkoskentie, Lukiontie | Q45: Saarijärvi | S45: 648 | T45: 1 | U45: 0 | V45: 1 | W45: 1277 | X45: 1277 | Y45: 4079 | Z45: 169 | AA45: 4976 | AB45: 4079 (100 %) | AC45: 40 (21 %), 50 (77 %) | AD45: Ib (75 %), Ic (25 %) | AE45: Asfalttibetoni (99 %) | AF45: PK2 (99 %) | AG45: 0 | AH45: 0 | AJ45: 66 | AR45: 9 | AS45: 21 | AV45: 3 | AW45: =_xlfn.XLOOKUP(A45,[1]Työmatkat!$A:$A,[1]Työmatkat!$F:$F,"-",0) -> 980 | AX45: 3 | AY45: 15 | AZ45: 5 | BA45: 8 | BB45: 1 | BC45: 3 | BD45: 1 | BE45: 1 | BF45: 0 | BG45: 0 | BH45: 0.5 | BI45: 0.06 | BJ45: 0 | BK45: 0 | BL45: 2 | BM45: 0 | BO45: 2 | BP45: 3.025838999 | BQ45: 0.3025838999 | BR45: 18.8625839 | BS45: 6.287527967 | BT45: 1258.15 | BU45: 0.985238841 | BV45: 1 | BW45: =_xlfn.XLOOKUP(A45,[1]Erikoiskuljetukset!$A:$A,[1]Erikoiskuljetukset!$F:$F,"-",0) -> 0 | BX45: 0 | BY45: 0 | BZ45: 1 | CA45: 1258.15 | CB45: 0.985238841 | CC45: 1 | CD45: =_xlfn.XLOOKUP(A45,'[1]2_Asukastiheys'!$A:$A,'[1]2_Asukastiheys'!$H:$H,"-",0)/X45 -> 751.009397 | CE45: 1 | CF45: 1 | CG45: 1 | CH45: 1 | CI45: 1 | CJ45: 8 | CK45: 2.666666667 | CL45: 41.8625839 | CM45: 13.95419463 | CN45: 1 | CO45: =VLOOKUP(A45,Taul1!$F$6:$G$953,2,FALSE) -> 1 | CP45: 35.56 | CQ45: 15 | CR45: 16.56 | CS45: 4 | CU45: https://www.google.com/maps/@62.70470908,25.25521724,3a,75y,90t/data=!3m3!1e1!3m1!2e0 | CZ45: =_xlfn.XLOOKUP(A45,[1]Maito!$A:$A,[1]Maito!$J:$J,"-",0) -> 1 | DA45: 1 | DB45: =_xlfn.XLOOKUP(A45,[1]Kaatopaikat_jäte!$A:$A,[1]Kaatopaikat_jäte!$F:$F,"-",0) -> 2 | DC45: =_xlfn.XLOOKUP(A45,'[1]Maa-aines'!$A:$A,'[1]Maa-aines'!$F:$F,"-",0) -> 1 | DD45: =_xlfn.XLOOKUP(A45,[1]Turve!$A:$A,[1]Turve!$F:$F,"-",0) -> 1 | DE45: =_xlfn.XLOOKUP(A45,[1]Vilja!$A:$A,[1]Vilja!$F:$F,"-",0) -> 0 | DF45: =_xlfn.XLOOKUP(A45,[1]Kasvihuoneet!$A:$A,[1]Kasvihuoneet!$F:$F,"-",0) -> 0 | DG45: =_xlfn.XLOOKUP(A45,[1]Eläintilat!$A:$A,[1]Eläintilat!$H:$H,"-",0) -> 135 | DH45: =_xlfn.XLOOKUP(A45,[1]Eläintilat!$A:$A,[1]Eläintilat!$J:$J,"-",0) -> 12 | DI45: =_xlfn.XLOOKUP(A45,[1]Eläintilat!$A:$A,[1]Eläintilat!$I:$I,"-",0) -> 0 | DJ45: =_xlfn.XLOOKUP(A45,[1]Eläintilat!$A:$A,[1]Eläintilat!$K:$K,"-",0) -> 0 | DK45: =_xlfn.XLOOKUP(A45,'[1]Elintarvike ja varasto'!$A:$A,'[1]Elintarvike ja varasto'!$F:$F,"-",0) -> 1 | DM45: =_xlfn.XLOOKUP(A45,[1]Koulut!$A:$A,[1]Koulut!$F:$F,"-",0) -> 1258.15 | DN45: =_xlfn.XLOOKUP(A45,'[1]Tuotanto ja teollisuus'!$A:$A,'[1]Tuotanto ja teollisuus'!$F:$F,"-",0) -> 0 | DP45: =_xlfn.XLOOKUP(A45,[1]Varareitit!$A:$A,[1]Varareitit!$F:$F,"-",0) -> 19 | DQ45: =_xlfn.XLOOKUP(A45,[1]Taajama!$A:$A,[1]Taajama!$F:$F,"-",0) -> 1258.15 | DR45: 1 | DS45: 0 | DT45: 1 | DU45: =_xlfn.XLOOKUP(A45,[1]Matkailukohteet!$A:$A,[1]Matkailukohteet!$F:$F,"-",0) -> 1 | DV45: =_xlfn.XLOOKUP(A45,[1]Matkailu!$A:$A,[1]Matkailu!$F:$F,"-",0) -> 0 | DW45: =_xlfn.XLOOKUP(A45,[1]Pyörämatkailu!$A:$A,[1]Pyörämatkailu!$F:$F,"-",0) -> 1 | DX45: 1 | DZ45: =_xlfn.XLOOKUP(A45,'[1]Verkollinen asema'!$A:$A,'[1]Verkollinen asema'!$D:$D,"-",0) -> 0 | EA45: =_xlfn.XLOOKUP(A45,[1]Kaupat!$A:$A,[1]Kaupat!$F:$F,"-",0) -> 1 | EF45: -- | EG45: -- | EH45: -- | EI45: -- | EJ45: -- | EL45: 24_11 | EM45: LOPUT | EN45: 298 | EO45: 2 | EQ45: 1633 | ER45: 2
A46: 9_233 | B46: 1 | D46: 10 | E46: 10 | F46: 0 | G46: 13.785 | H46: 5 | I46: 6.451666667 | J46: 2.333333333 | K46: 1 | L46: 0 | M46: Gmaps | N46: LOPUT | O46: Valta | P46: Ysitie | Q46: Muurame | S46: 9 | T46: 233 | U46: 0 | V46: 233 | W46: 7001 | X46: 7001 | Y46: 13792.4288 | Z46: 983.809313 | AA46: 16717 | AB46: 12074 (59 %), 16234 (41 %) | AC46: 80 (100 %) | AD46: Ise (100 %) | AE46: Kivimastiksiasfaltti (100 %) | AF46: PK1 (100 %) | AG46: 5 | AH46: 23 | AJ46: 515.7364662 | AR46: 9 | AS46: 391 | AV46: 3 | AW46: =_xlfn.XLOOKUP(A46,[1]Työmatkat!$A:$A,[1]Työmatkat!$F:$F,"-",0) -> 6122 | AX46: 3 | AY46: 15 | AZ46: 5 | BA46: 8 | BB46: 1 | BC46: 3 | BD46: 1 | BE46: 1 | BF46: 1 | BG46: 0 | BH46: 0.5 | BI46: 0.055 | BJ46: 0 | BK46: 0 | BL46: 0 | BM46: 0.8 | BO46: 2 | BP46: 18.01551846 | BQ46: 1 | BR46: 19.355 | BS46: 6.451666667 | BT46: 5579.45 | BU46: 0.7969504357 | BV46: 1 | BW46: =_xlfn.XLOOKUP(A46,[1]Erikoiskuljetukset!$A:$A,[1]Erikoiskuljetukset!$F:$F,"-",0) -> 6985.77 | BX46: 0.9978245965 | BY46: 1 | BZ46: 1 | CA46: 3871.15 | CB46: 0.5529424368 | CC46: 1 | CD46: =_xlfn.XLOOKUP(A46,'[1]2_Asukastiheys'!$A:$A,'[1]2_Asukastiheys'!$H:$H,"-",0)/X46 -> 198.0622768 | CE46: 1 | CF46: 1 | CG46: 0 | CH46: 0 | CI46: 1 | CJ46: 7 | CK46: 2.333333333 | CL46: 41.355 | CM46: 13.785 | CN46: 1 | CO46: =VLOOKUP(A46,Taul1!$F$6:$G$953,2,FALSE) -> 2 | CP46: 36.355 | CQ46: 15 | CR46: 16.355 | CS46: 5 | CU46: https://www.google.com/maps/@62.10474915,25.64163166,3a,75y,90t/data=!3m3!1e1!3m1!2e0 | CZ46: =_xlfn.XLOOKUP(A46,[1]Maito!$A:$A,[1]Maito!$J:$J,"-",0) -> 6 | DA46: 6 | DB46: =_xlfn.XLOOKUP(A46,[1]Kaatopaikat_jäte!$A:$A,[1]Kaatopaikat_jäte!$F:$F,"-",0) -> 1 | DC46: =_xlfn.XLOOKUP(A46,'[1]Maa-aines'!$A:$A,'[1]Maa-aines'!$F:$F,"-",0) -> 1 | DD46: =_xlfn.XLOOKUP(A46,[1]Turve!$A:$A,[1]Turve!$F:$F,"-",0) -> 0 | DE46: =_xlfn.XLOOKUP(A46,[1]Vilja!$A:$A,[1]Vilja!$F:$F,"-",0) -> 1 | DF46: =_xlfn.XLOOKUP(A46,[1]Kasvihuoneet!$A:$A,[1]Kasvihuoneet!$F:$F,"-",0) -> 0 | DG46: =_xlfn.XLOOKUP(A46,[1]Eläintilat!$A:$A,[1]Eläintilat!$H:$H,"-",0) -> 132 | DH46: =_xlfn.XLOOKUP(A46,[1]Eläintilat!$A:$A,[1]Eläintilat!$J:$J,"-",0) -> 11 | DI46: =_xlfn.XLOOKUP(A46,[1]Eläintilat!$A:$A,[1]Eläintilat!$I:$I,"-",0) -> 0 | DJ46: =_xlfn.XLOOKUP(A46,[1]Eläintilat!$A:$A,[1]Eläintilat!$K:$K,"-",0) -> 0 | DK46: =_xlfn.XLOOKUP(A46,'[1]Elintarvike ja varasto'!$A:$A,'[1]Elintarvike ja varasto'!$F:$F,"-",0) -> 0 | DM46: =_xlfn.XLOOKUP(A46,[1]Koulut!$A:$A,[1]Koulut!$F:$F,"-",0) -> 5579.45 | DN46: =_xlfn.XLOOKUP(A46,'[1]Tuotanto ja teollisuus'!$A:$A,'[1]Tuotanto ja teollisuus'!$F:$F,"-",0) -> 2 | DP46: =_xlfn.XLOOKUP(A46,[1]Varareitit!$A:$A,[1]Varareitit!$F:$F,"-",0) -> 1 | DQ46: =_xlfn.XLOOKUP(A46,[1]Taajama!$A:$A,[1]Taajama!$F:$F,"-",0) -> 3871.15 | DR46: 1 | DS46: 0 | DT46: 1 | DU46: =_xlfn.XLOOKUP(A46,[1]Matkailukohteet!$A:$A,[1]Matkailukohteet!$F:$F,"-",0) -> 0 | DV46: =_xlfn.XLOOKUP(A46,[1]Matkailu!$A:$A,[1]Matkailu!$F:$F,"-",0) -> 0 | DW46: =_xlfn.XLOOKUP(A46,[1]Pyörämatkailu!$A:$A,[1]Pyörämatkailu!$F:$F,"-",0) -> 0 | DX46: 0 | DZ46: =_xlfn.XLOOKUP(A46,'[1]Verkollinen asema'!$A:$A,'[1]Verkollinen asema'!$D:$D,"-",0) -> 0 | EA46: =_xlfn.XLOOKUP(A46,[1]Kaupat!$A:$A,[1]Kaupat!$F:$F,"-",0) -> 4 | EF46: -- | EG46: -- | EH46: -- | EI46: -- | EJ46: -- | EL46: 12_216 | EM46: LOPUT | EN46: 70 | EO46: 1 | EQ46: 148 | ER46: 4
A47: 624_2 | B47: 1 | D47: 11 | E47: 11 | F47: 0 | G47: 13.78432006 | H47: 5 | I47: 6.450986722 | J47: 2.333333333 | K47: 1 | L47: 0 | M47: Gmaps | N47: LOPUT | O47: Seutu | P47: Alapohjantie, Tervajoentie | Q47: Jyväskylä, Laukaa | S47: 624 | T47: 2 | U47: 0 | V47: 2 | W47: 11535 | X47: 11535 | Y47: 642.1509319 | Z47: 59.59913307 | AA47: 706 | AB47: 490 (32 %), 551 (54 %), 1304 (15 %) | AC47: 50 (6 %), 60 (94 %) | AD47: Ib (100 %) | AE47: Asfalttibetoni (100 %) | AF47: PK2 (100 %) | AG47: 1 | AH47: 6 | AJ47: 26.33688773 | AR47: 9 | AS47: 180 | AV47: 3 | AW47: =_xlfn.XLOOKUP(A47,[1]Työmatkat!$A:$A,[1]Työmatkat!$F:$F,"-",0) -> 453 | AX47: 3 | AY47: 15 | AZ47: 5 | BA47: 8 | BB47: 1 | BC47: 3 | BD47: 1 | BE47: 1 | BF47: 1 | BG47: 1 | BH47: 0.5 | BI47: 0 | BJ47: 0 | BK47: 0 | BL47: 0 | BM47: 0.4 | BO47: 2 | BP47: 4.529601664 | BQ47: 0.4529601664 | BR47: 19.35296017 | BS47: 6.450986722 | BT47: 5455.64 | BU47: 0.4729640225 | BV47: 0.5 | BW47: =_xlfn.XLOOKUP(A47,[1]Erikoiskuljetukset!$A:$A,[1]Erikoiskuljetukset!$F:$F,"-",0) -> 11430.3 | BX47: 0.990923277 | BY47: 1 | BZ47: 1 | CA47: 501.62 | CB47: 0.04348677937 | CC47: 0 | CD47: =_xlfn.XLOOKUP(A47,'[1]2_Asukastiheys'!$A:$A,'[1]2_Asukastiheys'!$H:$H,"-",0)/X47 -> 26.95015171 | CE47: 0.5 | CF47: 1 | CG47: 1 | CH47: 1 | CI47: 1 | CJ47: 7 | CK47: 2.333333333 | CL47: 41.35296017 | CM47: 13.78432006 | CN47: 1 | CO47: =VLOOKUP(A47,Taul1!$F$6:$G$953,2,FALSE) -> 3 | CP47: 36.4 | CQ47: 15 | CR47: 16.9 | CS47: 4.5 | CU47: https://www.google.com/maps/@62.34000613,25.70455363,3a,75y,90t/data=!3m3!1e1!3m1!2e0 | CZ47: =_xlfn.XLOOKUP(A47,[1]Maito!$A:$A,[1]Maito!$J:$J,"-",0) -> 1 | DA47: 1 | DB47: =_xlfn.XLOOKUP(A47,[1]Kaatopaikat_jäte!$A:$A,[1]Kaatopaikat_jäte!$F:$F,"-",0) -> 3 | DC47: =_xlfn.XLOOKUP(A47,'[1]Maa-aines'!$A:$A,'[1]Maa-aines'!$F:$F,"-",0) -> 4 | DD47: =_xlfn.XLOOKUP(A47,[1]Turve!$A:$A,[1]Turve!$F:$F,"-",0) -> 0 | DE47: =_xlfn.XLOOKUP(A47,[1]Vilja!$A:$A,[1]Vilja!$F:$F,"-",0) -> 22 | DF47: =_xlfn.XLOOKUP(A47,[1]Kasvihuoneet!$A:$A,[1]Kasvihuoneet!$F:$F,"-",0) -> 10 | DG47: =_xlfn.XLOOKUP(A47,[1]Eläintilat!$A:$A,[1]Eläintilat!$H:$H,"-",0) -> 167 | DH47: =_xlfn.XLOOKUP(A47,[1]Eläintilat!$A:$A,[1]Eläintilat!$J:$J,"-",0) -> 0 | DI47: =_xlfn.XLOOKUP(A47,[1]Eläintilat!$A:$A,[1]Eläintilat!$I:$I,"-",0) -> 0 | DJ47: =_xlfn.XLOOKUP(A47,[1]Eläintilat!$A:$A,[1]Eläintilat!$K:$K,"-",0) -> 0 | DK47: =_xlfn.XLOOKUP(A47,'[1]Elintarvike ja varasto'!$A:$A,'[1]Elintarvike ja varasto'!$F:$F,"-",0) -> 0 | DM47: =_xlfn.XLOOKUP(A47,[1]Koulut!$A:$A,[1]Koulut!$F:$F,"-",0) -> 5455.64 | DN47: =_xlfn.XLOOKUP(A47,'[1]Tuotanto ja teollisuus'!$A:$A,'[1]Tuotanto ja teollisuus'!$F:$F,"-",0) -> 1 | DP47: =_xlfn.XLOOKUP(A47,[1]Varareitit!$A:$A,[1]Varareitit!$F:$F,"-",0) -> 6 | DQ47: =_xlfn.XLOOKUP(A47,[1]Taajama!$A:$A,[1]Taajama!$F:$F,"-",0) -> 501.62 | DR47: 1 | DS47: 0 | DT47: 1 | DU47: =_xlfn.XLOOKUP(A47,[1]Matkailukohteet!$A:$A,[1]Matkailukohteet!$F:$F,"-",0) -> 1 | DV47: =_xlfn.XLOOKUP(A47,[1]Matkailu!$A:$A,[1]Matkailu!$F:$F,"-",0) -> 0 | DW47: =_xlfn.XLOOKUP(A47,[1]Pyörämatkailu!$A:$A,[1]Pyörämatkailu!$F:$F,"-",0) -> 1 | DX47: 1 | DZ47: =_xlfn.XLOOKUP(A47,'[1]Verkollinen asema'!$A:$A,'[1]Verkollinen asema'!$D:$D,"-",0) -> 0 | EA47: =_xlfn.XLOOKUP(A47,[1]Kaupat!$A:$A,[1]Kaupat!$F:$F,"-",0) -> 4 | EF47: -- | EG47: -- | EH47: -- | EI47: -- | EJ47: -- | EL47: 1072_1 | EM47: LOPUT | EN47: 278 | EO47: 2 | EQ47: 11093 | ER47: 1
A48: 13_133 | B48: 1 | D48: 12 | E48: 12 | F48: 0 | G48: 13.724 | H48: 4.85 | I48: 6.874 | J48: 2 | K48: 1 | L48: 0 | M48: Gmaps | N48: LOPUT | O48: Valta | P48: Jyväskyläntie, Kokkolantie | Q48: Saarijärvi | S48: 13 | T48: 133 | U48: 0 | V48: 133 | W48: 5970 | X48: 5970 | Y48: 3306.049916 | Z48: 316.4264657 | AA48: 3688 | AB48: 2425 (19 %), 3459 (78 %), 5171 (3 %) | AC48: 60 (31 %), 80 (69 %) | AD48: Is (100 %) | AE48: Kivimastiksiasfaltti (100 %) | AF48: PK1 (100 %) | AG48: 1 | AH48: 7 | AJ48: 212.1517588 | AR48: 9 | AS48: 17 | AV48: 2.55 | AW48: =_xlfn.XLOOKUP(A48,[1]Työmatkat!$A:$A,[1]Työmatkat!$F:$F,"-",0) -> 742 | AX48: 3 | AY48: 14.55 | AZ48: 4.85 | BA48: 8 | BB48: 1 | BC48: 3 | BD48: 1 | BE48: 1 | BF48: 1 | BG48: 0 | BH48: 0.5 | BI48: 0.11 | BJ48: 0 | BK48: 0.012 | BL48: 2 | BM48: 0 | BO48: 2 | BP48: 22.57185257 | BQ48: 1 | BR48: 20.622 | BS48: 6.874 | BT48: 2616.37 | BU48: 0.4382529313 | BV48: 0.5 | BW48: =_xlfn.XLOOKUP(A48,[1]Erikoiskuljetukset!$A:$A,[1]Erikoiskuljetukset!$F:$F,"-",0) -> 5958.42 | BX48: 0.9980603015 | BY48: 1 | BZ48: 1 | CA48: 2806.95 | CB48: 0.4701758794 | CC48: 0 | CD48: =_xlfn.XLOOKUP(A48,'[1]2_Asukastiheys'!$A:$A,'[1]2_Asukastiheys'!$H:$H,"-",0)/X48 -> 79.15410385 | CE48: 0.5 | CF48: 1 | CG48: 0 | CH48: 1 | CI48: 1 | CJ48: 6 | CK48: 2 | CL48: 41.172 | CM48: 13.724 | CN48: 1 | CO48: =VLOOKUP(A48,Taul1!$F$6:$G$953,2,FALSE) -> 3 | CP48: 36.672 | CQ48: 14.55 | CR48: 17.622 | CS48: 4.5 | CU48: https://www.google.com/maps/@62.74454423,25.18289099,3a,75y,90t/data=!3m3!1e1!3m1!2e0 | CZ48: =_xlfn.XLOOKUP(A48,[1]Maito!$A:$A,[1]Maito!$J:$J,"-",0) -> 8 | DA48: 8 | DB48: =_xlfn.XLOOKUP(A48,[1]Kaatopaikat_jäte!$A:$A,[1]Kaatopaikat_jäte!$F:$F,"-",0) -> 2 | DC48: =_xlfn.XLOOKUP(A48,'[1]Maa-aines'!$A:$A,'[1]Maa-aines'!$F:$F,"-",0) -> 4 | DD48: =_xlfn.XLOOKUP(A48,[1]Turve!$A:$A,[1]Turve!$F:$F,"-",0) -> 1 | DE48: =_xlfn.XLOOKUP(A48,[1]Vilja!$A:$A,[1]Vilja!$F:$F,"-",0) -> 1 | DF48: =_xlfn.XLOOKUP(A48,[1]Kasvihuoneet!$A:$A,[1]Kasvihuoneet!$F:$F,"-",0) -> 0 | DG48: =_xlfn.XLOOKUP(A48,[1]Eläintilat!$A:$A,[1]Eläintilat!$H:$H,"-",0) -> 509 | DH48: =_xlfn.XLOOKUP(A48,[1]Eläintilat!$A:$A,[1]Eläintilat!$J:$J,"-",0) -> 22 | DI48: =_xlfn.XLOOKUP(A48,[1]Eläintilat!$A:$A,[1]Eläintilat!$I:$I,"-",0) -> 0 | DJ48: =_xlfn.XLOOKUP(A48,[1]Eläintilat!$A:$A,[1]Eläintilat!$K:$K,"-",0) -> 24 | DK48: =_xlfn.XLOOKUP(A48,'[1]Elintarvike ja varasto'!$A:$A,'[1]Elintarvike ja varasto'!$F:$F,"-",0) -> 1 | DM48: =_xlfn.XLOOKUP(A48,[1]Koulut!$A:$A,[1]Koulut!$F:$F,"-",0) -> 2616.37 | DN48: =_xlfn.XLOOKUP(A48,'[1]Tuotanto ja teollisuus'!$A:$A,'[1]Tuotanto ja teollisuus'!$F:$F,"-",0) -> 0 | DP48: =_xlfn.XLOOKUP(A48,[1]Varareitit!$A:$A,[1]Varareitit!$F:$F,"-",0) -> 1 | DQ48: =_xlfn.XLOOKUP(A48,[1]Taajama!$A:$A,[1]Taajama!$F:$F,"-",0) -> 2806.95 | DR48: 1 | DS48: 0 | DT48: 1 | DU48: =_xlfn.XLOOKUP(A48,[1]Matkailukohteet!$A:$A,[1]Matkailukohteet!$F:$F,"-",0) -> 1 | DV48: =_xlfn.XLOOKUP(A48,[1]Matkailu!$A:$A,[1]Matkailu!$F:$F,"-",0) -> 0 | DW48: =_xlfn.XLOOKUP(A48,[1]Pyörämatkailu!$A:$A,[1]Pyörämatkailu!$F:$F,"-",0) -> 0 | DX48: 0 | DZ48: =_xlfn.XLOOKUP(A48,'[1]Verkollinen asema'!$A:$A,'[1]Verkollinen asema'!$D:$D,"-",0) -> 0 | EA48: =_xlfn.XLOOKUP(A48,[1]Kaupat!$A:$A,[1]Kaupat!$F:$F,"-",0) -> 1 | EF48: -- | EG48: -- | EH48: -- | EI48: -- | EJ48: -- | EL48: 1421_2 | EM48: LOPUT | EN48: 125 | EO48: 2 | EQ48: 104 | ER48: 2
A49: 9_309 | B49: 1 | D49: 13 | E49: 13 | F49: 0 | G49: 13.67 | H49: 4.5 | I49: 6.67 | J49: 2.5 | K49: 1 | L49: 0 | M49: Gmaps | N49: LOPUT | O49: Valta | P49: Ysitie | Q49: Hankasalmi | S49: 9 | T49: 309 | U49: 0 | V49: 309 | W49: 5740 | X49: 5740 | Y49: 4753.580488 | Z49: 518.2522648 | AA49: 5799 | AB49: 4341 (51 %), 5188 (49 %) | AC49: 100 (63 %), 80 (36 %) | AD49: Is (100 %) | AE49: Kivimastiksiasfaltti (100 %) | AF49: PK1 (100 %) | AG49: 2 | AH49: 3 | AJ49: 339.3066202 | AR49: 9 | AS49: 10 | AV49: 1.5 | AW49: =_xlfn.XLOOKUP(A49,[1]Työmatkat!$A:$A,[1]Työmatkat!$F:$F,"-",0) -> 1495 | AX49: 3 | AY49: 13.5 | AZ49: 4.5 | BA49: 8 | BB49: 1 | BC49: 3 | BD49: 1 | BE49: 1 | BF49: 1 | BG49: 1 | BH49: 0.5 | BI49: 0.11 | BJ49: 0 | BK49: 0 | BL49: 0 | BM49: 0.4 | BO49: 2 | BP49: 25.61807914 | BQ49: 1 | BR49: 20.01 | BS49: 6.67 | BT49: 4131.84 | BU49: 0.7198327526 | BV49: 1 | BW49: =_xlfn.XLOOKUP(A49,[1]Erikoiskuljetukset!$A:$A,[1]Erikoiskuljetukset!$F:$F,"-",0) -> 5711.7 | BX49: 0.9950696864 | BY49: 1 | BZ49: 1 | CA49: 1325.14 | CB49: 0.2308606272 | CC49: 0 | CD49: =_xlfn.XLOOKUP(A49,'[1]2_Asukastiheys'!$A:$A,'[1]2_Asukastiheys'!$H:$H,"-",0)/X49 -> 38.81533101 | CE49: 0.5 | CF49: 1 | CG49: 1 | CH49: 1 | CI49: 1 | CJ49: 7.5 | CK49: 2.5 | CL49: 41.01 | CM49: 13.67 | CN49: 1 | CO49: =VLOOKUP(A49,Taul1!$F$6:$G$953,2,FALSE) -> 2 | CP49: 35.51 | CQ49: 13.5 | CR49: 17.01 | CS49: 5 | CU49: https://www.google.com/maps/@62.29881512,26.45416159,3a,75y,90t/data=!3m3!1e1!3m1!2e0 | CZ49: =_xlfn.XLOOKUP(A49,[1]Maito!$A:$A,[1]Maito!$J:$J,"-",0) -> 2 | DA49: 2 | DB49: =_xlfn.XLOOKUP(A49,[1]Kaatopaikat_jäte!$A:$A,[1]Kaatopaikat_jäte!$F:$F,"-",0) -> 4 | DC49: =_xlfn.XLOOKUP(A49,'[1]Maa-aines'!$A:$A,'[1]Maa-aines'!$F:$F,"-",0) -> 1 | DD49: =_xlfn.XLOOKUP(A49,[1]Turve!$A:$A,[1]Turve!$F:$F,"-",0) -> 3 | DE49: =_xlfn.XLOOKUP(A49,[1]Vilja!$A:$A,[1]Vilja!$F:$F,"-",0) -> 8 | DF49: =_xlfn.XLOOKUP(A49,[1]Kasvihuoneet!$A:$A,[1]Kasvihuoneet!$F:$F,"-",0) -> 1 | DG49: =_xlfn.XLOOKUP(A49,[1]Eläintilat!$A:$A,[1]Eläintilat!$H:$H,"-",0) -> 251 | DH49: =_xlfn.XLOOKUP(A49,[1]Eläintilat!$A:$A,[1]Eläintilat!$J:$J,"-",0) -> 22 | DI49: =_xlfn.XLOOKUP(A49,[1]Eläintilat!$A:$A,[1]Eläintilat!$I:$I,"-",0) -> 0 | DJ49: =_xlfn.XLOOKUP(A49,[1]Eläintilat!$A:$A,[1]Eläintilat!$K:$K,"-",0) -> 0 | DK49: =_xlfn.XLOOKUP(A49,'[1]Elintarvike ja varasto'!$A:$A,'[1]Elintarvike ja varasto'!$F:$F,"-",0) -> 0 | DM49: =_xlfn.XLOOKUP(A49,[1]Koulut!$A:$A,[1]Koulut!$F:$F,"-",0) -> 4131.84 | DN49: =_xlfn.XLOOKUP(A49,'[1]Tuotanto ja teollisuus'!$A:$A,'[1]Tuotanto ja teollisuus'!$F:$F,"-",0) -> 1 | DP49: =_xlfn.XLOOKUP(A49,[1]Varareitit!$A:$A,[1]Varareitit!$F:$F,"-",0) -> 3 | DQ49: =_xlfn.XLOOKUP(A49,[1]Taajama!$A:$A,[1]Taajama!$F:$F,"-",0) -> 1325.14 | DR49: 1 | DS49: 0 | DT49: 1 | DU49: =_xlfn.XLOOKUP(A49,[1]Matkailukohteet!$A:$A,[1]Matkailukohteet!$F:$F,"-",0) -> 1 | DV49: =_xlfn.XLOOKUP(A49,[1]Matkailu!$A:$A,[1]Matkailu!$F:$F,"-",0) -> 0 | DW49: =_xlfn.XLOOKUP(A49,[1]Pyörämatkailu!$A:$A,[1]Pyörämatkailu!$F:$F,"-",0) -> 1 | DX49: 1 | DZ49: =_xlfn.XLOOKUP(A49,'[1]Verkollinen asema'!$A:$A,'[1]Verkollinen asema'!$D:$D,"-",0) -> 0 | EA49: =_xlfn.XLOOKUP(A49,[1]Kaupat!$A:$A,[1]Kaupat!$F:$F,"-",0) -> 4 | EF49: -- | EG49: -- | EH49: -- | EI49: -- | EJ49: -- | EL49: 6_120 | EM49: LOPUT | EN49: 51 | EO49: 1 | EQ49: 11707 | ER49: 1
A50: 9_224 | B50: 1 | D50: 14 | E50: 14 | F50: 0 | G50: 13.65333333 | H50: 5 | I50: 6.986666667 | J50: 1.666666667 | K50: 1 | L50: 0 | M50: Gmaps | N50: LOPUT | O50: Valta | P50: Jyväskyläntie | Q50: Jämsä | S50: 9 | T50: 224 | U50: 0 | V50: 224 | W50: 13073 | X50: 13073 | Y50: 7428.683623 | Z50: 675.313241 | AA50: 9715 | AB50: 6641 (17 %), 7357 (44 %), 7864 (39 %) | AC50: 100 (42 %), 50 (2 %), 80 (56 %) | AD50: Is (100 %) | AE50: Kivimastiksiasfaltti (100 %) | AF50: PK1 (100 %) | AG50: 9 | AH50: 29 | AJ50: 400.8525205 | AR50: 9 | AS50: 105 | AV50: 3 | AW50: =_xlfn.XLOOKUP(A50,[1]Työmatkat!$A:$A,[1]Työmatkat!$F:$F,"-",0) -> 2555 | AX50: 3 | AY50: 15 | AZ50: 5 | BA50: 8 | BB50: 1 | BC50: 3 | BD50: 1 | BE50: 1 | BF50: 1 | BG50: 0 | BH50: 0.48 | BI50: 0.08 | BJ50: 0 | BK50: 0 | BL50: 2 | BM50: 0.4 | BO50: 2 | BP50: 23.20843627 | BQ50: 1 | BR50: 20.96 | BS50: 6.986666667 | BT50: 5040.08 | BU50: 0.3855335424 | BV50: 0.5 | BW50: =_xlfn.XLOOKUP(A50,[1]Erikoiskuljetukset!$A:$A,[1]Erikoiskuljetukset!$F:$F,"-",0) -> 12049 | BX50: 0.9216706188 | BY50: 1 | BZ50: 1 | CA50: 4286.88 | CB50: 0.3279186109 | CC50: 0 | CD50: =_xlfn.XLOOKUP(A50,'[1]2_Asukastiheys'!$A:$A,'[1]2_Asukastiheys'!$H:$H,"-",0)/X50 -> 33.49651954 | CE50: 0.5 | CF50: 1 | CG50: 0 | CH50: 0 | CI50: 1 | CJ50: 5 | CK50: 1.666666667 | CL50: 40.96 | CM50: 13.65333333 | CN50: 1 | CO50: =VLOOKUP(A50,Taul1!$F$6:$G$953,2,FALSE) -> 3 | CP50: 37.46 | CQ50: 15 | CR50: 17.96 | CS50: 4.5 | CU50: https://www.google.com/maps/@61.85057023,25.17562875,3a,75y,90t/data=!3m3!1e1!3m1!2e0 | CZ50: =_xlfn.XLOOKUP(A50,[1]Maito!$A:$A,[1]Maito!$J:$J,"-",0) -> 5 | DA50: 5 | DB50: =_xlfn.XLOOKUP(A50,[1]Kaatopaikat_jäte!$A:$A,[1]Kaatopaikat_jäte!$F:$F,"-",0) -> 2 | DC50: =_xlfn.XLOOKUP(A50,'[1]Maa-aines'!$A:$A,'[1]Maa-aines'!$F:$F,"-",0) -> 4 | DD50: =_xlfn.XLOOKUP(A50,[1]Turve!$A:$A,[1]Turve!$F:$F,"-",0) -> 0 | DE50: =_xlfn.XLOOKUP(A50,[1]Vilja!$A:$A,[1]Vilja!$F:$F,"-",0) -> 5 | DF50: =_xlfn.XLOOKUP(A50,[1]Kasvihuoneet!$A:$A,[1]Kasvihuoneet!$F:$F,"-",0) -> 0 | DG50: =_xlfn.XLOOKUP(A50,[1]Eläintilat!$A:$A,[1]Eläintilat!$H:$H,"-",0) -> 96 | DH50: =_xlfn.XLOOKUP(A50,[1]Eläintilat!$A:$A,[1]Eläintilat!$J:$J,"-",0) -> 16 | DI50: =_xlfn.XLOOKUP(A50,[1]Eläintilat!$A:$A,[1]Eläintilat!$I:$I,"-",0) -> 0 | DJ50: =_xlfn.XLOOKUP(A50,[1]Eläintilat!$A:$A,[1]Eläintilat!$K:$K,"-",0) -> 0 | DK50: =_xlfn.XLOOKUP(A50,'[1]Elintarvike ja varasto'!$A:$A,'[1]Elintarvike ja varasto'!$F:$F,"-",0) -> 1 | DM50: =_xlfn.XLOOKUP(A50,[1]Koulut!$A:$A,[1]Koulut!$F:$F,"-",0) -> 5040.08 | DN50: =_xlfn.XLOOKUP(A50,'[1]Tuotanto ja teollisuus'!$A:$A,'[1]Tuotanto ja teollisuus'!$F:$F,"-",0) -> 1 | DP50: =_xlfn.XLOOKUP(A50,[1]Varareitit!$A:$A,[1]Varareitit!$F:$F,"-",0) -> 1 | DQ50: =_xlfn.XLOOKUP(A50,[1]Taajama!$A:$A,[1]Taajama!$F:$F,"-",0) -> 4286.88 | DR50: 1 | DS50: 0 | DT50: 1 | DU50: =_xlfn.XLOOKUP(A50,[1]Matkailukohteet!$A:$A,[1]Matkailukohteet!$F:$F,"-",0) -> 0 | DV50: =_xlfn.XLOOKUP(A50,[1]Matkailu!$A:$A,[1]Matkailu!$F:$F,"-",0) -> 0 | DW50: =_xlfn.XLOOKUP(A50,[1]Pyörämatkailu!$A:$A,[1]Pyörämatkailu!$F:$F,"-",0) -> 0 | DX50: 0 | DZ50: =_xlfn.XLOOKUP(A50,'[1]Verkollinen asema'!$A:$A,'[1]Verkollinen asema'!$D:$D,"-",0) -> 0 | EA50: =_xlfn.XLOOKUP(A50,[1]Kaupat!$A:$A,[1]Kaupat!$F:$F,"-",0) -> 3 | EF50: -- | EG50: -- | EH50: -- | EI50: -- | EJ50: -- | EL50: 170_10 | EM50: LOPUT | EN50: 29 | EO50: 1
A51: 9_235 | B51: 1 | D51: 15 | E51: 15 | F51: 0 | G51: 13.63506343 | H51: 5 | I51: 5.968396764 | J51: 2.666666667 | K51: 1 | L51: 0 | M51: Gmaps | N51: LOPUT | O51: Valta | P51: Rantaväylä, Ysitie | Q51: Jyväskylä | S51: 9 | T51: 235 | U51: 0 | V51: 235 | W51: 7668 | X51: 7668 | Y51: 27943.92149 | Z51: 1234.440141 | AA51: 30389 | AB51: 17437 (16 %), 26338 (30 %), 29686 (13 %), 31059 (22 %), 34547 (19 %) | AC51: 100 (19 %), 60 (28 %), 70 (16 %), 80 (38 %) | AD51: Ise (100 %) | AE51: Asfalttibetoni (34 %), Kivimastiksiasfaltti (67 %) | AF51: PK1 (100 %) | AG51: 14 | AH51: 43 | AJ51: 688.4084507 | AR51: 9 | AS51: 2609 | AV51: 3 | AW51: =_xlfn.XLOOKUP(A51,[1]Työmatkat!$A:$A,[1]Työmatkat!$F:$F,"-",0) -> 23131 | AX51: 3 | AY51: 15 | AZ51: 5 | BA51: 8 | BB51: 1 | BC51: 3 | BD51: 1 | BE51: 0 | BF51: 0 | BG51: 0 | BH51: 0 | BI51: 0.01 | BJ51: 0 | BK51: 0 | BL51: 0 | BM51: 2 | BO51: 2 | BP51: 8.951902905 | BQ51: 0.8951902905 | BR51: 17.90519029 | BS51: 5.968396764 | BT51: 7726.69 | BU51: 1.007653886 | BV51: 1 | BW51: =_xlfn.XLOOKUP(A51,[1]Erikoiskuljetukset!$A:$A,[1]Erikoiskuljetukset!$F:$F,"-",0) -> 7726.69 | BX51: 1.007653886 | BY51: 1 | BZ51: 1 | CA51: 6822.37 | CB51: 0.889719614 | CC51: 1 | CD51: =_xlfn.XLOOKUP(A51,'[1]2_Asukastiheys'!$A:$A,'[1]2_Asukastiheys'!$H:$H,"-",0)/X51 -> 1491.388628 | CE51: 1 | CF51: 1 | CG51: 1 | CH51: 0 | CI51: 1 | CJ51: 8 | CK51: 2.666666667 | CL51: 40.90519029 | CM51: 13.63506343 | CN51: 1 | CO51: =VLOOKUP(A51,Taul1!$F$6:$G$953,2,FALSE) -> 5 | CP51: 36.01 | CQ51: 15 | CR51: 16.01 | CS51: 5 | CU51: https://www.google.com/maps/@62.19015481,25.69826835,3a,75y,90t/data=!3m3!1e1!3m1!2e0 | CZ51: =_xlfn.XLOOKUP(A51,[1]Maito!$A:$A,[1]Maito!$J:$J,"-",0) -> 17 | DA51: 17 | DB51: =_xlfn.XLOOKUP(A51,[1]Kaatopaikat_jäte!$A:$A,[1]Kaatopaikat_jäte!$F:$F,"-",0) -> 2 | DC51: =_xlfn.XLOOKUP(A51,'[1]Maa-aines'!$A:$A,'[1]Maa-aines'!$F:$F,"-",0) -> 0 | DD51: =_xlfn.XLOOKUP(A51,[1]Turve!$A:$A,[1]Turve!$F:$F,"-",0) -> 0 | DE51: =_xlfn.XLOOKUP(A51,[1]Vilja!$A:$A,[1]Vilja!$F:$F,"-",0) -> 0 | DF51: =_xlfn.XLOOKUP(A51,[1]Kasvihuoneet!$A:$A,[1]Kasvihuoneet!$F:$F,"-",0) -> 0 | DG51: =_xlfn.XLOOKUP(A51,[1]Eläintilat!$A:$A,[1]Eläintilat!$H:$H,"-",0) -> 0 | DH51: =_xlfn.XLOOKUP(A51,[1]Eläintilat!$A:$A,[1]Eläintilat!$J:$J,"-",0) -> 2 | DI51: =_xlfn.XLOOKUP(A51,[1]Eläintilat!$A:$A,[1]Eläintilat!$I:$I,"-",0) -> 0 | DJ51: =_xlfn.XLOOKUP(A51,[1]Eläintilat!$A:$A,[1]Eläintilat!$K:$K,"-",0) -> 0 | DK51: =_xlfn.XLOOKUP(A51,'[1]Elintarvike ja varasto'!$A:$A,'[1]Elintarvike ja varasto'!$F:$F,"-",0) -> 0 | DM51: =_xlfn.XLOOKUP(A51,[1]Koulut!$A:$A,[1]Koulut!$F:$F,"-",0) -> 7726.69 | DN51: =_xlfn.XLOOKUP(A51,'[1]Tuotanto ja teollisuus'!$A:$A,'[1]Tuotanto ja teollisuus'!$F:$F,"-",0) -> 13 | DP51: =_xlfn.XLOOKUP(A51,[1]Varareitit!$A:$A,[1]Varareitit!$F:$F,"-",0) -> 16 | DQ51: =_xlfn.XLOOKUP(A51,[1]Taajama!$A:$A,[1]Taajama!$F:$F,"-",0) -> 6822.37 | DR51: 1 | DS51: 0 | DT51: 1 | DU51: =_xlfn.XLOOKUP(A51,[1]Matkailukohteet!$A:$A,[1]Matkailukohteet!$F:$F,"-",0) -> 0 | DV51: =_xlfn.XLOOKUP(A51,[1]Matkailu!$A:$A,[1]Matkailu!$F:$F,"-",0) -> 0 | DW51: =_xlfn.XLOOKUP(A51,[1]Pyörämatkailu!$A:$A,[1]Pyörämatkailu!$F:$F,"-",0) -> 1 | DX51: 1 | DZ51: =_xlfn.XLOOKUP(A51,'[1]Verkollinen asema'!$A:$A,'[1]Verkollinen asema'!$D:$D,"-",0) -> 0 | EA51: =_xlfn.XLOOKUP(A51,[1]Kaupat!$A:$A,[1]Kaupat!$F:$F,"-",0) -> 8 | EF51: -- | EG51: -- | EH51: -- | EI51: -- | EJ51: -- | EL51: 25_22 | EM51: LOPUT | EN51: 104 | EO51: 2 | EQ51: 140 | ER51: 30
A52: 641_2 | B52: 1 | D52: 16 | E52: 16 | F52: 0 | G52: 13.48735564 | H52: 5 | I52: 6.154022306 | J52: 2.333333333 | K52: 1 | L52: 0 | M52: Gmaps | N52: LOPUT | O52: Seutu | P52: Hankasalmentie, Keskustie | Q52: Hankasalmi | S52: 641 | T52: 2 | U52: 0 | V52: 2 | W52: 4859 | X52: 4859 | Y52: 2050.990739 | Z52: 141.4990739 | AA52: 2716 | AB52: 1566 (39 %), 2356 (61 %) | AC52: 40 (26 %), 50 (15 %), 60 (16 %), 80 (43 %) | AD52: Ib (100 %) | AE52: Asfalttibetoni (97 %) | AF52: PK2 (100 %) | AG52: 0 | AH52: 1 | AJ52: 50.64519448 | AR52: 9 | AS52: 56 | AV52: 3 | AW52: =_xlfn.XLOOKUP(A52,[1]Työmatkat!$A:$A,[1]Työmatkat!$F:$F,"-",0) -> 639 | AX52: 3 | AY52: 15 | AZ52: 5 | BA52: 8 | BB52: 1 | BC52: 3 | BD52: 1 | BE52: 0 | BF52: 1 | BG52: 1 | BH52: 0.5 | BI52: 0.02 | BJ52: 0 | BK52: 0 | BL52: 0 | BM52: 0 | BO52: 2 | BP52: 9.420669168 | BQ52: 0.9420669168 | BR52: 18.46206692 | BS52: 6.154022306 | BT52: 3543.98 | BU52: 0.7293640667 | BV52: 1 | BW52: =_xlfn.XLOOKUP(A52,[1]Erikoiskuljetukset!$A:$A,[1]Erikoiskuljetukset!$F:$F,"-",0) -> 4703.3 | BX52: 0.9679563696 | BY52: 1 | BZ52: 1 | CA52: 2153.29 | CB52: 0.4431549702 | CC52: 0 | CD52: =_xlfn.XLOOKUP(A52,'[1]2_Asukastiheys'!$A:$A,'[1]2_Asukastiheys'!$H:$H,"-",0)/X52 -> 150.6600123 | CE52: 1 | CF52: 1 | CG52: 1 | CH52: 0 | CI52: 1 | CJ52: 7 | CK52: 2.333333333 | CL52: 40.46206692 | CM52: 13.48735564 | CN52: 1 | CO52: =VLOOKUP(A52,Taul1!$F$6:$G$953,2,FALSE) -> 2 | CP52: 36.52 | CQ52: 15 | CR52: 16.52 | CS52: 5 | CU52: https://www.google.com/maps/@62.35173176,26.45936367,3a,75y,90t/data=!3m3!1e1!3m1!2e0 | CZ52: =_xlfn.XLOOKUP(A52,[1]Maito!$A:$A,[1]Maito!$J:$J,"-",0) -> 1 | DA52: 1 | DB52: =_xlfn.XLOOKUP(A52,[1]Kaatopaikat_jäte!$A:$A,[1]Kaatopaikat_jäte!$F:$F,"-",0) -> 2 | DC52: =_xlfn.XLOOKUP(A52,'[1]Maa-aines'!$A:$A,'[1]Maa-aines'!$F:$F,"-",0) -> 0 | DD52: =_xlfn.XLOOKUP(A52,[1]Turve!$A:$A,[1]Turve!$F:$F,"-",0) -> 0 | DE52: =_xlfn.XLOOKUP(A52,[1]Vilja!$A:$A,[1]Vilja!$F:$F,"-",0) -> 3 | DF52: =_xlfn.XLOOKUP(A52,[1]Kasvihuoneet!$A:$A,[1]Kasvihuoneet!$F:$F,"-",0) -> 1 | DG52: =_xlfn.XLOOKUP(A52,[1]Eläintilat!$A:$A,[1]Eläintilat!$H:$H,"-",0) -> 144 | DH52: =_xlfn.XLOOKUP(A52,[1]Eläintilat!$A:$A,[1]Eläintilat!$J:$J,"-",0) -> 4 | DI52: =_xlfn.XLOOKUP(A52,[1]Eläintilat!$A:$A,[1]Eläintilat!$I:$I,"-",0) -> 0 | DJ52: =_xlfn.XLOOKUP(A52,[1]Eläintilat!$A:$A,[1]Eläintilat!$K:$K,"-",0) -> 0 | DK52: =_xlfn.XLOOKUP(A52,'[1]Elintarvike ja varasto'!$A:$A,'[1]Elintarvike ja varasto'!$F:$F,"-",0) -> 0 | DM52: =_xlfn.XLOOKUP(A52,[1]Koulut!$A:$A,[1]Koulut!$F:$F,"-",0) -> 3543.98 | DN52: =_xlfn.XLOOKUP(A52,'[1]Tuotanto ja teollisuus'!$A:$A,'[1]Tuotanto ja teollisuus'!$F:$F,"-",0) -> 0 | DP52: =_xlfn.XLOOKUP(A52,[1]Varareitit!$A:$A,[1]Varareitit!$F:$F,"-",0) -> 1 | DQ52: =_xlfn.XLOOKUP(A52,[1]Taajama!$A:$A,[1]Taajama!$F:$F,"-",0) -> 2153.29 | DR52: 1 | DS52: 0 | DT52: 1 | DU52: =_xlfn.XLOOKUP(A52,[1]Matkailukohteet!$A:$A,[1]Matkailukohteet!$F:$F,"-",0) -> 0 | DV52: =_xlfn.XLOOKUP(A52,[1]Matkailu!$A:$A,[1]Matkailu!$F:$F,"-",0) -> 0 | DW52: =_xlfn.XLOOKUP(A52,[1]Pyörämatkailu!$A:$A,[1]Pyörämatkailu!$F:$F,"-",0) -> 1 | DX52: 1 | DZ52: =_xlfn.XLOOKUP(A52,'[1]Verkollinen asema'!$A:$A,'[1]Verkollinen asema'!$D:$D,"-",0) -> 0 | EA52: =_xlfn.XLOOKUP(A52,[1]Kaupat!$A:$A,[1]Kaupat!$F:$F,"-",0) -> 2 | EF52: -- | EG52: -- | EH52: -- | EI52: -- | EJ52: -- | EL52: 1070_1 | EM52: LOPUT | EN52: 358 | EO52: 2
A53: 642_3 | B53: 1 | D53: 17 | E53: 17 | F53: 0 | G53: 13.48333333 | H53: 5 | I53: 6.15 | J53: 2.333333333 | K53: 1 | L53: 0 | M53: Gmaps | N53: LOPUT | O53: Seutu | P53: Suolahdentie | Q53: Äänekoski | S53: 642 | T53: 3 | U53: 0 | V53: 3 | W53: 2498 | X53: 2498 | Y53: 3568 | Z53: 250 | AA53: 3839 | AB53: 3568 (100 %) | AC53: 50 (59 %), 60 (41 %) | AD53: Is (100 %) | AE53: Asfalttibetoni (100 %) | AF53: PK2 (100 %) | AG53: 0 | AH53: 1 | AJ53: 107 | AR53: 9 | AS53: 24 | AV53: 3 | AW53: =_xlfn.XLOOKUP(A53,[1]Työmatkat!$A:$A,[1]Työmatkat!$F:$F,"-",0) -> 1343 | AX53: 3 | AY53: 15 | AZ53: 5 | BA53: 8 | BB53: 1 | BC53: 3 | BD53: 1 | BE53: 0 | BF53: 1 | BG53: 1 | BH53: 0.45 | BI53: 0 | BJ53: 0 | BK53: 0 | BL53: 0 | BM53: 0 | BO53: 2 | BP53: 32.55558655 | BQ53: 1 | BR53: 18.45 | BS53: 6.15 | BT53: 1339.97 | BU53: 0.5364171337 | BV53: 1 | BW53: =_xlfn.XLOOKUP(A53,[1]Erikoiskuljetukset!$A:$A,[1]Erikoiskuljetukset!$F:$F,"-",0) -> 2491.02 | BX53: 0.9972057646 | BY53: 1 | BZ53: 1 | CA53: 1830.19 | CB53: 0.7326621297 | CC53: 1 | CD53: =_xlfn.XLOOKUP(A53,'[1]2_Asukastiheys'!$A:$A,'[1]2_Asukastiheys'!$H:$H,"-",0)/X53 -> 280.6180945 | CE53: 1 | CF53: 1 | CG53: 0 | CH53: 0 | CI53: 1 | CJ53: 7 | CK53: 2.333333333 | CL53: 40.45 | CM53: 13.48333333 | CN53: 1 | CO53: =VLOOKUP(A53,Taul1!$F$6:$G$953,2,FALSE) -> 1 | CP53: 36.45 | CQ53: 15 | CR53: 16.45 | CS53: 5 | CU53: https://www.google.com/maps/@62.5441273,25.85972116,3a,75y,90t/data=!3m3!1e1!3m1!2e0 | CZ53: =_xlfn.XLOOKUP(A53,[1]Maito!$A:$A,[1]Maito!$J:$J,"-",0) -> 1 | DA53: 1 | DB53: =_xlfn.XLOOKUP(A53,[1]Kaatopaikat_jäte!$A:$A,[1]Kaatopaikat_jäte!$F:$F,"-",0) -> 2 | DC53: =_xlfn.XLOOKUP(A53,'[1]Maa-aines'!$A:$A,'[1]Maa-aines'!$F:$F,"-",0) -> 0 | DD53: =_xlfn.XLOOKUP(A53,[1]Turve!$A:$A,[1]Turve!$F:$F,"-",0) -> 0 | DE53: =_xlfn.XLOOKUP(A53,[1]Vilja!$A:$A,[1]Vilja!$F:$F,"-",0) -> 1 | DF53: =_xlfn.XLOOKUP(A53,[1]Kasvihuoneet!$A:$A,[1]Kasvihuoneet!$F:$F,"-",0) -> 1 | DG53: =_xlfn.XLOOKUP(A53,[1]Eläintilat!$A:$A,[1]Eläintilat!$H:$H,"-",0) -> 90 | DH53: =_xlfn.XLOOKUP(A53,[1]Eläintilat!$A:$A,[1]Eläintilat!$J:$J,"-",0) -> 0 | DI53: =_xlfn.XLOOKUP(A53,[1]Eläintilat!$A:$A,[1]Eläintilat!$I:$I,"-",0) -> 0 | DJ53: =_xlfn.XLOOKUP(A53,[1]Eläintilat!$A:$A,[1]Eläintilat!$K:$K,"-",0) -> 0 | DK53: =_xlfn.XLOOKUP(A53,'[1]Elintarvike ja varasto'!$A:$A,'[1]Elintarvike ja varasto'!$F:$F,"-",0) -> 0 | DM53: =_xlfn.XLOOKUP(A53,[1]Koulut!$A:$A,[1]Koulut!$F:$F,"-",0) -> 1339.97 | DN53: =_xlfn.XLOOKUP(A53,'[1]Tuotanto ja teollisuus'!$A:$A,'[1]Tuotanto ja teollisuus'!$F:$F,"-",0) -> 0 | DP53: =_xlfn.XLOOKUP(A53,[1]Varareitit!$A:$A,[1]Varareitit!$F:$F,"-",0) -> 1 | DQ53: =_xlfn.XLOOKUP(A53,[1]Taajama!$A:$A,[1]Taajama!$F:$F,"-",0) -> 1830.19 | DR53: 1 | DS53: 0 | DT53: 1 | DU53: =_xlfn.XLOOKUP(A53,[1]Matkailukohteet!$A:$A,[1]Matkailukohteet!$F:$F,"-",0) -> 0 | DV53: =_xlfn.XLOOKUP(A53,[1]Matkailu!$A:$A,[1]Matkailu!$F:$F,"-",0) -> 0 | DW53: =_xlfn.XLOOKUP(A53,[1]Pyörämatkailu!$A:$A,[1]Pyörämatkailu!$F:$F,"-",0) -> 0 | DX53: 0 | DZ53: =_xlfn.XLOOKUP(A53,'[1]Verkollinen asema'!$A:$A,'[1]Verkollinen asema'!$D:$D,"-",0) -> 0 | EA53: =_xlfn.XLOOKUP(A53,[1]Kaupat!$A:$A,[1]Kaupat!$F:$F,"-",0) -> 3 | EF53: -- | EG53: -- | EH53: -- | EI53: -- | EJ53: -- | EL53: 3053_1 | EM53: LOPUT | EN53: 323 | EO53: 2 | EQ53: 11296 | ER53: 2
A54: 18_50 | B54: 1 | D54: 18 | E54: 18 | F54: 0 | G54: 13.46833333 | H54: 5 | I54: 6.468333333 | J54: 2 | K54: 1 | L54: 0 | M54: Gmaps | N54: LOPUT | O54: Valta | P54: Keuruuntie | Q54: Jyväskylä | S54: 18 | T54: 50 | U54: 0 | V54: 50 | W54: 8531 | X54: 8531 | Y54: 7625.419646 | Z54: 437.7032001 | AA54: 8442 | AB54: 5833 (38 %), 6284 (34 %), 10451 (25 %), 19048 (4 %) | AC54: 50 (12 %), 60 (2 %), 80 (85 %) | AD54: Is (100 %) | AE54: Kivimastiksiasfaltti (99 %) | AF54: PK1 (100 %) | AG54: 10 | AH54: 23 | AJ54: 189.5427265 | AR54: 9 | AS54: 2220 | AV54: 3 | AW54: =_xlfn.XLOOKUP(A54,[1]Työmatkat!$A:$A,[1]Työmatkat!$F:$F,"-",0) -> 6167 | AX54: 3 | AY54: 15 | AZ54: 5 | BA54: 8 | BB54: 1 | BC54: 3 | BD54: 1 | BE54: 1 | BF54: 0 | BG54: 0 | BH54: 0.25 | BI54: 0.155 | BJ54: 0 | BK54: 0 | BL54: 0 | BM54: 2 | BO54: 2 | BP54: 12.14244945 | BQ54: 1 | BR54: 19.405 | BS54: 6.468333333 | BT54: 6637.96 | BU54: 0.7780986989 | BV54: 1 | BW54: =_xlfn.XLOOKUP(A54,[1]Erikoiskuljetukset!$A:$A,[1]Erikoiskuljetukset!$F:$F,"-",0) -> 7681.89 | BX54: 0.900467706 | BY54: 1 | BZ54: 1 | CA54: 4232.39 | CB54: 0.4961188606 | CC54: 0 | CD54: =_xlfn.XLOOKUP(A54,'[1]2_Asukastiheys'!$A:$A,'[1]2_Asukastiheys'!$H:$H,"-",0)/X54 -> 686.8498418 | CE54: 1 | CF54: 1 | CG54: 0 | CH54: 0 | CI54: 1 | CJ54: 6 | CK54: 2 | CL54: 40.405 | CM54: 13.46833333 | CN54: 1 | CO54: =VLOOKUP(A54,Taul1!$F$6:$G$953,2,FALSE) -> 4 | CP54: 36.405 | CQ54: 15 | CR54: 16.405 | CS54: 5 | CU54: https://www.google.com/maps/@62.26028313,25.60020665,3a,75y,90t/data=!3m3!1e1!3m1!2e0 | CZ54: =_xlfn.XLOOKUP(A54,[1]Maito!$A:$A,[1]Maito!$J:$J,"-",0) -> 6 | DA54: 6 | DB54: =_xlfn.XLOOKUP(A54,[1]Kaatopaikat_jäte!$A:$A,[1]Kaatopaikat_jäte!$F:$F,"-",0) -> 5 | DC54: =_xlfn.XLOOKUP(A54,'[1]Maa-aines'!$A:$A,'[1]Maa-aines'!$F:$F,"-",0) -> 1 | DD54: =_xlfn.XLOOKUP(A54,[1]Turve!$A:$A,[1]Turve!$F:$F,"-",0) -> 0 | DE54: =_xlfn.XLOOKUP(A54,[1]Vilja!$A:$A,[1]Vilja!$F:$F,"-",0) -> 0 | DF54: =_xlfn.XLOOKUP(A54,[1]Kasvihuoneet!$A:$A,[1]Kasvihuoneet!$F:$F,"-",0) -> 0 | DG54: =_xlfn.XLOOKUP(A54,[1]Eläintilat!$A:$A,[1]Eläintilat!$H:$H,"-",0) -> 50 | DH54: =_xlfn.XLOOKUP(A54,[1]Eläintilat!$A:$A,[1]Eläintilat!$J:$J,"-",0) -> 31 | DI54: =_xlfn.XLOOKUP(A54,[1]Eläintilat!$A:$A,[1]Eläintilat!$I:$I,"-",0) -> 0 | DJ54: =_xlfn.XLOOKUP(A54,[1]Eläintilat!$A:$A,[1]Eläintilat!$K:$K,"-",0) -> 0 | DK54: =_xlfn.XLOOKUP(A54,'[1]Elintarvike ja varasto'!$A:$A,'[1]Elintarvike ja varasto'!$F:$F,"-",0) -> 0 | DM54: =_xlfn.XLOOKUP(A54,[1]Koulut!$A:$A,[1]Koulut!$F:$F,"-",0) -> 6637.96 | DN54: =_xlfn.XLOOKUP(A54,'[1]Tuotanto ja teollisuus'!$A:$A,'[1]Tuotanto ja teollisuus'!$F:$F,"-",0) -> 7 | DP54: =_xlfn.XLOOKUP(A54,[1]Varareitit!$A:$A,[1]Varareitit!$F:$F,"-",0) -> 6 | DQ54: =_xlfn.XLOOKUP(A54,[1]Taajama!$A:$A,[1]Taajama!$F:$F,"-",0) -> 4232.39 | DR54: 1 | DS54: 0 | DT54: 1 | DU54: =_xlfn.XLOOKUP(A54,[1]Matkailukohteet!$A:$A,[1]Matkailukohteet!$F:$F,"-",0) -> 0 | DV54: =_xlfn.XLOOKUP(A54,[1]Matkailu!$A:$A,[1]Matkailu!$F:$F,"-",0) -> 0 | DW54: =_xlfn.XLOOKUP(A54,[1]Pyörämatkailu!$A:$A,[1]Pyörämatkailu!$F:$F,"-",0) -> 0 | DX54: 0 | DZ54: =_xlfn.XLOOKUP(A54,'[1]Verkollinen asema'!$A:$A,'[1]Verkollinen asema'!$D:$D,"-",0) -> 0 | EA54: =_xlfn.XLOOKUP(A54,[1]Kaupat!$A:$A,[1]Kaupat!$F:$F,"-",0) -> 10 | EF54: -- | EG54: -- | EH54: -- | EI54: -- | EJ54: -- | EL54: 11459_1 | EM54: LOPUT | EN54: 166 | EO54: 2 | EQ54: 170 | ER54: 17
A55: 641_1 | B55: 1 | D55: 19 | E55: 19 | F55: 0 | G55: 13.44372853 | H55: 5 | I55: 6.443728533 | J55: 2 | K55: 1 | L55: 0 | M55: Gmaps | N55: LOPUT | O55: Seutu | P55: Hankasalmentie, Kuuhankavedentie | Q55: Hankasalmi | S55: 641 | T55: 1 | U55: 0 | V55: 1 | W55: 4970 | X55: 4970 | Y55: 1940 | Z55: 111 | AA55: 2211 | AB55: 1940 (100 %) | AC55: 60 (18 %), 80 (82 %) | AD55: Ib (100 %) | AE55: Asfalttibetoni (99 %) | AF55: PK2 (100 %) | AG55: 2 | AH55: 2 | AJ55: 32 | AR55: 9 | AS55: 59 | AV55: 3 | AW55: =_xlfn.XLOOKUP(A55,[1]Työmatkat!$A:$A,[1]Työmatkat!$F:$F,"-",0) -> 415 | AX55: 3 | AY55: 15 | AZ55: 5 | BA55: 8 | BB55: 1 | BC55: 3 | BD55: 1 | BE55: 1 | BF55: 1 | BG55: 1 | BH55: 0.5 | BI55: 0.11 | BJ55: 0 | BK55: 0 | BL55: 0 | BM55: 0 | BO55: 2 | BP55: 7.211855986 | BQ55: 0.7211855986 | BR55: 19.3311856 | BS55: 6.443728533 | BT55: 2027.43 | BU55: 0.4079336016 | BV55: 0.5 | BW55: =_xlfn.XLOOKUP(A55,[1]Erikoiskuljetukset!$A:$A,[1]Erikoiskuljetukset!$F:$F,"-",0) -> 495.839 | BX55: 0.09976639839 | BY55: 1 | BZ55: 1 | CA55: 879.405 | CB55: 0.1769426559 | CC55: 0 | CD55: =_xlfn.XLOOKUP(A55,'[1]2_Asukastiheys'!$A:$A,'[1]2_Asukastiheys'!$H:$H,"-",0)/X55 -> 27.36016097 | CE55: 0.5 | CF55: 1 | CG55: 1 | CH55: 0 | CI55: 1 | CJ55: 6 | CK55: 2 | CL55: 40.3311856 | CM55: 13.44372853 | CN55: 1 | CO55: =VLOOKUP(A55,Taul1!$F$6:$G$953,2,FALSE) -> 1 | CP55: 36.11 | CQ55: 15 | CR55: 16.61 | CS55: 4.5 | CU55: https://www.google.com/maps/@62.31075464,26.49473503,3a,75y,90t/data=!3m3!1e1!3m1!2e0 | CZ55: =_xlfn.XLOOKUP(A55,[1]Maito!$A:$A,[1]Maito!$J:$J,"-",0) -> 1 | DA55: 1 | DB55: =_xlfn.XLOOKUP(A55,[1]Kaatopaikat_jäte!$A:$A,[1]Kaatopaikat_jäte!$F:$F,"-",0) -> 4 | DC55: =_xlfn.XLOOKUP(A55,'[1]Maa-aines'!$A:$A,'[1]Maa-aines'!$F:$F,"-",0) -> 1 | DD55: =_xlfn.XLOOKUP(A55,[1]Turve!$A:$A,[1]Turve!$F:$F,"-",0) -> 3 | DE55: =_xlfn.XLOOKUP(A55,[1]Vilja!$A:$A,[1]Vilja!$F:$F,"-",0) -> 6 | DF55: =_xlfn.XLOOKUP(A55,[1]Kasvihuoneet!$A:$A,[1]Kasvihuoneet!$F:$F,"-",0) -> 1 | DG55: =_xlfn.XLOOKUP(A55,[1]Eläintilat!$A:$A,[1]Eläintilat!$H:$H,"-",0) -> 181 | DH55: =_xlfn.XLOOKUP(A55,[1]Eläintilat!$A:$A,[1]Eläintilat!$J:$J,"-",0) -> 22 | DI55: =_xlfn.XLOOKUP(A55,[1]Eläintilat!$A:$A,[1]Eläintilat!$I:$I,"-",0) -> 0 | DJ55: =_xlfn.XLOOKUP(A55,[1]Eläintilat!$A:$A,[1]Eläintilat!$K:$K,"-",0) -> 0 | DK55: =_xlfn.XLOOKUP(A55,'[1]Elintarvike ja varasto'!$A:$A,'[1]Elintarvike ja varasto'!$F:$F,"-",0) -> 0 | DM55: =_xlfn.XLOOKUP(A55,[1]Koulut!$A:$A,[1]Koulut!$F:$F,"-",0) -> 2027.43 | DN55: =_xlfn.XLOOKUP(A55,'[1]Tuotanto ja teollisuus'!$A:$A,'[1]Tuotanto ja teollisuus'!$F:$F,"-",0) -> 0 | DP55: =_xlfn.XLOOKUP(A55,[1]Varareitit!$A:$A,[1]Varareitit!$F:$F,"-",0) -> 7 | DQ55: =_xlfn.XLOOKUP(A55,[1]Taajama!$A:$A,[1]Taajama!$F:$F,"-",0) -> 879.405 | DR55: 1 | DS55: 0 | DT55: 1 | DU55: =_xlfn.XLOOKUP(A55,[1]Matkailukohteet!$A:$A,[1]Matkailukohteet!$F:$F,"-",0) -> 0 | DV55: =_xlfn.XLOOKUP(A55,[1]Matkailu!$A:$A,[1]Matkailu!$F:$F,"-",0) -> 0 | DW55: =_xlfn.XLOOKUP(A55,[1]Pyörämatkailu!$A:$A,[1]Pyörämatkailu!$F:$F,"-",0) -> 1 | DX55: 1 | DZ55: =_xlfn.XLOOKUP(A55,'[1]Verkollinen asema'!$A:$A,'[1]Verkollinen asema'!$D:$D,"-",0) -> 0 | EA55: =_xlfn.XLOOKUP(A55,[1]Kaupat!$A:$A,[1]Kaupat!$F:$F,"-",0) -> 2 | EF55: -- | EG55: -- | EH55: -- | EI55: -- | EJ55: -- | EL55: 10_27 | EM55: LOPUT | EN55: 387 | EO55: 2 | EQ55: 15001 | ER55: 1
A56: 604_1 | B56: 1 | D56: 20 | E56: 20 | F56: 0 | G56: 13.42 | H56: 4.9 | I56: 6.186666667 | J56: 2.333333333 | K56: 1 | L56: 0 | M56: Gmaps | N56: LOPUT | O56: Seutu | P56: Koskenväylä | Q56: Jämsä | S56: 604 | T56: 1 | U56: 0 | V56: 1 | W56: 2356 | X56: 2356 | Y56: 2981 | Z56: 214 | AA56: 2951 | AB56: 2981 (100 %) | AC56: 50 (100 %) | AD56: Is (100 %) | AE56: Asfalttibetoni (68 %), Kivimastiksiasfaltti (32 %) | AF56: PK2 (100 %) | AG56: 1 | AH56: 1 | AJ56: 97 | AR56: 9 | AS56: 18 | AV56: 2.7 | AW56: =_xlfn.XLOOKUP(A56,[1]Työmatkat!$A:$A,[1]Työmatkat!$F:$F,"-",0) -> 774 | AX56: 3 | AY56: 14.7 | AZ56: 4.9 | BA56: 8 | BB56: 1 | BC56: 0 | BD56: 1 | BE56: 1 | BF56: 1 | BG56: 1 | BH56: 0.14 | BI56: 0.42 | BJ56: 0 | BK56: 0 | BL56: 0 | BM56: 2 | BO56: 2 | BP56: 12.63215789 | BQ56: 1 | BR56: 18.56 | BS56: 6.186666667 | BT56: 2365.05 | BU56: 1.003841256 | BV56: 1 | BW56: =_xlfn.XLOOKUP(A56,[1]Erikoiskuljetukset!$A:$A,[1]Erikoiskuljetukset!$F:$F,"-",0) -> 2365.05 | BX56: 1.003841256 | BY56: 1 | BZ56: 1 | CA56: 2205 | CB56: 0.9359083192 | CC56: 1 | CD56: =_xlfn.XLOOKUP(A56,'[1]2_Asukastiheys'!$A:$A,'[1]2_Asukastiheys'!$H:$H,"-",0)/X56 -> 246.614601 | CE56: 1 | CF56: 1 | CG56: 0 | CH56: 0 | CI56: 1 | CJ56: 7 | CK56: 2.333333333 | CL56: 40.26 | CM56: 13.42 | CN56: 1 | CO56: =VLOOKUP(A56,Taul1!$F$6:$G$953,2,FALSE) -> 1 | CP56: 35.26 | CQ56: 14.7 | CR56: 15.56 | CS56: 5 | CU56: https://www.google.com/maps/@61.90884343,25.13864466,3a,75y,90t/data=!3m3!1e1!3m1!2e0 | CZ56: =_xlfn.XLOOKUP(A56,[1]Maito!$A:$A,[1]Maito!$J:$J,"-",0) -> 0 | DA56: 0 | DB56: =_xlfn.XLOOKUP(A56,[1]Kaatopaikat_jäte!$A:$A,[1]Kaatopaikat_jäte!$F:$F,"-",0) -> 4 | DC56: =_xlfn.XLOOKUP(A56,'[1]Maa-aines'!$A:$A,'[1]Maa-aines'!$F:$F,"-",0) -> 1 | DD56: =_xlfn.XLOOKUP(A56,[1]Turve!$A:$A,[1]Turve!$F:$F,"-",0) -> 0 | DE56: =_xlfn.XLOOKUP(A56,[1]Vilja!$A:$A,[1]Vilja!$F:$F,"-",0) -> 5 | DF56: =_xlfn.XLOOKUP(A56,[1]Kasvihuoneet!$A:$A,[1]Kasvihuoneet!$F:$F,"-",0) -> 2 | DG56: =_xlfn.XLOOKUP(A56,[1]Eläintilat!$A:$A,[1]Eläintilat!$H:$H,"-",0) -> 28 | DH56: =_xlfn.XLOOKUP(A56,[1]Eläintilat!$A:$A,[1]Eläintilat!$J:$J,"-",0) -> 84 | DI56: =_xlfn.XLOOKUP(A56,[1]Eläintilat!$A:$A,[1]Eläintilat!$I:$I,"-",0) -> 0 | DJ56: =_xlfn.XLOOKUP(A56,[1]Eläintilat!$A:$A,[1]Eläintilat!$K:$K,"-",0) -> 0 | DK56: =_xlfn.XLOOKUP(A56,'[1]Elintarvike ja varasto'!$A:$A,'[1]Elintarvike ja varasto'!$F:$F,"-",0) -> 0 | DM56: =_xlfn.XLOOKUP(A56,[1]Koulut!$A:$A,[1]Koulut!$F:$F,"-",0) -> 2365.05 | DN56: =_xlfn.XLOOKUP(A56,'[1]Tuotanto ja teollisuus'!$A:$A,'[1]Tuotanto ja teollisuus'!$F:$F,"-",0) -> 10 | DP56: =_xlfn.XLOOKUP(A56,[1]Varareitit!$A:$A,[1]Varareitit!$F:$F,"-",0) -> 16 | DQ56: =_xlfn.XLOOKUP(A56,[1]Taajama!$A:$A,[1]Taajama!$F:$F,"-",0) -> 2205 | DR56: 1 | DS56: 0 | DT56: 1 | DU56: =_xlfn.XLOOKUP(A56,[1]Matkailukohteet!$A:$A,[1]Matkailukohteet!$F:$F,"-",0) -> 0 | DV56: =_xlfn.XLOOKUP(A56,[1]Matkailu!$A:$A,[1]Matkailu!$F:$F,"-",0) -> 0 | DW56: =_xlfn.XLOOKUP(A56,[1]Pyörämatkailu!$A:$A,[1]Pyörämatkailu!$F:$F,"-",0) -> 0 | DX56: 0 | DZ56: =_xlfn.XLOOKUP(A56,'[1]Verkollinen asema'!$A:$A,'[1]Verkollinen asema'!$D:$D,"-",0) -> 0 | EA56: =_xlfn.XLOOKUP(A56,[1]Kaupat!$A:$A,[1]Kaupat!$F:$F,"-",0) -> 4 | EF56: -- | EG56: -- | EH56: -- | EI56: -- | EJ56: -- | EL56: 167_12 | EM56: LOPUT | EN56: 229 | EO56: 2 | EQ56: 11789 | ER56: 1
A57: 6090_1 | B57: 1 | D57: 21 | E57: 21 | F57: 0 | G57: 13.32694947 | H57: 5 | I57: 5.660282803 | J57: 2.666666667 | K57: 1 | L57: 0 | M57: Gmaps | N57: LOPUT | O57: Yhdys | P57: Isolahdentie, Kinkovuorentie, Muuramentie | Q57: Jyväskylä, Muurame | S57: 6090 | T57: 1 | U57: 0 | V57: 1 | W57: 4804 | X57: 4804 | Y57: 2743.116361 | Z57: 129.9071607 | AA57: 3000 | AB57: 1695 (9 %), 2848 (91 %) | AC57: 40 (27 %), 50 (28 %), 60 (44 %) | AD57: Ib (99 %) | AE57: Asfalttibetoni (90 %), Kivimastiksiasfaltti (9 %) | AF57: PK2 (99 %) | AG57: 0 | AH57: 4 | AJ57: 56.72522898 | AR57: 9 | AS57: 744 | AV57: 3 | AW57: =_xlfn.XLOOKUP(A57,[1]Työmatkat!$A:$A,[1]Työmatkat!$F:$F,"-",0) -> 2406 | AX57: 3 | AY57: 15 | AZ57: 5 | BA57: 8 | BB57: 1 | BC57: 3 | BD57: 1 | BE57: 1 | BF57: 0 | BG57: 0 | BH57: 0 | BI57: 0.02 | BJ57: 0 | BK57: 0 | BL57: 0 | BM57: 0.8 | BO57: 2 | BP57: 1.608484105 | BQ57: 0.1608484105 | BR57: 16.98084841 | BS57: 5.660282803 | BT57: 3583.33 | BU57: 0.7459054954 | BV57: 1 | BW57: =_xlfn.XLOOKUP(A57,[1]Erikoiskuljetukset!$A:$A,[1]Erikoiskuljetukset!$F:$F,"-",0) -> 185.972 | BX57: 0.03871190674 | BY57: 1 | BZ57: 1 | CA57: 3574.35 | CB57: 0.7440362198 | CC57: 1 | CD57: =_xlfn.XLOOKUP(A57,'[1]2_Asukastiheys'!$A:$A,'[1]2_Asukastiheys'!$H:$H,"-",0)/X57 -> 422.5437136 | CE57: 1 | CF57: 1 | CG57: 1 | CH57: 0 | CI57: 1 | CJ57: 8 | CK57: 2.666666667 | CL57: 39.98084841 | CM57: 13.32694947 | CN57: 1 | CO57: =VLOOKUP(A57,Taul1!$F$6:$G$953,2,FALSE) -> 2 | CP57: 34.82 | CQ57: 15 | CR57: 14.82 | CS57: 5 | CU57: https://www.google.com/maps/@62.13747367,25.73502415,3a,75y,90t/data=!3m3!1e1!3m1!2e0 | CZ57: =_xlfn.XLOOKUP(A57,[1]Maito!$A:$A,[1]Maito!$J:$J,"-",0) -> 1 | DA57: 1 | DB57: =_xlfn.XLOOKUP(A57,[1]Kaatopaikat_jäte!$A:$A,[1]Kaatopaikat_jäte!$F:$F,"-",0) -> 1 | DC57: =_xlfn.XLOOKUP(A57,'[1]Maa-aines'!$A:$A,'[1]Maa-aines'!$F:$F,"-",0) -> 1 | DD57: =_xlfn.XLOOKUP(A57,[1]Turve!$A:$A,[1]Turve!$F:$F,"-",0) -> 0 | DE57: =_xlfn.XLOOKUP(A57,[1]Vilja!$A:$A,[1]Vilja!$F:$F,"-",0) -> 0 | DF57: =_xlfn.XLOOKUP(A57,[1]Kasvihuoneet!$A:$A,[1]Kasvihuoneet!$F:$F,"-",0) -> 0 | DG57: =_xlfn.XLOOKUP(A57,[1]Eläintilat!$A:$A,[1]Eläintilat!$H:$H,"-",0) -> 0 | DH57: =_xlfn.XLOOKUP(A57,[1]Eläintilat!$A:$A,[1]Eläintilat!$J:$J,"-",0) -> 4 | DI57: =_xlfn.XLOOKUP(A57,[1]Eläintilat!$A:$A,[1]Eläintilat!$I:$I,"-",0) -> 0 | DJ57: =_xlfn.XLOOKUP(A57,[1]Eläintilat!$A:$A,[1]Eläintilat!$K:$K,"-",0) -> 0 | DK57: =_xlfn.XLOOKUP(A57,'[1]Elintarvike ja varasto'!$A:$A,'[1]Elintarvike ja varasto'!$F:$F,"-",0) -> 0 | DM57: =_xlfn.XLOOKUP(A57,[1]Koulut!$A:$A,[1]Koulut!$F:$F,"-",0) -> 3583.33 | DN57: =_xlfn.XLOOKUP(A57,'[1]Tuotanto ja teollisuus'!$A:$A,'[1]Tuotanto ja teollisuus'!$F:$F,"-",0) -> 2 | DP57: =_xlfn.XLOOKUP(A57,[1]Varareitit!$A:$A,[1]Varareitit!$F:$F,"-",0) -> 12 | DQ57: =_xlfn.XLOOKUP(A57,[1]Taajama!$A:$A,[1]Taajama!$F:$F,"-",0) -> 3574.35 | DR57: 1 | DS57: 0 | DT57: 1 | DU57: =_xlfn.XLOOKUP(A57,[1]Matkailukohteet!$A:$A,[1]Matkailukohteet!$F:$F,"-",0) -> 0 | DV57: =_xlfn.XLOOKUP(A57,[1]Matkailu!$A:$A,[1]Matkailu!$F:$F,"-",0) -> 0 | DW57: =_xlfn.XLOOKUP(A57,[1]Pyörämatkailu!$A:$A,[1]Pyörämatkailu!$F:$F,"-",0) -> 1 | DX57: 1 | DZ57: =_xlfn.XLOOKUP(A57,'[1]Verkollinen asema'!$A:$A,'[1]Verkollinen asema'!$D:$D,"-",0) -> 0 | EA57: =_xlfn.XLOOKUP(A57,[1]Kaupat!$A:$A,[1]Kaupat!$F:$F,"-",0) -> 2 | EF57: -- | EG57: -- | EH57: -- | EI57: -- | EJ57: -- | EL57: 130_12 | EM57: LOPUT | EN57: 410 | EO57: 2 | EQ57: 11769 | ER57: 1
A58: 9_305 | B58: 1 | D58: 22 | E58: 22 | F58: 0 | G58: 13.30848198 | H58: 5 | I58: 6.308481979 | J58: 2 | K58: 1 | L58: 0 | M58: Gmaps | N58: LOPUT | O58: Valta | P58: Kuopiontie | Q58: Laukaa | S58: 9 | T58: 305 | U58: 0 | V58: 305 | W58: 4170 | X58: 4170 | Y58: 9099 | Z58: 699 | AA58: 11197 | AB58: 9099 (100 %) | AC58: 60 (11 %), 80 (89 %) | AD58: Is (100 %) | AE58: Kivimastiksiasfaltti (100 %) | AF58: PK1 (100 %) | AG58: 1 | AH58: 12 | AJ58: 476 | AR58: 9 | AS58: 97 | AV58: 3 | AW58: =_xlfn.XLOOKUP(A58,[1]Työmatkat!$A:$A,[1]Työmatkat!$F:$F,"-",0) -> 2869 | AX58: 3 | AY58: 15 | AZ58: 5 | BA58: 8 | BB58: 1 | BC58: 3 | BD58: 0 | BE58: 0 | BF58: 1 | BG58: 1 | BH58: 0 | BI58: 0 | BJ58: 0 | BK58: 0 | BL58: 2 | BM58: 0 | BO58: 2 | BP58: 9.254459362 | BQ58: 0.9254459362 | BR58: 18.92544594 | BS58: 6.308481979 | BT58: 874.18 | BU58: 0.2096354916 | BV58: 0.5 | BW58: =_xlfn.XLOOKUP(A58,[1]Erikoiskuljetukset!$A:$A,[1]Erikoiskuljetukset!$F:$F,"-",0) -> 4164.85 | BX58: 0.998764988 | BY58: 1 | BZ58: 1 | CA58: 1216.65 | CB58: 0.2917625899 | CC58: 0 | CD58: =_xlfn.XLOOKUP(A58,'[1]2_Asukastiheys'!$A:$A,'[1]2_Asukastiheys'!$H:$H,"-",0)/X58 -> 13.17505995 | CE58: 0.5 | CF58: 1 | CG58: 1 | CH58: 0 | CI58: 1 | CJ58: 6 | CK58: 2 | CL58: 39.92544594 | CM58: 13.30848198 | CN58: 1 | CO58: =VLOOKUP(A58,Taul1!$F$6:$G$953,2,FALSE) -> 1 | CP58: 36.5 | CQ58: 15 | CR58: 17 | CS58: 4.5 | CU58: https://www.google.com/maps/@62.2527445,26.10012439,3a,75y,90t/data=!3m3!1e1!3m1!2e0 | CZ58: =_xlfn.XLOOKUP(A58,[1]Maito!$A:$A,[1]Maito!$J:$J,"-",0) -> 5 | DA58: 5 | DB58: =_xlfn.XLOOKUP(A58,[1]Kaatopaikat_jäte!$A:$A,[1]Kaatopaikat_jäte!$F:$F,"-",0) -> 0 | DC58: =_xlfn.XLOOKUP(A58,'[1]Maa-aines'!$A:$A,'[1]Maa-aines'!$F:$F,"-",0) -> 0 | DD58: =_xlfn.XLOOKUP(A58,[1]Turve!$A:$A,[1]Turve!$F:$F,"-",0) -> 0 | DE58: =_xlfn.XLOOKUP(A58,[1]Vilja!$A:$A,[1]Vilja!$F:$F,"-",0) -> 2 | DF58: =_xlfn.XLOOKUP(A58,[1]Kasvihuoneet!$A:$A,[1]Kasvihuoneet!$F:$F,"-",0) -> 2 | DG58: =_xlfn.XLOOKUP(A58,[1]Eläintilat!$A:$A,[1]Eläintilat!$H:$H,"-",0) -> 0 | DH58: =_xlfn.XLOOKUP(A58,[1]Eläintilat!$A:$A,[1]Eläintilat!$J:$J,"-",0) -> 0 | DI58: =_xlfn.XLOOKUP(A58,[1]Eläintilat!$A:$A,[1]Eläintilat!$I:$I,"-",0) -> 0 | DJ58: =_xlfn.XLOOKUP(A58,[1]Eläintilat!$A:$A,[1]Eläintilat!$K:$K,"-",0) -> 0 | DK58: =_xlfn.XLOOKUP(A58,'[1]Elintarvike ja varasto'!$A:$A,'[1]Elintarvike ja varasto'!$F:$F,"-",0) -> 1 | DM58: =_xlfn.XLOOKUP(A58,[1]Koulut!$A:$A,[1]Koulut!$F:$F,"-",0) -> 874.18 | DN58: =_xlfn.XLOOKUP(A58,'[1]Tuotanto ja teollisuus'!$A:$A,'[1]Tuotanto ja teollisuus'!$F:$F,"-",0) -> 0 | DP58: =_xlfn.XLOOKUP(A58,[1]Varareitit!$A:$A,[1]Varareitit!$F:$F,"-",0) -> 17 | DQ58: =_xlfn.XLOOKUP(A58,[1]Taajama!$A:$A,[1]Taajama!$F:$F,"-",0) -> 1216.65 | DR58: 1 | DS58: 0 | DT58: 1 | DU58: =_xlfn.XLOOKUP(A58,[1]Matkailukohteet!$A:$A,[1]Matkailukohteet!$F:$F,"-",0) -> 0 | DV58: =_xlfn.XLOOKUP(A58,[1]Matkailu!$A:$A,[1]Matkailu!$F:$F,"-",0) -> 0 | DW58: =_xlfn.XLOOKUP(A58,[1]Pyörämatkailu!$A:$A,[1]Pyörämatkailu!$F:$F,"-",0) -> 1 | DX58: 1 | DZ58: =_xlfn.XLOOKUP(A58,'[1]Verkollinen asema'!$A:$A,'[1]Verkollinen asema'!$D:$D,"-",0) -> 0 | EA58: =_xlfn.XLOOKUP(A58,[1]Kaupat!$A:$A,[1]Kaupat!$F:$F,"-",0) -> 1 | EF58: -- | EG58: -- | EH58: -- | EI58: -- | EJ58: -- | EL58: 57_2 | EM58: LOPUT | EN58: 57 | EO58: 1 | EQ58: 1635 | ER58: 8
A59: 4_233 | B59: 1 | D59: 23 | E59: 23 | F59: 0 | G59: 13.28728936 | H59: 5 | I59: 5.953956025 | J59: 2.333333333 | K59: 1 | L59: 0 | M59: Gmaps | N59: LOPUT | O59: Valta | P59: Vaajakosken moottoritie | Q59: Jyväskylä | S59: 4 | T59: 233 | U59: 0 | V59: 233 | W59: 5863 | X59: 5863 | Y59: 26205.7138 | Z59: 1662.975098 | AA59: 28597 | AB59: 23097 (25 %), 25734 (29 %), 28205 (46 %) | AC59: 100 (43 %), 50 (1 %), 60 (7 %), 80 (50 %) | AD59: Ise (100 %) | AE59: Kivimastiksiasfaltti (100 %) | AF59: PK1 (100 %) | AG59: 4 | AH59: 35 | AJ59: 1035.154358 | AR59: 9 | AS59: 640 | AV59: 3 | AW59: =_xlfn.XLOOKUP(A59,[1]Työmatkat!$A:$A,[1]Työmatkat!$F:$F,"-",0) -> 11381 | AX59: 3 | AY59: 15 | AZ59: 5 | BA59: 8 | BB59: 1 | BC59: 3 | BD59: 0 | BE59: 0 | BF59: 0 | BG59: 1 | BH59: 0 | BI59: 0 | BJ59: 0 | BK59: 0 | BL59: 0 | BM59: 2 | BO59: 2 | BP59: 8.618680756 | BQ59: 0.8618680756 | BR59: 17.86186808 | BS59: 5.953956025 | BT59: 5878.11 | BU59: 1.002577179 | BV59: 1 | BW59: =_xlfn.XLOOKUP(A59,[1]Erikoiskuljetukset!$A:$A,[1]Erikoiskuljetukset!$F:$F,"-",0) -> 5265.14 | BX59: 0.8980283132 | BY59: 1 | BZ59: 1 | CA59: 5246.11 | CB59: 0.8947825345 | CC59: 1 | CD59: =_xlfn.XLOOKUP(A59,'[1]2_Asukastiheys'!$A:$A,'[1]2_Asukastiheys'!$H:$H,"-",0)/X59 -> 988.7393826 | CE59: 1 | CF59: 1 | CG59: 0 | CH59: 0 | CI59: 1 | CJ59: 7 | CK59: 2.333333333 | CL59: 39.86186808 | CM59: 13.28728936 | CN59: 1 | CO59: =VLOOKUP(A59,Taul1!$F$6:$G$953,2,FALSE) -> 3 | CP59: 36 | CQ59: 15 | CR59: 16 | CS59: 5 | CU59: https://www.google.com/maps/@62.24639601,25.87231843,3a,75y,90t/data=!3m3!1e1!3m1!2e0 | CZ59: =_xlfn.XLOOKUP(A59,[1]Maito!$A:$A,[1]Maito!$J:$J,"-",0) -> 8 | DA59: 8 | DB59: =_xlfn.XLOOKUP(A59,[1]Kaatopaikat_jäte!$A:$A,[1]Kaatopaikat_jäte!$F:$F,"-",0) -> 0 | DC59: =_xlfn.XLOOKUP(A59,'[1]Maa-aines'!$A:$A,'[1]Maa-aines'!$F:$F,"-",0) -> 0 | DD59: =_xlfn.XLOOKUP(A59,[1]Turve!$A:$A,[1]Turve!$F:$F,"-",0) -> 0 | DE59: =_xlfn.XLOOKUP(A59,[1]Vilja!$A:$A,[1]Vilja!$F:$F,"-",0) -> 0 | DF59: =_xlfn.XLOOKUP(A59,[1]Kasvihuoneet!$A:$A,[1]Kasvihuoneet!$F:$F,"-",0) -> 1 | DG59: =_xlfn.XLOOKUP(A59,[1]Eläintilat!$A:$A,[1]Eläintilat!$H:$H,"-",0) -> 0 | DH59: =_xlfn.XLOOKUP(A59,[1]Eläintilat!$A:$A,[1]Eläintilat!$J:$J,"-",0) -> 0 | DI59: =_xlfn.XLOOKUP(A59,[1]Eläintilat!$A:$A,[1]Eläintilat!$I:$I,"-",0) -> 0 | DJ59: =_xlfn.XLOOKUP(A59,[1]Eläintilat!$A:$A,[1]Eläintilat!$K:$K,"-",0) -> 0 | DK59: =_xlfn.XLOOKUP(A59,'[1]Elintarvike ja varasto'!$A:$A,'[1]Elintarvike ja varasto'!$F:$F,"-",0) -> 0 | DM59: =_xlfn.XLOOKUP(A59,[1]Koulut!$A:$A,[1]Koulut!$F:$F,"-",0) -> 5878.11 | DN59: =_xlfn.XLOOKUP(A59,'[1]Tuotanto ja teollisuus'!$A:$A,'[1]Tuotanto ja teollisuus'!$F:$F,"-",0) -> 8 | DP59: =_xlfn.XLOOKUP(A59,[1]Varareitit!$A:$A,[1]Varareitit!$F:$F,"-",0) -> 2 | DQ59: =_xlfn.XLOOKUP(A59,[1]Taajama!$A:$A,[1]Taajama!$F:$F,"-",0) -> 5246.11 | DR59: 1 | DS59: 0 | DT59: 1 | DU59: =_xlfn.XLOOKUP(A59,[1]Matkailukohteet!$A:$A,[1]Matkailukohteet!$F:$F,"-",0) -> 0 | DV59: =_xlfn.XLOOKUP(A59,[1]Matkailu!$A:$A,[1]Matkailu!$F:$F,"-",0) -> 0 | DW59: =_xlfn.XLOOKUP(A59,[1]Pyörämatkailu!$A:$A,[1]Pyörämatkailu!$F:$F,"-",0) -> 0 | DX59: 0 | DZ59: =_xlfn.XLOOKUP(A59,'[1]Verkollinen asema'!$A:$A,'[1]Verkollinen asema'!$D:$D,"-",0) -> 0 | EA59: =_xlfn.XLOOKUP(A59,[1]Kaupat!$A:$A,[1]Kaupat!$F:$F,"-",0) -> 5 | EF59: -- | EG59: -- | EH59: -- | EI59: -- | EJ59: -- | EL59: 25_24 | EM59: LOPUT | EN59: 9 | EO59: 1 | EQ59: 1792 | ER59: 3
A60: 9_306 | B60: 1 | D60: 24 | E60: 24 | F60: 0 | G60: 13.26863656 | H60: 5 | I60: 6.101969897 | J60: 2.166666667 | K60: 1 | L60: 0 | M60: Gmaps | N60: LOPUT | O60: Valta | P60: Kuopiontie | Q60: Laukaa | S60: 9 | T60: 306 | U60: 0 | V60: 306 | W60: 4987 | X60: 4987 | Y60: 6182 | Z60: 629 | AA60: 7607 | AB60: 6182 (100 %) | AC60: 100 (53 %), 60 (4 %), 80 (42 %) | AD60: Is (100 %) | AE60: Kivimastiksiasfaltti (100 %) | AF60: PK1 (100 %) | AG60: 2 | AH60: 7 | AJ60: 361 | AR60: 9 | AS60: 45 | AV60: 3 | AW60: =_xlfn.XLOOKUP(A60,[1]Työmatkat!$A:$A,[1]Työmatkat!$F:$F,"-",0) -> 1621 | AX60: 3 | AY60: 15 | AZ60: 5 | BA60: 8 | BB60: 1 | BC60: 3 | BD60: 0 | BE60: 0 | BF60: 1 | BG60: 0 | BH60: 0.5 | BI60: 0 | BJ60: 0 | BK60: 0 | BL60: 2 | BM60: 0 | BO60: 2 | BP60: 8.059096913 | BQ60: 0.8059096913 | BR60: 18.30590969 | BS60: 6.101969897 | BT60: 3815.96 | BU60: 0.7651814718 | BV60: 1 | BW60: =_xlfn.XLOOKUP(A60,[1]Erikoiskuljetukset!$A:$A,[1]Erikoiskuljetukset!$F:$F,"-",0) -> 4974.3 | BX60: 0.9974533788 | BY60: 1 | BZ60: 1 | CA60: 1244.96 | CB60: 0.2496410668 | CC60: 0 | CD60: =_xlfn.XLOOKUP(A60,'[1]2_Asukastiheys'!$A:$A,'[1]2_Asukastiheys'!$H:$H,"-",0)/X60 -> 46.12793262 | CE60: 0.5 | CF60: 1 | CG60: 1 | CH60: 0 | CI60: 1 | CJ60: 6.5 | CK60: 2.166666667 | CL60: 39.80590969 | CM60: 13.26863656 | CN60: 1 | CO60: =VLOOKUP(A60,Taul1!$F$6:$G$953,2,FALSE) -> 1 | CP60: 36.5 | CQ60: 15 | CR60: 16.5 | CS60: 5 | CU60: https://www.google.com/maps/@62.24991479,26.17585773,3a,75y,90t/data=!3m3!1e1!3m1!2e0 | CZ60: =_xlfn.XLOOKUP(A60,[1]Maito!$A:$A,[1]Maito!$J:$J,"-",0) -> 3 | DA60: 3 | DB60: =_xlfn.XLOOKUP(A60,[1]Kaatopaikat_jäte!$A:$A,[1]Kaatopaikat_jäte!$F:$F,"-",0) -> 0 | DC60: =_xlfn.XLOOKUP(A60,'[1]Maa-aines'!$A:$A,'[1]Maa-aines'!$F:$F,"-",0) -> 0 | DD60: =_xlfn.XLOOKUP(A60,[1]Turve!$A:$A,[1]Turve!$F:$F,"-",0) -> 0 | DE60: =_xlfn.XLOOKUP(A60,[1]Vilja!$A:$A,[1]Vilja!$F:$F,"-",0) -> 4 | DF60: =_xlfn.XLOOKUP(A60,[1]Kasvihuoneet!$A:$A,[1]Kasvihuoneet!$F:$F,"-",0) -> 0 | DG60: =_xlfn.XLOOKUP(A60,[1]Eläintilat!$A:$A,[1]Eläintilat!$H:$H,"-",0) -> 130 | DH60: =_xlfn.XLOOKUP(A60,[1]Eläintilat!$A:$A,[1]Eläintilat!$J:$J,"-",0) -> 0 | DI60: =_xlfn.XLOOKUP(A60,[1]Eläintilat!$A:$A,[1]Eläintilat!$I:$I,"-",0) -> 0 | DJ60: =_xlfn.XLOOKUP(A60,[1]Eläintilat!$A:$A,[1]Eläintilat!$K:$K,"-",0) -> 0 | DK60: =_xlfn.XLOOKUP(A60,'[1]Elintarvike ja varasto'!$A:$A,'[1]Elintarvike ja varasto'!$F:$F,"-",0) -> 1 | DM60: =_xlfn.XLOOKUP(A60,[1]Koulut!$A:$A,[1]Koulut!$F:$F,"-",0) -> 3815.96 | DN60: =_xlfn.XLOOKUP(A60,'[1]Tuotanto ja teollisuus'!$A:$A,'[1]Tuotanto ja teollisuus'!$F:$F,"-",0) -> 0 | DP60: =_xlfn.XLOOKUP(A60,[1]Varareitit!$A:$A,[1]Varareitit!$F:$F,"-",0) -> 3 | DQ60: =_xlfn.XLOOKUP(A60,[1]Taajama!$A:$A,[1]Taajama!$F:$F,"-",0) -> 1244.96 | DR60: 1 | DS60: 0 | DT60: 1 | DU60: =_xlfn.XLOOKUP(A60,[1]Matkailukohteet!$A:$A,[1]Matkailukohteet!$F:$F,"-",0) -> 0 | DV60: =_xlfn.XLOOKUP(A60,[1]Matkailu!$A:$A,[1]Matkailu!$F:$F,"-",0) -> 0 | DW60: =_xlfn.XLOOKUP(A60,[1]Pyörämatkailu!$A:$A,[1]Pyörämatkailu!$F:$F,"-",0) -> 1 | DX60: 1 | DZ60: =_xlfn.XLOOKUP(A60,'[1]Verkollinen asema'!$A:$A,'[1]Verkollinen asema'!$D:$D,"-",0) -> 0 | EA60: =_xlfn.XLOOKUP(A60,[1]Kaupat!$A:$A,[1]Kaupat!$F:$F,"-",0) -> 1 | EF60: -- | EG60: -- | EH60: -- | EI60: -- | EJ60: -- | EL60: 1452_2 | EM60: LOPUT | EN60: 86 | EO60: 2
A61: 6452_1 | B61: 1 | D61: 25 | E61: 25 | F61: 0 | G61: 13.18859023 | H61: 5 | I61: 5.855256899 | J61: 2.333333333 | K61: 1 | L61: 0 | M61: Gmaps | N61: LOPUT | O61: Yhdys | P61: Äänekoskentie | Q61: Äänekoski | S61: 6452 | T61: 1 | U61: 0 | V61: 1 | W61: 5288 | X61: 2404 | Y61: 1596.929285 | Z61: 82.50332779 | AA61: 1625 | AB61: 1223 (90 %), 5000 (10 %) | AC61: 40 (2 %), 50 (8 %), 60 (89 %) | AD61: Ib (99 %) | AE61: Asfalttibetoni (89 %), Kivimastiksiasfaltti (10 %) | AF61: PK2 (99 %) | AG61: 3 | AH61: 3 | AJ61: 27.83111481 | AR61: 9 | AS61: 72 | AV61: 3 | AW61: =_xlfn.XLOOKUP(A61,[1]Työmatkat!$A:$A,[1]Työmatkat!$F:$F,"-",0) -> 1189 | AX61: 3 | AY61: 15 | AZ61: 5 | BA61: 8 | BB61: 1 | BC61: 3 | BD61: 1 | BE61: 1 | BF61: 1 | BG61: 0 | BH61: 0 | BI61: 0.015 | BJ61: 0 | BK61: 0 | BL61: 0 | BM61: 0 | BO61: 2 | BP61: 5.507706977 | BQ61: 0.5507706977 | BR61: 17.5657707 | BS61: 5.855256899 | BT61: 1714.63 | BU61: 0.7132404326 | BV61: 1 | BW61: =_xlfn.XLOOKUP(A61,[1]Erikoiskuljetukset!$A:$A,[1]Erikoiskuljetukset!$F:$F,"-",0) -> 236.357 | BX61: 0.09831821963 | BY61: 1 | BZ61: 1 | CA61: 523.948 | CB61: 0.2179484193 | CC61: 0 | CD61: =_xlfn.XLOOKUP(A61,'[1]2_Asukastiheys'!$A:$A,'[1]2_Asukastiheys'!$H:$H,"-",0)/X61 -> 115.7603993 | CE61: 1 | CF61: 1 | CG61: 1 | CH61: 0 | CI61: 1 | CJ61: 7 | CK61: 2.333333333 | CL61: 39.5657707 | CM61: 13.18859023 | CN61: 1 | CO61: =VLOOKUP(A61,Taul1!$F$6:$G$953,2,FALSE) -> 2 | CP61: 35.015 | CQ61: 15 | CR61: 15.015 | CS61: 5 | CU61: https://www.google.com/maps/@62.54586447,25.91863925,3a,75y,90t/data=!3m3!1e1!3m1!2e0 | CZ61: =_xlfn.XLOOKUP(A61,[1]Maito!$A:$A,[1]Maito!$J:$J,"-",0) -> 1 | DA61: 1 | DB61: =_xlfn.XLOOKUP(A61,[1]Kaatopaikat_jäte!$A:$A,[1]Kaatopaikat_jäte!$F:$F,"-",0) -> 1 | DC61: =_xlfn.XLOOKUP(A61,'[1]Maa-aines'!$A:$A,'[1]Maa-aines'!$F:$F,"-",0) -> 1 | DD61: =_xlfn.XLOOKUP(A61,[1]Turve!$A:$A,[1]Turve!$F:$F,"-",0) -> 0 | DE61: =_xlfn.XLOOKUP(A61,[1]Vilja!$A:$A,[1]Vilja!$F:$F,"-",0) -> 3 | DF61: =_xlfn.XLOOKUP(A61,[1]Kasvihuoneet!$A:$A,[1]Kasvihuoneet!$F:$F,"-",0) -> 0 | DG61: =_xlfn.XLOOKUP(A61,[1]Eläintilat!$A:$A,[1]Eläintilat!$H:$H,"-",0) -> 0 | DH61: =_xlfn.XLOOKUP(A61,[1]Eläintilat!$A:$A,[1]Eläintilat!$J:$J,"-",0) -> 3 | DI61: =_xlfn.XLOOKUP(A61,[1]Eläintilat!$A:$A,[1]Eläintilat!$I:$I,"-",0) -> 0 | DJ61: =_xlfn.XLOOKUP(A61,[1]Eläintilat!$A:$A,[1]Eläintilat!$K:$K,"-",0) -> 0 | DK61: =_xlfn.XLOOKUP(A61,'[1]Elintarvike ja varasto'!$A:$A,'[1]Elintarvike ja varasto'!$F:$F,"-",0) -> 0 | DM61: =_xlfn.XLOOKUP(A61,[1]Koulut!$A:$A,[1]Koulut!$F:$F,"-",0) -> 1714.63 | DN61: =_xlfn.XLOOKUP(A61,'[1]Tuotanto ja teollisuus'!$A:$A,'[1]Tuotanto ja teollisuus'!$F:$F,"-",0) -> 0 | DP61: =_xlfn.XLOOKUP(A61,[1]Varareitit!$A:$A,[1]Varareitit!$F:$F,"-",0) -> 3 | DQ61: =_xlfn.XLOOKUP(A61,[1]Taajama!$A:$A,[1]Taajama!$F:$F,"-",0) -> 523.948 | DR61: 1 | DS61: 0 | DT61: 1 | DU61: =_xlfn.XLOOKUP(A61,[1]Matkailukohteet!$A:$A,[1]Matkailukohteet!$F:$F,"-",0) -> 0 | DV61: =_xlfn.XLOOKUP(A61,[1]Matkailu!$A:$A,[1]Matkailu!$F:$F,"-",0) -> 0 | DW61: =_xlfn.XLOOKUP(A61,[1]Pyörämatkailu!$A:$A,[1]Pyörämatkailu!$F:$F,"-",0) -> 1 | DX61: 1 | DZ61: =_xlfn.XLOOKUP(A61,'[1]Verkollinen asema'!$A:$A,'[1]Verkollinen asema'!$D:$D,"-",0) -> 0 | EA61: =_xlfn.XLOOKUP(A61,[1]Kaupat!$A:$A,[1]Kaupat!$F:$F,"-",0) -> 2 | EF61: -- | EG61: -- | EH61: -- | EI61: -- | EJ61: -- | EL61: 11817_1 | EM61: VÄHÄ | EN61: 486 | EO61: 3 | EQ61: 13691 | ER61: 1
A62: 4_326 | B62: 1 | D62: 26 | E62: 26 | F62: 0 | G62: 13.11666667 | H62: 4.95 | I62: 6 | J62: 2.166666667 | K62: 1 | L62: 0 | M62: Gmaps | N62: LOPUT | O62: Valta | P62: Pyhäsalmentie, Viitasaarentie | Q62: Pihtipudas | S62: 4 | T62: 326 | U62: 0 | V62: 326 | W62: 5194 | X62: 5194 | Y62: 5682.204852 | Z62: 675.703504 | AA62: 7316 | AB62: 5642 (82 %), 5868 (18 %) | AC62: 100 (27 %), 60 (15 %), 80 (58 %) | AD62: Is (100 %) | AE62: Asfalttibetoni (19 %), Kivimastiksiasfaltti (80 %) | AF62: PK1 (100 %) | AG62: 2 | AH62: 5 | AJ62: 440.722372 | AR62: 9 | AS62: 19 | AV62: 2.85 | AW62: =_xlfn.XLOOKUP(A62,[1]Työmatkat!$A:$A,[1]Työmatkat!$F:$F,"-",0) -> 784 | AX62: 3 | AY62: 14.85 | AZ62: 4.95 | BA62: 8 | BB62: 1 | BC62: 3 | BD62: 1 | BE62: 0 | BF62: 1 | BG62: 1 | BH62: 0 | BI62: 0 | BJ62: 0 | BK62: 0 | BL62: 0 | BM62: 0 | BO62: 2 | BP62: 21.69127494 | BQ62: 1 | BR62: 18 | BS62: 6 | BT62: 3929.04 | BU62: 0.7564574509 | BV62: 1 | BW62: =_xlfn.XLOOKUP(A62,[1]Erikoiskuljetukset!$A:$A,[1]Erikoiskuljetukset!$F:$F,"-",0) -> 5147.66 | BX62: 0.9910781671 | BY62: 1 | BZ62: 0 | CA62: 3494.56 | CB62: 0.6728070851 | CC62: 1 | CD62: =_xlfn.XLOOKUP(A62,'[1]2_Asukastiheys'!$A:$A,'[1]2_Asukastiheys'!$H:$H,"-",0)/X62 -> 60.11205237 | CE62: 0.5 | CF62: 1 | CG62: 1 | CH62: 0 | CI62: 1 | CJ62: 6.5 | CK62: 2.166666667 | CL62: 39.35 | CM62: 13.11666667 | CN62: 1 | CO62: =VLOOKUP(A62,Taul1!$F$6:$G$953,2,FALSE) -> 2 | CP62: 34.85 | CQ62: 14.85 | CR62: 16 | CS62: 4 | CU62: https://www.google.com/maps/@63.33311445,25.60770951,3a,75y,90t/data=!3m3!1e1!3m1!2e0 | CZ62: =_xlfn.XLOOKUP(A62,[1]Maito!$A:$A,[1]Maito!$J:$J,"-",0) -> 1 | DA62: 1 | DB62: =_xlfn.XLOOKUP(A62,[1]Kaatopaikat_jäte!$A:$A,[1]Kaatopaikat_jäte!$F:$F,"-",0) -> 1 | DC62: =_xlfn.XLOOKUP(A62,'[1]Maa-aines'!$A:$A,'[1]Maa-aines'!$F:$F,"-",0) -> 0 | DD62: =_xlfn.XLOOKUP(A62,[1]Turve!$A:$A,[1]Turve!$F:$F,"-",0) -> 0 | DE62: =_xlfn.XLOOKUP(A62,[1]Vilja!$A:$A,[1]Vilja!$F:$F,"-",0) -> 2 | DF62: =_xlfn.XLOOKUP(A62,[1]Kasvihuoneet!$A:$A,[1]Kasvihuoneet!$F:$F,"-",0) -> 2 | DG62: =_xlfn.XLOOKUP(A62,[1]Eläintilat!$A:$A,[1]Eläintilat!$H:$H,"-",0) -> 0 | DH62: =_xlfn.XLOOKUP(A62,[1]Eläintilat!$A:$A,[1]Eläintilat!$J:$J,"-",0) -> 0 | DI62: =_xlfn.XLOOKUP(A62,[1]Eläintilat!$A:$A,[1]Eläintilat!$I:$I,"-",0) -> 0 | DJ62: =_xlfn.XLOOKUP(A62,[1]Eläintilat!$A:$A,[1]Eläintilat!$K:$K,"-",0) -> 0 | DK62: =_xlfn.XLOOKUP(A62,'[1]Elintarvike ja varasto'!$A:$A,'[1]Elintarvike ja varasto'!$F:$F,"-",0) -> 0 | DM62: =_xlfn.XLOOKUP(A62,[1]Koulut!$A:$A,[1]Koulut!$F:$F,"-",0) -> 3929.04 | DN62: =_xlfn.XLOOKUP(A62,'[1]Tuotanto ja teollisuus'!$A:$A,'[1]Tuotanto ja teollisuus'!$F:$F,"-",0) -> 0 | DP62: =_xlfn.XLOOKUP(A62,[1]Varareitit!$A:$A,[1]Varareitit!$F:$F,"-",0) -> 0 | DQ62: =_xlfn.XLOOKUP(A62,[1]Taajama!$A:$A,[1]Taajama!$F:$F,"-",0) -> 3494.56 | DR62: 1 | DS62: 0 | DT62: 1 | DU62: =_xlfn.XLOOKUP(A62,[1]Matkailukohteet!$A:$A,[1]Matkailukohteet!$F:$F,"-",0) -> 0 | DV62: =_xlfn.XLOOKUP(A62,[1]Matkailu!$A:$A,[1]Matkailu!$F:$F,"-",0) -> 0 | DW62: =_xlfn.XLOOKUP(A62,[1]Pyörämatkailu!$A:$A,[1]Pyörämatkailu!$F:$F,"-",0) -> 1 | DX62: 1 | DZ62: =_xlfn.XLOOKUP(A62,'[1]Verkollinen asema'!$A:$A,'[1]Verkollinen asema'!$D:$D,"-",0) -> 0 | EA62: =_xlfn.XLOOKUP(A62,[1]Kaupat!$A:$A,[1]Kaupat!$F:$F,"-",0) -> 2 | EF62: -- | EG62: -- | EH62: -- | EI62: -- | EJ62: -- | EL62: 10_14 | EM62: LOPUT | EN62: 44 | EO62: 1 | EQ62: 1762 | ER62: 1
A63: 69_9 | B63: 1 | D63: 27 | E63: 27 | F63: 0 | G63: 13.06666667 | H63: 4.4 | I63: 6.333333333 | J63: 2.333333333 | K63: 1 | L63: 0 | M63: Gmaps | N63: LOPUT | O63: Kanta | P63: Kauppatie, Suolahdentie | Q63: Konnevesi | S63: 69 | T63: 9 | U63: 0 | V63: 9 | W63: 6656 | X63: 6656 | Y63: 2300.079627 | Z63: 169.590595 | AA63: 3224 | AB63: 2287 (66 %), 2325 (34 %) | AC63: 100 (51 %), 40 (21 %), 50 (16 %), 60 (10 %), 80 (2 %) | AD63: Ib (100 %) | AE63: Asfalttibetoni (99 %) | AF63: PK2 (100 %) | AG63: 0 | AH63: 3 | AJ63: 86.39498197 | AR63: 9 | AS63: 8 | AV63: 1.2 | AW63: =_xlfn.XLOOKUP(A63,[1]Työmatkat!$A:$A,[1]Työmatkat!$F:$F,"-",0) -> 839 | AX63: 3 | AY63: 13.2 | AZ63: 4.4 | BA63: 8 | BB63: 1 | BC63: 3 | BD63: 0 | BE63: 0 | BF63: 1 | BG63: 0 | BH63: 0.5 | BI63: 0.5 | BJ63: 0 | BK63: 0 | BL63: 2 | BM63: 0 | BO63: 2 | BP63: 21.78724462 | BQ63: 1 | BR63: 19 | BS63: 6.333333333 | BT63: 6091.49 | BU63: 0.9151878005 | BV63: 1 | BW63: =_xlfn.XLOOKUP(A63,[1]Erikoiskuljetukset!$A:$A,[1]Erikoiskuljetukset!$F:$F,"-",0) -> 6593.33 | BX63: 0.9905844351 | BY63: 1 | BZ63: 1 | CA63: 3141.42 | CB63: 0.471968149 | CC63: 0 | CD63: =_xlfn.XLOOKUP(A63,'[1]2_Asukastiheys'!$A:$A,'[1]2_Asukastiheys'!$H:$H,"-",0)/X63 -> 151.3996394 | CE63: 1 | CF63: 1 | CG63: 1 | CH63: 0 | CI63: 1 | CJ63: 7 | CK63: 2.333333333 | CL63: 39.2 | CM63: 13.06666667 | CN63: 1 | CO63: =VLOOKUP(A63,Taul1!$F$6:$G$953,2,FALSE) -> 2 | CP63: 35.2 | CQ63: 13.2 | CR63: 17 | CS63: 5 | CU63: https://www.google.com/maps/@62.60115385,26.217067,3a,75y,90t/data=!3m3!1e1!3m1!2e0 | CZ63: =_xlfn.XLOOKUP(A63,[1]Maito!$A:$A,[1]Maito!$J:$J,"-",0) -> 1 | DA63: 1 | DB63: =_xlfn.XLOOKUP(A63,[1]Kaatopaikat_jäte!$A:$A,[1]Kaatopaikat_jäte!$F:$F,"-",0) -> 0 | DC63: =_xlfn.XLOOKUP(A63,'[1]Maa-aines'!$A:$A,'[1]Maa-aines'!$F:$F,"-",0) -> 0 | DD63: =_xlfn.XLOOKUP(A63,[1]Turve!$A:$A,[1]Turve!$F:$F,"-",0) -> 2 | DE63: =_xlfn.XLOOKUP(A63,[1]Vilja!$A:$A,[1]Vilja!$F:$F,"-",0) -> 7 | DF63: =_xlfn.XLOOKUP(A63,[1]Kasvihuoneet!$A:$A,[1]Kasvihuoneet!$F:$F,"-",0) -> 0 | DG63: =_xlfn.XLOOKUP(A63,[1]Eläintilat!$A:$A,[1]Eläintilat!$H:$H,"-",0) -> 217 | DH63: =_xlfn.XLOOKUP(A63,[1]Eläintilat!$A:$A,[1]Eläintilat!$J:$J,"-",0) -> 458 | DI63: =_xlfn.XLOOKUP(A63,[1]Eläintilat!$A:$A,[1]Eläintilat!$I:$I,"-",0) -> 0 | DJ63: =_xlfn.XLOOKUP(A63,[1]Eläintilat!$A:$A,[1]Eläintilat!$K:$K,"-",0) -> 0 | DK63: =_xlfn.XLOOKUP(A63,'[1]Elintarvike ja varasto'!$A:$A,'[1]Elintarvike ja varasto'!$F:$F,"-",0) -> 1 | DM63: =_xlfn.XLOOKUP(A63,[1]Koulut!$A:$A,[1]Koulut!$F:$F,"-",0) -> 6091.49 | DN63: =_xlfn.XLOOKUP(A63,'[1]Tuotanto ja teollisuus'!$A:$A,'[1]Tuotanto ja teollisuus'!$F:$F,"-",0) -> 0 | DP63: =_xlfn.XLOOKUP(A63,[1]Varareitit!$A:$A,[1]Varareitit!$F:$F,"-",0) -> 1 | DQ63: =_xlfn.XLOOKUP(A63,[1]Taajama!$A:$A,[1]Taajama!$F:$F,"-",0) -> 3141.42 | DR63: 1 | DS63: 0 | DT63: 1 | DU63: =_xlfn.XLOOKUP(A63,[1]Matkailukohteet!$A:$A,[1]Matkailukohteet!$F:$F,"-",0) -> 0 | DV63: =_xlfn.XLOOKUP(A63,[1]Matkailu!$A:$A,[1]Matkailu!$F:$F,"-",0) -> 0 | DW63: =_xlfn.XLOOKUP(A63,[1]Pyörämatkailu!$A:$A,[1]Pyörämatkailu!$F:$F,"-",0) -> 1 | DX63: 1 | DZ63: =_xlfn.XLOOKUP(A63,'[1]Verkollinen asema'!$A:$A,'[1]Verkollinen asema'!$D:$D,"-",0) -> 0 | EA63: =_xlfn.XLOOKUP(A63,[1]Kaupat!$A:$A,[1]Kaupat!$F:$F,"-",0) -> 1 | EF63: -- | EG63: -- | EH63: -- | EI63: -- | EJ63: -- | EL63: 120_3 | EM63: LOPUT | EN63: 292 | EO63: 2 | EQ63: 140 | ER63: 26
A64: 4_302 | B64: 1 | D64: 28 | E64: 28 | F64: 0 | G64: 13.05094455 | H64: 5 | I64: 6.217611216 | J64: 1.833333333 | K64: 1 | L64: 0 | M64: Gmaps | N64: LOPUT | O64: Valta | P64: Nelostie | Q64: Jyväskylä | S64: 4 | T64: 302 | U64: 0 | V64: 302 | W64: 6325 | X64: 6325 | Y64: 16861.37945 | Z64: 1184.458498 | AA64: 18512 | AB64: 16684 (66 %), 16977 (31 %), 19131 (4 %) | AC64: 100 (100 %) | AD64: Ise (100 %) | AE64: Asfalttibetoni (100 %) | AF64: PK1 (100 %) | AG64: 5 | AH64: 14 | AJ64: 644.2687747 | AR64: 9 | AS64: 129 | AV64: 3 | AW64: =_xlfn.XLOOKUP(A64,[1]Työmatkat!$A:$A,[1]Työmatkat!$F:$F,"-",0) -> 6375 | AX64: 3 | AY64: 15 | AZ64: 5 | BA64: 8 | BB64: 1 | BC64: 3 | BD64: 0 | BE64: 1 | BF64: 1 | BG64: 1 | BH64: 0.5 | BI64: 0 | BJ64: 0 | BK64: 0 | BL64: 0 | BM64: 0.8 | BO64: 2 | BP64: 3.528336478 | BQ64: 0.3528336478 | BR64: 18.65283365 | BS64: 6.217611216 | BT64: 4087.74 | BU64: 0.646283004 | BV64: 1 | BW64: =_xlfn.XLOOKUP(A64,[1]Erikoiskuljetukset!$A:$A,[1]Erikoiskuljetukset!$F:$F,"-",0) -> 6323.88 | BX64: 0.9998229249 | BY64: 1 | BZ64: 1 | CA64: 2242.01 | CB64: 0.3544679842 | CC64: 0 | CD64: =_xlfn.XLOOKUP(A64,'[1]2_Asukastiheys'!$A:$A,'[1]2_Asukastiheys'!$H:$H,"-",0)/X64 -> 85.80237154 | CE64: 0.5 | CF64: 1 | CG64: 0 | CH64: 0 | CI64: 1 | CJ64: 5.5 | CK64: 1.833333333 | CL64: 39.15283365 | CM64: 13.05094455 | CN64: 1 | CO64: =VLOOKUP(A64,Taul1!$F$6:$G$953,2,FALSE) -> 3 | CP64: 36.3 | CQ64: 15 | CR64: 16.3 | CS64: 5 | CU64: https://www.google.com/maps/@62.30050999,25.71479465,3a,75y,90t/data=!3m3!1e1!3m1!2e0 | CZ64: =_xlfn.XLOOKUP(A64,[1]Maito!$A:$A,[1]Maito!$J:$J,"-",0) -> 9 | DA64: 9 | DB64: =_xlfn.XLOOKUP(A64,[1]Kaatopaikat_jäte!$A:$A,[1]Kaatopaikat_jäte!$F:$F,"-",0) -> 0 | DC64: =_xlfn.XLOOKUP(A64,'[1]Maa-aines'!$A:$A,'[1]Maa-aines'!$F:$F,"-",0) -> 3 | DD64: =_xlfn.XLOOKUP(A64,[1]Turve!$A:$A,[1]Turve!$F:$F,"-",0) -> 0 | DE64: =_xlfn.XLOOKUP(A64,[1]Vilja!$A:$A,[1]Vilja!$F:$F,"-",0) -> 16 | DF64: =_xlfn.XLOOKUP(A64,[1]Kasvihuoneet!$A:$A,[1]Kasvihuoneet!$F:$F,"-",0) -> 6 | DG64: =_xlfn.XLOOKUP(A64,[1]Eläintilat!$A:$A,[1]Eläintilat!$H:$H,"-",0) -> 149 | DH64: =_xlfn.XLOOKUP(A64,[1]Eläintilat!$A:$A,[1]Eläintilat!$J:$J,"-",0) -> 0 | DI64: =_xlfn.XLOOKUP(A64,[1]Eläintilat!$A:$A,[1]Eläintilat!$I:$I,"-",0) -> 0 | DJ64: =_xlfn.XLOOKUP(A64,[1]Eläintilat!$A:$A,[1]Eläintilat!$K:$K,"-",0) -> 0 | DK64: =_xlfn.XLOOKUP(A64,'[1]Elintarvike ja varasto'!$A:$A,'[1]Elintarvike ja varasto'!$F:$F,"-",0) -> 0 | DM64: =_xlfn.XLOOKUP(A64,[1]Koulut!$A:$A,[1]Koulut!$F:$F,"-",0) -> 4087.74 | DN64: =_xlfn.XLOOKUP(A64,'[1]Tuotanto ja teollisuus'!$A:$A,'[1]Tuotanto ja teollisuus'!$F:$F,"-",0) -> 2 | DP64: =_xlfn.XLOOKUP(A64,[1]Varareitit!$A:$A,[1]Varareitit!$F:$F,"-",0) -> 4 | DQ64: =_xlfn.XLOOKUP(A64,[1]Taajama!$A:$A,[1]Taajama!$F:$F,"-",0) -> 2242.01 | DR64: 1 | DS64: 0 | DT64: 1 | DU64: =_xlfn.XLOOKUP(A64,[1]Matkailukohteet!$A:$A,[1]Matkailukohteet!$F:$F,"-",0) -> 0 | DV64: =_xlfn.XLOOKUP(A64,[1]Matkailu!$A:$A,[1]Matkailu!$F:$F,"-",0) -> 0 | DW64: =_xlfn.XLOOKUP(A64,[1]Pyörämatkailu!$A:$A,[1]Pyörämatkailu!$F:$F,"-",0) -> 0 | DX64: 0 | DZ64: =_xlfn.XLOOKUP(A64,'[1]Verkollinen asema'!$A:$A,'[1]Verkollinen asema'!$D:$D,"-",0) -> 0 | EA64: =_xlfn.XLOOKUP(A64,[1]Kaupat!$A:$A,[1]Kaupat!$F:$F,"-",0) -> 1 | EF64: -- | EG64: -- | EH64: -- | EI64: -- | EJ64: -- | EL64: 54_11 | EM64: LOPUT | EN64: 47 | EO64: 1 | EQ64: 11505 | ER64: 1
A65: 4_308 | B65: 1 | D65: 29 | E65: 29 | F65: 0 | G65: 13 | H65: 5 | I65: 6 | J65: 2 | K65: 1 | L65: 0 | M65: Gmaps | N65: LOPUT | O65: Valta | P65: Jyväskyläntie, Ouluntie | Q65: Äänekoski | S65: 4 | T65: 308 | U65: 0 | V65: 308 | W65: 4897 | X65: 4897 | Y65: 8279 | Z65: 1135 | AA65: 10288 | AB65: 8279 (100 %) | AC65: 100 (100 %) | AD65: Ise (100 %) | AE65: Asfalttibetoni (42 %), Kivimastiksiasfaltti (58 %) | AF65: PK1 (100 %) | AG65: 0 | AH65: 7 | AJ65: 793 | AR65: 9 | AS65: 82 | AV65: 3 | AW65: =_xlfn.XLOOKUP(A65,[1]Työmatkat!$A:$A,[1]Työmatkat!$F:$F,"-",0) -> 2125 | AX65: 3 | AY65: 15 | AZ65: 5 | BA65: 8 | BB65: 1 | BC65: 3 | BD65: 0 | BE65: 1 | BF65: 0 | BG65: 0 | BH65: 0 | BI65: 0 | BJ65: 0 | BK65: 0 | BL65: 2 | BM65: 0 | BO65: 2 | BP65: 28.94119858 | BQ65: 1 | BR65: 18 | BS65: 6 | BT65: 2755.18 | BU65: 0.5626260976 | BV65: 1 | BW65: =_xlfn.XLOOKUP(A65,[1]Erikoiskuljetukset!$A:$A,[1]Erikoiskuljetukset!$F:$F,"-",0) -> 4242.32 | BX65: 0.8663099857 | BY65: 1 | BZ65: 1 | CA65: 1643.82 | CB65: 0.3356789871 | CC65: 0 | CD65: =_xlfn.XLOOKUP(A65,'[1]2_Asukastiheys'!$A:$A,'[1]2_Asukastiheys'!$H:$H,"-",0)/X65 -> 100.490096 | CE65: 1 | CF65: 1 | CG65: 0 | CH65: 0 | CI65: 1 | CJ65: 6 | CK65: 2 | CL65: 39 | CM65: 13 | CN65: 1 | CO65: =VLOOKUP(A65,Taul1!$F$6:$G$953,2,FALSE) -> 1 | CP65: 35 | CQ65: 15 | CR65: 15 | CS65: 5 | CU65: https://www.google.com/maps/@62.56865828,25.67242403,3a,75y,90t/data=!3m3!1e1!3m1!2e0 | CZ65: =_xlfn.XLOOKUP(A65,[1]Maito!$A:$A,[1]Maito!$J:$J,"-",0) -> 1 | DA65: 1 | DB65: =_xlfn.XLOOKUP(A65,[1]Kaatopaikat_jäte!$A:$A,[1]Kaatopaikat_jäte!$F:$F,"-",0) -> 0 | DC65: =_xlfn.XLOOKUP(A65,'[1]Maa-aines'!$A:$A,'[1]Maa-aines'!$F:$F,"-",0) -> 2 | DD65: =_xlfn.XLOOKUP(A65,[1]Turve!$A:$A,[1]Turve!$F:$F,"-",0) -> 0 | DE65: =_xlfn.XLOOKUP(A65,[1]Vilja!$A:$A,[1]Vilja!$F:$F,"-",0) -> 0 | DF65: =_xlfn.XLOOKUP(A65,[1]Kasvihuoneet!$A:$A,[1]Kasvihuoneet!$F:$F,"-",0) -> 0 | DG65: =_xlfn.XLOOKUP(A65,[1]Eläintilat!$A:$A,[1]Eläintilat!$H:$H,"-",0) -> 0 | DH65: =_xlfn.XLOOKUP(A65,[1]Eläintilat!$A:$A,[1]Eläintilat!$J:$J,"-",0) -> 0 | DI65: =_xlfn.XLOOKUP(A65,[1]Eläintilat!$A:$A,[1]Eläintilat!$I:$I,"-",0) -> 0 | DJ65: =_xlfn.XLOOKUP(A65,[1]Eläintilat!$A:$A,[1]Eläintilat!$K:$K,"-",0) -> 0 | DK65: =_xlfn.XLOOKUP(A65,'[1]Elintarvike ja varasto'!$A:$A,'[1]Elintarvike ja varasto'!$F:$F,"-",0) -> 1 | DM65: =_xlfn.XLOOKUP(A65,[1]Koulut!$A:$A,[1]Koulut!$F:$F,"-",0) -> 2755.18 | DN65: =_xlfn.XLOOKUP(A65,'[1]Tuotanto ja teollisuus'!$A:$A,'[1]Tuotanto ja teollisuus'!$F:$F,"-",0) -> 0 | DP65: =_xlfn.XLOOKUP(A65,[1]Varareitit!$A:$A,[1]Varareitit!$F:$F,"-",0) -> 2 | DQ65: =_xlfn.XLOOKUP(A65,[1]Taajama!$A:$A,[1]Taajama!$F:$F,"-",0) -> 1643.82 | DR65: 1 | DS65: 0 | DT65: 1 | DU65: =_xlfn.XLOOKUP(A65,[1]Matkailukohteet!$A:$A,[1]Matkailukohteet!$F:$F,"-",0) -> 0 | DV65: =_xlfn.XLOOKUP(A65,[1]Matkailu!$A:$A,[1]Matkailu!$F:$F,"-",0) -> 0 | DW65: =_xlfn.XLOOKUP(A65,[1]Pyörämatkailu!$A:$A,[1]Pyörämatkailu!$F:$F,"-",0) -> 0 | DX65: 0 | DZ65: =_xlfn.XLOOKUP(A65,'[1]Verkollinen asema'!$A:$A,'[1]Verkollinen asema'!$D:$D,"-",0) -> 0 | EA65: =_xlfn.XLOOKUP(A65,[1]Kaupat!$A:$A,[1]Kaupat!$F:$F,"-",0) -> 7 | EF65: -- | EG65: -- | EH65: -- | EI65: -- | EJ65: -- | EL65: 51_14 | EM65: LOPUT | EN65: 27 | EO65: 1 | EQ65: 1701 | ER65: 1
A66: 6300_1 | B66: 1 | D66: 30 | E66: 30 | F66: 0 | G66: 12.89089331 | H66: 5 | I66: 5.890893311 | J66: 2 | K66: 1 | L66: 0 | M66: Gmaps | N66: LOPUT | O66: Yhdys | P66: Tikkakoskentie | Q66: Jyväskylä | S66: 6300 | T66: 1 | U66: 0 | V66: 1 | W66: 2789 | X66: 2789 | Y66: 5218 | Z66: 232 | AA66: 4984 | AB66: 5218 (100 %) | AC66: 50 (58 %), 60 (42 %) | AD66: Ic (71 %), Is (29 %) | AE66: ABtiivis (28 %), Asfalttibetoni (72 %) | AF66: PK2 (100 %) | AG66: 0 | AH66: 4 | AJ66: 63 | AR66: 9 | AS66: 444 | AV66: 3 | AW66: =_xlfn.XLOOKUP(A66,[1]Työmatkat!$A:$A,[1]Työmatkat!$F:$F,"-",0) -> 2317 | AX66: 3 | AY66: 15 | AZ66: 5 | BA66: 8 | BB66: 1 | BC66: 0 | BD66: 1 | BE66: 1 | BF66: 1 | BG66: 1 | BH66: 0.5 | BI66: 0.025 | BJ66: 0 | BK66: 0 | BL66: 0 | BM66: 2 | BO66: 2 | BP66: 1.476799336 | BQ66: 0.1476799336 | BR66: 17.67267993 | BS66: 5.890893311 | BT66: 1494.77 | BU66: 0.5359519541 | BV66: 1 | BW66: =_xlfn.XLOOKUP(A66,[1]Erikoiskuljetukset!$A:$A,[1]Erikoiskuljetukset!$F:$F,"-",0) -> 0 | BX66: 0 | BY66: 0 | BZ66: 1 | CA66: 2126.75 | CB66: 0.7625493008 | CC66: 1 | CD66: =_xlfn.XLOOKUP(A66,'[1]2_Asukastiheys'!$A:$A,'[1]2_Asukastiheys'!$H:$H,"-",0)/X66 -> 248.5381857 | CE66: 1 | CF66: 1 | CG66: 0 | CH66: 0 | CI66: 1 | CJ66: 6 | CK66: 2 | CL66: 38.67267993 | CM66: 12.89089331 | CN66: 1 | CO66: =VLOOKUP(A66,Taul1!$F$6:$G$953,2,FALSE) -> 1 | CP66: 34.525 | CQ66: 15 | CR66: 15.525 | CS66: 4 | CU66: https://www.google.com/maps/@62.38520627,25.70767971,3a,75y,90t/data=!3m3!1e1!3m1!2e0 | CZ66: =_xlfn.XLOOKUP(A66,[1]Maito!$A:$A,[1]Maito!$J:$J,"-",0) -> 0 | DA66: 0 | DB66: =_xlfn.XLOOKUP(A66,[1]Kaatopaikat_jäte!$A:$A,[1]Kaatopaikat_jäte!$F:$F,"-",0) -> 4 | DC66: =_xlfn.XLOOKUP(A66,'[1]Maa-aines'!$A:$A,'[1]Maa-aines'!$F:$F,"-",0) -> 9 | DD66: =_xlfn.XLOOKUP(A66,[1]Turve!$A:$A,[1]Turve!$F:$F,"-",0) -> 0 | DE66: =_xlfn.XLOOKUP(A66,[1]Vilja!$A:$A,[1]Vilja!$F:$F,"-",0) -> 6 | DF66: =_xlfn.XLOOKUP(A66,[1]Kasvihuoneet!$A:$A,[1]Kasvihuoneet!$F:$F,"-",0) -> 1 | DG66: =_xlfn.XLOOKUP(A66,[1]Eläintilat!$A:$A,[1]Eläintilat!$H:$H,"-",0) -> 183 | DH66: =_xlfn.XLOOKUP(A66,[1]Eläintilat!$A:$A,[1]Eläintilat!$J:$J,"-",0) -> 5 | DI66: =_xlfn.XLOOKUP(A66,[1]Eläintilat!$A:$A,[1]Eläintilat!$I:$I,"-",0) -> 0 | DJ66: =_xlfn.XLOOKUP(A66,[1]Eläintilat!$A:$A,[1]Eläintilat!$K:$K,"-",0) -> 0 | DK66: =_xlfn.XLOOKUP(A66,'[1]Elintarvike ja varasto'!$A:$A,'[1]Elintarvike ja varasto'!$F:$F,"-",0) -> 0 | DM66: =_xlfn.XLOOKUP(A66,[1]Koulut!$A:$A,[1]Koulut!$F:$F,"-",0) -> 1494.77 | DN66: =_xlfn.XLOOKUP(A66,'[1]Tuotanto ja teollisuus'!$A:$A,'[1]Tuotanto ja teollisuus'!$F:$F,"-",0) -> 6 | DP66: =_xlfn.XLOOKUP(A66,[1]Varareitit!$A:$A,[1]Varareitit!$F:$F,"-",0) -> 8 | DQ66: =_xlfn.XLOOKUP(A66,[1]Taajama!$A:$A,[1]Taajama!$F:$F,"-",0) -> 2126.75 | DR66: 1 | DS66: 0 | DT66: 1 | DU66: =_xlfn.XLOOKUP(A66,[1]Matkailukohteet!$A:$A,[1]Matkailukohteet!$F:$F,"-",0) -> 0 | DV66: =_xlfn.XLOOKUP(A66,[1]Matkailu!$A:$A,[1]Matkailu!$F:$F,"-",0) -> 0 | DW66: =_xlfn.XLOOKUP(A66,[1]Pyörämatkailu!$A:$A,[1]Pyörämatkailu!$F:$F,"-",0) -> 0 | DX66: 0 | DZ66: =_xlfn.XLOOKUP(A66,'[1]Verkollinen asema'!$A:$A,'[1]Verkollinen asema'!$D:$D,"-",0) -> 0 | EA66: =_xlfn.XLOOKUP(A66,[1]Kaupat!$A:$A,[1]Kaupat!$F:$F,"-",0) -> 4 | EF66: -- | EG66: -- | EH66: -- | EI66: -- | EJ66: -- | EL66: 120_2 | EM66: LOPUT | EN66: 370 | EO66: 2 | EQ66: 11246 | ER66: 1
A67: 9_229 | B67: 1 | D67: 31 | E67: 31 | F67: 0 | G67: 12.80666667 | H67: 5 | I67: 6.14 | J67: 1.666666667 | K67: 1 | L67: 0 | M67: Gmaps | N67: LOPUT | O67: Valta | P67: Ysitie | Q67: Jyväskylä | S67: 9 | T67: 229 | U67: 0 | V67: 229 | W67: 6520 | X67: 6520 | Y67: 8748 | Z67: 775 | AA67: 10922 | AB67: 8748 (100 %) | AC67: 100 (30 %), 60 (10 %), 80 (60 %) | AD67: Is (100 %) | AE67: Kivimastiksiasfaltti (100 %) | AF67: PK1 (100 %) | AG67: 5 | AH67: 13 | AJ67: 476 | AR67: 9 | AS67: 105 | AV67: 3 | AW67: =_xlfn.XLOOKUP(A67,[1]Työmatkat!$A:$A,[1]Työmatkat!$F:$F,"-",0) -> 2848 | AX67: 3 | AY67: 15 | AZ67: 5 | BA67: 8 | BB67: 1 | BC67: 3 | BD67: 1 | BE67: 1 | BF67: 1 | BG67: 0 | BH67: 0 | BI67: 0.02 | BJ67: 0 | BK67: 0 | BL67: 0 | BM67: 0.4 | BO67: 2 | BP67: 60.46527157 | BQ67: 1 | BR67: 18.42 | BS67: 6.14 | BT67: 3559.27 | BU67: 0.5459003067 | BV67: 1 | BW67: =_xlfn.XLOOKUP(A67,[1]Erikoiskuljetukset!$A:$A,[1]Erikoiskuljetukset!$F:$F,"-",0) -> 6427.68 | BX67: 0.9858404908 | BY67: 1 | BZ67: 0 | CA67: 2099.03 | CB67: 0.3219371166 | CC67: 0 | CD67: =_xlfn.XLOOKUP(A67,'[1]2_Asukastiheys'!$A:$A,'[1]2_Asukastiheys'!$H:$H,"-",0)/X67 -> 141.2269939 | CE67: 1 | CF67: 1 | CG67: 0 | CH67: 0 | CI67: 1 | CJ67: 5 | CK67: 1.666666667 | CL67: 38.42 | CM67: 12.80666667 | CN67: 1 | CO67: =VLOOKUP(A67,Taul1!$F$6:$G$953,2,FALSE) -> 1 | CP67: 34.42 | CQ67: 15 | CR67: 15.42 | CS67: 4 | CU67: https://www.google.com/maps/@61.9927404,25.46900352,3a,75y,90t/data=!3m3!1e1!3m1!2e0 | CZ67: =_xlfn.XLOOKUP(A67,[1]Maito!$A:$A,[1]Maito!$J:$J,"-",0) -> 5 | DA67: 5 | DB67: =_xlfn.XLOOKUP(A67,[1]Kaatopaikat_jäte!$A:$A,[1]Kaatopaikat_jäte!$F:$F,"-",0) -> 1 | DC67: =_xlfn.XLOOKUP(A67,'[1]Maa-aines'!$A:$A,'[1]Maa-aines'!$F:$F,"-",0) -> 1 | DD67: =_xlfn.XLOOKUP(A67,[1]Turve!$A:$A,[1]Turve!$F:$F,"-",0) -> 0 | DE67: =_xlfn.XLOOKUP(A67,[1]Vilja!$A:$A,[1]Vilja!$F:$F,"-",0) -> 1 | DF67: =_xlfn.XLOOKUP(A67,[1]Kasvihuoneet!$A:$A,[1]Kasvihuoneet!$F:$F,"-",0) -> 0 | DG67: =_xlfn.XLOOKUP(A67,[1]Eläintilat!$A:$A,[1]Eläintilat!$H:$H,"-",0) -> 0 | DH67: =_xlfn.XLOOKUP(A67,[1]Eläintilat!$A:$A,[1]Eläintilat!$J:$J,"-",0) -> 4 | DI67: =_xlfn.XLOOKUP(A67,[1]Eläintilat!$A:$A,[1]Eläintilat!$I:$I,"-",0) -> 0 | DJ67: =_xlfn.XLOOKUP(A67,[1]Eläintilat!$A:$A,[1]Eläintilat!$K:$K,"-",0) -> 0 | DK67: =_xlfn.XLOOKUP(A67,'[1]Elintarvike ja varasto'!$A:$A,'[1]Elintarvike ja varasto'!$F:$F,"-",0) -> 0 | DM67: =_xlfn.XLOOKUP(A67,[1]Koulut!$A:$A,[1]Koulut!$F:$F,"-",0) -> 3559.27 | DN67: =_xlfn.XLOOKUP(A67,'[1]Tuotanto ja teollisuus'!$A:$A,'[1]Tuotanto ja teollisuus'!$F:$F,"-",0) -> 1 | DP67: =_xlfn.XLOOKUP(A67,[1]Varareitit!$A:$A,[1]Varareitit!$F:$F,"-",0) -> 0 | DQ67: =_xlfn.XLOOKUP(A67,[1]Taajama!$A:$A,[1]Taajama!$F:$F,"-",0) -> 2099.03 | DR67: 1 | DS67: 0 | DT67: 1 | DU67: =_xlfn.XLOOKUP(A67,[1]Matkailukohteet!$A:$A,[1]Matkailukohteet!$F:$F,"-",0) -> 0 | DV67: =_xlfn.XLOOKUP(A67,[1]Matkailu!$A:$A,[1]Matkailu!$F:$F,"-",0) -> 0 | DW67: =_xlfn.XLOOKUP(A67,[1]Pyörämatkailu!$A:$A,[1]Pyörämatkailu!$F:$F,"-",0) -> 0 | DX67: 0 | DZ67: =_xlfn.XLOOKUP(A67,'[1]Verkollinen asema'!$A:$A,'[1]Verkollinen asema'!$D:$D,"-",0) -> 0 | EA67: =_xlfn.XLOOKUP(A67,[1]Kaupat!$A:$A,[1]Kaupat!$F:$F,"-",0) -> 2 | EF67: -- | EG67: -- | EH67: -- | EI67: -- | EJ67: -- | EL67: 25_23 | EM67: LOPUT | EN67: 84 | EO67: 1 | EQ67: 14027 | ER67: 1
A68: 4_220 | B68: 1 | D68: 32 | E68: 32 | F68: 0 | G68: 12.77333333 | H68: 5 | I68: 6.106666667 | J68: 1.666666667 | K68: 1 | L68: 0 | M68: Gmaps | N68: LOPUT | O68: Valta | P68: Valtatie | Q68: Joutsa | S68: 4 | T68: 220 | U68: 0 | V68: 220 | W68: 4539 | X68: 4539 | Y68: 6524.325843 | Z68: 1007.655431 | AA68: 9001 | AB68: 6485 (63 %), 6590 (37 %) | AC68: 100 (43 %), 80 (57 %) | AD68: Ise (100 %) | AE68: Kivimastiksiasfaltti (100 %) | AF68: PK1 (100 %) | AG68: 1 | AH68: 4 | AJ68: 710.1198502 | AR68: 9 | AS68: 55 | AV68: 3 | AW68: =_xlfn.XLOOKUP(A68,[1]Työmatkat!$A:$A,[1]Työmatkat!$F:$F,"-",0) -> 774 | AX68: 3 | AY68: 15 | AZ68: 5 | BA68: 8 | BB68: 1 | BC68: 3 | BD68: 1 | BE68: 0 | BF68: 1 | BG68: 0 | BH68: 0.12 | BI68: 0 | BJ68: 0 | BK68: 0 | BL68: 0 | BM68: 1.2 | BO68: 2 | BP68: 14.51013937 | BQ68: 1 | BR68: 18.32 | BS68: 6.106666667 | BT68: 2481.8 | BU68: 0.5467724168 | BV68: 1 | BW68: =_xlfn.XLOOKUP(A68,[1]Erikoiskuljetukset!$A:$A,[1]Erikoiskuljetukset!$F:$F,"-",0) -> 4544.47 | BX68: 1.001205111 | BY68: 1 | BZ68: 0 | CA68: 1143.81 | CB68: 0.2519960344 | CC68: 0 | CD68: =_xlfn.XLOOKUP(A68,'[1]2_Asukastiheys'!$A:$A,'[1]2_Asukastiheys'!$H:$H,"-",0)/X68 -> 123.8667107 | CE68: 1 | CF68: 1 | CG68: 0 | CH68: 0 | CI68: 1 | CJ68: 5 | CK68: 1.666666667 | CL68: 38.32 | CM68: 12.77333333 | CN68: 1 | CO68: =VLOOKUP(A68,Taul1!$F$6:$G$953,2,FALSE) -> 2 | CP68: 35.32 | CQ68: 15 | CR68: 16.32 | CS68: 4 | CU68: https://www.google.com/maps/@61.71321812,26.06635317,3a,75y,90t/data=!3m3!1e1!3m1!2e0 | CZ68: =_xlfn.XLOOKUP(A68,[1]Maito!$A:$A,[1]Maito!$J:$J,"-",0) -> 3 | DA68: 3 | DB68: =_xlfn.XLOOKUP(A68,[1]Kaatopaikat_jäte!$A:$A,[1]Kaatopaikat_jäte!$F:$F,"-",0) -> 2 | DC68: =_xlfn.XLOOKUP(A68,'[1]Maa-aines'!$A:$A,'[1]Maa-aines'!$F:$F,"-",0) -> 0 | DD68: =_xlfn.XLOOKUP(A68,[1]Turve!$A:$A,[1]Turve!$F:$F,"-",0) -> 0 | DE68: =_xlfn.XLOOKUP(A68,[1]Vilja!$A:$A,[1]Vilja!$F:$F,"-",0) -> 4 | DF68: =_xlfn.XLOOKUP(A68,[1]Kasvihuoneet!$A:$A,[1]Kasvihuoneet!$F:$F,"-",0) -> 0 | DG68: =_xlfn.XLOOKUP(A68,[1]Eläintilat!$A:$A,[1]Eläintilat!$H:$H,"-",0) -> 24 | DH68: =_xlfn.XLOOKUP(A68,[1]Eläintilat!$A:$A,[1]Eläintilat!$J:$J,"-",0) -> 0 | DI68: =_xlfn.XLOOKUP(A68,[1]Eläintilat!$A:$A,[1]Eläintilat!$I:$I,"-",0) -> 0 | DJ68: =_xlfn.XLOOKUP(A68,[1]Eläintilat!$A:$A,[1]Eläintilat!$K:$K,"-",0) -> 0 | DK68: =_xlfn.XLOOKUP(A68,'[1]Elintarvike ja varasto'!$A:$A,'[1]Elintarvike ja varasto'!$F:$F,"-",0) -> 0 | DM68: =_xlfn.XLOOKUP(A68,[1]Koulut!$A:$A,[1]Koulut!$F:$F,"-",0) -> 2481.8 | DN68: =_xlfn.XLOOKUP(A68,'[1]Tuotanto ja teollisuus'!$A:$A,'[1]Tuotanto ja teollisuus'!$F:$F,"-",0) -> 3 | DP68: =_xlfn.XLOOKUP(A68,[1]Varareitit!$A:$A,[1]Varareitit!$F:$F,"-",0) -> 0 | DQ68: =_xlfn.XLOOKUP(A68,[1]Taajama!$A:$A,[1]Taajama!$F:$F,"-",0) -> 1143.81 | DR68: 1 | DS68: 0 | DT68: 1 | DU68: =_xlfn.XLOOKUP(A68,[1]Matkailukohteet!$A:$A,[1]Matkailukohteet!$F:$F,"-",0) -> 0 | DV68: =_xlfn.XLOOKUP(A68,[1]Matkailu!$A:$A,[1]Matkailu!$F:$F,"-",0) -> 0 | DW68: =_xlfn.XLOOKUP(A68,[1]Pyörämatkailu!$A:$A,[1]Pyörämatkailu!$F:$F,"-",0) -> 0 | DX68: 0 | DZ68: =_xlfn.XLOOKUP(A68,'[1]Verkollinen asema'!$A:$A,'[1]Verkollinen asema'!$D:$D,"-",0) -> 0 | EA68: =_xlfn.XLOOKUP(A68,[1]Kaupat!$A:$A,[1]Kaupat!$F:$F,"-",0) -> 2 | EF68: -- | EG68: -- | EH68: -- | EI68: -- | EJ68: -- | EL68: 10_15 | EM68: LOPUT | EN68: 2 | EO68: 1 | EQ68: 13568 | ER68: 1
A69: 4_232 | B69: 1 | D69: 33 | E69: 33 | F69: 0 | G69: 12.66666667 | H69: 5 | I69: 5.333333333 | J69: 2.333333333 | K69: 1 | L69: 0 | M69: Gmaps | N69: LOPUT | O69: Valta | P69: Vaajakoskentie | Q69: Jyväskylä | S69: 4 | T69: 232 | U69: 0 | V69: 232 | W69: 2452 | X69: 2452 | Y69: 18863.35155 | Z69: 1673.52814 | AA69: 22464 | AB69: 18471 (88 %), 21777 (12 %) | AC69: 50 (72 %), 60 (29 %) | AD69: Ise (100 %) | AE69: Kivimastiksiasfaltti (100 %) | AF69: PK1 (100 %) | AG69: 0 | AH69: 3 | AJ69: 1124.595432 | AR69: 9 | AS69: 598 | AV69: 3 | AW69: =_xlfn.XLOOKUP(A69,[1]Työmatkat!$A:$A,[1]Työmatkat!$F:$F,"-",0) -> 5721 | AX69: 3 | AY69: 15 | AZ69: 5 | BA69: 8 | BB69: 1 | BC69: 3 | BD69: 0 | BE69: 0 | BF69: 1 | BG69: 0 | BH69: 0 | BI69: 0 | BJ69: 0 | BK69: 0 | BL69: 0 | BM69: 2 | BO69: 0 | BP69: 12.75824487 | BQ69: 1 | BR69: 16 | BS69: 5.333333333 | BT69: 2467.72 | BU69: 1.006411093 | BV69: 1 | BW69: =_xlfn.XLOOKUP(A69,[1]Erikoiskuljetukset!$A:$A,[1]Erikoiskuljetukset!$F:$F,"-",0) -> 2467.72 | BX69: 1.006411093 | BY69: 1 | BZ69: 0 | CA69: 2073.96 | CB69: 0.8458238173 | CC69: 1 | CD69: =_xlfn.XLOOKUP(A69,'[1]2_Asukastiheys'!$A:$A,'[1]2_Asukastiheys'!$H:$H,"-",0)/X69 -> 198.2022838 | CE69: 1 | CF69: 1 | CG69: 1 | CH69: 0 | CI69: 1 | CJ69: 7 | CK69: 2.333333333 | CL69: 38 | CM69: 12.66666667 | CN69: 1 | CO69: =VLOOKUP(A69,Taul1!$F$6:$G$953,2,FALSE) -> 2 | CP69: 33 | CQ69: 15 | CR69: 14 | CS69: 4 | CU69: https://www.google.com/maps/@62.23028598,25.90051283,3a,75y,90t/data=!3m3!1e1!3m1!2e0 | CZ69: =_xlfn.XLOOKUP(A69,[1]Maito!$A:$A,[1]Maito!$J:$J,"-",0) -> 8 | DA69: 8 | DB69: =_xlfn.XLOOKUP(A69,[1]Kaatopaikat_jäte!$A:$A,[1]Kaatopaikat_jäte!$F:$F,"-",0) -> 0 | DC69: =_xlfn.XLOOKUP(A69,'[1]Maa-aines'!$A:$A,'[1]Maa-aines'!$F:$F,"-",0) -> 0 | DD69: =_xlfn.XLOOKUP(A69,[1]Turve!$A:$A,[1]Turve!$F:$F,"-",0) -> 0 | DE69: =_xlfn.XLOOKUP(A69,[1]Vilja!$A:$A,[1]Vilja!$F:$F,"-",0) -> 1 | DF69: =_xlfn.XLOOKUP(A69,[1]Kasvihuoneet!$A:$A,[1]Kasvihuoneet!$F:$F,"-",0) -> 0 | DG69: =_xlfn.XLOOKUP(A69,[1]Eläintilat!$A:$A,[1]Eläintilat!$H:$H,"-",0) -> 0 | DH69: =_xlfn.XLOOKUP(A69,[1]Eläintilat!$A:$A,[1]Eläintilat!$J:$J,"-",0) -> 0 | DI69: =_xlfn.XLOOKUP(A69,[1]Eläintilat!$A:$A,[1]Eläintilat!$I:$I,"-",0) -> 0 | DJ69: =_xlfn.XLOOKUP(A69,[1]Eläintilat!$A:$A,[1]Eläintilat!$K:$K,"-",0) -> 0 | DK69: =_xlfn.XLOOKUP(A69,'[1]Elintarvike ja varasto'!$A:$A,'[1]Elintarvike ja varasto'!$F:$F,"-",0) -> 0 | DM69: =_xlfn.XLOOKUP(A69,[1]Koulut!$A:$A,[1]Koulut!$F:$F,"-",0) -> 2467.72 | DN69: =_xlfn.XLOOKUP(A69,'[1]Tuotanto ja teollisuus'!$A:$A,'[1]Tuotanto ja teollisuus'!$F:$F,"-",0) -> 12 | DP69: =_xlfn.XLOOKUP(A69,[1]Varareitit!$A:$A,[1]Varareitit!$F:$F,"-",0) -> 0 | DQ69: =_xlfn.XLOOKUP(A69,[1]Taajama!$A:$A,[1]Taajama!$F:$F,"-",0) -> 2073.96 | DR69: 1 | DS69: 0 | DT69: 1 | DU69: =_xlfn.XLOOKUP(A69,[1]Matkailukohteet!$A:$A,[1]Matkailukohteet!$F:$F,"-",0) -> 0 | DV69: =_xlfn.XLOOKUP(A69,[1]Matkailu!$A:$A,[1]Matkailu!$F:$F,"-",0) -> 0 | DW69: =_xlfn.XLOOKUP(A69,[1]Pyörämatkailu!$A:$A,[1]Pyörämatkailu!$F:$F,"-",0) -> 2 | DX69: 2 | DZ69: =_xlfn.XLOOKUP(A69,'[1]Verkollinen asema'!$A:$A,'[1]Verkollinen asema'!$D:$D,"-",0) -> 0 | EA69: =_xlfn.XLOOKUP(A69,[1]Kaupat!$A:$A,[1]Kaupat!$F:$F,"-",0) -> 0 | EF69: -- | EG69: -- | EH69: -- | EI69: -- | EJ69: -- | EL69: 111_2 | EM69: LOPUT | EN69: 13 | EO69: 1 | EQ69: 290 | ER69: 7
A70: 23_216 | B70: 1 | D70: 34 | E70: 34 | F70: 0 | G70: 12.64 | H70: 4 | I70: 6.473333333 | J70: 2.166666667 | K70: 1 | L70: 0 | M70: Gmaps | N70: LOPUT | O70: Valta | P70: Haapamäentie, Virtaintie | Q70: Keuruu | S70: 23 | T70: 216 | U70: 0 | V70: 216 | W70: 4279 | X70: 4279 | Y70: 1752.685207 | Z70: 159.6947885 | AA70: 2206 | AB70: 1164 (36 %), 2078 (64 %) | AC70: 80 (100 %) | AD70: Ib (100 %) | AE70: Asfalttibetoni (99 %) | AF70: PK1 (100 %) | AG70: 0 | AH70: 1 | AJ70: 87.35592428 | AR70: 9 | AS70: 0 | AV70: 0 | AW70: =_xlfn.XLOOKUP(A70,[1]Työmatkat!$A:$A,[1]Työmatkat!$F:$F,"-",0) -> 502 | AX70: 3 | AY70: 12 | AZ70: 4 | BA70: 8 | BB70: 1 | BC70: 3 | BD70: 0 | BE70: 0 | BF70: 1 | BG70: 0 | BH70: 0.5 | BI70: 0.12 | BJ70: 0 | BK70: 0 | BL70: 2 | BM70: 0.8 | BO70: 2 | BP70: 12.73067945 | BQ70: 1 | BR70: 19.42 | BS70: 6.473333333 | BT70: 3687.62 | BU70: 0.8617948119 | BV70: 1 | BW70: =_xlfn.XLOOKUP(A70,[1]Erikoiskuljetukset!$A:$A,[1]Erikoiskuljetukset!$F:$F,"-",0) -> 4217.42 | BX70: 0.9856087871 | BY70: 1 | BZ70: 1 | CA70: 2190.64 | CB70: 0.5119513905 | CC70: 1 | CD70: =_xlfn.XLOOKUP(A70,'[1]2_Asukastiheys'!$A:$A,'[1]2_Asukastiheys'!$H:$H,"-",0)/X70 -> 90.83898107 | CE70: 0.5 | CF70: 1 | CG70: 0 | CH70: 0 | CI70: 1 | CJ70: 6.5 | CK70: 2.166666667 | CL70: 37.92 | CM70: 12.64 | CN70: 1 | CO70: =VLOOKUP(A70,Taul1!$F$6:$G$953,2,FALSE) -> 2 | CP70: 34.42 | CQ70: 12 | CR70: 17.42 | CS70: 5 | CU70: https://www.google.com/maps/@62.25836345,24.42746542,3a,75y,90t/data=!3m3!1e1!3m1!2e0 | CZ70: =_xlfn.XLOOKUP(A70,[1]Maito!$A:$A,[1]Maito!$J:$J,"-",0) -> 2 | DA70: 2 | DB70: =_xlfn.XLOOKUP(A70,[1]Kaatopaikat_jäte!$A:$A,[1]Kaatopaikat_jäte!$F:$F,"-",0) -> 0 | DC70: =_xlfn.XLOOKUP(A70,'[1]Maa-aines'!$A:$A,'[1]Maa-aines'!$F:$F,"-",0) -> 0 | DD70: =_xlfn.XLOOKUP(A70,[1]Turve!$A:$A,[1]Turve!$F:$F,"-",0) -> 0 | DE70: =_xlfn.XLOOKUP(A70,[1]Vilja!$A:$A,[1]Vilja!$F:$F,"-",0) -> 25 | DF70: =_xlfn.XLOOKUP(A70,[1]Kasvihuoneet!$A:$A,[1]Kasvihuoneet!$F:$F,"-",0) -> 0 | DG70: =_xlfn.XLOOKUP(A70,[1]Eläintilat!$A:$A,[1]Eläintilat!$H:$H,"-",0) -> 102 | DH70: =_xlfn.XLOOKUP(A70,[1]Eläintilat!$A:$A,[1]Eläintilat!$J:$J,"-",0) -> 24 | DI70: =_xlfn.XLOOKUP(A70,[1]Eläintilat!$A:$A,[1]Eläintilat!$I:$I,"-",0) -> 0 | DJ70: =_xlfn.XLOOKUP(A70,[1]Eläintilat!$A:$A,[1]Eläintilat!$K:$K,"-",0) -> 0 | DK70: =_xlfn.XLOOKUP(A70,'[1]Elintarvike ja varasto'!$A:$A,'[1]Elintarvike ja varasto'!$F:$F,"-",0) -> 1 | DM70: =_xlfn.XLOOKUP(A70,[1]Koulut!$A:$A,[1]Koulut!$F:$F,"-",0) -> 3687.62 | DN70: =_xlfn.XLOOKUP(A70,'[1]Tuotanto ja teollisuus'!$A:$A,'[1]Tuotanto ja teollisuus'!$F:$F,"-",0) -> 2 | DP70: =_xlfn.XLOOKUP(A70,[1]Varareitit!$A:$A,[1]Varareitit!$F:$F,"-",0) -> 3 | DQ70: =_xlfn.XLOOKUP(A70,[1]Taajama!$A:$A,[1]Taajama!$F:$F,"-",0) -> 2190.64 | DR70: 1 | DS70: 0 | DT70: 1 | DU70: =_xlfn.XLOOKUP(A70,[1]Matkailukohteet!$A:$A,[1]Matkailukohteet!$F:$F,"-",0) -> 0 | DV70: =_xlfn.XLOOKUP(A70,[1]Matkailu!$A:$A,[1]Matkailu!$F:$F,"-",0) -> 0 | DW70: =_xlfn.XLOOKUP(A70,[1]Pyörämatkailu!$A:$A,[1]Pyörämatkailu!$F:$F,"-",0) -> 0 | DX70: 0 | DZ70: =_xlfn.XLOOKUP(A70,'[1]Verkollinen asema'!$A:$A,'[1]Verkollinen asema'!$D:$D,"-",0) -> 0 | EA70: =_xlfn.XLOOKUP(A70,[1]Kaupat!$A:$A,[1]Kaupat!$F:$F,"-",0) -> 1 | EF70: -- | EG70: -- | EH70: -- | EI70: -- | EJ70: -- | EL70: 140_13 | EM70: LOPUT | EN70: 62 | EO70: 1 | EQ70: 14024 | ER70: 2
A71: 637_2 | B71: 1 | D71: 35 | E71: 35 | F71: 0 | G71: 12.62097189 | H71: 5 | I71: 5.120971891 | J71: 2.5 | K71: 1 | L71: 0 | M71: Gmaps | N71: LOPUT | O71: Seutu | P71: Jyväskyläntie, Laukaantie | Q71: Jyväskylä, Laukaa | S71: 637 | T71: 2 | U71: 0 | V71: 2 | W71: 5043 | X71: 5043 | Y71: 10329 | Z71: 645 | AA71: 11137 | AB71: 10329 (100 %) | AC71: 50 (3 %), 60 (4 %), 80 (93 %) | AD71: Is (100 %) | AE71: Asfalttibetoni (1 %), Kivimastiksiasfaltti (91 %) | AF71: PK2 (100 %) | AG71: 5 | AH71: 12 | AJ71: 244 | AR71: 9 | AS71: 234 | AV71: 3 | AW71: =_xlfn.XLOOKUP(A71,[1]Työmatkat!$A:$A,[1]Työmatkat!$F:$F,"-",0) -> 4057 | AX71: 3 | AY71: 15 | AZ71: 5 | BA71: 8 | BB71: 1 | BC71: 0 | BD71: 1 | BE71: 0 | BF71: 1 | BG71: 0 | BH71: 0 | BI71: 0.085 | BJ71: 0 | BK71: 0 | BL71: 2 | BM71: 0 | BO71: 2 | BP71: 2.779156722 | BQ71: 0.2779156722 | BR71: 15.36291567 | BS71: 5.120971891 | BT71: 2380.29 | BU71: 0.4719988102 | BV71: 0.5 | BW71: =_xlfn.XLOOKUP(A71,[1]Erikoiskuljetukset!$A:$A,[1]Erikoiskuljetukset!$F:$F,"-",0) -> 1885.64 | BX71: 0.3739123538 | BY71: 1 | BZ71: 1 | CA71: 3854.84 | CB71: 0.7643942098 | CC71: 1 | CD71: =_xlfn.XLOOKUP(A71,'[1]2_Asukastiheys'!$A:$A,'[1]2_Asukastiheys'!$H:$H,"-",0)/X71 -> 142.22209 | CE71: 1 | CF71: 1 | CG71: 1 | CH71: 0 | CI71: 1 | CJ71: 7.5 | CK71: 2.5 | CL71: 37.86291567 | CM71: 12.62097189 | CN71: 1 | CO71: =VLOOKUP(A71,Taul1!$F$6:$G$953,2,FALSE) -> 1 | CP71: 33.585 | CQ71: 15 | CR71: 14.085 | CS71: 4.5 | CU71: https://www.google.com/maps/@62.29331499,25.81329752,3a,75y,90t/data=!3m3!1e1!3m1!2e0 | CZ71: =_xlfn.XLOOKUP(A71,[1]Maito!$A:$A,[1]Maito!$J:$J,"-",0) -> 0 | DA71: 0 | DB71: =_xlfn.XLOOKUP(A71,[1]Kaatopaikat_jäte!$A:$A,[1]Kaatopaikat_jäte!$F:$F,"-",0) -> 3 | DC71: =_xlfn.XLOOKUP(A71,'[1]Maa-aines'!$A:$A,'[1]Maa-aines'!$F:$F,"-",0) -> 0 | DD71: =_xlfn.XLOOKUP(A71,[1]Turve!$A:$A,[1]Turve!$F:$F,"-",0) -> 0 | DE71: =_xlfn.XLOOKUP(A71,[1]Vilja!$A:$A,[1]Vilja!$F:$F,"-",0) -> 1 | DF71: =_xlfn.XLOOKUP(A71,[1]Kasvihuoneet!$A:$A,[1]Kasvihuoneet!$F:$F,"-",0) -> 0 | DG71: =_xlfn.XLOOKUP(A71,[1]Eläintilat!$A:$A,[1]Eläintilat!$H:$H,"-",0) -> 0 | DH71: =_xlfn.XLOOKUP(A71,[1]Eläintilat!$A:$A,[1]Eläintilat!$J:$J,"-",0) -> 17 | DI71: =_xlfn.XLOOKUP(A71,[1]Eläintilat!$A:$A,[1]Eläintilat!$I:$I,"-",0) -> 0 | DJ71: =_xlfn.XLOOKUP(A71,[1]Eläintilat!$A:$A,[1]Eläintilat!$K:$K,"-",0) -> 0 | DK71: =_xlfn.XLOOKUP(A71,'[1]Elintarvike ja varasto'!$A:$A,'[1]Elintarvike ja varasto'!$F:$F,"-",0) -> 1 | DM71: =_xlfn.XLOOKUP(A71,[1]Koulut!$A:$A,[1]Koulut!$F:$F,"-",0) -> 2380.29 | DN71: =_xlfn.XLOOKUP(A71,'[1]Tuotanto ja teollisuus'!$A:$A,'[1]Tuotanto ja teollisuus'!$F:$F,"-",0) -> 0 | DP71: =_xlfn.XLOOKUP(A71,[1]Varareitit!$A:$A,[1]Varareitit!$F:$F,"-",0) -> 18 | DQ71: =_xlfn.XLOOKUP(A71,[1]Taajama!$A:$A,[1]Taajama!$F:$F,"-",0) -> 3854.84 | DR71: 1 | DS71: 0 | DT71: 1 | DU71: =_xlfn.XLOOKUP(A71,[1]Matkailukohteet!$A:$A,[1]Matkailukohteet!$F:$F,"-",0) -> 0 | DV71: =_xlfn.XLOOKUP(A71,[1]Matkailu!$A:$A,[1]Matkailu!$F:$F,"-",0) -> 0 | DW71: =_xlfn.XLOOKUP(A71,[1]Pyörämatkailu!$A:$A,[1]Pyörämatkailu!$F:$F,"-",0) -> 1 | DX71: 1 | DZ71: =_xlfn.XLOOKUP(A71,'[1]Verkollinen asema'!$A:$A,'[1]Verkollinen asema'!$D:$D,"-",0) -> 0 | EA71: =_xlfn.XLOOKUP(A71,[1]Kaupat!$A:$A,[1]Kaupat!$F:$F,"-",0) -> 1 | EF71: -- | EG71: -- | EH71: -- | EI71: -- | EJ71: -- | EL71: 140_16 | EM71: LOPUT | EN71: 138 | EO71: 2 | EQ71: 1580 | ER71: 4
A72: 69_1 | B72: 1 | D72: 36 | E72: 36 | F72: 0 | G72: 12.61666667 | H72: 5 | I72: 5.783333333 | J72: 1.833333333 | K72: 1 | L72: 0 | M72: Gmaps | N72: LOPUT | O72: Kanta | P72: Suonenjoentie | Q72: Äänekoski | S72: 69 | T72: 1 | U72: 0 | V72: 1 | W72: 4825 | X72: 4825 | Y72: 2443 | Z72: 257 | AA72: 2998 | AB72: 2443 (100 %) | AC72: 50 (9 %), 80 (91 %) | AD72: Is (100 %) | AE72: Asfalttibetoni (100 %) | AF72: PK2 (100 %) | AG72: 0 | AH72: 5 | AJ72: 168 | AR72: 9 | AS72: 64 | AV72: 3 | AW72: =_xlfn.XLOOKUP(A72,[1]Työmatkat!$A:$A,[1]Työmatkat!$F:$F,"-",0) -> 1455 | AX72: 3 | AY72: 15 | AZ72: 5 | BA72: 8 | BB72: 1 | BC72: 3 | BD72: 0 | BE72: 1 | BF72: 1 | BG72: 0 | BH72: 0.3 | BI72: 0.05 | BJ72: 0 | BK72: 0 | BL72: 0 | BM72: 0 | BO72: 2 | BP72: 25.07399331 | BQ72: 1 | BR72: 17.35 | BS72: 5.783333333 | BT72: 4818.02 | BU72: 0.9985533679 | BV72: 1 | BW72: =_xlfn.XLOOKUP(A72,[1]Erikoiskuljetukset!$A:$A,[1]Erikoiskuljetukset!$F:$F,"-",0) -> 4818.02 | BX72: 0.9985533679 | BY72: 1 | BZ72: 1 | CA72: 955.215 | CB72: 0.1979720207 | CC72: 0 | CD72: =_xlfn.XLOOKUP(A72,'[1]2_Asukastiheys'!$A:$A,'[1]2_Asukastiheys'!$H:$H,"-",0)/X72 -> 32.97409326 | CE72: 0.5 | CF72: 1 | CG72: 0 | CH72: 0 | CI72: 1 | CJ72: 5.5 | CK72: 1.833333333 | CL72: 37.85 | CM72: 12.61666667 | CN72: 1 | CO72: =VLOOKUP(A72,Taul1!$F$6:$G$953,2,FALSE) -> 1 | CP72: 34.35 | CQ72: 15 | CR72: 14.35 | CS72: 5 | CU72: https://www.google.com/maps/@62.51613835,25.68619566,3a,75y,90t/data=!3m3!1e1!3m1!2e0 | CZ72: =_xlfn.XLOOKUP(A72,[1]Maito!$A:$A,[1]Maito!$J:$J,"-",0) -> 1 | DA72: 1 | DB72: =_xlfn.XLOOKUP(A72,[1]Kaatopaikat_jäte!$A:$A,[1]Kaatopaikat_jäte!$F:$F,"-",0) -> 0 | DC72: =_xlfn.XLOOKUP(A72,'[1]Maa-aines'!$A:$A,'[1]Maa-aines'!$F:$F,"-",0) -> 5 | DD72: =_xlfn.XLOOKUP(A72,[1]Turve!$A:$A,[1]Turve!$F:$F,"-",0) -> 0 | DE72: =_xlfn.XLOOKUP(A72,[1]Vilja!$A:$A,[1]Vilja!$F:$F,"-",0) -> 3 | DF72: =_xlfn.XLOOKUP(A72,[1]Kasvihuoneet!$A:$A,[1]Kasvihuoneet!$F:$F,"-",0) -> 0 | DG72: =_xlfn.XLOOKUP(A72,[1]Eläintilat!$A:$A,[1]Eläintilat!$H:$H,"-",0) -> 60 | DH72: =_xlfn.XLOOKUP(A72,[1]Eläintilat!$A:$A,[1]Eläintilat!$J:$J,"-",0) -> 10 | DI72: =_xlfn.XLOOKUP(A72,[1]Eläintilat!$A:$A,[1]Eläintilat!$I:$I,"-",0) -> 0 | DJ72: =_xlfn.XLOOKUP(A72,[1]Eläintilat!$A:$A,[1]Eläintilat!$K:$K,"-",0) -> 0 | DK72: =_xlfn.XLOOKUP(A72,'[1]Elintarvike ja varasto'!$A:$A,'[1]Elintarvike ja varasto'!$F:$F,"-",0) -> 0 | DM72: =_xlfn.XLOOKUP(A72,[1]Koulut!$A:$A,[1]Koulut!$F:$F,"-",0) -> 4818.02 | DN72: =_xlfn.XLOOKUP(A72,'[1]Tuotanto ja teollisuus'!$A:$A,'[1]Tuotanto ja teollisuus'!$F:$F,"-",0) -> 0 | DP72: =_xlfn.XLOOKUP(A72,[1]Varareitit!$A:$A,[1]Varareitit!$F:$F,"-",0) -> 17 | DQ72: =_xlfn.XLOOKUP(A72,[1]Taajama!$A:$A,[1]Taajama!$F:$F,"-",0) -> 955.215 | DR72: 1 | DS72: 0 | DT72: 1 | DU72: =_xlfn.XLOOKUP(A72,[1]Matkailukohteet!$A:$A,[1]Matkailukohteet!$F:$F,"-",0) -> 0 | DV72: =_xlfn.XLOOKUP(A72,[1]Matkailu!$A:$A,[1]Matkailu!$F:$F,"-",0) -> 0 | DW72: =_xlfn.XLOOKUP(A72,[1]Pyörämatkailu!$A:$A,[1]Pyörämatkailu!$F:$F,"-",0) -> 0 | DX72: 0 | DZ72: =_xlfn.XLOOKUP(A72,'[1]Verkollinen asema'!$A:$A,'[1]Verkollinen asema'!$D:$D,"-",0) -> 0 | EA72: =_xlfn.XLOOKUP(A72,[1]Kaupat!$A:$A,[1]Kaupat!$F:$F,"-",0) -> 1 | EF72: -- | EG72: -- | EH72: -- | EI72: -- | EJ72: -- | EL72: 25_11 | EM72: LOPUT | EN72: 113 | EO72: 2 | EQ72: 11697 | ER72: 2
A73: 4_227 | B73: 1 | D73: 37 | E73: 37 | F73: 0 | G73: 12.50369987 | H73: 5 | I73: 6.003699869 | J73: 1.5 | K73: 1 | L73: 0 | M73: Gmaps | N73: LOPUT | O73: Valta | P73: Leivonmäentie, Valtatie | Q73: Joutsa, Toivakka | S73: 4 | T73: 227 | U73: 0 | V73: 227 | W73: 5030 | X73: 5030 | Y73: 5878.140358 | Z73: 929.4224652 | AA73: 7421 | AB73: 5614 (4 %), 5888 (96 %) | AC73: 100 (85 %), 80 (15 %) | AD73: Ise (100 %) | AE73: Kivimastiksiasfaltti (100 %) | AF73: PK1 (100 %) | AG73: 3 | AH73: 20 | AJ73: 682.373161 | AR73: 9 | AS73: 51 | AV73: 3 | AW73: =_xlfn.XLOOKUP(A73,[1]Työmatkat!$A:$A,[1]Työmatkat!$F:$F,"-",0) -> 867 | AX73: 3 | AY73: 15 | AZ73: 5 | BA73: 8 | BB73: 1 | BC73: 3 | BD73: 0 | BE73: 1 | BF73: 1 | BG73: 1 | BH73: 0.425 | BI73: 0.02 | BJ73: 0 | BK73: 0 | BL73: 0 | BM73: 0 | BO73: 2 | BP73: 5.66099606 | BQ73: 0.566099606 | BR73: 18.01109961 | BS73: 6.003699869 | BT73: 0 | BU73: 0 | BV73: 0 | BW73: =_xlfn.XLOOKUP(A73,[1]Erikoiskuljetukset!$A:$A,[1]Erikoiskuljetukset!$F:$F,"-",0) -> 5029.2 | BX73: 0.9998409543 | BY73: 1 | BZ73: 1 | CA73: 0 | CB73: 0 | CC73: 0 | CD73: =_xlfn.XLOOKUP(A73,'[1]2_Asukastiheys'!$A:$A,'[1]2_Asukastiheys'!$H:$H,"-",0)/X73 -> 4.96222664 | CE73: 0.5 | CF73: 1 | CG73: 0 | CH73: 0 | CI73: 1 | CJ73: 4.5 | CK73: 1.5 | CL73: 37.51109961 | CM73: 12.50369987 | CN73: 1 | CO73: =VLOOKUP(A73,Taul1!$F$6:$G$953,2,FALSE) -> 2 | CP73: 34.445 | CQ73: 15 | CR73: 15.445 | CS73: 4 | CU73: https://www.google.com/maps/@62.02848448,26.04783188,3a,75y,90t/data=!3m3!1e1!3m1!2e0 | CZ73: =_xlfn.XLOOKUP(A73,[1]Maito!$A:$A,[1]Maito!$J:$J,"-",0) -> 4 | DA73: 4 | DB73: =_xlfn.XLOOKUP(A73,[1]Kaatopaikat_jäte!$A:$A,[1]Kaatopaikat_jäte!$F:$F,"-",0) -> 0 | DC73: =_xlfn.XLOOKUP(A73,'[1]Maa-aines'!$A:$A,'[1]Maa-aines'!$F:$F,"-",0) -> 3 | DD73: =_xlfn.XLOOKUP(A73,[1]Turve!$A:$A,[1]Turve!$F:$F,"-",0) -> 0 | DE73: =_xlfn.XLOOKUP(A73,[1]Vilja!$A:$A,[1]Vilja!$F:$F,"-",0) -> 2 | DF73: =_xlfn.XLOOKUP(A73,[1]Kasvihuoneet!$A:$A,[1]Kasvihuoneet!$F:$F,"-",0) -> 4 | DG73: =_xlfn.XLOOKUP(A73,[1]Eläintilat!$A:$A,[1]Eläintilat!$H:$H,"-",0) -> 85 | DH73: =_xlfn.XLOOKUP(A73,[1]Eläintilat!$A:$A,[1]Eläintilat!$J:$J,"-",0) -> 4 | DI73: =_xlfn.XLOOKUP(A73,[1]Eläintilat!$A:$A,[1]Eläintilat!$I:$I,"-",0) -> 0 | DJ73: =_xlfn.XLOOKUP(A73,[1]Eläintilat!$A:$A,[1]Eläintilat!$K:$K,"-",0) -> 0 | DK73: =_xlfn.XLOOKUP(A73,'[1]Elintarvike ja varasto'!$A:$A,'[1]Elintarvike ja varasto'!$F:$F,"-",0) -> 0 | DM73: =_xlfn.XLOOKUP(A73,[1]Koulut!$A:$A,[1]Koulut!$F:$F,"-",0) -> 0 | DN73: =_xlfn.XLOOKUP(A73,'[1]Tuotanto ja teollisuus'!$A:$A,'[1]Tuotanto ja teollisuus'!$F:$F,"-",0) -> 0 | DP73: =_xlfn.XLOOKUP(A73,[1]Varareitit!$A:$A,[1]Varareitit!$F:$F,"-",0) -> 2 | DQ73: =_xlfn.XLOOKUP(A73,[1]Taajama!$A:$A,[1]Taajama!$F:$F,"-",0) -> 0 | DR73: 1 | DS73: 0 | DT73: 1 | DU73: =_xlfn.XLOOKUP(A73,[1]Matkailukohteet!$A:$A,[1]Matkailukohteet!$F:$F,"-",0) -> 0 | DV73: =_xlfn.XLOOKUP(A73,[1]Matkailu!$A:$A,[1]Matkailu!$F:$F,"-",0) -> 0 | DW73: =_xlfn.XLOOKUP(A73,[1]Pyörämatkailu!$A:$A,[1]Pyörämatkailu!$F:$F,"-",0) -> 0 | DX73: 0 | DZ73: =_xlfn.XLOOKUP(A73,'[1]Verkollinen asema'!$A:$A,'[1]Verkollinen asema'!$D:$D,"-",0) -> 0 | EA73: =_xlfn.XLOOKUP(A73,[1]Kaupat!$A:$A,[1]Kaupat!$F:$F,"-",0) -> 2 | EF73: -- | EG73: -- | EH73: -- | EI73: -- | EJ73: -- | EL73: 10_25 | EM73: LOPUT | EN73: 3 | EO73: 1 | EQ73: 11044 | ER73: 1
A74: 630_1 | B74: 1 | D74: 38 | E74: 38 | F74: 0 | G74: 12.45 | H74: 5 | I74: 5.95 | J74: 1.5 | K74: 1 | L74: 0 | M74: Gmaps | N74: LOPUT | O74: Seutu | P74: Kuikantie | Q74: Jyväskylä | S74: 630 | T74: 1 | U74: 0 | V74: 1 | W74: 2836 | X74: 2836 | Y74: 2024 | Z74: 62 | AA74: 2226 | AB74: 2024 (100 %) | AC74: 50 (18 %), 60 (12 %), 80 (70 %) | AD74: Ib (100 %) | AE74: Asfalttibetoni (100 %) | AF74: PK2 (100 %) | AG74: 0 | AH74: 1 | AJ74: 11 | AR74: 9 | AS74: 88 | AV74: 3 | AW74: =_xlfn.XLOOKUP(A74,[1]Työmatkat!$A:$A,[1]Työmatkat!$F:$F,"-",0) -> 1358 | AX74: 3 | AY74: 15 | AZ74: 5 | BA74: 8 | BB74: 0.55 | BC74: 3 | BD74: 0 | BE74: 1 | BF74: 1 | BG74: 1 | BH74: 0.5 | BI74: 0 | BJ74: 0 | BK74: 0 | BL74: 0 | BM74: 0.8 | BO74: 2 | BP74: 0 | BQ74: 0 | BR74: 17.85 | BS74: 5.95 | BT74: 2318.2 | BU74: 0.8174188999 | BV74: 1 | BW74: =_xlfn.XLOOKUP(A74,[1]Erikoiskuljetukset!$A:$A,[1]Erikoiskuljetukset!$F:$F,"-",0) -> 0 | BX74: 0 | BY74: 0 | BZ74: 1 | CA74: 0 | CB74: 0 | CC74: 0 | CD74: =_xlfn.XLOOKUP(A74,'[1]2_Asukastiheys'!$A:$A,'[1]2_Asukastiheys'!$H:$H,"-",0)/X74 -> 5.403385049 | CE74: 0.5 | CF74: 1 | CG74: 0 | CH74: 0 | CI74: 1 | CJ74: 4.5 | CK74: 1.5 | CL74: 37.35 | CM74: 12.45 | CN74: 1 | CO74: =VLOOKUP(A74,Taul1!$F$6:$G$953,2,FALSE) -> 1 | CP74: 35.3 | CQ74: 15 | CR74: 16.3 | CS74: 4 | CU74: https://www.google.com/maps/@62.35504903,25.70694393,3a,75y,90t/data=!3m3!1e1!3m1!2e0 | CZ74: =_xlfn.XLOOKUP(A74,[1]Maito!$A:$A,[1]Maito!$J:$J,"-",0) -> 1 | DA74: 1 | DB74: =_xlfn.XLOOKUP(A74,[1]Kaatopaikat_jäte!$A:$A,[1]Kaatopaikat_jäte!$F:$F,"-",0) -> 0 | DC74: =_xlfn.XLOOKUP(A74,'[1]Maa-aines'!$A:$A,'[1]Maa-aines'!$F:$F,"-",0) -> 3 | DD74: =_xlfn.XLOOKUP(A74,[1]Turve!$A:$A,[1]Turve!$F:$F,"-",0) -> 0 | DE74: =_xlfn.XLOOKUP(A74,[1]Vilja!$A:$A,[1]Vilja!$F:$F,"-",0) -> 14 | DF74: =_xlfn.XLOOKUP(A74,[1]Kasvihuoneet!$A:$A,[1]Kasvihuoneet!$F:$F,"-",0) -> 6 | DG74: =_xlfn.XLOOKUP(A74,[1]Eläintilat!$A:$A,[1]Eläintilat!$H:$H,"-",0) -> 149 | DH74: =_xlfn.XLOOKUP(A74,[1]Eläintilat!$A:$A,[1]Eläintilat!$J:$J,"-",0) -> 0 | DI74: =_xlfn.XLOOKUP(A74,[1]Eläintilat!$A:$A,[1]Eläintilat!$I:$I,"-",0) -> 0 | DJ74: =_xlfn.XLOOKUP(A74,[1]Eläintilat!$A:$A,[1]Eläintilat!$K:$K,"-",0) -> 0 | DK74: =_xlfn.XLOOKUP(A74,'[1]Elintarvike ja varasto'!$A:$A,'[1]Elintarvike ja varasto'!$F:$F,"-",0) -> 0 | DM74: =_xlfn.XLOOKUP(A74,[1]Koulut!$A:$A,[1]Koulut!$F:$F,"-",0) -> 2318.2 | DN74: =_xlfn.XLOOKUP(A74,'[1]Tuotanto ja teollisuus'!$A:$A,'[1]Tuotanto ja teollisuus'!$F:$F,"-",0) -> 2 | DP74: =_xlfn.XLOOKUP(A74,[1]Varareitit!$A:$A,[1]Varareitit!$F:$F,"-",0) -> 2 | DQ74: =_xlfn.XLOOKUP(A74,[1]Taajama!$A:$A,[1]Taajama!$F:$F,"-",0) -> 0 | DR74: 1 | DS74: 0 | DT74: 1 | DU74: =_xlfn.XLOOKUP(A74,[1]Matkailukohteet!$A:$A,[1]Matkailukohteet!$F:$F,"-",0) -> 0 | DV74: =_xlfn.XLOOKUP(A74,[1]Matkailu!$A:$A,[1]Matkailu!$F:$F,"-",0) -> 0 | DW74: =_xlfn.XLOOKUP(A74,[1]Pyörämatkailu!$A:$A,[1]Pyörämatkailu!$F:$F,"-",0) -> 0 | DX74: 0 | DZ74: =_xlfn.XLOOKUP(A74,'[1]Verkollinen asema'!$A:$A,'[1]Verkollinen asema'!$D:$D,"-",0) -> 0 | EA74: =_xlfn.XLOOKUP(A74,[1]Kaupat!$A:$A,[1]Kaupat!$F:$F,"-",0) -> 1 | EF74: -- | EG74: -- | EH74: -- | EI74: -- | EJ74: -- | EL74: 114_1 | EM74: LOPUT | EN74: 387 | EO74: 2 | EQ74: 11169 | ER74: 2
A75: 4_317 | B75: 1 | D75: 39 | E75: 39 | F75: 0 | G75: 12.4 | H75: 4.9 | I75: 6 | J75: 1.5 | K75: 1 | L75: 0 | M75: Gmaps | N75: LOPUT | O75: Valta | P75: Äänekoskentie | Q75: Viitasaari | S75: 4 | T75: 317 | U75: 0 | V75: 317 | W75: 6524 | X75: 6524 | Y75: 4929.956775 | Z75: 820.0801655 | AA75: 6354 | AB75: 4759 (53 %), 5121 (47 %) | AC75: 100 (89 %), 80 (11 %) | AD75: Ise (100 %) | AE75: Kivimastiksiasfaltti (100 %) | AF75: PK1 (100 %) | AG75: 1 | AH75: 10 | AJ75: 609.4155426 | AR75: 9 | AS75: 18 | AV75: 2.7 | AW75: =_xlfn.XLOOKUP(A75,[1]Työmatkat!$A:$A,[1]Työmatkat!$F:$F,"-",0) -> 457 | AX75: 3 | AY75: 14.7 | AZ75: 4.9 | BA75: 8 | BB75: 1 | BC75: 3 | BD75: 0 | BE75: 1 | BF75: 1 | BG75: 1 | BH75: 0 | BI75: 0 | BJ75: 0 | BK75: 0 | BL75: 2 | BM75: 0 | BO75: 0 | BP75: 36.28934044 | BQ75: 1 | BR75: 18 | BS75: 6 | BT75: 0 | BU75: 0 | BV75: 0 | BW75: =_xlfn.XLOOKUP(A75,[1]Erikoiskuljetukset!$A:$A,[1]Erikoiskuljetukset!$F:$F,"-",0) -> 6520.67 | BX75: 0.9994895769 | BY75: 1 | BZ75: 1 | CA75: 0 | CB75: 0 | CC75: 0 | CD75: =_xlfn.XLOOKUP(A75,'[1]2_Asukastiheys'!$A:$A,'[1]2_Asukastiheys'!$H:$H,"-",0)/X75 -> 0.7510729614 | CE75: 0.5 | CF75: 1 | CG75: 0 | CH75: 0 | CI75: 1 | CJ75: 4.5 | CK75: 1.5 | CL75: 37.2 | CM75: 12.4 | CN75: 1 | CO75: =VLOOKUP(A75,Taul1!$F$6:$G$953,2,FALSE) -> 2 | CP75: 33.7 | CQ75: 14.7 | CR75: 15 | CS75: 4 | CU75: https://www.google.com/maps/@62.98329523,25.82059089,3a,75y,90t/data=!3m3!1e1!3m1!2e0 | CZ75: =_xlfn.XLOOKUP(A75,[1]Maito!$A:$A,[1]Maito!$J:$J,"-",0) -> 1 | DA75: 1 | DB75: =_xlfn.XLOOKUP(A75,[1]Kaatopaikat_jäte!$A:$A,[1]Kaatopaikat_jäte!$F:$F,"-",0) -> 0 | DC75: =_xlfn.XLOOKUP(A75,'[1]Maa-aines'!$A:$A,'[1]Maa-aines'!$F:$F,"-",0) -> 1 | DD75: =_xlfn.XLOOKUP(A75,[1]Turve!$A:$A,[1]Turve!$F:$F,"-",0) -> 0 | DE75: =_xlfn.XLOOKUP(A75,[1]Vilja!$A:$A,[1]Vilja!$F:$F,"-",0) -> 1 | DF75: =_xlfn.XLOOKUP(A75,[1]Kasvihuoneet!$A:$A,[1]Kasvihuoneet!$F:$F,"-",0) -> 2 | DG75: =_xlfn.XLOOKUP(A75,[1]Eläintilat!$A:$A,[1]Eläintilat!$H:$H,"-",0) -> 0 | DH75: =_xlfn.XLOOKUP(A75,[1]Eläintilat!$A:$A,[1]Eläintilat!$J:$J,"-",0) -> 0 | DI75: =_xlfn.XLOOKUP(A75,[1]Eläintilat!$A:$A,[1]Eläintilat!$I:$I,"-",0) -> 0 | DJ75: =_xlfn.XLOOKUP(A75,[1]Eläintilat!$A:$A,[1]Eläintilat!$K:$K,"-",0) -> 0 | DK75: =_xlfn.XLOOKUP(A75,'[1]Elintarvike ja varasto'!$A:$A,'[1]Elintarvike ja varasto'!$F:$F,"-",0) -> 1 | DM75: =_xlfn.XLOOKUP(A75,[1]Koulut!$A:$A,[1]Koulut!$F:$F,"-",0) -> 0 | DN75: =_xlfn.XLOOKUP(A75,'[1]Tuotanto ja teollisuus'!$A:$A,'[1]Tuotanto ja teollisuus'!$F:$F,"-",0) -> 0 | DP75: =_xlfn.XLOOKUP(A75,[1]Varareitit!$A:$A,[1]Varareitit!$F:$F,"-",0) -> 1 | DQ75: =_xlfn.XLOOKUP(A75,[1]Taajama!$A:$A,[1]Taajama!$F:$F,"-",0) -> 0 | DR75: 1 | DS75: 0 | DT75: 1 | DU75: =_xlfn.XLOOKUP(A75,[1]Matkailukohteet!$A:$A,[1]Matkailukohteet!$F:$F,"-",0) -> 0 | DV75: =_xlfn.XLOOKUP(A75,[1]Matkailu!$A:$A,[1]Matkailu!$F:$F,"-",0) -> 0 | DW75: =_xlfn.XLOOKUP(A75,[1]Pyörämatkailu!$A:$A,[1]Pyörämatkailu!$F:$F,"-",0) -> 0 | DX75: 0 | DZ75: =_xlfn.XLOOKUP(A75,'[1]Verkollinen asema'!$A:$A,'[1]Verkollinen asema'!$D:$D,"-",0) -> 0 | EA75: =_xlfn.XLOOKUP(A75,[1]Kaupat!$A:$A,[1]Kaupat!$F:$F,"-",0) -> 0 | EF75: -- | EG75: -- | EH75: -- | EI75: -- | EJ75: -- | EL75: 57_1 | EM75: LOPUT | EN75: 24 | EO75: 1 | EQ75: 14177 | ER75: 1
A76: 4_305 | B76: 1 | D76: 40 | E76: 40 | F76: 0 | G76: 12.37166667 | H76: 5 | I76: 5.538333333 | J76: 1.833333333 | K76: 1 | L76: 0 | M76: Gmaps | N76: LOPUT | O76: Valta | P76: Nelostie | Q76: Laukaa | S76: 4 | T76: 305 | U76: 0 | V76: 305 | W76: 6080 | X76: 6080 | Y76: 10932 | Z76: 1155 | AA76: 12432 | AB76: 10932 (100 %) | AC76: 100 (11 %), 80 (89 %) | AD76: Ise (100 %) | AE76: Asfalttibetoni (68 %), Kivimastiksiasfaltti (32 %) | AF76: PK1 (100 %) | AG76: 8 | AH76: 15 | AJ76: 931 | AR76: 9 | AS76: 82 | AV76: 3 | AW76: =_xlfn.XLOOKUP(A76,[1]Työmatkat!$A:$A,[1]Työmatkat!$F:$F,"-",0) -> 3468 | AX76: 3 | AY76: 15 | AZ76: 5 | BA76: 8 | BB76: 1 | BC76: 3 | BD76: 0 | BE76: 1 | BF76: 1 | BG76: 1 | BH76: 0.5 | BI76: 0.115 | BJ76: 0 | BK76: 0 | BL76: 0 | BM76: 0 | BO76: 0 | BP76: 10.10967771 | BQ76: 1 | BR76: 16.615 | BS76: 5.538333333 | BT76: 4336.69 | BU76: 0.7132713816 | BV76: 1 | BW76: =_xlfn.XLOOKUP(A76,[1]Erikoiskuljetukset!$A:$A,[1]Erikoiskuljetukset!$F:$F,"-",0) -> 6089.28 | BX76: 1.001526316 | BY76: 1 | BZ76: 1 | CA76: 0 | CB76: 0 | CC76: 0 | CD76: =_xlfn.XLOOKUP(A76,'[1]2_Asukastiheys'!$A:$A,'[1]2_Asukastiheys'!$H:$H,"-",0)/X76 -> 19.60526316 | CE76: 0.5 | CF76: 1 | CG76: 0 | CH76: 0 | CI76: 1 | CJ76: 5.5 | CK76: 1.833333333 | CL76: 37.115 | CM76: 12.37166667 | CN76: 1 | CO76: =VLOOKUP(A76,Taul1!$F$6:$G$953,2,FALSE) -> 1 | CP76: 33.615 | CQ76: 15 | CR76: 13.615 | CS76: 5 | CU76: https://www.google.com/maps/@62.43396281,25.68901383,3a,75y,90t/data=!3m3!1e1!3m1!2e0 | CZ76: =_xlfn.XLOOKUP(A76,[1]Maito!$A:$A,[1]Maito!$J:$J,"-",0) -> 8 | DA76: 8 | DB76: =_xlfn.XLOOKUP(A76,[1]Kaatopaikat_jäte!$A:$A,[1]Kaatopaikat_jäte!$F:$F,"-",0) -> 0 | DC76: =_xlfn.XLOOKUP(A76,'[1]Maa-aines'!$A:$A,'[1]Maa-aines'!$F:$F,"-",0) -> 1 | DD76: =_xlfn.XLOOKUP(A76,[1]Turve!$A:$A,[1]Turve!$F:$F,"-",0) -> 0 | DE76: =_xlfn.XLOOKUP(A76,[1]Vilja!$A:$A,[1]Vilja!$F:$F,"-",0) -> 5 | DF76: =_xlfn.XLOOKUP(A76,[1]Kasvihuoneet!$A:$A,[1]Kasvihuoneet!$F:$F,"-",0) -> 1 | DG76: =_xlfn.XLOOKUP(A76,[1]Eläintilat!$A:$A,[1]Eläintilat!$H:$H,"-",0) -> 346 | DH76: =_xlfn.XLOOKUP(A76,[1]Eläintilat!$A:$A,[1]Eläintilat!$J:$J,"-",0) -> 23 | DI76: =_xlfn.XLOOKUP(A76,[1]Eläintilat!$A:$A,[1]Eläintilat!$I:$I,"-",0) -> 0 | DJ76: =_xlfn.XLOOKUP(A76,[1]Eläintilat!$A:$A,[1]Eläintilat!$K:$K,"-",0) -> 0 | DK76: =_xlfn.XLOOKUP(A76,'[1]Elintarvike ja varasto'!$A:$A,'[1]Elintarvike ja varasto'!$F:$F,"-",0) -> 0 | DM76: =_xlfn.XLOOKUP(A76,[1]Koulut!$A:$A,[1]Koulut!$F:$F,"-",0) -> 4336.69 | DN76: =_xlfn.XLOOKUP(A76,'[1]Tuotanto ja teollisuus'!$A:$A,'[1]Tuotanto ja teollisuus'!$F:$F,"-",0) -> 0 | DP76: =_xlfn.XLOOKUP(A76,[1]Varareitit!$A:$A,[1]Varareitit!$F:$F,"-",0) -> 6 | DQ76: =_xlfn.XLOOKUP(A76,[1]Taajama!$A:$A,[1]Taajama!$F:$F,"-",0) -> 0 | DR76: 1 | DS76: 0 | DT76: 1 | DU76: =_xlfn.XLOOKUP(A76,[1]Matkailukohteet!$A:$A,[1]Matkailukohteet!$F:$F,"-",0) -> 0 | DV76: =_xlfn.XLOOKUP(A76,[1]Matkailu!$A:$A,[1]Matkailu!$F:$F,"-",0) -> 0 | DW76: =_xlfn.XLOOKUP(A76,[1]Pyörämatkailu!$A:$A,[1]Pyörämatkailu!$F:$F,"-",0) -> 0 | DX76: 0 | DZ76: =_xlfn.XLOOKUP(A76,'[1]Verkollinen asema'!$A:$A,'[1]Verkollinen asema'!$D:$D,"-",0) -> 0 | EA76: =_xlfn.XLOOKUP(A76,[1]Kaupat!$A:$A,[1]Kaupat!$F:$F,"-",0) -> 0 | EF76: -- | EG76: -- | EH76: -- | EI76: -- | EJ76: -- | EL76: 170_11 | EM76: LOPUT | EN76: 22 | EO76: 1 | EQ76: 174 | ER76: 5
A77: 637_6 | B77: 1 | D77: 41 | E77: 41 | F77: 0 | G77: 12.36773903 | H77: 5 | I77: 4.867739028 | J77: 2.5 | K77: 1 | L77: 0 | M77: Gmaps | N77: LOPUT | O77: Seutu | P77: Suolahdentie | Q77: Laukaa | S77: 637 | T77: 6 | U77: 0 | V77: 6 | W77: 4233 | X77: 4233 | Y77: 5312 | Z77: 222 | AA77: 7436 | AB77: 5312 (100 %) | AC77: 50 (13 %), 60 (19 %), 80 (68 %) | AD77: Ib (100 %) | AE77: Asfalttibetoni (95 %) | AF77: PK2 (100 %) | AG77: 2 | AH77: 2 | AJ77: 112 | AR77: 9 | AS77: 115 | AV77: 3 | AW77: =_xlfn.XLOOKUP(A77,[1]Työmatkat!$A:$A,[1]Työmatkat!$F:$F,"-",0) -> 956 | AX77: 3 | AY77: 15 | AZ77: 5 | BA77: 8 | BB77: 1 | BC77: 3 | BD77: 0 | BE77: 1 | BF77: 1 | BG77: 0 | BH77: 0.09 | BI77: 0 | BJ77: 0 | BK77: 0 | BL77: 0 | BM77: 0 | BO77: 0 | BP77: 5.132170848 | BQ77: 0.5132170848 | BR77: 14.60321708 | BS77: 4.867739028 | BT77: 3517.83 | BU77: 0.8310489015 | BV77: 1 | BW77: =_xlfn.XLOOKUP(A77,[1]Erikoiskuljetukset!$A:$A,[1]Erikoiskuljetukset!$F:$F,"-",0) -> 3911.58 | BX77: 0.9240680369 | BY77: 1 | BZ77: 1 | CA77: 435.402 | CB77: 0.1028589653 | CC77: 0 | CD77: =_xlfn.XLOOKUP(A77,'[1]2_Asukastiheys'!$A:$A,'[1]2_Asukastiheys'!$H:$H,"-",0)/X77 -> 27.93621545 | CE77: 0.5 | CF77: 1 | CG77: 1 | CH77: 1 | CI77: 1 | CJ77: 7.5 | CK77: 2.5 | CL77: 37.10321708 | CM77: 12.36773903 | CN77: 1 | CO77: =VLOOKUP(A77,Taul1!$F$6:$G$953,2,FALSE) -> 1 | CP77: 32.09 | CQ77: 15 | CR77: 12.09 | CS77: 5 | CU77: https://www.google.com/maps/@62.42526927,25.91727398,3a,75y,90t/data=!3m3!1e1!3m1!2e0 | CZ77: =_xlfn.XLOOKUP(A77,[1]Maito!$A:$A,[1]Maito!$J:$J,"-",0) -> 1 | DA77: 1 | DB77: =_xlfn.XLOOKUP(A77,[1]Kaatopaikat_jäte!$A:$A,[1]Kaatopaikat_jäte!$F:$F,"-",0) -> 0 | DC77: =_xlfn.XLOOKUP(A77,'[1]Maa-aines'!$A:$A,'[1]Maa-aines'!$F:$F,"-",0) -> 1 | DD77: =_xlfn.XLOOKUP(A77,[1]Turve!$A:$A,[1]Turve!$F:$F,"-",0) -> 0 | DE77: =_xlfn.XLOOKUP(A77,[1]Vilja!$A:$A,[1]Vilja!$F:$F,"-",0) -> 1 | DF77: =_xlfn.XLOOKUP(A77,[1]Kasvihuoneet!$A:$A,[1]Kasvihuoneet!$F:$F,"-",0) -> 0 | DG77: =_xlfn.XLOOKUP(A77,[1]Eläintilat!$A:$A,[1]Eläintilat!$H:$H,"-",0) -> 18 | DH77: =_xlfn.XLOOKUP(A77,[1]Eläintilat!$A:$A,[1]Eläintilat!$J:$J,"-",0) -> 0 | DI77: =_xlfn.XLOOKUP(A77,[1]Eläintilat!$A:$A,[1]Eläintilat!$I:$I,"-",0) -> 0 | DJ77: =_xlfn.XLOOKUP(A77,[1]Eläintilat!$A:$A,[1]Eläintilat!$K:$K,"-",0) -> 0 | DK77: =_xlfn.XLOOKUP(A77,'[1]Elintarvike ja varasto'!$A:$A,'[1]Elintarvike ja varasto'!$F:$F,"-",0) -> 0 | DM77: =_xlfn.XLOOKUP(A77,[1]Koulut!$A:$A,[1]Koulut!$F:$F,"-",0) -> 3517.83 | DN77: =_xlfn.XLOOKUP(A77,'[1]Tuotanto ja teollisuus'!$A:$A,'[1]Tuotanto ja teollisuus'!$F:$F,"-",0) -> 0 | DP77: =_xlfn.XLOOKUP(A77,[1]Varareitit!$A:$A,[1]Varareitit!$F:$F,"-",0) -> 2 | DQ77: =_xlfn.XLOOKUP(A77,[1]Taajama!$A:$A,[1]Taajama!$F:$F,"-",0) -> 435.402 | DR77: 1 | DS77: 0 | DT77: 1 | DU77: =_xlfn.XLOOKUP(A77,[1]Matkailukohteet!$A:$A,[1]Matkailukohteet!$F:$F,"-",0) -> 1 | DV77: =_xlfn.XLOOKUP(A77,[1]Matkailu!$A:$A,[1]Matkailu!$F:$F,"-",0) -> 0 | DW77: =_xlfn.XLOOKUP(A77,[1]Pyörämatkailu!$A:$A,[1]Pyörämatkailu!$F:$F,"-",0) -> 1 | DX77: 1 | DZ77: =_xlfn.XLOOKUP(A77,'[1]Verkollinen asema'!$A:$A,'[1]Verkollinen asema'!$D:$D,"-",0) -> 0 | EA77: =_xlfn.XLOOKUP(A77,[1]Kaupat!$A:$A,[1]Kaupat!$F:$F,"-",0) -> 0 | EF77: -- | EG77: -- | EH77: -- | EI77: -- | EJ77: -- | EL77: 170_15 | EM77: LOPUT | EN77: 250 | EO77: 2 | EQ77: 11787 | ER77: 1
A78: 343_3 | B78: 1 | D78: 42 | E78: 42 | F78: 0 | G78: 12.36508811 | H78: 4.4 | I78: 5.631754779 | J78: 2.333333333 | K78: 1 | L78: 0 | M78: Gmaps | N78: LOPUT | O78: Seutu | P78: Kuorevedentie | Q78: Jämsä | S78: 343 | T78: 3 | U78: 0 | V78: 3 | W78: 5194 | X78: 5194 | Y78: 1368.889488 | Z78: 57.25856758 | AA78: 1554 | AB78: 1203 (64 %), 1665 (36 %) | AC78: 40 (28 %), 50 (30 %), 60 (13 %), 80 (29 %) | AD78: Ic (100 %) | AE78: Asfalttibetoni (92 %) | AF78: PK2 (100 %) | AG78: 1 | AH78: 4 | AJ78: 15.79534078 | AR78: 9 | AS78: 8 | AV78: 1.2 | AW78: =_xlfn.XLOOKUP(A78,[1]Työmatkat!$A:$A,[1]Työmatkat!$F:$F,"-",0) -> 827 | AX78: 3 | AY78: 13.2 | AZ78: 4.4 | BA78: 8 | BB78: 0.7897670389 | BC78: 3 | BD78: 0 | BE78: 1 | BF78: 0 | BG78: 0 | BH78: 0.08 | BI78: 0 | BJ78: 0 | BK78: 0 | BL78: 0 | BM78: 1.2 | BO78: 2 | BP78: 8.254972993 | BQ78: 0.8254972993 | BR78: 16.89526434 | BS78: 5.631754779 | BT78: 5174.97 | BU78: 0.9963361571 | BV78: 1 | BW78: =_xlfn.XLOOKUP(A78,[1]Erikoiskuljetukset!$A:$A,[1]Erikoiskuljetukset!$F:$F,"-",0) -> 3325.62 | BX78: 0.6402810936 | BY78: 1 | BZ78: 0 | CA78: 3499.73 | CB78: 0.6738024644 | CC78: 1 | CD78: =_xlfn.XLOOKUP(A78,'[1]2_Asukastiheys'!$A:$A,'[1]2_Asukastiheys'!$H:$H,"-",0)/X78 -> 148.6907971 | CE78: 1 | CF78: 1 | CG78: 1 | CH78: 0 | CI78: 1 | CJ78: 7 | CK78: 2.333333333 | CL78: 37.09526434 | CM78: 12.36508811 | CN78: 1 | CO78: =VLOOKUP(A78,Taul1!$F$6:$G$953,2,FALSE) -> 2 | CP78: 31.48 | CQ78: 13.2 | CR78: 14.28 | CS78: 4 | CU78: https://www.google.com/maps/@61.84983799,24.85438444,3a,75y,90t/data=!3m3!1e1!3m1!2e0 | CZ78: =_xlfn.XLOOKUP(A78,[1]Maito!$A:$A,[1]Maito!$J:$J,"-",0) -> 1 | DA78: 1 | DB78: =_xlfn.XLOOKUP(A78,[1]Kaatopaikat_jäte!$A:$A,[1]Kaatopaikat_jäte!$F:$F,"-",0) -> 0 | DC78: =_xlfn.XLOOKUP(A78,'[1]Maa-aines'!$A:$A,'[1]Maa-aines'!$F:$F,"-",0) -> 2 | DD78: =_xlfn.XLOOKUP(A78,[1]Turve!$A:$A,[1]Turve!$F:$F,"-",0) -> 0 | DE78: =_xlfn.XLOOKUP(A78,[1]Vilja!$A:$A,[1]Vilja!$F:$F,"-",0) -> 0 | DF78: =_xlfn.XLOOKUP(A78,[1]Kasvihuoneet!$A:$A,[1]Kasvihuoneet!$F:$F,"-",0) -> 0 | DG78: =_xlfn.XLOOKUP(A78,[1]Eläintilat!$A:$A,[1]Eläintilat!$H:$H,"-",0) -> 16 | DH78: =_xlfn.XLOOKUP(A78,[1]Eläintilat!$A:$A,[1]Eläintilat!$J:$J,"-",0) -> 0 | DI78: =_xlfn.XLOOKUP(A78,[1]Eläintilat!$A:$A,[1]Eläintilat!$I:$I,"-",0) -> 0 | DJ78: =_xlfn.XLOOKUP(A78,[1]Eläintilat!$A:$A,[1]Eläintilat!$K:$K,"-",0) -> 0 | DK78: =_xlfn.XLOOKUP(A78,'[1]Elintarvike ja varasto'!$A:$A,'[1]Elintarvike ja varasto'!$F:$F,"-",0) -> 0 | DM78: =_xlfn.XLOOKUP(A78,[1]Koulut!$A:$A,[1]Koulut!$F:$F,"-",0) -> 5174.97 | DN78: =_xlfn.XLOOKUP(A78,'[1]Tuotanto ja teollisuus'!$A:$A,'[1]Tuotanto ja teollisuus'!$F:$F,"-",0) -> 3 | DP78: =_xlfn.XLOOKUP(A78,[1]Varareitit!$A:$A,[1]Varareitit!$F:$F,"-",0) -> 0 | DQ78: =_xlfn.XLOOKUP(A78,[1]Taajama!$A:$A,[1]Taajama!$F:$F,"-",0) -> 3499.73 | DR78: 1 | DS78: 0 | DT78: 1 | DU78: =_xlfn.XLOOKUP(A78,[1]Matkailukohteet!$A:$A,[1]Matkailukohteet!$F:$F,"-",0) -> 0 | DV78: =_xlfn.XLOOKUP(A78,[1]Matkailu!$A:$A,[1]Matkailu!$F:$F,"-",0) -> 0 | DW78: =_xlfn.XLOOKUP(A78,[1]Pyörämatkailu!$A:$A,[1]Pyörämatkailu!$F:$F,"-",0) -> 2 | DX78: 2 | DZ78: =_xlfn.XLOOKUP(A78,'[1]Verkollinen asema'!$A:$A,'[1]Verkollinen asema'!$D:$D,"-",0) -> 0 | EA78: =_xlfn.XLOOKUP(A78,[1]Kaupat!$A:$A,[1]Kaupat!$F:$F,"-",0) -> 2 | EF78: -- | EG78: -- | EH78: -- | EI78: -- | EJ78: -- | EL78: 132_9 | EM78: LOPUT | EN78: 120 | EO78: 2 | EQ78: 1191 | ER78: 1
A79: 642_2 | B79: 1 | D79: 43 | E79: 43 | F79: 0 | G79: 12.35638572 | H79: 4.9175 | I79: 5.938885725 | J79: 1.5 | K79: 1 | L79: 0 | M79: Gmaps | N79: LOPUT | O79: Seutu | P79: Suolahdentie | Q79: Laukaa, Äänekoski | S79: 642 | T79: 2 | U79: 0 | V79: 2 | W79: 4543 | X79: 4543 | Y79: 1937 | Z79: 168 | AA79: 2171 | AB79: 1937 (100 %) | AC79: 60 (47 %), 80 (53 %) | AD79: Ib (100 %) | AE79: Asfalttibetoni (100 %) | AF79: PK2 (100 %) | AG79: 1 | AH79: 2 | AJ79: 71 | AR79: 9 | AS79: 22 | AV79: 3 | AW79: =_xlfn.XLOOKUP(A79,[1]Työmatkat!$A:$A,[1]Työmatkat!$F:$F,"-",0) -> 367 | AX79: 2.7525 | AY79: 14.7525 | AZ79: 4.9175 | BA79: 8 | BB79: 1 | BC79: 3 | BD79: 0 | BE79: 1 | BF79: 1 | BG79: 0 | BH79: 0.5 | BI79: 0.1 | BJ79: 0 | BK79: 0.5 | BL79: 2 | BM79: 0 | BO79: 0 | BP79: 7.166571737 | BQ79: 0.7166571737 | BR79: 17.81665717 | BS79: 5.938885725 | BT79: 0 | BU79: 0 | BV79: 0 | BW79: =_xlfn.XLOOKUP(A79,[1]Erikoiskuljetukset!$A:$A,[1]Erikoiskuljetukset!$F:$F,"-",0) -> 4548.83 | BX79: 1.001283293 | BY79: 1 | BZ79: 1 | CA79: 0 | CB79: 0 | CC79: 0 | CD79: =_xlfn.XLOOKUP(A79,'[1]2_Asukastiheys'!$A:$A,'[1]2_Asukastiheys'!$H:$H,"-",0)/X79 -> 19.32643628 | CE79: 0.5 | CF79: 1 | CG79: 0 | CH79: 0 | CI79: 1 | CJ79: 4.5 | CK79: 1.5 | CL79: 37.06915717 | CM79: 12.35638572 | CN79: 1 | CO79: =VLOOKUP(A79,Taul1!$F$6:$G$953,2,FALSE) -> 1 | CP79: 33.8525 | CQ79: 14.7525 | CR79: 15.1 | CS79: 4 | CU79: https://www.google.com/maps/@62.50935211,25.88391738,3a,75y,90t/data=!3m3!1e1!3m1!2e0 | CZ79: =_xlfn.XLOOKUP(A79,[1]Maito!$A:$A,[1]Maito!$J:$J,"-",0) -> 1 | DA79: 1 | DB79: =_xlfn.XLOOKUP(A79,[1]Kaatopaikat_jäte!$A:$A,[1]Kaatopaikat_jäte!$F:$F,"-",0) -> 0 | DC79: =_xlfn.XLOOKUP(A79,'[1]Maa-aines'!$A:$A,'[1]Maa-aines'!$F:$F,"-",0) -> 2 | DD79: =_xlfn.XLOOKUP(A79,[1]Turve!$A:$A,[1]Turve!$F:$F,"-",0) -> 0 | DE79: =_xlfn.XLOOKUP(A79,[1]Vilja!$A:$A,[1]Vilja!$F:$F,"-",0) -> 4 | DF79: =_xlfn.XLOOKUP(A79,[1]Kasvihuoneet!$A:$A,[1]Kasvihuoneet!$F:$F,"-",0) -> 0 | DG79: =_xlfn.XLOOKUP(A79,[1]Eläintilat!$A:$A,[1]Eläintilat!$H:$H,"-",0) -> 176 | DH79: =_xlfn.XLOOKUP(A79,[1]Eläintilat!$A:$A,[1]Eläintilat!$J:$J,"-",0) -> 20 | DI79: =_xlfn.XLOOKUP(A79,[1]Eläintilat!$A:$A,[1]Eläintilat!$I:$I,"-",0) -> 0 | DJ79: =_xlfn.XLOOKUP(A79,[1]Eläintilat!$A:$A,[1]Eläintilat!$K:$K,"-",0) -> 1001 | DK79: =_xlfn.XLOOKUP(A79,'[1]Elintarvike ja varasto'!$A:$A,'[1]Elintarvike ja varasto'!$F:$F,"-",0) -> 1 | DM79: =_xlfn.XLOOKUP(A79,[1]Koulut!$A:$A,[1]Koulut!$F:$F,"-",0) -> 0 | DN79: =_xlfn.XLOOKUP(A79,'[1]Tuotanto ja teollisuus'!$A:$A,'[1]Tuotanto ja teollisuus'!$F:$F,"-",0) -> 0 | DP79: =_xlfn.XLOOKUP(A79,[1]Varareitit!$A:$A,[1]Varareitit!$F:$F,"-",0) -> 1 | DQ79: =_xlfn.XLOOKUP(A79,[1]Taajama!$A:$A,[1]Taajama!$F:$F,"-",0) -> 0 | DR79: 1 | DS79: 0 | DT79: 1 | DU79: =_xlfn.XLOOKUP(A79,[1]Matkailukohteet!$A:$A,[1]Matkailukohteet!$F:$F,"-",0) -> 0 | DV79: =_xlfn.XLOOKUP(A79,[1]Matkailu!$A:$A,[1]Matkailu!$F:$F,"-",0) -> 0 | DW79: =_xlfn.XLOOKUP(A79,[1]Pyörämatkailu!$A:$A,[1]Pyörämatkailu!$F:$F,"-",0) -> 0 | DX79: 0 | DZ79: =_xlfn.XLOOKUP(A79,'[1]Verkollinen asema'!$A:$A,'[1]Verkollinen asema'!$D:$D,"-",0) -> 0 | EA79: =_xlfn.XLOOKUP(A79,[1]Kaupat!$A:$A,[1]Kaupat!$F:$F,"-",0) -> 0 | EF79: -- | EG79: -- | EH79: -- | EI79: -- | EJ79: -- | EL79: 3191_1 | EM79: LOPUT | EN79: 282 | EO79: 2 | EQ79: 1321 | ER79: 1
A80: 16736_1 | B80: 1 | D80: 44 | E80: 44 | F80: 0 | G80: 12.35628203 | H80: 4.4875 | I80: 5.535448695 | J80: 2.333333333 | K80: 1 | L80: 0 | M80: Gmaps | N80: LOPUT | O80: Yhdys | P80: Hohontie | Q80: Laukaa | S80: 16736 | T80: 1 | U80: 0 | V80: 1 | W80: 1463 | X80: 1463 | Y80: 1071 | Z80: 45 | AA80: 1217 | AB80: 1071 (100 %) | AC80: 40 (14 %), 50 (57 %), 80 (29 %) | AD80: Ib (100 %) | AE80: Asfalttibetoni (100 %) | AF80: PK3 (100 %) | AG80: 0 | AH80: 0 | AJ80: 6 | AR80: 9 | AS80: 26 | AV80: 3 | AW80: =_xlfn.XLOOKUP(A80,[1]Työmatkat!$A:$A,[1]Työmatkat!$F:$F,"-",0) -> 195 | AX80: 1.4625 | AY80: 13.4625 | AZ80: 4.4875 | BA80: 8 | BB80: 0.3 | BC80: 3 | BD80: 0 | BE80: 0 | BF80: 1 | BG80: 0 | BH80: 0.305 | BI80: 0 | BJ80: 0 | BK80: 0 | BL80: 2 | BM80: 0 | BO80: 2 | BP80: 0.01346086155 | BQ80: 0.001346086155 | BR80: 16.60634609 | BS80: 5.535448695 | BT80: 1465.79 | BU80: 1.00190704 | BV80: 1 | BW80: =_xlfn.XLOOKUP(A80,[1]Erikoiskuljetukset!$A:$A,[1]Erikoiskuljetukset!$F:$F,"-",0) -> 0 | BX80: 0 | BY80: 0 | BZ80: 1 | CA80: 1465.79 | CB80: 1.00190704 | CC80: 1 | CD80: =_xlfn.XLOOKUP(A80,'[1]2_Asukastiheys'!$A:$A,'[1]2_Asukastiheys'!$H:$H,"-",0)/X80 -> 327.391661 | CE80: 1 | CF80: 1 | CG80: 1 | CH80: 0 | CI80: 1 | CJ80: 7 | CK80: 2.333333333 | CL80: 37.06884609 | CM80: 12.35628203 | CN80: 1 | CO80: =VLOOKUP(A80,Taul1!$F$6:$G$953,2,FALSE) -> 1 | CP80: 33.7675 | CQ80: 13.4625 | CR80: 16.305 | CS80: 4 | CU80: https://www.google.com/maps/@62.26260378,26.20383912,3a,75y,90t/data=!3m3!1e1!3m1!2e0 | CZ80: =_xlfn.XLOOKUP(A80,[1]Maito!$A:$A,[1]Maito!$J:$J,"-",0) -> 1 | DA80: 1 | DB80: =_xlfn.XLOOKUP(A80,[1]Kaatopaikat_jäte!$A:$A,[1]Kaatopaikat_jäte!$F:$F,"-",0) -> 0 | DC80: =_xlfn.XLOOKUP(A80,'[1]Maa-aines'!$A:$A,'[1]Maa-aines'!$F:$F,"-",0) -> 0 | DD80: =_xlfn.XLOOKUP(A80,[1]Turve!$A:$A,[1]Turve!$F:$F,"-",0) -> 0 | DE80: =_xlfn.XLOOKUP(A80,[1]Vilja!$A:$A,[1]Vilja!$F:$F,"-",0) -> 2 | DF80: =_xlfn.XLOOKUP(A80,[1]Kasvihuoneet!$A:$A,[1]Kasvihuoneet!$F:$F,"-",0) -> 0 | DG80: =_xlfn.XLOOKUP(A80,[1]Eläintilat!$A:$A,[1]Eläintilat!$H:$H,"-",0) -> 61 | DH80: =_xlfn.XLOOKUP(A80,[1]Eläintilat!$A:$A,[1]Eläintilat!$J:$J,"-",0) -> 0 | DI80: =_xlfn.XLOOKUP(A80,[1]Eläintilat!$A:$A,[1]Eläintilat!$I:$I,"-",0) -> 0 | DJ80: =_xlfn.XLOOKUP(A80,[1]Eläintilat!$A:$A,[1]Eläintilat!$K:$K,"-",0) -> 0 | DK80: =_xlfn.XLOOKUP(A80,'[1]Elintarvike ja varasto'!$A:$A,'[1]Elintarvike ja varasto'!$F:$F,"-",0) -> 1 | DM80: =_xlfn.XLOOKUP(A80,[1]Koulut!$A:$A,[1]Koulut!$F:$F,"-",0) -> 1465.79 | DN80: =_xlfn.XLOOKUP(A80,'[1]Tuotanto ja teollisuus'!$A:$A,'[1]Tuotanto ja teollisuus'!$F:$F,"-",0) -> 0 | DP80: =_xlfn.XLOOKUP(A80,[1]Varareitit!$A:$A,[1]Varareitit!$F:$F,"-",0) -> 1 | DQ80: =_xlfn.XLOOKUP(A80,[1]Taajama!$A:$A,[1]Taajama!$F:$F,"-",0) -> 1465.79 | DR80: 1 | DS80: 0 | DT80: 1 | DU80: =_xlfn.XLOOKUP(A80,[1]Matkailukohteet!$A:$A,[1]Matkailukohteet!$F:$F,"-",0) -> 0 | DV80: =_xlfn.XLOOKUP(A80,[1]Matkailu!$A:$A,[1]Matkailu!$F:$F,"-",0) -> 0 | DW80: =_xlfn.XLOOKUP(A80,[1]Pyörämatkailu!$A:$A,[1]Pyörämatkailu!$F:$F,"-",0) -> 1 | DX80: 1 | DZ80: =_xlfn.XLOOKUP(A80,'[1]Verkollinen asema'!$A:$A,'[1]Verkollinen asema'!$D:$D,"-",0) -> 0 | EA80: =_xlfn.XLOOKUP(A80,[1]Kaupat!$A:$A,[1]Kaupat!$F:$F,"-",0) -> 1 | EF80: -- | EG80: -- | EH80: -- | EI80: -- | EJ80: -- | EL80: 1635_4 | EM80: VÄHÄ | EN80: 756 | EO80: 3 | EQ80: 6134 | ER80: 3
A81: 16711_1 | B81: 1 | D81: 45 | E81: 45 | F81: 0 | G81: 12.33755024 | H81: 5 | I81: 5.670883576 | J81: 1.666666667 | K81: 1 | L81: 0 | M81: Gmaps | N81: LOPUT | O81: Yhdys | P81: Ritopohjantie | Q81: Jyväskylä | S81: 16711 | T81: 1 | U81: 3740 | V81: 1 | W81: 3859 | X81: 119 | Y81: 10409 | Z81: 446 | AA81: 10794 | AB81: 10409 (100 %) | AC81: 50 (99 %) | AE81: Kivimastiksiasfaltti (99 %) | AF81: PK2 (99 %) | AG81: 0 | AH81: 1 | AJ81: 21 | AR81: 9 | AS81: 1140 | AV81: 3 | AW81: =_xlfn.XLOOKUP(A81,[1]Työmatkat!$A:$A,[1]Työmatkat!$F:$F,"-",0) -> 1419 | AX81: 3 | AY81: 15 | AZ81: 5 | BA81: 8 | BB81: 1 | BC81: 3 | BD81: 0 | BE81: 0 | BF81: 1 | BG81: 0 | BH81: 0 | BI81: 0 | BJ81: 0 | BK81: 0.0095 | BL81: 0 | BM81: 2 | BO81: 2 | BP81: 0.03150727986 | BQ81: 0.003150727986 | BR81: 17.01265073 | BS81: 5.670883576 | BT81: 117.506 | BU81: 0.9874453782 | BV81: 1 | BW81: =_xlfn.XLOOKUP(A81,[1]Erikoiskuljetukset!$A:$A,[1]Erikoiskuljetukset!$F:$F,"-",0) -> 0 | BX81: 0 | BY81: 0 | BZ81: 0 | CA81: 117.506 | CB81: 0.9874453782 | CC81: 1 | CD81: =_xlfn.XLOOKUP(A81,'[1]2_Asukastiheys'!$A:$A,'[1]2_Asukastiheys'!$H:$H,"-",0)/X81 -> 2560.747899 | CE81: 1 | CF81: 1 | CG81: 0 | CH81: 0 | CI81: 1 | CJ81: 5 | CK81: 1.666666667 | CL81: 37.01265073 | CM81: 12.33755024 | CN81: 1 | CO81: =VLOOKUP(A81,Taul1!$F$6:$G$953,2,FALSE) -> 1 | CP81: 34.0095 | CQ81: 15 | CR81: 16.0095 | CS81: 3 | CU81: https://www.google.com/maps/@62.29335791,25.73632072,3a,75y,90t/data=!3m3!1e1!3m1!2e0 | CZ81: =_xlfn.XLOOKUP(A81,[1]Maito!$A:$A,[1]Maito!$J:$J,"-",0) -> 1 | DA81: 1 | DB81: =_xlfn.XLOOKUP(A81,[1]Kaatopaikat_jäte!$A:$A,[1]Kaatopaikat_jäte!$F:$F,"-",0) -> 0 | DC81: =_xlfn.XLOOKUP(A81,'[1]Maa-aines'!$A:$A,'[1]Maa-aines'!$F:$F,"-",0) -> 0 | DD81: =_xlfn.XLOOKUP(A81,[1]Turve!$A:$A,[1]Turve!$F:$F,"-",0) -> 0 | DE81: =_xlfn.XLOOKUP(A81,[1]Vilja!$A:$A,[1]Vilja!$F:$F,"-",0) -> 1 | DF81: =_xlfn.XLOOKUP(A81,[1]Kasvihuoneet!$A:$A,[1]Kasvihuoneet!$F:$F,"-",0) -> 0 | DG81: =_xlfn.XLOOKUP(A81,[1]Eläintilat!$A:$A,[1]Eläintilat!$H:$H,"-",0) -> 0 | DH81: =_xlfn.XLOOKUP(A81,[1]Eläintilat!$A:$A,[1]Eläintilat!$J:$J,"-",0) -> 0 | DI81: =_xlfn.XLOOKUP(A81,[1]Eläintilat!$A:$A,[1]Eläintilat!$I:$I,"-",0) -> 0 | DJ81: =_xlfn.XLOOKUP(A81,[1]Eläintilat!$A:$A,[1]Eläintilat!$K:$K,"-",0) -> 19 | DK81: =_xlfn.XLOOKUP(A81,'[1]Elintarvike ja varasto'!$A:$A,'[1]Elintarvike ja varasto'!$F:$F,"-",0) -> 0 | DM81: =_xlfn.XLOOKUP(A81,[1]Koulut!$A:$A,[1]Koulut!$F:$F,"-",0) -> 117.506 | DN81: =_xlfn.XLOOKUP(A81,'[1]Tuotanto ja teollisuus'!$A:$A,'[1]Tuotanto ja teollisuus'!$F:$F,"-",0) -> 6 | DP81: =_xlfn.XLOOKUP(A81,[1]Varareitit!$A:$A,[1]Varareitit!$F:$F,"-",0) -> 0 | DQ81: =_xlfn.XLOOKUP(A81,[1]Taajama!$A:$A,[1]Taajama!$F:$F,"-",0) -> 117.506 | DR81: 1 | DS81: 0 | DT81: 1 | DU81: =_xlfn.XLOOKUP(A81,[1]Matkailukohteet!$A:$A,[1]Matkailukohteet!$F:$F,"-",0) -> 0 | DV81: =_xlfn.XLOOKUP(A81,[1]Matkailu!$A:$A,[1]Matkailu!$F:$F,"-",0) -> 0 | DW81: =_xlfn.XLOOKUP(A81,[1]Pyörämatkailu!$A:$A,[1]Pyörämatkailu!$F:$F,"-",0) -> 0 | DX81: 0 | DZ81: =_xlfn.XLOOKUP(A81,'[1]Verkollinen asema'!$A:$A,'[1]Verkollinen asema'!$D:$D,"-",0) -> 0 | EA81: =_xlfn.XLOOKUP(A81,[1]Kaupat!$A:$A,[1]Kaupat!$F:$F,"-",0) -> 1 | EF81: -- | EG81: -- | EH81: -- | EI81: -- | EJ81: -- | EL81: 1253_1 | EM81: VÄHÄ | EN81: 688 | EO81: 3 | EQ81: 11483 | ER81: 1
A82: 16607_4 | B82: 1 | D82: 46 | E82: 46 | F82: 0 | G82: 12.32735553 | H82: 5 | I82: 5.660688861 | J82: 1.666666667 | K82: 1 | L82: 0 | M82: Gmaps | N82: LOPUT | O82: Yhdys | P82: Ronsuntaipaleentie | Q82: Jyväskylä | S82: 16607 | T82: 4 | U82: 0 | V82: 4 | W82: 4680 | X82: 4680 | Y82: 2491 | Z82: 447 | AA82: 3487 | AB82: 2491 (100 %) | AC82: 50 (19 %), 60 (29 %), 70 (52 %) | AD82: Ib (68 %), Is (32 %) | AE82: Asfalttibetoni (31 %), Pehmeät asfalttibetonit (PAB-B) (68 %) | AF82: PK3 (100 %) | AG82: 2 | AH82: 5 | AJ82: 70 | AR82: 9 | AS82: 52 | AV82: 3 | AW82: =_xlfn.XLOOKUP(A82,[1]Työmatkat!$A:$A,[1]Työmatkat!$F:$F,"-",0) -> 540 | AX82: 3 | AY82: 15 | AZ82: 5 | BA82: 8 | BB82: 1 | BC82: 3 | BD82: 1 | BE82: 1 | BF82: 0 | BG82: 0 | BH82: 0.25 | BI82: 0.155 | BJ82: 0 | BK82: 0 | BL82: 0 | BM82: 0.4 | BO82: 2 | BP82: 1.770665836 | BQ82: 0.1770665836 | BR82: 16.98206658 | BS82: 5.660688861 | BT82: 2544.5 | BU82: 0.5436965812 | BV82: 1 | BW82: =_xlfn.XLOOKUP(A82,[1]Erikoiskuljetukset!$A:$A,[1]Erikoiskuljetukset!$F:$F,"-",0) -> 1261.47 | BX82: 0.2695448718 | BY82: 1 | BZ82: 0 | CA82: 365.359 | CB82: 0.07806816239 | CC82: 0 | CD82: =_xlfn.XLOOKUP(A82,'[1]2_Asukastiheys'!$A:$A,'[1]2_Asukastiheys'!$H:$H,"-",0)/X82 -> 112.1153846 | CE82: 1 | CF82: 1 | CG82: 0 | CH82: 0 | CI82: 1 | CJ82: 5 | CK82: 1.666666667 | CL82: 36.98206658 | CM82: 12.32735553 | CN82: 1 | CO82: =VLOOKUP(A82,Taul1!$F$6:$G$953,2,FALSE) -> 1 | CP82: 33.805 | CQ82: 15 | CR82: 14.805 | CS82: 4 | CU82: https://www.google.com/maps/@62.20146538,25.62060303,3a,75y,90t/data=!3m3!1e1!3m1!2e0 | CZ82: =_xlfn.XLOOKUP(A82,[1]Maito!$A:$A,[1]Maito!$J:$J,"-",0) -> 1 | DA82: 1 | DB82: =_xlfn.XLOOKUP(A82,[1]Kaatopaikat_jäte!$A:$A,[1]Kaatopaikat_jäte!$F:$F,"-",0) -> 4 | DC82: =_xlfn.XLOOKUP(A82,'[1]Maa-aines'!$A:$A,'[1]Maa-aines'!$F:$F,"-",0) -> 1 | DD82: =_xlfn.XLOOKUP(A82,[1]Turve!$A:$A,[1]Turve!$F:$F,"-",0) -> 0 | DE82: =_xlfn.XLOOKUP(A82,[1]Vilja!$A:$A,[1]Vilja!$F:$F,"-",0) -> 0 | DF82: =_xlfn.XLOOKUP(A82,[1]Kasvihuoneet!$A:$A,[1]Kasvihuoneet!$F:$F,"-",0) -> 0 | DG82: =_xlfn.XLOOKUP(A82,[1]Eläintilat!$A:$A,[1]Eläintilat!$H:$H,"-",0) -> 50 | DH82: =_xlfn.XLOOKUP(A82,[1]Eläintilat!$A:$A,[1]Eläintilat!$J:$J,"-",0) -> 31 | DI82: =_xlfn.XLOOKUP(A82,[1]Eläintilat!$A:$A,[1]Eläintilat!$I:$I,"-",0) -> 0 | DJ82: =_xlfn.XLOOKUP(A82,[1]Eläintilat!$A:$A,[1]Eläintilat!$K:$K,"-",0) -> 0 | DK82: =_xlfn.XLOOKUP(A82,'[1]Elintarvike ja varasto'!$A:$A,'[1]Elintarvike ja varasto'!$F:$F,"-",0) -> 0 | DM82: =_xlfn.XLOOKUP(A82,[1]Koulut!$A:$A,[1]Koulut!$F:$F,"-",0) -> 2544.5 | DN82: =_xlfn.XLOOKUP(A82,'[1]Tuotanto ja teollisuus'!$A:$A,'[1]Tuotanto ja teollisuus'!$F:$F,"-",0) -> 1 | DP82: =_xlfn.XLOOKUP(A82,[1]Varareitit!$A:$A,[1]Varareitit!$F:$F,"-",0) -> 0 | DQ82: =_xlfn.XLOOKUP(A82,[1]Taajama!$A:$A,[1]Taajama!$F:$F,"-",0) -> 365.359 | DR82: 1 | DS82: 0 | DT82: 1 | DU82: =_xlfn.XLOOKUP(A82,[1]Matkailukohteet!$A:$A,[1]Matkailukohteet!$F:$F,"-",0) -> 0 | DV82: =_xlfn.XLOOKUP(A82,[1]Matkailu!$A:$A,[1]Matkailu!$F:$F,"-",0) -> 0 | DW82: =_xlfn.XLOOKUP(A82,[1]Pyörämatkailu!$A:$A,[1]Pyörämatkailu!$F:$F,"-",0) -> 0 | DX82: 0 | DZ82: =_xlfn.XLOOKUP(A82,'[1]Verkollinen asema'!$A:$A,'[1]Verkollinen asema'!$D:$D,"-",0) -> 0 | EA82: =_xlfn.XLOOKUP(A82,[1]Kaupat!$A:$A,[1]Kaupat!$F:$F,"-",0) -> 1 | EF82: -- | EG82: -- | EH82: -- | EI82: -- | EJ82: -- | EL82: 13872_1 | EM82: LOPUT | EN82: 573 | EO82: 3 | EQ82: 1403 | ER82: 3
A83: 9_227 | B83: 1 | D83: 47 | E83: 47 | F83: 0 | G83: 12.32333333 | H83: 5 | I83: 5.99 | J83: 1.333333333 | K83: 1 | L83: 0 | M83: Gmaps | N83: LOPUT | O83: Valta | P83: Jyväskyläntie, Ysitie | Q83: Jyväskylä, Jämsä | S83: 9 | T83: 227 | U83: 0 | V83: 227 | W83: 5103 | X83: 5103 | Y83: 7591.921811 | Z83: 688.5459534 | AA83: 9431 | AB83: 7357 (46 %), 7795 (54 %) | AC83: 80 (100 %) | AD83: Is (100 %) | AE83: Kivimastiksiasfaltti (100 %) | AF83: PK1 (100 %) | AG83: 4 | AH83: 9 | AJ83: 434.4993141 | AR83: 9 | AS83: 103 | AV83: 3 | AW83: =_xlfn.XLOOKUP(A83,[1]Työmatkat!$A:$A,[1]Työmatkat!$F:$F,"-",0) -> 2417 | AX83: 3 | AY83: 15 | AZ83: 5 | BA83: 8 | BB83: 1 | BC83: 3 | BD83: 0 | BE83: 0 | BF83: 1 | BG83: 1 | BH83: 0.47 | BI83: 0.5 | BJ83: 0 | BK83: 0 | BL83: 0 | BM83: 0 | BO83: 2 | BP83: 39.30877673 | BQ83: 1 | BR83: 17.97 | BS83: 5.99 | BT83: 2018.45 | BU83: 0.3955418381 | BV83: 0.5 | BW83: =_xlfn.XLOOKUP(A83,[1]Erikoiskuljetukset!$A:$A,[1]Erikoiskuljetukset!$F:$F,"-",0) -> 5097.59 | BX83: 0.9989398393 | BY83: 1 | BZ83: 0 | CA83: 0 | CB83: 0 | CC83: 0 | CD83: =_xlfn.XLOOKUP(A83,'[1]2_Asukastiheys'!$A:$A,'[1]2_Asukastiheys'!$H:$H,"-",0)/X83 -> 18.84303351 | CE83: 0.5 | CF83: 1 | CG83: 0 | CH83: 0 | CI83: 1 | CJ83: 4 | CK83: 1.333333333 | CL83: 36.97 | CM83: 12.32333333 | CN83: 1 | CO83: =VLOOKUP(A83,Taul1!$F$6:$G$953,2,FALSE) -> 2 | CP83: 34.47 | CQ83: 15 | CR83: 15.97 | CS83: 3.5 | CU83: https://www.google.com/maps/@61.93072768,25.34685194,3a,75y,90t/data=!3m3!1e1!3m1!2e0 | CZ83: =_xlfn.XLOOKUP(A83,[1]Maito!$A:$A,[1]Maito!$J:$J,"-",0) -> 5 | DA83: 5 | DB83: =_xlfn.XLOOKUP(A83,[1]Kaatopaikat_jäte!$A:$A,[1]Kaatopaikat_jäte!$F:$F,"-",0) -> 0 | DC83: =_xlfn.XLOOKUP(A83,'[1]Maa-aines'!$A:$A,'[1]Maa-aines'!$F:$F,"-",0) -> 0 | DD83: =_xlfn.XLOOKUP(A83,[1]Turve!$A:$A,[1]Turve!$F:$F,"-",0) -> 2 | DE83: =_xlfn.XLOOKUP(A83,[1]Vilja!$A:$A,[1]Vilja!$F:$F,"-",0) -> 5 | DF83: =_xlfn.XLOOKUP(A83,[1]Kasvihuoneet!$A:$A,[1]Kasvihuoneet!$F:$F,"-",0) -> 2 | DG83: =_xlfn.XLOOKUP(A83,[1]Eläintilat!$A:$A,[1]Eläintilat!$H:$H,"-",0) -> 94 | DH83: =_xlfn.XLOOKUP(A83,[1]Eläintilat!$A:$A,[1]Eläintilat!$J:$J,"-",0) -> 119 | DI83: =_xlfn.XLOOKUP(A83,[1]Eläintilat!$A:$A,[1]Eläintilat!$I:$I,"-",0) -> 0 | DJ83: =_xlfn.XLOOKUP(A83,[1]Eläintilat!$A:$A,[1]Eläintilat!$K:$K,"-",0) -> 0 | DK83: =_xlfn.XLOOKUP(A83,'[1]Elintarvike ja varasto'!$A:$A,'[1]Elintarvike ja varasto'!$F:$F,"-",0) -> 0 | DM83: =_xlfn.XLOOKUP(A83,[1]Koulut!$A:$A,[1]Koulut!$F:$F,"-",0) -> 2018.45 | DN83: =_xlfn.XLOOKUP(A83,'[1]Tuotanto ja teollisuus'!$A:$A,'[1]Tuotanto ja teollisuus'!$F:$F,"-",0) -> 0 | DP83: =_xlfn.XLOOKUP(A83,[1]Varareitit!$A:$A,[1]Varareitit!$F:$F,"-",0) -> 0 | DQ83: =_xlfn.XLOOKUP(A83,[1]Taajama!$A:$A,[1]Taajama!$F:$F,"-",0) -> 0 | DR83: 1 | DS83: 0 | DT83: 1 | DU83: =_xlfn.XLOOKUP(A83,[1]Matkailukohteet!$A:$A,[1]Matkailukohteet!$F:$F,"-",0) -> 0 | DV83: =_xlfn.XLOOKUP(A83,[1]Matkailu!$A:$A,[1]Matkailu!$F:$F,"-",0) -> 0 | DW83: =_xlfn.XLOOKUP(A83,[1]Pyörämatkailu!$A:$A,[1]Pyörämatkailu!$F:$F,"-",0) -> 0 | DX83: 0 | DZ83: =_xlfn.XLOOKUP(A83,'[1]Verkollinen asema'!$A:$A,'[1]Verkollinen asema'!$D:$D,"-",0) -> 0 | EA83: =_xlfn.XLOOKUP(A83,[1]Kaupat!$A:$A,[1]Kaupat!$F:$F,"-",0) -> 1 | EF83: -- | EG83: -- | EH83: -- | EI83: -- | EJ83: -- | EL83: 55_5 | EM83: LOPUT | EN83: 99 | EO83: 2 | EQ83: 11116 | ER83: 1
A84: 9_303 | B84: 2 | D84: 48 | E84: 48 | F84: 0 | G84: 12.31 | H84: 5 | I84: 5.643333333 | J84: 1.666666667 | K84: 2 | L84: 0 | M84: Gmaps | N84: LOPUT | O84: Valta | P84: Kuopiontie | Q84: Jyväskylä, Laukaa | S84: 9 | T84: 303 | U84: 0 | V84: 303 | W84: 11439 | X84: 11439 | Y84: 9672.149401 | Z84: 868.7133491 | AA84: 11902 | AB84: 9329 (66 %), 10336 (34 %) | AC84: 100 (64 %), 60 (9 %), 80 (27 %) | AD84: Is (100 %) | AE84: Kivimastiksiasfaltti (100 %) | AF84: PK1 (100 %) | AG84: 10 | AH84: 21 | AJ84: 454.4299327 | AR84: 9 | AS84: 161 | AV84: 3 | AW84: =_xlfn.XLOOKUP(A84,[1]Työmatkat!$A:$A,[1]Työmatkat!$F:$F,"-",0) -> 3369 | AX84: 3 | AY84: 15 | AZ84: 5 | BA84: 8 | BB84: 1 | BC84: 3 | BD84: 0 | BE84: 1 | BF84: 1 | BG84: 1 | BH84: 0.5 | BI84: 0.03 | BJ84: 0 | BK84: 0 | BL84: 0 | BM84: 0.4 | BO84: 0 | BP84: 11.15031316 | BQ84: 1 | BR84: 16.93 | BS84: 5.643333333 | BT84: 94.3708 | BU84: 0.008249916951 | BV84: 0.5 | BW84: =_xlfn.XLOOKUP(A84,[1]Erikoiskuljetukset!$A:$A,[1]Erikoiskuljetukset!$F:$F,"-",0) -> 11431.3 | BX84: 0.9993268642 | BY84: 1 | BZ84: 1 | CA84: 1070.85 | CB84: 0.09361395227 | CC84: 0 | CD84: =_xlfn.XLOOKUP(A84,'[1]2_Asukastiheys'!$A:$A,'[1]2_Asukastiheys'!$H:$H,"-",0)/X84 -> 23.91817467 | CE84: 0.5 | CF84: 1 | CG84: 0 | CH84: 0 | CI84: 1 | CJ84: 5 | CK84: 1.666666667 | CL84: 36.93 | CM84: 12.31 | CN84: 2 | CO84: =VLOOKUP(A84,Taul1!$F$6:$G$953,2,FALSE) -> 2 | CP84: 33.43 | CQ84: 15 | CR84: 13.93 | CS84: 4.5 | CU84: https://www.google.com/maps/@62.23023102,25.90066707,3a,75y,90t/data=!3m3!1e1!3m1!2e0 | CZ84: =_xlfn.XLOOKUP(A84,[1]Maito!$A:$A,[1]Maito!$J:$J,"-",0) -> 5 | DA84: 5 | DB84: =_xlfn.XLOOKUP(A84,[1]Kaatopaikat_jäte!$A:$A,[1]Kaatopaikat_jäte!$F:$F,"-",0) -> 0 | DC84: =_xlfn.XLOOKUP(A84,'[1]Maa-aines'!$A:$A,'[1]Maa-aines'!$F:$F,"-",0) -> 2 | DD84: =_xlfn.XLOOKUP(A84,[1]Turve!$A:$A,[1]Turve!$F:$F,"-",0) -> 0 | DE84: =_xlfn.XLOOKUP(A84,[1]Vilja!$A:$A,[1]Vilja!$F:$F,"-",0) -> 6 | DF84: =_xlfn.XLOOKUP(A84,[1]Kasvihuoneet!$A:$A,[1]Kasvihuoneet!$F:$F,"-",0) -> 1 | DG84: =_xlfn.XLOOKUP(A84,[1]Eläintilat!$A:$A,[1]Eläintilat!$H:$H,"-",0) -> 934 | DH84: =_xlfn.XLOOKUP(A84,[1]Eläintilat!$A:$A,[1]Eläintilat!$J:$J,"-",0) -> 6 | DI84: =_xlfn.XLOOKUP(A84,[1]Eläintilat!$A:$A,[1]Eläintilat!$I:$I,"-",0) -> 0 | DJ84: =_xlfn.XLOOKUP(A84,[1]Eläintilat!$A:$A,[1]Eläintilat!$K:$K,"-",0) -> 0 | DK84: =_xlfn.XLOOKUP(A84,'[1]Elintarvike ja varasto'!$A:$A,'[1]Elintarvike ja varasto'!$F:$F,"-",0) -> 0 | DM84: =_xlfn.XLOOKUP(A84,[1]Koulut!$A:$A,[1]Koulut!$F:$F,"-",0) -> 94.3708 | DN84: =_xlfn.XLOOKUP(A84,'[1]Tuotanto ja teollisuus'!$A:$A,'[1]Tuotanto ja teollisuus'!$F:$F,"-",0) -> 1 | DP84: =_xlfn.XLOOKUP(A84,[1]Varareitit!$A:$A,[1]Varareitit!$F:$F,"-",0) -> 35 | DQ84: =_xlfn.XLOOKUP(A84,[1]Taajama!$A:$A,[1]Taajama!$F:$F,"-",0) -> 1070.85 | DR84: 1 | DS84: 0 | DT84: 1 | DU84: =_xlfn.XLOOKUP(A84,[1]Matkailukohteet!$A:$A,[1]Matkailukohteet!$F:$F,"-",0) -> 0 | DV84: =_xlfn.XLOOKUP(A84,[1]Matkailu!$A:$A,[1]Matkailu!$F:$F,"-",0) -> 0 | DW84: =_xlfn.XLOOKUP(A84,[1]Pyörämatkailu!$A:$A,[1]Pyörämatkailu!$F:$F,"-",0) -> 0 | DX84: 0 | DZ84: =_xlfn.XLOOKUP(A84,'[1]Verkollinen asema'!$A:$A,'[1]Verkollinen asema'!$D:$D,"-",0) -> 0 | EA84: =_xlfn.XLOOKUP(A84,[1]Kaupat!$A:$A,[1]Kaupat!$F:$F,"-",0) -> 0 | EF84: -- | EG84: -- | EH84: -- | EI84: -- | EJ84: -- | EL84: 12_220 | EM84: LOPUT | EN84: 91 | EO84: 2 | EQ84: 14097 | ER84: 1
A85: 4_231 | B85: 2 | D85: 49 | E85: 49 | F85: 0 | G85: 12.30442541 | H85: 5 | I85: 5.304425409 | J85: 2 | K85: 2 | L85: 0 | M85: Gmaps | N85: LOPUT | O85: Valta | P85: Viisarimäenväylä | Q85: Jyväskylä | S85: 4 | T85: 231 | U85: 0 | V85: 231 | W85: 3614 | X85: 3614 | Y85: 5614 | Z85: 780 | AA85: 6868 | AB85: 5614 (100 %) | AC85: 100 (74 %), 50 (5 %), 60 (14 %), 80 (7 %) | AD85: Ise (100 %) | AE85: Kivimastiksiasfaltti (100 %) | AF85: PK1 (100 %) | AG85: 1 | AH85: 2 | AJ85: 612 | AR85: 9 | AS85: 193 | AV85: 3 | AW85: =_xlfn.XLOOKUP(A85,[1]Työmatkat!$A:$A,[1]Työmatkat!$F:$F,"-",0) -> 1093 | AX85: 3 | AY85: 15 | AZ85: 5 | BA85: 8 | BB85: 1 | BC85: 3 | BD85: 0 | BE85: 0 | BF85: 1 | BG85: 0 | BH85: 0.5 | BI85: 0.04 | BJ85: 0 | BK85: 0 | BL85: 0 | BM85: 0 | BO85: 2 | BP85: 3.732762262 | BQ85: 0.3732762262 | BR85: 15.91327623 | BS85: 5.304425409 | BT85: 80.8046 | BU85: 0.02235877144 | BV85: 0.5 | BW85: =_xlfn.XLOOKUP(A85,[1]Erikoiskuljetukset!$A:$A,[1]Erikoiskuljetukset!$F:$F,"-",0) -> 3605.78 | BX85: 0.9977255119 | BY85: 1 | BZ85: 1 | CA85: 657.782 | CB85: 0.1820094079 | CC85: 0 | CD85: =_xlfn.XLOOKUP(A85,'[1]2_Asukastiheys'!$A:$A,'[1]2_Asukastiheys'!$H:$H,"-",0)/X85 -> 29.33148866 | CE85: 0.5 | CF85: 1 | CG85: 1 | CH85: 0 | CI85: 1 | CJ85: 6 | CK85: 2 | CL85: 36.91327623 | CM85: 12.30442541 | CN85: 2 | CO85: =VLOOKUP(A85,Taul1!$F$6:$G$953,2,FALSE) -> 1 | CP85: 34.04 | CQ85: 15 | CR85: 14.54 | CS85: 4.5 | CU85: https://www.google.com/maps/@62.1986456,25.89302863,3a,75y,90t/data=!3m3!1e1!3m1!2e0 | CZ85: =_xlfn.XLOOKUP(A85,[1]Maito!$A:$A,[1]Maito!$J:$J,"-",0) -> 4 | DA85: 4 | DB85: =_xlfn.XLOOKUP(A85,[1]Kaatopaikat_jäte!$A:$A,[1]Kaatopaikat_jäte!$F:$F,"-",0) -> 0 | DC85: =_xlfn.XLOOKUP(A85,'[1]Maa-aines'!$A:$A,'[1]Maa-aines'!$F:$F,"-",0) -> 0 | DD85: =_xlfn.XLOOKUP(A85,[1]Turve!$A:$A,[1]Turve!$F:$F,"-",0) -> 0 | DE85: =_xlfn.XLOOKUP(A85,[1]Vilja!$A:$A,[1]Vilja!$F:$F,"-",0) -> 2 | DF85: =_xlfn.XLOOKUP(A85,[1]Kasvihuoneet!$A:$A,[1]Kasvihuoneet!$F:$F,"-",0) -> 0 | DG85: =_xlfn.XLOOKUP(A85,[1]Eläintilat!$A:$A,[1]Eläintilat!$H:$H,"-",0) -> 125 | DH85: =_xlfn.XLOOKUP(A85,[1]Eläintilat!$A:$A,[1]Eläintilat!$J:$J,"-",0) -> 8 | DI85: =_xlfn.XLOOKUP(A85,[1]Eläintilat!$A:$A,[1]Eläintilat!$I:$I,"-",0) -> 0 | DJ85: =_xlfn.XLOOKUP(A85,[1]Eläintilat!$A:$A,[1]Eläintilat!$K:$K,"-",0) -> 0 | DK85: =_xlfn.XLOOKUP(A85,'[1]Elintarvike ja varasto'!$A:$A,'[1]Elintarvike ja varasto'!$F:$F,"-",0) -> 0 | DM85: =_xlfn.XLOOKUP(A85,[1]Koulut!$A:$A,[1]Koulut!$F:$F,"-",0) -> 80.8046 | DN85: =_xlfn.XLOOKUP(A85,'[1]Tuotanto ja teollisuus'!$A:$A,'[1]Tuotanto ja teollisuus'!$F:$F,"-",0) -> 0 | DP85: =_xlfn.XLOOKUP(A85,[1]Varareitit!$A:$A,[1]Varareitit!$F:$F,"-",0) -> 6 | DQ85: =_xlfn.XLOOKUP(A85,[1]Taajama!$A:$A,[1]Taajama!$F:$F,"-",0) -> 657.782 | DR85: 1 | DS85: 0 | DT85: 1 | DU85: =_xlfn.XLOOKUP(A85,[1]Matkailukohteet!$A:$A,[1]Matkailukohteet!$F:$F,"-",0) -> 0 | DV85: =_xlfn.XLOOKUP(A85,[1]Matkailu!$A:$A,[1]Matkailu!$F:$F,"-",0) -> 0 | DW85: =_xlfn.XLOOKUP(A85,[1]Pyörämatkailu!$A:$A,[1]Pyörämatkailu!$F:$F,"-",0) -> 1 | DX85: 1 | DZ85: =_xlfn.XLOOKUP(A85,'[1]Verkollinen asema'!$A:$A,'[1]Verkollinen asema'!$D:$D,"-",0) -> 0 | EA85: =_xlfn.XLOOKUP(A85,[1]Kaupat!$A:$A,[1]Kaupat!$F:$F,"-",0) -> 1 | EF85: -- | EG85: -- | EH85: -- | EI85: -- | EJ85: -- | EL85: 1452_1 | EM85: LOPUT | EN85: 12 | EO85: 1
A86: 58_22 | B86: 2 | D86: 50 | E86: 50 | F86: 0 | G86: 12.3 | H86: 4.3 | I86: 6 | J86: 2 | K86: 2 | L86: 0 | M86: Gmaps | N86: LOPUT | O86: Kanta | P86: Mäntäntie | Q86: Keuruu | S86: 58 | T86: 22 | U86: 0 | V86: 22 | W86: 5933 | X86: 5933 | Y86: 2390.79673 | Z86: 171.1051744 | AA86: 3014 | AB86: 2154 (81 %), 3381 (19 %) | AC86: 100 (37 %), 50 (21 %), 80 (41 %) | AD86: Ib (81 %), Is (19 %) | AE86: Asfalttibetoni (99 %) | AF86: PK2 (100 %) | AG86: 1 | AH86: 4 | AJ86: 69.42103489 | AR86: 9 | AS86: 6 | AV86: 0.9 | AW86: =_xlfn.XLOOKUP(A86,[1]Työmatkat!$A:$A,[1]Työmatkat!$F:$F,"-",0) -> 988 | AX86: 3 | AY86: 12.9 | AZ86: 4.3 | BA86: 8 | BB86: 1 | BC86: 3 | BD86: 1 | BE86: 0 | BF86: 1 | BG86: 1 | BH86: 0 | BI86: 0 | BJ86: 0 | BK86: 0 | BL86: 0 | BM86: 2 | BO86: 0 | BP86: 12.51575121 | BQ86: 1 | BR86: 18 | BS86: 6 | BT86: 3385.34 | BU86: 0.5705949772 | BV86: 1 | BW86: =_xlfn.XLOOKUP(A86,[1]Erikoiskuljetukset!$A:$A,[1]Erikoiskuljetukset!$F:$F,"-",0) -> 0 | BX86: 0 | BY86: 0 | BZ86: 1 | CA86: 1801.89 | CB86: 0.303706388 | CC86: 0 | CD86: =_xlfn.XLOOKUP(A86,'[1]2_Asukastiheys'!$A:$A,'[1]2_Asukastiheys'!$H:$H,"-",0)/X86 -> 142.9351087 | CE86: 1 | CF86: 1 | CG86: 1 | CH86: 0 | CI86: 1 | CJ86: 6 | CK86: 2 | CL86: 36.9 | CM86: 12.3 | CN86: 2 | CO86: =VLOOKUP(A86,Taul1!$F$6:$G$953,2,FALSE) -> 2 | CP86: 32.9 | CQ86: 12.9 | CR86: 16 | CS86: 4 | CU86: https://www.google.com/maps/@62.20838829,24.77001139,3a,75y,90t/data=!3m3!1e1!3m1!2e0 | CZ86: =_xlfn.XLOOKUP(A86,[1]Maito!$A:$A,[1]Maito!$J:$J,"-",0) -> 1 | DA86: 1 | DB86: =_xlfn.XLOOKUP(A86,[1]Kaatopaikat_jäte!$A:$A,[1]Kaatopaikat_jäte!$F:$F,"-",0) -> 1 | DC86: =_xlfn.XLOOKUP(A86,'[1]Maa-aines'!$A:$A,'[1]Maa-aines'!$F:$F,"-",0) -> 0 | DD86: =_xlfn.XLOOKUP(A86,[1]Turve!$A:$A,[1]Turve!$F:$F,"-",0) -> 0 | DE86: =_xlfn.XLOOKUP(A86,[1]Vilja!$A:$A,[1]Vilja!$F:$F,"-",0) -> 1 | DF86: =_xlfn.XLOOKUP(A86,[1]Kasvihuoneet!$A:$A,[1]Kasvihuoneet!$F:$F,"-",0) -> 1 | DG86: =_xlfn.XLOOKUP(A86,[1]Eläintilat!$A:$A,[1]Eläintilat!$H:$H,"-",0) -> 0 | DH86: =_xlfn.XLOOKUP(A86,[1]Eläintilat!$A:$A,[1]Eläintilat!$J:$J,"-",0) -> 0 | DI86: =_xlfn.XLOOKUP(A86,[1]Eläintilat!$A:$A,[1]Eläintilat!$I:$I,"-",0) -> 0 | DJ86: =_xlfn.XLOOKUP(A86,[1]Eläintilat!$A:$A,[1]Eläintilat!$K:$K,"-",0) -> 0 | DK86: =_xlfn.XLOOKUP(A86,'[1]Elintarvike ja varasto'!$A:$A,'[1]Elintarvike ja varasto'!$F:$F,"-",0) -> 0 | DM86: =_xlfn.XLOOKUP(A86,[1]Koulut!$A:$A,[1]Koulut!$F:$F,"-",0) -> 3385.34 | DN86: =_xlfn.XLOOKUP(A86,'[1]Tuotanto ja teollisuus'!$A:$A,'[1]Tuotanto ja teollisuus'!$F:$F,"-",0) -> 7 | DP86: =_xlfn.XLOOKUP(A86,[1]Varareitit!$A:$A,[1]Varareitit!$F:$F,"-",0) -> 2 | DQ86: =_xlfn.XLOOKUP(A86,[1]Taajama!$A:$A,[1]Taajama!$F:$F,"-",0) -> 1801.89 | DR86: 1 | DS86: 0 | DT86: 1 | DU86: =_xlfn.XLOOKUP(A86,[1]Matkailukohteet!$A:$A,[1]Matkailukohteet!$F:$F,"-",0) -> 0 | DV86: =_xlfn.XLOOKUP(A86,[1]Matkailu!$A:$A,[1]Matkailu!$F:$F,"-",0) -> 0 | DW86: =_xlfn.XLOOKUP(A86,[1]Pyörämatkailu!$A:$A,[1]Pyörämatkailu!$F:$F,"-",0) -> 1 | DX86: 1 | DZ86: =_xlfn.XLOOKUP(A86,'[1]Verkollinen asema'!$A:$A,'[1]Verkollinen asema'!$D:$D,"-",0) -> 0 | EA86: =_xlfn.XLOOKUP(A86,[1]Kaupat!$A:$A,[1]Kaupat!$F:$F,"-",0) -> 0 | EF86: -- | EG86: -- | EH86: -- | EI86: -- | EJ86: -- | EL86: 360_5 | EM86: LOPUT | EN86: 149 | EO86: 2 | EQ86: 11893 | ER86: 3
A87: 618_1 | B87: 2 | D87: 51 | E87: 51 | F87: 0 | G87: 12.28485705 | H87: 5 | I87: 4.95152372 | J87: 2.333333333 | K87: 2 | L87: 0 | M87: Gmaps | N87: LOPUT | O87: Seutu | P87: Toivakantie, Viisarimäentie | Q87: Toivakka | S87: 618 | T87: 1 | U87: 0 | V87: 1 | W87: 3798 | X87: 3798 | Y87: 1839.687204 | Z87: 165.5371248 | AA87: 2063 | AB87: 1719 (27 %), 1884 (73 %) | AC87: 40 (17 %), 50 (23 %), 80 (61 %) | AD87: Ib (100 %) | AE87: Asfalttibetoni (99 %) | AF87: PK2 (100 %) | AG87: 0 | AH87: 3 | AJ87: 90 | AR87: 9 | AS87: 32 | AV87: 3 | AW87: =_xlfn.XLOOKUP(A87,[1]Työmatkat!$A:$A,[1]Työmatkat!$F:$F,"-",0) -> 524 | AX87: 3 | AY87: 15 | AZ87: 5 | BA87: 8 | BB87: 1 | BC87: 0 | BD87: 0 | BE87: 1 | BF87: 1 | BG87: 1 | BH87: 0.425 | BI87: 0.02 | BJ87: 0 | BK87: 0 | BL87: 0 | BM87: 0 | BO87: 2 | BP87: 4.095711598 | BQ87: 0.4095711598 | BR87: 14.85457116 | BS87: 4.95152372 | BT87: 2686.15 | BU87: 0.7072538178 | BV87: 1 | BW87: =_xlfn.XLOOKUP(A87,[1]Erikoiskuljetukset!$A:$A,[1]Erikoiskuljetukset!$F:$F,"-",0) -> 3745.35 | BX87: 0.9861374408 | BY87: 1 | BZ87: 1 | CA87: 1532.51 | CB87: 0.403504476 | CC87: 0 | CD87: =_xlfn.XLOOKUP(A87,'[1]2_Asukastiheys'!$A:$A,'[1]2_Asukastiheys'!$H:$H,"-",0)/X87 -> 189.2532912 | CE87: 1 | CF87: 1 | CG87: 1 | CH87: 0 | CI87: 1 | CJ87: 7 | CK87: 2.333333333 | CL87: 36.85457116 | CM87: 12.28485705 | CN87: 2 | CO87: =VLOOKUP(A87,Taul1!$F$6:$G$953,2,FALSE) -> 2 | CP87: 32.445 | CQ87: 15 | CR87: 12.445 | CS87: 5 | CU87: https://www.google.com/maps/@62.07109708,26.04106073,3a,75y,90t/data=!3m3!1e1!3m1!2e0 | CZ87: =_xlfn.XLOOKUP(A87,[1]Maito!$A:$A,[1]Maito!$J:$J,"-",0) -> 0 | DA87: 0 | DB87: =_xlfn.XLOOKUP(A87,[1]Kaatopaikat_jäte!$A:$A,[1]Kaatopaikat_jäte!$F:$F,"-",0) -> 0 | DC87: =_xlfn.XLOOKUP(A87,'[1]Maa-aines'!$A:$A,'[1]Maa-aines'!$F:$F,"-",0) -> 1 | DD87: =_xlfn.XLOOKUP(A87,[1]Turve!$A:$A,[1]Turve!$F:$F,"-",0) -> 0 | DE87: =_xlfn.XLOOKUP(A87,[1]Vilja!$A:$A,[1]Vilja!$F:$F,"-",0) -> 2 | DF87: =_xlfn.XLOOKUP(A87,[1]Kasvihuoneet!$A:$A,[1]Kasvihuoneet!$F:$F,"-",0) -> 4 | DG87: =_xlfn.XLOOKUP(A87,[1]Eläintilat!$A:$A,[1]Eläintilat!$H:$H,"-",0) -> 85 | DH87: =_xlfn.XLOOKUP(A87,[1]Eläintilat!$A:$A,[1]Eläintilat!$J:$J,"-",0) -> 4 | DI87: =_xlfn.XLOOKUP(A87,[1]Eläintilat!$A:$A,[1]Eläintilat!$I:$I,"-",0) -> 0 | DJ87: =_xlfn.XLOOKUP(A87,[1]Eläintilat!$A:$A,[1]Eläintilat!$K:$K,"-",0) -> 0 | DK87: =_xlfn.XLOOKUP(A87,'[1]Elintarvike ja varasto'!$A:$A,'[1]Elintarvike ja varasto'!$F:$F,"-",0) -> 0 | DM87: =_xlfn.XLOOKUP(A87,[1]Koulut!$A:$A,[1]Koulut!$F:$F,"-",0) -> 2686.15 | DN87: =_xlfn.XLOOKUP(A87,'[1]Tuotanto ja teollisuus'!$A:$A,'[1]Tuotanto ja teollisuus'!$F:$F,"-",0) -> 0 | DP87: =_xlfn.XLOOKUP(A87,[1]Varareitit!$A:$A,[1]Varareitit!$F:$F,"-",0) -> 5 | DQ87: =_xlfn.XLOOKUP(A87,[1]Taajama!$A:$A,[1]Taajama!$F:$F,"-",0) -> 1532.51 | DR87: 1 | DS87: 0 | DT87: 1 | DU87: =_xlfn.XLOOKUP(A87,[1]Matkailukohteet!$A:$A,[1]Matkailukohteet!$F:$F,"-",0) -> 0 | DV87: =_xlfn.XLOOKUP(A87,[1]Matkailu!$A:$A,[1]Matkailu!$F:$F,"-",0) -> 0 | DW87: =_xlfn.XLOOKUP(A87,[1]Pyörämatkailu!$A:$A,[1]Pyörämatkailu!$F:$F,"-",0) -> 1 | DX87: 1 | DZ87: =_xlfn.XLOOKUP(A87,'[1]Verkollinen asema'!$A:$A,'[1]Verkollinen asema'!$D:$D,"-",0) -> 0 | EA87: =_xlfn.XLOOKUP(A87,[1]Kaupat!$A:$A,[1]Kaupat!$F:$F,"-",0) -> 2 | EF87: -- | EG87: -- | EH87: -- | EI87: -- | EJ87: -- | EL87: 1552_1 | EM87: LOPUT | EN87: 251 | EO87: 2
A88: 23_225 | B88: 2 | D88: 52 | E88: 52 | F88: 0 | G88: 12.26666667 | H88: 4.6 | I88: 5 | J88: 2.666666667 | K88: 2 | L88: 0 | M88: Gmaps | N88: LOPUT | O88: Valta | P88: Petäjävedentie | Q88: Petäjävesi | S88: 23 | T88: 225 | U88: 0 | V88: 225 | W88: 1888 | X88: 1888 | Y88: 3778.779661 | Z88: 377.7457627 | AA88: 4638 | AB88: 3609 (64 %), 4086 (36 %) | AC88: 50 (17 %), 60 (29 %), 80 (56 %) | AD88: Is (100 %) | AE88: Kivimastiksiasfaltti (100 %) | AF88: PK1 (100 %) | AG88: 1 | AH88: 1 | AJ88: 202.9491525 | AR88: 9 | AS88: 12 | AV88: 1.8 | AW88: =_xlfn.XLOOKUP(A88,[1]Työmatkat!$A:$A,[1]Työmatkat!$F:$F,"-",0) -> 1037 | AX88: 3 | AY88: 13.8 | AZ88: 4.6 | BA88: 8 | BB88: 1 | BC88: 3 | BD88: 0 | BE88: 0 | BF88: 0 | BG88: 0 | BH88: 0 | BI88: 0 | BJ88: 0 | BK88: 0 | BL88: 0 | BM88: 0 | BO88: 2 | BP88: 20.76670995 | BQ88: 1 | BR88: 15 | BS88: 5 | BT88: 1918.94 | BU88: 1.016387712 | BV88: 1 | BW88: =_xlfn.XLOOKUP(A88,[1]Erikoiskuljetukset!$A:$A,[1]Erikoiskuljetukset!$F:$F,"-",0) -> 1890.18 | BX88: 1.001154661 | BY88: 1 | BZ88: 1 | CA88: 1918.94 | CB88: 1.016387712 | CC88: 1 | CD88: =_xlfn.XLOOKUP(A88,'[1]2_Asukastiheys'!$A:$A,'[1]2_Asukastiheys'!$H:$H,"-",0)/X88 -> 200.8135593 | CE88: 1 | CF88: 1 | CG88: 1 | CH88: 0 | CI88: 1 | CJ88: 8 | CK88: 2.666666667 | CL88: 36.8 | CM88: 12.26666667 | CN88: 2 | CO88: =VLOOKUP(A88,Taul1!$F$6:$G$953,2,FALSE) -> 2 | CP88: 31.8 | CQ88: 13.8 | CR88: 13 | CS88: 5 | CU88: https://www.google.com/maps/@62.24749665,25.17144789,3a,75y,90t/data=!3m3!1e1!3m1!2e0 | CZ88: =_xlfn.XLOOKUP(A88,[1]Maito!$A:$A,[1]Maito!$J:$J,"-",0) -> 5 | DA88: 5 | DB88: =_xlfn.XLOOKUP(A88,[1]Kaatopaikat_jäte!$A:$A,[1]Kaatopaikat_jäte!$F:$F,"-",0) -> 0 | DC88: =_xlfn.XLOOKUP(A88,'[1]Maa-aines'!$A:$A,'[1]Maa-aines'!$F:$F,"-",0) -> 0 | DD88: =_xlfn.XLOOKUP(A88,[1]Turve!$A:$A,[1]Turve!$F:$F,"-",0) -> 0 | DE88: =_xlfn.XLOOKUP(A88,[1]Vilja!$A:$A,[1]Vilja!$F:$F,"-",0) -> 0 | DF88: =_xlfn.XLOOKUP(A88,[1]Kasvihuoneet!$A:$A,[1]Kasvihuoneet!$F:$F,"-",0) -> 0 | DG88: =_xlfn.XLOOKUP(A88,[1]Eläintilat!$A:$A,[1]Eläintilat!$H:$H,"-",0) -> 0 | DH88: =_xlfn.XLOOKUP(A88,[1]Eläintilat!$A:$A,[1]Eläintilat!$J:$J,"-",0) -> 0 | DI88: =_xlfn.XLOOKUP(A88,[1]Eläintilat!$A:$A,[1]Eläintilat!$I:$I,"-",0) -> 0 | DJ88: =_xlfn.XLOOKUP(A88,[1]Eläintilat!$A:$A,[1]Eläintilat!$K:$K,"-",0) -> 0 | DK88: =_xlfn.XLOOKUP(A88,'[1]Elintarvike ja varasto'!$A:$A,'[1]Elintarvike ja varasto'!$F:$F,"-",0) -> 0 | DM88: =_xlfn.XLOOKUP(A88,[1]Koulut!$A:$A,[1]Koulut!$F:$F,"-",0) -> 1918.94 | DN88: =_xlfn.XLOOKUP(A88,'[1]Tuotanto ja teollisuus'!$A:$A,'[1]Tuotanto ja teollisuus'!$F:$F,"-",0) -> 0 | DP88: =_xlfn.XLOOKUP(A88,[1]Varareitit!$A:$A,[1]Varareitit!$F:$F,"-",0) -> 18 | DQ88: =_xlfn.XLOOKUP(A88,[1]Taajama!$A:$A,[1]Taajama!$F:$F,"-",0) -> 1918.94 | DR88: 1 | DS88: 0 | DT88: 1 | DU88: =_xlfn.XLOOKUP(A88,[1]Matkailukohteet!$A:$A,[1]Matkailukohteet!$F:$F,"-",0) -> 0 | DV88: =_xlfn.XLOOKUP(A88,[1]Matkailu!$A:$A,[1]Matkailu!$F:$F,"-",0) -> 0 | DW88: =_xlfn.XLOOKUP(A88,[1]Pyörämatkailu!$A:$A,[1]Pyörämatkailu!$F:$F,"-",0) -> 1 | DX88: 1 | DZ88: =_xlfn.XLOOKUP(A88,'[1]Verkollinen asema'!$A:$A,'[1]Verkollinen asema'!$D:$D,"-",0) -> 0 | EA88: =_xlfn.XLOOKUP(A88,[1]Kaupat!$A:$A,[1]Kaupat!$F:$F,"-",0) -> 2 | EF88: -- | EG88: -- | EH88: -- | EI88: -- | EJ88: -- | EL88: 11261_1 | EM88: LOPUT | EN88: 142 | EO88: 2 | EQ88: 14049 | ER88: 2
A89: 4_319 | B89: 2 | D89: 53 | E89: 53 | F89: 0 | G89: 12.26333333 | H89: 5 | I89: 5.43 | J89: 1.833333333 | K89: 2 | L89: 0 | M89: Gmaps | N89: LOPUT | O89: Valta | P89: Pihtiputaantie | Q89: Viitasaari | S89: 4 | T89: 319 | U89: 0 | V89: 319 | W89: 9323 | X89: 9323 | Y89: 6671.849512 | Z89: 901.3578247 | AA89: 9199 | AB89: 6638 (85 %), 6857 (15 %) | AC89: 100 (64 %), 70 (21 %), 80 (15 %) | AD89: Ise (100 %) | AE89: Kivimastiksiasfaltti (99 %) | AF89: PK1 (100 %) | AG89: 7 | AH89: 28 | AJ89: 617.037327 | AR89: 9 | AS89: 22 | AV89: 3 | AW89: =_xlfn.XLOOKUP(A89,[1]Työmatkat!$A:$A,[1]Työmatkat!$F:$F,"-",0) -> 1360 | AX89: 3 | AY89: 15 | AZ89: 5 | BA89: 8 | BB89: 1 | BC89: 0 | BD89: 1 | BE89: 1 | BF89: 0 | BG89: 0 | BH89: 0 | BI89: 0.02 | BJ89: 0.27 | BK89: 0 | BL89: 2 | BM89: 0 | BO89: 2 | BP89: 41.26590743 | BQ89: 1 | BR89: 16.29 | BS89: 5.43 | BT89: 4428.91 | BU89: 0.4750520219 | BV89: 0.5 | BW89: =_xlfn.XLOOKUP(A89,[1]Erikoiskuljetukset!$A:$A,[1]Erikoiskuljetukset!$F:$F,"-",0) -> 9189.16 | BX89: 0.985644106 | BY89: 1 | BZ89: 0 | CA89: 3534.9 | CB89: 0.379159069 | CC89: 0 | CD89: =_xlfn.XLOOKUP(A89,'[1]2_Asukastiheys'!$A:$A,'[1]2_Asukastiheys'!$H:$H,"-",0)/X89 -> 112.8407165 | CE89: 1 | CF89: 1 | CG89: 1 | CH89: 0 | CI89: 1 | CJ89: 5.5 | CK89: 1.833333333 | CL89: 36.79 | CM89: 12.26333333 | CN89: 2 | CO89: =VLOOKUP(A89,Taul1!$F$6:$G$953,2,FALSE) -> 2 | CP89: 31.79 | CQ89: 15 | CR89: 13.29 | CS89: 3.5 | CU89: https://www.google.com/maps/@63.07299671,25.86164063,3a,75y,90t/data=!3m3!1e1!3m1!2e0 | CZ89: =_xlfn.XLOOKUP(A89,[1]Maito!$A:$A,[1]Maito!$J:$J,"-",0) -> 0 | DA89: 0 | DB89: =_xlfn.XLOOKUP(A89,[1]Kaatopaikat_jäte!$A:$A,[1]Kaatopaikat_jäte!$F:$F,"-",0) -> 3 | DC89: =_xlfn.XLOOKUP(A89,'[1]Maa-aines'!$A:$A,'[1]Maa-aines'!$F:$F,"-",0) -> 1 | DD89: =_xlfn.XLOOKUP(A89,[1]Turve!$A:$A,[1]Turve!$F:$F,"-",0) -> 0 | DE89: =_xlfn.XLOOKUP(A89,[1]Vilja!$A:$A,[1]Vilja!$F:$F,"-",0) -> 0 | DF89: =_xlfn.XLOOKUP(A89,[1]Kasvihuoneet!$A:$A,[1]Kasvihuoneet!$F:$F,"-",0) -> 0 | DG89: =_xlfn.XLOOKUP(A89,[1]Eläintilat!$A:$A,[1]Eläintilat!$H:$H,"-",0) -> 0 | DH89: =_xlfn.XLOOKUP(A89,[1]Eläintilat!$A:$A,[1]Eläintilat!$J:$J,"-",0) -> 4 | DI89: =_xlfn.XLOOKUP(A89,[1]Eläintilat!$A:$A,[1]Eläintilat!$I:$I,"-",0) -> 216 | DJ89: =_xlfn.XLOOKUP(A89,[1]Eläintilat!$A:$A,[1]Eläintilat!$K:$K,"-",0) -> 0 | DK89: =_xlfn.XLOOKUP(A89,'[1]Elintarvike ja varasto'!$A:$A,'[1]Elintarvike ja varasto'!$F:$F,"-",0) -> 1 | DM89: =_xlfn.XLOOKUP(A89,[1]Koulut!$A:$A,[1]Koulut!$F:$F,"-",0) -> 4428.91 | DN89: =_xlfn.XLOOKUP(A89,'[1]Tuotanto ja teollisuus'!$A:$A,'[1]Tuotanto ja teollisuus'!$F:$F,"-",0) -> 0 | DP89: =_xlfn.XLOOKUP(A89,[1]Varareitit!$A:$A,[1]Varareitit!$F:$F,"-",0) -> 0 | DQ89: =_xlfn.XLOOKUP(A89,[1]Taajama!$A:$A,[1]Taajama!$F:$F,"-",0) -> 3534.9 | DR89: 1 | DS89: 0 | DT89: 1 | DU89: =_xlfn.XLOOKUP(A89,[1]Matkailukohteet!$A:$A,[1]Matkailukohteet!$F:$F,"-",0) -> 0 | DV89: =_xlfn.XLOOKUP(A89,[1]Matkailu!$A:$A,[1]Matkailu!$F:$F,"-",0) -> 6 | DW89: =_xlfn.XLOOKUP(A89,[1]Pyörämatkailu!$A:$A,[1]Pyörämatkailu!$F:$F,"-",0) -> 0 | DX89: 6 | DZ89: =_xlfn.XLOOKUP(A89,'[1]Verkollinen asema'!$A:$A,'[1]Verkollinen asema'!$D:$D,"-",0) -> 0 | EA89: =_xlfn.XLOOKUP(A89,[1]Kaupat!$A:$A,[1]Kaupat!$F:$F,"-",0) -> 3 | EF89: -- | EG89: -- | EH89: -- | EI89: -- | EJ89: -- | EL89: 53_1 | EM89: LOPUT | EN89: 73 | EO89: 1 | EQ89: 111 | ER89: 2
A90: 642_1 | B90: 2 | D90: 54 | E90: 54 | F90: 0 | G90: 12.24994518 | H90: 5 | I90: 5.083278511 | J90: 2.166666667 | K90: 2 | L90: 0 | M90: Gmaps | N90: LOPUT | O90: Seutu | P90: Suolahdentie | Q90: Laukaa | S90: 642 | T90: 1 | U90: 0 | V90: 1 | W90: 6763 | X90: 6763 | Y90: 1937 | Z90: 168 | AA90: 2171 | AB90: 1937 (100 %) | AC90: 40 (7 %), 50 (6 %), 60 (27 %), 80 (60 %) | AD90: Ib (100 %) | AE90: Asfalttibetoni (99 %), Pehmeät asfalttibetonit (PAB-B) (1 %) | AF90: PK2 (100 %) | AG90: 0 | AH90: 1 | AJ90: 71 | AR90: 9 | AS90: 24 | AV90: 3 | AW90: =_xlfn.XLOOKUP(A90,[1]Työmatkat!$A:$A,[1]Työmatkat!$F:$F,"-",0) -> 405 | AX90: 3 | AY90: 15 | AZ90: 5 | BA90: 8 | BB90: 1 | BC90: 3 | BD90: 0 | BE90: 1 | BF90: 1 | BG90: 0 | BH90: 0.5 | BI90: 0.1 | BJ90: 0 | BK90: 0 | BL90: 0 | BM90: 0 | BO90: 0 | BP90: 6.498355326 | BQ90: 0.6498355326 | BR90: 15.24983553 | BS90: 5.083278511 | BT90: 3589.03 | BU90: 0.5306860861 | BV90: 1 | BW90: =_xlfn.XLOOKUP(A90,[1]Erikoiskuljetukset!$A:$A,[1]Erikoiskuljetukset!$F:$F,"-",0) -> 6754.09 | BX90: 0.9986825373 | BY90: 1 | BZ90: 1 | CA90: 1717.58 | CB90: 0.2539671743 | CC90: 0 | CD90: =_xlfn.XLOOKUP(A90,'[1]2_Asukastiheys'!$A:$A,'[1]2_Asukastiheys'!$H:$H,"-",0)/X90 -> 31.85612894 | CE90: 0.5 | CF90: 1 | CG90: 1 | CH90: 0 | CI90: 1 | CJ90: 6.5 | CK90: 2.166666667 | CL90: 36.74983553 | CM90: 12.24994518 | CN90: 2 | CO90: =VLOOKUP(A90,Taul1!$F$6:$G$953,2,FALSE) -> 1 | CP90: 32.6 | CQ90: 15 | CR90: 12.6 | CS90: 5 | CU90: https://www.google.com/maps/@62.45827532,25.94300017,3a,75y,90t/data=!3m3!1e1!3m1!2e0 | CZ90: =_xlfn.XLOOKUP(A90,[1]Maito!$A:$A,[1]Maito!$J:$J,"-",0) -> 1 | DA90: 1 | DB90: =_xlfn.XLOOKUP(A90,[1]Kaatopaikat_jäte!$A:$A,[1]Kaatopaikat_jäte!$F:$F,"-",0) -> 0 | DC90: =_xlfn.XLOOKUP(A90,'[1]Maa-aines'!$A:$A,'[1]Maa-aines'!$F:$F,"-",0) -> 1 | DD90: =_xlfn.XLOOKUP(A90,[1]Turve!$A:$A,[1]Turve!$F:$F,"-",0) -> 0 | DE90: =_xlfn.XLOOKUP(A90,[1]Vilja!$A:$A,[1]Vilja!$F:$F,"-",0) -> 1 | DF90: =_xlfn.XLOOKUP(A90,[1]Kasvihuoneet!$A:$A,[1]Kasvihuoneet!$F:$F,"-",0) -> 0 | DG90: =_xlfn.XLOOKUP(A90,[1]Eläintilat!$A:$A,[1]Eläintilat!$H:$H,"-",0) -> 147 | DH90: =_xlfn.XLOOKUP(A90,[1]Eläintilat!$A:$A,[1]Eläintilat!$J:$J,"-",0) -> 20 | DI90: =_xlfn.XLOOKUP(A90,[1]Eläintilat!$A:$A,[1]Eläintilat!$I:$I,"-",0) -> 0 | DJ90: =_xlfn.XLOOKUP(A90,[1]Eläintilat!$A:$A,[1]Eläintilat!$K:$K,"-",0) -> 0 | DK90: =_xlfn.XLOOKUP(A90,'[1]Elintarvike ja varasto'!$A:$A,'[1]Elintarvike ja varasto'!$F:$F,"-",0) -> 0 | DM90: =_xlfn.XLOOKUP(A90,[1]Koulut!$A:$A,[1]Koulut!$F:$F,"-",0) -> 3589.03 | DN90: =_xlfn.XLOOKUP(A90,'[1]Tuotanto ja teollisuus'!$A:$A,'[1]Tuotanto ja teollisuus'!$F:$F,"-",0) -> 0 | DP90: =_xlfn.XLOOKUP(A90,[1]Varareitit!$A:$A,[1]Varareitit!$F:$F,"-",0) -> 1 | DQ90: =_xlfn.XLOOKUP(A90,[1]Taajama!$A:$A,[1]Taajama!$F:$F,"-",0) -> 1717.58 | DR90: 1 | DS90: 0 | DT90: 1 | DU90: =_xlfn.XLOOKUP(A90,[1]Matkailukohteet!$A:$A,[1]Matkailukohteet!$F:$F,"-",0) -> 0 | DV90: =_xlfn.XLOOKUP(A90,[1]Matkailu!$A:$A,[1]Matkailu!$F:$F,"-",0) -> 0 | DW90: =_xlfn.XLOOKUP(A90,[1]Pyörämatkailu!$A:$A,[1]Pyörämatkailu!$F:$F,"-",0) -> 1 | DX90: 1 | DZ90: =_xlfn.XLOOKUP(A90,'[1]Verkollinen asema'!$A:$A,'[1]Verkollinen asema'!$D:$D,"-",0) -> 0 | EA90: =_xlfn.XLOOKUP(A90,[1]Kaupat!$A:$A,[1]Kaupat!$F:$F,"-",0) -> 0 | EF90: -- | EG90: -- | EH90: -- | EI90: -- | EJ90: -- | EL90: 410_2 | EM90: VÄHÄ | EN90: 258 | EO90: 2 | EQ90: 4143 | ER90: 5
A91: 6375_3 | B91: 2 | D91: 55 | E91: 55 | F91: 0 | G91: 12.2214797 | H91: 4.0925 | I91: 5.795646362 | J91: 2.333333333 | K91: 2 | L91: 0 | M91: Gmaps | N91: LOPUT | O91: Yhdys | P91: Vehniäntie | Q91: Laukaa | S91: 6375 | T91: 3 | U91: 0 | V91: 3 | W91: 2267 | X91: 2267 | Y91: 1860 | Z91: 81 | AA91: 2104 | AB91: 1860 (100 %) | AC91: 60 (43 %), 80 (57 %) | AD91: Ic (100 %) | AE91: Asfalttibetoni (99 %) | AF91: PK2 (100 %) | AG91: 0 | AH91: 0 | AJ91: 22 | AR91: 9 | AS91: 4 | AV91: 0.6 | AW91: =_xlfn.XLOOKUP(A91,[1]Työmatkat!$A:$A,[1]Työmatkat!$F:$F,"-",0) -> 357 | AX91: 2.6775 | AY91: 12.2775 | AZ91: 4.0925 | BA91: 8 | BB91: 1 | BC91: 3 | BD91: 1 | BE91: 1 | BF91: 1 | BG91: 0 | BH91: 0.09 | BI91: 0 | BJ91: 0 | BK91: 0 | BL91: 0 | BM91: 0 | BO91: 2 | BP91: 2.969390853 | BQ91: 0.2969390853 | BR91: 17.38693909 | BS91: 5.795646362 | BT91: 995.69 | BU91: 0.4392104102 | BV91: 0.5 | BW91: =_xlfn.XLOOKUP(A91,[1]Erikoiskuljetukset!$A:$A,[1]Erikoiskuljetukset!$F:$F,"-",0) -> 2233.79 | BX91: 0.9853506837 | BY91: 1 | BZ91: 1 | CA91: 876.067 | CB91: 0.3864433172 | CC91: 0 | CD91: =_xlfn.XLOOKUP(A91,'[1]2_Asukastiheys'!$A:$A,'[1]2_Asukastiheys'!$H:$H,"-",0)/X91 -> 77.76179974 | CE91: 0.5 | CF91: 1 | CG91: 1 | CH91: 1 | CI91: 1 | CJ91: 7 | CK91: 2.333333333 | CL91: 36.66443909 | CM91: 12.2214797 | CN91: 2 | CO91: =VLOOKUP(A91,Taul1!$F$6:$G$953,2,FALSE) -> 1 | CP91: 31.8675 | CQ91: 12.2775 | CR91: 15.09 | CS91: 4.5 | CU91: https://www.google.com/maps/@62.42896187,25.87639899,3a,75y,90t/data=!3m3!1e1!3m1!2e0 | CZ91: =_xlfn.XLOOKUP(A91,[1]Maito!$A:$A,[1]Maito!$J:$J,"-",0) -> 1 | DA91: 1 | DB91: =_xlfn.XLOOKUP(A91,[1]Kaatopaikat_jäte!$A:$A,[1]Kaatopaikat_jäte!$F:$F,"-",0) -> 3 | DC91: =_xlfn.XLOOKUP(A91,'[1]Maa-aines'!$A:$A,'[1]Maa-aines'!$F:$F,"-",0) -> 1 | DD91: =_xlfn.XLOOKUP(A91,[1]Turve!$A:$A,[1]Turve!$F:$F,"-",0) -> 0 | DE91: =_xlfn.XLOOKUP(A91,[1]Vilja!$A:$A,[1]Vilja!$F:$F,"-",0) -> 7 | DF91: =_xlfn.XLOOKUP(A91,[1]Kasvihuoneet!$A:$A,[1]Kasvihuoneet!$F:$F,"-",0) -> 0 | DG91: =_xlfn.XLOOKUP(A91,[1]Eläintilat!$A:$A,[1]Eläintilat!$H:$H,"-",0) -> 18 | DH91: =_xlfn.XLOOKUP(A91,[1]Eläintilat!$A:$A,[1]Eläintilat!$J:$J,"-",0) -> 0 | DI91: =_xlfn.XLOOKUP(A91,[1]Eläintilat!$A:$A,[1]Eläintilat!$I:$I,"-",0) -> 0 | DJ91: =_xlfn.XLOOKUP(A91,[1]Eläintilat!$A:$A,[1]Eläintilat!$K:$K,"-",0) -> 0 | DK91: =_xlfn.XLOOKUP(A91,'[1]Elintarvike ja varasto'!$A:$A,'[1]Elintarvike ja varasto'!$F:$F,"-",0) -> 0 | DM91: =_xlfn.XLOOKUP(A91,[1]Koulut!$A:$A,[1]Koulut!$F:$F,"-",0) -> 995.69 | DN91: =_xlfn.XLOOKUP(A91,'[1]Tuotanto ja teollisuus'!$A:$A,'[1]Tuotanto ja teollisuus'!$F:$F,"-",0) -> 0 | DP91: =_xlfn.XLOOKUP(A91,[1]Varareitit!$A:$A,[1]Varareitit!$F:$F,"-",0) -> 2 | DQ91: =_xlfn.XLOOKUP(A91,[1]Taajama!$A:$A,[1]Taajama!$F:$F,"-",0) -> 876.067 | DR91: 1 | DS91: 0 | DT91: 1 | DU91: =_xlfn.XLOOKUP(A91,[1]Matkailukohteet!$A:$A,[1]Matkailukohteet!$F:$F,"-",0) -> 1 | DV91: =_xlfn.XLOOKUP(A91,[1]Matkailu!$A:$A,[1]Matkailu!$F:$F,"-",0) -> 0 | DW91: =_xlfn.XLOOKUP(A91,[1]Pyörämatkailu!$A:$A,[1]Pyörämatkailu!$F:$F,"-",0) -> 1 | DX91: 1 | DZ91: =_xlfn.XLOOKUP(A91,'[1]Verkollinen asema'!$A:$A,'[1]Verkollinen asema'!$D:$D,"-",0) -> 0 | EA91: =_xlfn.XLOOKUP(A91,[1]Kaupat!$A:$A,[1]Kaupat!$F:$F,"-",0) -> 3 | EF91: -- | EG91: -- | EH91: -- | EI91: -- | EJ91: -- | EL91: 1361_3 | EM91: LOPUT | EN91: 439 | EO91: 3 | EQ91: 13834 | ER91: 1
A92: 627_8 | B92: 2 | D92: 56 | E92: 56 | F92: 0 | G92: 12.21333333 | H92: 4.5 | I92: 5.546666667 | J92: 2.166666667 | K92: 2 | L92: 0 | M92: Gmaps | N92: LOPUT | O92: Seutu | P92: Jyväskyläntie, Multiantie | Q92: Uurainen | S92: 627 | T92: 8 | U92: 0 | V92: 8 | W92: 4656 | X92: 4656 | Y92: 1193.434923 | Z92: 97.18685567 | AA92: 1314 | AB92: 988 (90 %), 3045 (10 %) | AC92: 50 (25 %), 60 (28 %), 80 (47 %) | AD92: Ib (100 %) | AE92: Asfalttibetoni (100 %) | AF92: PK2 (100 %) | AG92: 0 | AH92: 1 | AJ92: 52.59793814 | AR92: 9 | AS92: 10 | AV92: 1.5 | AW92: =_xlfn.XLOOKUP(A92,[1]Työmatkat!$A:$A,[1]Työmatkat!$F:$F,"-",0) -> 596 | AX92: 3 | AY92: 13.5 | AZ92: 4.5 | BA92: 8 | BB92: 1 | BC92: 3 | BD92: 0 | BE92: 0 | BF92: 1 | BG92: 0 | BH92: 0.5 | BI92: 0.14 | BJ92: 0 | BK92: 0 | BL92: 2 | BM92: 0 | BO92: 0 | BP92: 16.09252481 | BQ92: 1 | BR92: 16.64 | BS92: 5.546666667 | BT92: 2513.92 | BU92: 0.5399312715 | BV92: 1 | BW92: =_xlfn.XLOOKUP(A92,[1]Erikoiskuljetukset!$A:$A,[1]Erikoiskuljetukset!$F:$F,"-",0) -> 4657.21 | BX92: 1.00025988 | BY92: 1 | BZ92: 1 | CA92: 1607.41 | CB92: 0.3452341065 | CC92: 0 | CD92: =_xlfn.XLOOKUP(A92,'[1]2_Asukastiheys'!$A:$A,'[1]2_Asukastiheys'!$H:$H,"-",0)/X92 -> 96.69415808 | CE92: 0.5 | CF92: 1 | CG92: 1 | CH92: 0 | CI92: 1 | CJ92: 6.5 | CK92: 2.166666667 | CL92: 36.64 | CM92: 12.21333333 | CN92: 2 | CO92: =VLOOKUP(A92,Taul1!$F$6:$G$953,2,FALSE) -> 2 | CP92: 33.14 | CQ92: 13.5 | CR92: 14.64 | CS92: 5 | CU92: https://www.google.com/maps/@62.48780782,25.36277591,3a,75y,90t/data=!3m3!1e1!3m1!2e0 | CZ92: =_xlfn.XLOOKUP(A92,[1]Maito!$A:$A,[1]Maito!$J:$J,"-",0) -> 1 | DA92: 1 | DB92: =_xlfn.XLOOKUP(A92,[1]Kaatopaikat_jäte!$A:$A,[1]Kaatopaikat_jäte!$F:$F,"-",0) -> 0 | DC92: =_xlfn.XLOOKUP(A92,'[1]Maa-aines'!$A:$A,'[1]Maa-aines'!$F:$F,"-",0) -> 0 | DD92: =_xlfn.XLOOKUP(A92,[1]Turve!$A:$A,[1]Turve!$F:$F,"-",0) -> 0 | DE92: =_xlfn.XLOOKUP(A92,[1]Vilja!$A:$A,[1]Vilja!$F:$F,"-",0) -> 2 | DF92: =_xlfn.XLOOKUP(A92,[1]Kasvihuoneet!$A:$A,[1]Kasvihuoneet!$F:$F,"-",0) -> 0 | DG92: =_xlfn.XLOOKUP(A92,[1]Eläintilat!$A:$A,[1]Eläintilat!$H:$H,"-",0) -> 109 | DH92: =_xlfn.XLOOKUP(A92,[1]Eläintilat!$A:$A,[1]Eläintilat!$J:$J,"-",0) -> 28 | DI92: =_xlfn.XLOOKUP(A92,[1]Eläintilat!$A:$A,[1]Eläintilat!$I:$I,"-",0) -> 0 | DJ92: =_xlfn.XLOOKUP(A92,[1]Eläintilat!$A:$A,[1]Eläintilat!$K:$K,"-",0) -> 0 | DK92: =_xlfn.XLOOKUP(A92,'[1]Elintarvike ja varasto'!$A:$A,'[1]Elintarvike ja varasto'!$F:$F,"-",0) -> 1 | DM92: =_xlfn.XLOOKUP(A92,[1]Koulut!$A:$A,[1]Koulut!$F:$F,"-",0) -> 2513.92 | DN92: =_xlfn.XLOOKUP(A92,'[1]Tuotanto ja teollisuus'!$A:$A,'[1]Tuotanto ja teollisuus'!$F:$F,"-",0) -> 0 | DP92: =_xlfn.XLOOKUP(A92,[1]Varareitit!$A:$A,[1]Varareitit!$F:$F,"-",0) -> 4 | DQ92: =_xlfn.XLOOKUP(A92,[1]Taajama!$A:$A,[1]Taajama!$F:$F,"-",0) -> 1607.41 | DR92: 1 | DS92: 0 | DT92: 1 | DU92: =_xlfn.XLOOKUP(A92,[1]Matkailukohteet!$A:$A,[1]Matkailukohteet!$F:$F,"-",0) -> 0 | DV92: =_xlfn.XLOOKUP(A92,[1]Matkailu!$A:$A,[1]Matkailu!$F:$F,"-",0) -> 0 | DW92: =_xlfn.XLOOKUP(A92,[1]Pyörämatkailu!$A:$A,[1]Pyörämatkailu!$F:$F,"-",0) -> 2 | DX92: 2 | DZ92: =_xlfn.XLOOKUP(A92,'[1]Verkollinen asema'!$A:$A,'[1]Verkollinen asema'!$D:$D,"-",0) -> 0 | EA92: =_xlfn.XLOOKUP(A92,[1]Kaupat!$A:$A,[1]Kaupat!$F:$F,"-",0) -> 0 | EF92: -- | EG92: -- | EH92: -- | EI92: -- | EJ92: -- | EL92: 110_10 | EM92: LOPUT | EN92: 188 | EO92: 2 | EQ92: 13891 | ER92: 1
A93: 627_11 | B93: 2 | D93: 57 | E93: 57 | F93: 0 | G93: 12.20916667 | H93: 3.9825 | I93: 5.893333333 | J93: 2.333333333 | K93: 2 | L93: 0 | M93: Gmaps | N93: LOPUT | O93: Seutu | P93: Uuraistentie | Q93: Uurainen, Äänekoski | S93: 627 | T93: 11 | U93: 0 | V93: 11 | W93: 2659 | X93: 2659 | Y93: 1273 | Z93: 134 | AA93: 1782 | AB93: 1273 (100 %) | AC93: 40 (30 %), 50 (44 %), 60 (26 %) | AD93: Ib (100 %) | AE93: Asfalttibetoni (96 %) | AF93: PK2 (100 %) | AG93: 1 | AH93: 1 | AJ93: 96 | AR93: 9 | AS93: 3 | AV93: 0.45 | AW93: =_xlfn.XLOOKUP(A93,[1]Työmatkat!$A:$A,[1]Työmatkat!$F:$F,"-",0) -> 333 | AX93: 2.4975 | AY93: 11.9475 | AZ93: 3.9825 | BA93: 8 | BB93: 1 | BC93: 0 | BD93: 0 | BE93: 1 | BF93: 1 | BG93: 1 | BH93: 0.5 | BI93: 0.18 | BJ93: 0 | BK93: 0 | BL93: 2 | BM93: 0 | BO93: 2 | BP93: 19.4594905 | BQ93: 1 | BR93: 17.68 | BS93: 5.893333333 | BT93: 1758.58 | BU93: 0.6613689357 | BV93: 1 | BW93: =_xlfn.XLOOKUP(A93,[1]Erikoiskuljetukset!$A:$A,[1]Erikoiskuljetukset!$F:$F,"-",0) -> 2549.29 | BX93: 0.9587401279 | BY93: 1 | BZ93: 1 | CA93: 1917.4 | CB93: 0.7210981572 | CC93: 1 | CD93: =_xlfn.XLOOKUP(A93,'[1]2_Asukastiheys'!$A:$A,'[1]2_Asukastiheys'!$H:$H,"-",0)/X93 -> 146.2955998 | CE93: 1 | CF93: 1 | CG93: 0 | CH93: 0 | CI93: 1 | CJ93: 7 | CK93: 2.333333333 | CL93: 36.6275 | CM93: 12.20916667 | CN93: 2 | CO93: =VLOOKUP(A93,Taul1!$F$6:$G$953,2,FALSE) -> 1 | CP93: 31.6275 | CQ93: 11.9475 | CR93: 14.68 | CS93: 5 | CU93: https://www.google.com/maps/@62.5311357,25.64856376,3a,75y,90t/data=!3m3!1e1!3m1!2e0 | CZ93: =_xlfn.XLOOKUP(A93,[1]Maito!$A:$A,[1]Maito!$J:$J,"-",0) -> 0 | DA93: 0 | DB93: =_xlfn.XLOOKUP(A93,[1]Kaatopaikat_jäte!$A:$A,[1]Kaatopaikat_jäte!$F:$F,"-",0) -> 0 | DC93: =_xlfn.XLOOKUP(A93,'[1]Maa-aines'!$A:$A,'[1]Maa-aines'!$F:$F,"-",0) -> 3 | DD93: =_xlfn.XLOOKUP(A93,[1]Turve!$A:$A,[1]Turve!$F:$F,"-",0) -> 0 | DE93: =_xlfn.XLOOKUP(A93,[1]Vilja!$A:$A,[1]Vilja!$F:$F,"-",0) -> 3 | DF93: =_xlfn.XLOOKUP(A93,[1]Kasvihuoneet!$A:$A,[1]Kasvihuoneet!$F:$F,"-",0) -> 4 | DG93: =_xlfn.XLOOKUP(A93,[1]Eläintilat!$A:$A,[1]Eläintilat!$H:$H,"-",0) -> 484 | DH93: =_xlfn.XLOOKUP(A93,[1]Eläintilat!$A:$A,[1]Eläintilat!$J:$J,"-",0) -> 36 | DI93: =_xlfn.XLOOKUP(A93,[1]Eläintilat!$A:$A,[1]Eläintilat!$I:$I,"-",0) -> 0 | DJ93: =_xlfn.XLOOKUP(A93,[1]Eläintilat!$A:$A,[1]Eläintilat!$K:$K,"-",0) -> 0 | DK93: =_xlfn.XLOOKUP(A93,'[1]Elintarvike ja varasto'!$A:$A,'[1]Elintarvike ja varasto'!$F:$F,"-",0) -> 1 | DM93: =_xlfn.XLOOKUP(A93,[1]Koulut!$A:$A,[1]Koulut!$F:$F,"-",0) -> 1758.58 | DN93: =_xlfn.XLOOKUP(A93,'[1]Tuotanto ja teollisuus'!$A:$A,'[1]Tuotanto ja teollisuus'!$F:$F,"-",0) -> 0 | DP93: =_xlfn.XLOOKUP(A93,[1]Varareitit!$A:$A,[1]Varareitit!$F:$F,"-",0) -> 3 | DQ93: =_xlfn.XLOOKUP(A93,[1]Taajama!$A:$A,[1]Taajama!$F:$F,"-",0) -> 1917.4 | DR93: 1 | DS93: 0 | DT93: 1 | DU93: =_xlfn.XLOOKUP(A93,[1]Matkailukohteet!$A:$A,[1]Matkailukohteet!$F:$F,"-",0) -> 0 | DV93: =_xlfn.XLOOKUP(A93,[1]Matkailu!$A:$A,[1]Matkailu!$F:$F,"-",0) -> 0 | DW93: =_xlfn.XLOOKUP(A93,[1]Pyörämatkailu!$A:$A,[1]Pyörämatkailu!$F:$F,"-",0) -> 0 | DX93: 0 | DZ93: =_xlfn.XLOOKUP(A93,'[1]Verkollinen asema'!$A:$A,'[1]Verkollinen asema'!$D:$D,"-",0) -> 0 | EA93: =_xlfn.XLOOKUP(A93,[1]Kaupat!$A:$A,[1]Kaupat!$F:$F,"-",0) -> 1 | EF93: -- | EG93: -- | EH93: -- | EI93: -- | EJ93: -- | EL93: 11863_1 | EM93: VÄHÄ | EN93: 279 | EO93: 2 | EQ93: 13841 | ER93: 1
A94: 9_307 | B94: 2 | D94: 58 | E94: 58 | F94: 0 | G94: 12.18824947 | H94: 5 | I94: 5.188249468 | J94: 2 | K94: 2 | L94: 0 | M94: Gmaps | N94: LOPUT | O94: Valta | P94: Kuopiontie, Ysitie | Q94: Hankasalmi, Laukaa | S94: 9 | T94: 307 | U94: 0 | V94: 307 | W94: 5766 | X94: 5766 | Y94: 6182 | Z94: 629 | AA94: 7607 | AB94: 6182 (100 %) | AC94: 100 (80 %), 80 (19 %) | AD94: Is (99 %) | AE94: Asfalttibetoni (8 %), Kivimastiksiasfaltti (91 %) | AF94: PK1 (99 %) | AG94: 1 | AH94: 5 | AJ94: 361 | AR94: 9 | AS94: 36 | AV94: 3 | AW94: =_xlfn.XLOOKUP(A94,[1]Työmatkat!$A:$A,[1]Työmatkat!$F:$F,"-",0) -> 1525 | AX94: 3 | AY94: 15 | AZ94: 5 | BA94: 8 | BB94: 1 | BC94: 3 | BD94: 1 | BE94: 0 | BF94: 1 | BG94: 0 | BH94: 0.5 | BI94: 0.24 | BJ94: 0 | BK94: 0 | BL94: 0 | BM94: 0 | BO94: 0 | BP94: 8.247484053 | BQ94: 0.8247484053 | BR94: 15.56474841 | BS94: 5.188249468 | BT94: 2433.22 | BU94: 0.4219944502 | BV94: 0.5 | BW94: =_xlfn.XLOOKUP(A94,[1]Erikoiskuljetukset!$A:$A,[1]Erikoiskuljetukset!$F:$F,"-",0) -> 5732.13 | BX94: 0.9941259105 | BY94: 1 | BZ94: 1 | CA94: 846.941 | CB94: 0.1468853625 | CC94: 0 | CD94: =_xlfn.XLOOKUP(A94,'[1]2_Asukastiheys'!$A:$A,'[1]2_Asukastiheys'!$H:$H,"-",0)/X94 -> 42.41380506 | CE94: 0.5 | CF94: 1 | CG94: 1 | CH94: 0 | CI94: 1 | CJ94: 6 | CK94: 2 | CL94: 36.56474841 | CM94: 12.18824947 | CN94: 2 | CO94: =VLOOKUP(A94,Taul1!$F$6:$G$953,2,FALSE) -> 1 | CP94: 33.24 | CQ94: 15 | CR94: 13.74 | CS94: 4.5 | CU94: https://www.google.com/maps/@62.25694173,26.26808404,3a,75y,90t/data=!3m3!1e1!3m1!2e0 | CZ94: =_xlfn.XLOOKUP(A94,[1]Maito!$A:$A,[1]Maito!$J:$J,"-",0) -> 3 | DA94: 3 | DB94: =_xlfn.XLOOKUP(A94,[1]Kaatopaikat_jäte!$A:$A,[1]Kaatopaikat_jäte!$F:$F,"-",0) -> 1 | DC94: =_xlfn.XLOOKUP(A94,'[1]Maa-aines'!$A:$A,'[1]Maa-aines'!$F:$F,"-",0) -> 0 | DD94: =_xlfn.XLOOKUP(A94,[1]Turve!$A:$A,[1]Turve!$F:$F,"-",0) -> 0 | DE94: =_xlfn.XLOOKUP(A94,[1]Vilja!$A:$A,[1]Vilja!$F:$F,"-",0) -> 1 | DF94: =_xlfn.XLOOKUP(A94,[1]Kasvihuoneet!$A:$A,[1]Kasvihuoneet!$F:$F,"-",0) -> 0 | DG94: =_xlfn.XLOOKUP(A94,[1]Eläintilat!$A:$A,[1]Eläintilat!$H:$H,"-",0) -> 155 | DH94: =_xlfn.XLOOKUP(A94,[1]Eläintilat!$A:$A,[1]Eläintilat!$J:$J,"-",0) -> 48 | DI94: =_xlfn.XLOOKUP(A94,[1]Eläintilat!$A:$A,[1]Eläintilat!$I:$I,"-",0) -> 0 | DJ94: =_xlfn.XLOOKUP(A94,[1]Eläintilat!$A:$A,[1]Eläintilat!$K:$K,"-",0) -> 0 | DK94: =_xlfn.XLOOKUP(A94,'[1]Elintarvike ja varasto'!$A:$A,'[1]Elintarvike ja varasto'!$F:$F,"-",0) -> 0 | DM94: =_xlfn.XLOOKUP(A94,[1]Koulut!$A:$A,[1]Koulut!$F:$F,"-",0) -> 2433.22 | DN94: =_xlfn.XLOOKUP(A94,'[1]Tuotanto ja teollisuus'!$A:$A,'[1]Tuotanto ja teollisuus'!$F:$F,"-",0) -> 0 | DP94: =_xlfn.XLOOKUP(A94,[1]Varareitit!$A:$A,[1]Varareitit!$F:$F,"-",0) -> 1 | DQ94: =_xlfn.XLOOKUP(A94,[1]Taajama!$A:$A,[1]Taajama!$F:$F,"-",0) -> 846.941 | DR94: 1 | DS94: 0 | DT94: 1 | DU94: =_xlfn.XLOOKUP(A94,[1]Matkailukohteet!$A:$A,[1]Matkailukohteet!$F:$F,"-",0) -> 0 | DV94: =_xlfn.XLOOKUP(A94,[1]Matkailu!$A:$A,[1]Matkailu!$F:$F,"-",0) -> 0 | DW94: =_xlfn.XLOOKUP(A94,[1]Pyörämatkailu!$A:$A,[1]Pyörämatkailu!$F:$F,"-",0) -> 1 | DX94: 1 | DZ94: =_xlfn.XLOOKUP(A94,'[1]Verkollinen asema'!$A:$A,'[1]Verkollinen asema'!$D:$D,"-",0) -> 0 | EA94: =_xlfn.XLOOKUP(A94,[1]Kaupat!$A:$A,[1]Kaupat!$F:$F,"-",0) -> 0 | EF94: -- | EG94: -- | EH94: -- | EI94: -- | EJ94: -- | EL94: 24_4 | EM94: LOPUT | EN94: 31 | EO94: 1 | EQ94: 1873 | ER94: 3
A95: 638_3 | B95: 2 | D95: 59 | E95: 59 | F95: 0 | G95: 12.17517629 | H95: 5 | I95: 5.175176294 | J95: 2 | K95: 2 | L95: 0 | M95: Gmaps | N95: LOPUT | O95: Seutu | P95: Kuukanpääntie | Q95: Jyväskylä, Laukaa | S95: 638 | T95: 3 | U95: 0 | V95: 3 | W95: 7854 | X95: 7854 | Y95: 1426 | Z95: 196 | AA95: 1739 | AB95: 1426 (100 %) | AC95: 60 (14 %), 80 (86 %) | AD95: Ib (100 %) | AE95: Asfalttibetoni (100 %) | AF95: PK2 (100 %) | AG95: 1 | AH95: 6 | AJ95: 113 | AR95: 9 | AS95: 240 | AV95: 3 | AW95: =_xlfn.XLOOKUP(A95,[1]Työmatkat!$A:$A,[1]Työmatkat!$F:$F,"-",0) -> 741 | AX95: 3 | AY95: 15 | AZ95: 5 | BA95: 8 | BB95: 1 | BC95: 0 | BD95: 1 | BE95: 1 | BF95: 1 | BG95: 1 | BH95: 0.425 | BI95: 0 | BJ95: 0 | BK95: 0 | BL95: 0 | BM95: 0 | BO95: 2 | BP95: 1.005288821 | BQ95: 0.1005288821 | BR95: 15.52552888 | BS95: 5.175176294 | BT95: 1976.74 | BU95: 0.2516857652 | BV95: 0.5 | BW95: =_xlfn.XLOOKUP(A95,[1]Erikoiskuljetukset!$A:$A,[1]Erikoiskuljetukset!$F:$F,"-",0) -> 7848.23 | BX95: 0.9992653425 | BY95: 1 | BZ95: 1 | CA95: 85.6913 | CB95: 0.01091052967 | CC95: 0 | CD95: =_xlfn.XLOOKUP(A95,'[1]2_Asukastiheys'!$A:$A,'[1]2_Asukastiheys'!$H:$H,"-",0)/X95 -> 6.608097785 | CE95: 0.5 | CF95: 1 | CG95: 1 | CH95: 0 | CI95: 1 | CJ95: 6 | CK95: 2 | CL95: 36.52552888 | CM95: 12.17517629 | CN95: 2 | CO95: =VLOOKUP(A95,Taul1!$F$6:$G$953,2,FALSE) -> 1 | CP95: 32.925 | CQ95: 15 | CR95: 13.425 | CS95: 4.5 | CU95: https://www.google.com/maps/@62.33435101,25.86630412,3a,75y,90t/data=!3m3!1e1!3m1!2e0 | CZ95: =_xlfn.XLOOKUP(A95,[1]Maito!$A:$A,[1]Maito!$J:$J,"-",0) -> 0 | DA95: 0 | DB95: =_xlfn.XLOOKUP(A95,[1]Kaatopaikat_jäte!$A:$A,[1]Kaatopaikat_jäte!$F:$F,"-",0) -> 3 | DC95: =_xlfn.XLOOKUP(A95,'[1]Maa-aines'!$A:$A,'[1]Maa-aines'!$F:$F,"-",0) -> 3 | DD95: =_xlfn.XLOOKUP(A95,[1]Turve!$A:$A,[1]Turve!$F:$F,"-",0) -> 0 | DE95: =_xlfn.XLOOKUP(A95,[1]Vilja!$A:$A,[1]Vilja!$F:$F,"-",0) -> 3 | DF95: =_xlfn.XLOOKUP(A95,[1]Kasvihuoneet!$A:$A,[1]Kasvihuoneet!$F:$F,"-",0) -> 1 | DG95: =_xlfn.XLOOKUP(A95,[1]Eläintilat!$A:$A,[1]Eläintilat!$H:$H,"-",0) -> 85 | DH95: =_xlfn.XLOOKUP(A95,[1]Eläintilat!$A:$A,[1]Eläintilat!$J:$J,"-",0) -> 0 | DI95: =_xlfn.XLOOKUP(A95,[1]Eläintilat!$A:$A,[1]Eläintilat!$I:$I,"-",0) -> 0 | DJ95: =_xlfn.XLOOKUP(A95,[1]Eläintilat!$A:$A,[1]Eläintilat!$K:$K,"-",0) -> 0 | DK95: =_xlfn.XLOOKUP(A95,'[1]Elintarvike ja varasto'!$A:$A,'[1]Elintarvike ja varasto'!$F:$F,"-",0) -> 0 | DM95: =_xlfn.XLOOKUP(A95,[1]Koulut!$A:$A,[1]Koulut!$F:$F,"-",0) -> 1976.74 | DN95: =_xlfn.XLOOKUP(A95,'[1]Tuotanto ja teollisuus'!$A:$A,'[1]Tuotanto ja teollisuus'!$F:$F,"-",0) -> 0 | DP95: =_xlfn.XLOOKUP(A95,[1]Varareitit!$A:$A,[1]Varareitit!$F:$F,"-",0) -> 1 | DQ95: =_xlfn.XLOOKUP(A95,[1]Taajama!$A:$A,[1]Taajama!$F:$F,"-",0) -> 85.6913 | DR95: 1 | DS95: 0 | DT95: 1 | DU95: =_xlfn.XLOOKUP(A95,[1]Matkailukohteet!$A:$A,[1]Matkailukohteet!$F:$F,"-",0) -> 0 | DV95: =_xlfn.XLOOKUP(A95,[1]Matkailu!$A:$A,[1]Matkailu!$F:$F,"-",0) -> 0 | DW95: =_xlfn.XLOOKUP(A95,[1]Pyörämatkailu!$A:$A,[1]Pyörämatkailu!$F:$F,"-",0) -> 1 | DX95: 1 | DZ95: =_xlfn.XLOOKUP(A95,'[1]Verkollinen asema'!$A:$A,'[1]Verkollinen asema'!$D:$D,"-",0) -> 0 | EA95: =_xlfn.XLOOKUP(A95,[1]Kaupat!$A:$A,[1]Kaupat!$F:$F,"-",0) -> 1 | EF95: -- | EG95: -- | EH95: -- | EI95: -- | EJ95: -- | EL95: 1494_5 | EM95: LOPUT | EN95: 345 | EO95: 2 | EQ95: 15020 | ER95: 4
A96: 18_49 | B96: 2 | D96: 60 | E96: 60 | F96: 0 | G96: 12.17366667 | H96: 5 | I96: 4.673666667 | J96: 2.5 | K96: 2 | L96: 0 | M96: Gmaps | N96: LOPUT | O96: Valta | P96: Keuruuntie | Q96: Jyväskylä | S96: 18 | T96: 49 | U96: 0 | V96: 49 | W96: 2377 | X96: 2377 | Y96: 6839 | Z96: 449 | AA96: 8489 | AB96: 6839 (100 %) | AC96: 60 (9 %), 80 (91 %) | AD96: Is (100 %) | AE96: Kivimastiksiasfaltti (100 %) | AF96: PK1 (100 %) | AG96: 1 | AH96: 5 | AJ96: 242 | AR96: 9 | AS96: 23 | AV96: 3 | AW96: =_xlfn.XLOOKUP(A96,[1]Työmatkat!$A:$A,[1]Työmatkat!$F:$F,"-",0) -> 2339 | AX96: 3 | AY96: 15 | AZ96: 5 | BA96: 8 | BB96: 1 | BC96: 3 | BD96: 0 | BE96: 0 | BF96: 0 | BG96: 1 | BH96: 0 | BI96: 0.02 | BJ96: 0 | BK96: 0.001 | BL96: 0 | BM96: 0 | BO96: 0 | BP96: 18.80951313 | BQ96: 1 | BR96: 14.021 | BS96: 4.673666667 | BT96: 2376.5 | BU96: 0.9997896508 | BV96: 1 | BW96: =_xlfn.XLOOKUP(A96,[1]Erikoiskuljetukset!$A:$A,[1]Erikoiskuljetukset!$F:$F,"-",0) -> 2376.5 | BX96: 0.9997896508 | BY96: 1 | BZ96: 1 | CA96: 2107.43 | CB96: 0.8865923433 | CC96: 1 | CD96: =_xlfn.XLOOKUP(A96,'[1]2_Asukastiheys'!$A:$A,'[1]2_Asukastiheys'!$H:$H,"-",0)/X96 -> 99.82793437 | CE96: 0.5 | CF96: 1 | CG96: 1 | CH96: 0 | CI96: 1 | CJ96: 7.5 | CK96: 2.5 | CL96: 36.521 | CM96: 12.17366667 | CN96: 2 | CO96: =VLOOKUP(A96,Taul1!$F$6:$G$953,2,FALSE) -> 1 | CP96: 32.021 | CQ96: 15 | CR96: 12.021 | CS96: 5 | CU96: https://www.google.com/maps/@62.26689587,25.5577263,3a,75y,90t/data=!3m3!1e1!3m1!2e0 | CZ96: =_xlfn.XLOOKUP(A96,[1]Maito!$A:$A,[1]Maito!$J:$J,"-",0) -> 5 | DA96: 5 | DB96: =_xlfn.XLOOKUP(A96,[1]Kaatopaikat_jäte!$A:$A,[1]Kaatopaikat_jäte!$F:$F,"-",0) -> 0 | DC96: =_xlfn.XLOOKUP(A96,'[1]Maa-aines'!$A:$A,'[1]Maa-aines'!$F:$F,"-",0) -> 0 | DD96: =_xlfn.XLOOKUP(A96,[1]Turve!$A:$A,[1]Turve!$F:$F,"-",0) -> 0 | DE96: =_xlfn.XLOOKUP(A96,[1]Vilja!$A:$A,[1]Vilja!$F:$F,"-",0) -> 0 | DF96: =_xlfn.XLOOKUP(A96,[1]Kasvihuoneet!$A:$A,[1]Kasvihuoneet!$F:$F,"-",0) -> 1 | DG96: =_xlfn.XLOOKUP(A96,[1]Eläintilat!$A:$A,[1]Eläintilat!$H:$H,"-",0) -> 0 | DH96: =_xlfn.XLOOKUP(A96,[1]Eläintilat!$A:$A,[1]Eläintilat!$J:$J,"-",0) -> 4 | DI96: =_xlfn.XLOOKUP(A96,[1]Eläintilat!$A:$A,[1]Eläintilat!$I:$I,"-",0) -> 0 | DJ96: =_xlfn.XLOOKUP(A96,[1]Eläintilat!$A:$A,[1]Eläintilat!$K:$K,"-",0) -> 2 | DK96: =_xlfn.XLOOKUP(A96,'[1]Elintarvike ja varasto'!$A:$A,'[1]Elintarvike ja varasto'!$F:$F,"-",0) -> 0 | DM96: =_xlfn.XLOOKUP(A96,[1]Koulut!$A:$A,[1]Koulut!$F:$F,"-",0) -> 2376.5 | DN96: =_xlfn.XLOOKUP(A96,'[1]Tuotanto ja teollisuus'!$A:$A,'[1]Tuotanto ja teollisuus'!$F:$F,"-",0) -> 0 | DP96: =_xlfn.XLOOKUP(A96,[1]Varareitit!$A:$A,[1]Varareitit!$F:$F,"-",0) -> 1 | DQ96: =_xlfn.XLOOKUP(A96,[1]Taajama!$A:$A,[1]Taajama!$F:$F,"-",0) -> 2107.43 | DR96: 1 | DS96: 0 | DT96: 1 | DU96: =_xlfn.XLOOKUP(A96,[1]Matkailukohteet!$A:$A,[1]Matkailukohteet!$F:$F,"-",0) -> 0 | DV96: =_xlfn.XLOOKUP(A96,[1]Matkailu!$A:$A,[1]Matkailu!$F:$F,"-",0) -> 0 | DW96: =_xlfn.XLOOKUP(A96,[1]Pyörämatkailu!$A:$A,[1]Pyörämatkailu!$F:$F,"-",0) -> 1 | DX96: 1 | DZ96: =_xlfn.XLOOKUP(A96,'[1]Verkollinen asema'!$A:$A,'[1]Verkollinen asema'!$D:$D,"-",0) -> 0 | EA96: =_xlfn.XLOOKUP(A96,[1]Kaupat!$A:$A,[1]Kaupat!$F:$F,"-",0) -> 0 | EE96: 1 | EF96: -- | EG96: -- | EH96: -- | EI96: -- | EJ96: -- | EL96: 55_2 | EM96: LOPUT | EN96: 94 | EO96: 2 | EQ96: 110 | ER96: 6
A97: 9_308 | B97: 2 | D97: 61 | E97: 61 | F97: 0 | G97: 12.16916667 | H97: 5 | I97: 5.0025 | J97: 2.166666667 | K97: 2 | L97: 0 | M97: Gmaps | N97: LOPUT | O97: Valta | P97: Ysitie | Q97: Hankasalmi | S97: 9 | T97: 308 | U97: 0 | V97: 308 | W97: 6047 | X97: 6047 | Y97: 5678.878121 | Z97: 534.9675872 | AA97: 6929 | AB97: 5663 (97 %), 6182 (3 %) | AC97: 100 (95 %), 80 (6 %) | AD97: Is (100 %) | AE97: Asfalttibetoni (8 %), Kivimastiksiasfaltti (93 %) | AF97: PK1 (100 %) | AG97: 4 | AH97: 10 | AJ97: 358.091781 | AR97: 9 | AS97: 66 | AV97: 3 | AW97: =_xlfn.XLOOKUP(A97,[1]Työmatkat!$A:$A,[1]Työmatkat!$F:$F,"-",0) -> 1573 | AX97: 3 | AY97: 15 | AZ97: 5 | BA97: 8 | BB97: 1 | BC97: 3 | BD97: 0 | BE97: 0 | BF97: 1 | BG97: 0 | BH97: 0.5 | BI97: 0.5 | BJ97: 0.0075 | BK97: 0 | BL97: 0 | BM97: 0 | BO97: 0 | BP97: 11.0305253 | BQ97: 1 | BR97: 15.0075 | BS97: 5.0025 | BT97: 3438.53 | BU97: 0.5686340334 | BV97: 1 | BW97: =_xlfn.XLOOKUP(A97,[1]Erikoiskuljetukset!$A:$A,[1]Erikoiskuljetukset!$F:$F,"-",0) -> 6071.23 | BX97: 1.004006946 | BY97: 1 | BZ97: 1 | CA97: 583.344 | CB97: 0.0964683314 | CC97: 0 | CD97: =_xlfn.XLOOKUP(A97,'[1]2_Asukastiheys'!$A:$A,'[1]2_Asukastiheys'!$H:$H,"-",0)/X97 -> 19.68943278 | CE97: 0.5 | CF97: 1 | CG97: 1 | CH97: 0 | CI97: 1 | CJ97: 6.5 | CK97: 2.166666667 | CL97: 36.5075 | CM97: 12.16916667 | CN97: 2 | CO97: =VLOOKUP(A97,Taul1!$F$6:$G$953,2,FALSE) -> 2 | CP97: 33.0075 | CQ97: 15 | CR97: 13.0075 | CS97: 5 | CU97: https://www.google.com/maps/@62.2842719,26.34567792,3a,75y,90t/data=!3m3!1e1!3m1!2e0 | CZ97: =_xlfn.XLOOKUP(A97,[1]Maito!$A:$A,[1]Maito!$J:$J,"-",0) -> 3 | DA97: 3 | DB97: =_xlfn.XLOOKUP(A97,[1]Kaatopaikat_jäte!$A:$A,[1]Kaatopaikat_jäte!$F:$F,"-",0) -> 0 | DC97: =_xlfn.XLOOKUP(A97,'[1]Maa-aines'!$A:$A,'[1]Maa-aines'!$F:$F,"-",0) -> 0 | DD97: =_xlfn.XLOOKUP(A97,[1]Turve!$A:$A,[1]Turve!$F:$F,"-",0) -> 2 | DE97: =_xlfn.XLOOKUP(A97,[1]Vilja!$A:$A,[1]Vilja!$F:$F,"-",0) -> 16 | DF97: =_xlfn.XLOOKUP(A97,[1]Kasvihuoneet!$A:$A,[1]Kasvihuoneet!$F:$F,"-",0) -> 0 | DG97: =_xlfn.XLOOKUP(A97,[1]Eläintilat!$A:$A,[1]Eläintilat!$H:$H,"-",0) -> 329 | DH97: =_xlfn.XLOOKUP(A97,[1]Eläintilat!$A:$A,[1]Eläintilat!$J:$J,"-",0) -> 193 | DI97: =_xlfn.XLOOKUP(A97,[1]Eläintilat!$A:$A,[1]Eläintilat!$I:$I,"-",0) -> 6 | DJ97: =_xlfn.XLOOKUP(A97,[1]Eläintilat!$A:$A,[1]Eläintilat!$K:$K,"-",0) -> 0 | DK97: =_xlfn.XLOOKUP(A97,'[1]Elintarvike ja varasto'!$A:$A,'[1]Elintarvike ja varasto'!$F:$F,"-",0) -> 0 | DM97: =_xlfn.XLOOKUP(A97,[1]Koulut!$A:$A,[1]Koulut!$F:$F,"-",0) -> 3438.53 | DN97: =_xlfn.XLOOKUP(A97,'[1]Tuotanto ja teollisuus'!$A:$A,'[1]Tuotanto ja teollisuus'!$F:$F,"-",0) -> 0 | DP97: =_xlfn.XLOOKUP(A97,[1]Varareitit!$A:$A,[1]Varareitit!$F:$F,"-",0) -> 3 | DQ97: =_xlfn.XLOOKUP(A97,[1]Taajama!$A:$A,[1]Taajama!$F:$F,"-",0) -> 583.344 | DR97: 1 | DS97: 0 | DT97: 1 | DU97: =_xlfn.XLOOKUP(A97,[1]Matkailukohteet!$A:$A,[1]Matkailukohteet!$F:$F,"-",0) -> 0 | DV97: =_xlfn.XLOOKUP(A97,[1]Matkailu!$A:$A,[1]Matkailu!$F:$F,"-",0) -> 0 | DW97: =_xlfn.XLOOKUP(A97,[1]Pyörämatkailu!$A:$A,[1]Pyörämatkailu!$F:$F,"-",0) -> 1 | DX97: 1 | DZ97: =_xlfn.XLOOKUP(A97,'[1]Verkollinen asema'!$A:$A,'[1]Verkollinen asema'!$D:$D,"-",0) -> 0 | EA97: =_xlfn.XLOOKUP(A97,[1]Kaupat!$A:$A,[1]Kaupat!$F:$F,"-",0) -> 0 | EF97: -- | EG97: -- | EH97: -- | EI97: -- | EJ97: -- | EL97: 132_5 | EM97: LOPUT | EN97: 56 | EO97: 1 | EQ97: 13548 | ER97: 1
A98: 4_312 | B98: 2 | D98: 62 | E98: 62 | F98: 0 | G98: 12.16 | H98: 4.8 | I98: 5.526666667 | J98: 1.833333333 | K98: 2 | L98: 0 | M98: Gmaps | N98: LOPUT | O98: Valta | P98: Ouluntie | Q98: Äänekoski | S98: 4 | T98: 312 | U98: 0 | V98: 312 | W98: 6871 | X98: 6871 | Y98: 5395.750109 | Z98: 805.0873235 | AA98: 6903 | AB98: 4897 (62 %), 6211 (38 %) | AC98: 100 (100 %) | AD98: Ise (100 %) | AE98: Asfalttibetoni (24 %), Kivimastiksiasfaltti (75 %) | AF98: PK1 (100 %) | AG98: 4 | AH98: 17 | AJ98: 636.7226022 | AR98: 9 | AS98: 16 | AV98: 2.4 | AW98: =_xlfn.XLOOKUP(A98,[1]Työmatkat!$A:$A,[1]Työmatkat!$F:$F,"-",0) -> 588 | AX98: 3 | AY98: 14.4 | AZ98: 4.8 | BA98: 8 | BB98: 1 | BC98: 3 | BD98: 0 | BE98: 1 | BF98: 0 | BG98: 0 | BH98: 0.5 | BI98: 0.08 | BJ98: 0 | BK98: 0 | BL98: 0 | BM98: 0 | BO98: 2 | BP98: 39.17688329 | BQ98: 1 | BR98: 16.58 | BS98: 5.526666667 | BT98: 4451.75 | BU98: 0.6479042352 | BV98: 1 | BW98: =_xlfn.XLOOKUP(A98,[1]Erikoiskuljetukset!$A:$A,[1]Erikoiskuljetukset!$F:$F,"-",0) -> 6851.43 | BX98: 0.9971517974 | BY98: 1 | BZ98: 1 | CA98: 0 | CB98: 0 | CC98: 0 | CD98: =_xlfn.XLOOKUP(A98,'[1]2_Asukastiheys'!$A:$A,'[1]2_Asukastiheys'!$H:$H,"-",0)/X98 -> 10.17319168 | CE98: 0.5 | CF98: 1 | CG98: 0 | CH98: 0 | CI98: 1 | CJ98: 5.5 | CK98: 1.833333333 | CL98: 36.48 | CM98: 12.16 | CN98: 2 | CO98: =VLOOKUP(A98,Taul1!$F$6:$G$953,2,FALSE) -> 2 | CP98: 32.98 | CQ98: 14.4 | CR98: 13.58 | CS98: 5 | CU98: https://www.google.com/maps/@62.74529547,25.77328503,3a,75y,90t/data=!3m3!1e1!3m1!2e0 | CZ98: =_xlfn.XLOOKUP(A98,[1]Maito!$A:$A,[1]Maito!$J:$J,"-",0) -> 1 | DA98: 1 | DB98: =_xlfn.XLOOKUP(A98,[1]Kaatopaikat_jäte!$A:$A,[1]Kaatopaikat_jäte!$F:$F,"-",0) -> 0 | DC98: =_xlfn.XLOOKUP(A98,'[1]Maa-aines'!$A:$A,'[1]Maa-aines'!$F:$F,"-",0) -> 2 | DD98: =_xlfn.XLOOKUP(A98,[1]Turve!$A:$A,[1]Turve!$F:$F,"-",0) -> 0 | DE98: =_xlfn.XLOOKUP(A98,[1]Vilja!$A:$A,[1]Vilja!$F:$F,"-",0) -> 0 | DF98: =_xlfn.XLOOKUP(A98,[1]Kasvihuoneet!$A:$A,[1]Kasvihuoneet!$F:$F,"-",0) -> 0 | DG98: =_xlfn.XLOOKUP(A98,[1]Eläintilat!$A:$A,[1]Eläintilat!$H:$H,"-",0) -> 384 | DH98: =_xlfn.XLOOKUP(A98,[1]Eläintilat!$A:$A,[1]Eläintilat!$J:$J,"-",0) -> 16 | DI98: =_xlfn.XLOOKUP(A98,[1]Eläintilat!$A:$A,[1]Eläintilat!$I:$I,"-",0) -> 0 | DJ98: =_xlfn.XLOOKUP(A98,[1]Eläintilat!$A:$A,[1]Eläintilat!$K:$K,"-",0) -> 0 | DK98: =_xlfn.XLOOKUP(A98,'[1]Elintarvike ja varasto'!$A:$A,'[1]Elintarvike ja varasto'!$F:$F,"-",0) -> 0 | DM98: =_xlfn.XLOOKUP(A98,[1]Koulut!$A:$A,[1]Koulut!$F:$F,"-",0) -> 4451.75 | DN98: =_xlfn.XLOOKUP(A98,'[1]Tuotanto ja teollisuus'!$A:$A,'[1]Tuotanto ja teollisuus'!$F:$F,"-",0) -> 0 | DP98: =_xlfn.XLOOKUP(A98,[1]Varareitit!$A:$A,[1]Varareitit!$F:$F,"-",0) -> 1 | DQ98: =_xlfn.XLOOKUP(A98,[1]Taajama!$A:$A,[1]Taajama!$F:$F,"-",0) -> 0 | DR98: 1 | DS98: 0 | DT98: 1 | DU98: =_xlfn.XLOOKUP(A98,[1]Matkailukohteet!$A:$A,[1]Matkailukohteet!$F:$F,"-",0) -> 0 | DV98: =_xlfn.XLOOKUP(A98,[1]Matkailu!$A:$A,[1]Matkailu!$F:$F,"-",0) -> 0 | DW98: =_xlfn.XLOOKUP(A98,[1]Pyörämatkailu!$A:$A,[1]Pyörämatkailu!$F:$F,"-",0) -> 0 | DX98: 0 | DZ98: =_xlfn.XLOOKUP(A98,'[1]Verkollinen asema'!$A:$A,'[1]Verkollinen asema'!$D:$D,"-",0) -> 0 | EA98: =_xlfn.XLOOKUP(A98,[1]Kaupat!$A:$A,[1]Kaupat!$F:$F,"-",0) -> 1 | EF98: -- | EG98: -- | EH98: -- | EI98: -- | EJ98: -- | EL98: 152_1 | EM98: LOPUT | EN98: 25 | EO98: 1 | EQ98: 11245 | ER98: 2
A99: 13_131 | B99: 2 | D99: 63 | E99: 63 | F99: 0 | G99: 12.15 | H99: 4.65 | I99: 6.333333333 | J99: 1.166666667 | K99: 2 | L99: 0 | M99: Gmaps | N99: LOPUT | O99: Valta | P99: Kokkolantie | Q99: Saarijärvi | S99: 13 | T99: 131 | U99: 0 | V99: 131 | W99: 7533 | X99: 7533 | Y99: 2326 | Z99: 284 | AA99: 2734 | AB99: 2326 (100 %) | AC99: 80 (100 %) | AD99: Is (100 %) | AE99: Asfalttibetoni (100 %) | AF99: PK1 (100 %) | AG99: 1 | AH99: 6 | AJ99: 223 | AR99: 9 | AS99: 13 | AV99: 1.95 | AW99: =_xlfn.XLOOKUP(A99,[1]Työmatkat!$A:$A,[1]Työmatkat!$F:$F,"-",0) -> 482 | AX99: 3 | AY99: 13.95 | AZ99: 4.65 | BA99: 8 | BB99: 1 | BC99: 3 | BD99: 1 | BE99: 1 | BF99: 1 | BG99: 0 | BH99: 0.5 | BI99: 0 | BJ99: 0 | BK99: 0.5 | BL99: 0 | BM99: 0 | BO99: 2 | BP99: 15.44594225 | BQ99: 1 | BR99: 19 | BS99: 6.333333333 | BT99: 0 | BU99: 0 | BV99: 0 | BW99: =_xlfn.XLOOKUP(A99,[1]Erikoiskuljetukset!$A:$A,[1]Erikoiskuljetukset!$F:$F,"-",0) -> 7546.45 | BX99: 1.001785477 | BY99: 1 | BZ99: 0 | CA99: 0 | CB99: 0 | CC99: 0 | CD99: =_xlfn.XLOOKUP(A99,'[1]2_Asukastiheys'!$A:$A,'[1]2_Asukastiheys'!$H:$H,"-",0)/X99 -> 27.651666 | CE99: 0.5 | CF99: 1 | CG99: 0 | CH99: 0 | CI99: 1 | CJ99: 3.5 | CK99: 1.166666667 | CL99: 36.45 | CM99: 12.15 | CN99: 2 | CO99: =VLOOKUP(A99,Taul1!$F$6:$G$953,2,FALSE) -> 1 | CP99: 32.95 | CQ99: 13.95 | CR99: 16 | CS99: 3 | CU99: https://www.google.com/maps/@62.8125332,25.03549184,3a,75y,90t/data=!3m3!1e1!3m1!2e0 | CZ99: =_xlfn.XLOOKUP(A99,[1]Maito!$A:$A,[1]Maito!$J:$J,"-",0) -> 7 | DA99: 7 | DB99: =_xlfn.XLOOKUP(A99,[1]Kaatopaikat_jäte!$A:$A,[1]Kaatopaikat_jäte!$F:$F,"-",0) -> 1 | DC99: =_xlfn.XLOOKUP(A99,'[1]Maa-aines'!$A:$A,'[1]Maa-aines'!$F:$F,"-",0) -> 1 | DD99: =_xlfn.XLOOKUP(A99,[1]Turve!$A:$A,[1]Turve!$F:$F,"-",0) -> 1 | DE99: =_xlfn.XLOOKUP(A99,[1]Vilja!$A:$A,[1]Vilja!$F:$F,"-",0) -> 1 | DF99: =_xlfn.XLOOKUP(A99,[1]Kasvihuoneet!$A:$A,[1]Kasvihuoneet!$F:$F,"-",0) -> 0 | DG99: =_xlfn.XLOOKUP(A99,[1]Eläintilat!$A:$A,[1]Eläintilat!$H:$H,"-",0) -> 156 | DH99: =_xlfn.XLOOKUP(A99,[1]Eläintilat!$A:$A,[1]Eläintilat!$J:$J,"-",0) -> 0 | DI99: =_xlfn.XLOOKUP(A99,[1]Eläintilat!$A:$A,[1]Eläintilat!$I:$I,"-",0) -> 0 | DJ99: =_xlfn.XLOOKUP(A99,[1]Eläintilat!$A:$A,[1]Eläintilat!$K:$K,"-",0) -> 37648 | DK99: =_xlfn.XLOOKUP(A99,'[1]Elintarvike ja varasto'!$A:$A,'[1]Elintarvike ja varasto'!$F:$F,"-",0) -> 0 | DM99: =_xlfn.XLOOKUP(A99,[1]Koulut!$A:$A,[1]Koulut!$F:$F,"-",0) -> 0 | DN99: =_xlfn.XLOOKUP(A99,'[1]Tuotanto ja teollisuus'!$A:$A,'[1]Tuotanto ja teollisuus'!$F:$F,"-",0) -> 0 | DP99: =_xlfn.XLOOKUP(A99,[1]Varareitit!$A:$A,[1]Varareitit!$F:$F,"-",0) -> 0 | DQ99: =_xlfn.XLOOKUP(A99,[1]Taajama!$A:$A,[1]Taajama!$F:$F,"-",0) -> 0 | DR99: 1 | DS99: 0 | DT99: 1 | DU99: =_xlfn.XLOOKUP(A99,[1]Matkailukohteet!$A:$A,[1]Matkailukohteet!$F:$F,"-",0) -> 0 | DV99: =_xlfn.XLOOKUP(A99,[1]Matkailu!$A:$A,[1]Matkailu!$F:$F,"-",0) -> 0 | DW99: =_xlfn.XLOOKUP(A99,[1]Pyörämatkailu!$A:$A,[1]Pyörämatkailu!$F:$F,"-",0) -> 0 | DX99: 0 | DZ99: =_xlfn.XLOOKUP(A99,'[1]Verkollinen asema'!$A:$A,'[1]Verkollinen asema'!$D:$D,"-",0) -> 0 | EA99: =_xlfn.XLOOKUP(A99,[1]Kaupat!$A:$A,[1]Kaupat!$F:$F,"-",0) -> 1 | EF99: -- | EG99: -- | EH99: -- | EI99: -- | EJ99: -- | EL99: 164_4 | EM99: LOPUT | EN99: 80 | EO99: 1 | EQ99: 11889 | ER99: 1
A100: 6031_1 | B100: 2 | D100: 64 | E100: 64 | F100: 0 | G100: 12.12427797 | H100: 4.85 | I100: 4.607611304 | J100: 2.666666667 | K100: 2 | L100: 0 | M100: Gmaps | N100: LOPUT | O100: Yhdys | P100: Seppolantie | Q100: Jämsä | S100: 6031 | T100: 1 | U100: 0 | V100: 1 | W100: 3931 | X100: 3931 | Y100: 2497 | Z100: 101 | AA100: 2626 | AB100: 2497 (100 %) | AC100: 50 (16 %), 70 (38 %), 80 (45 %) | AD100: Ib (52 %), Ic (48 %) | AE100: Asfalttibetoni (99 %) | AF100: PK2 (100 %) | AG100: 1 | AH100: 1 | AJ100: 25 | AR100: 9 | AS100: 17 | AV100: 2.55 | AW100: =_xlfn.XLOOKUP(A100,[1]Työmatkat!$A:$A,[1]Työmatkat!$F:$F,"-",0) -> 1004 | AX100: 3 | AY100: 14.55 | AZ100: 4.85 | BA100: 8 | BB100: 1 | BC100: 0 | BD100: 0 | BE100: 0 | BF100: 1 | BG100: 0 | BH100: 0.005 | BI100: 0 | BJ100: 0 | BK100: 0 | BL100: 0 | BM100: 1.2 | BO100: 2 | BP100: 6.178339115 | BQ100: 0.6178339115 | BR100: 13.82283391 | BS100: 4.607611304 | BT100: 1981.99 | BU100: 0.5041948614 | BV100: 1 | BW100: =_xlfn.XLOOKUP(A100,[1]Erikoiskuljetukset!$A:$A,[1]Erikoiskuljetukset!$F:$F,"-",0) -> 3895.23 | BX100: 0.9909005342 | BY100: 1 | BZ100: 1 | CA100: 2814.15 | CB100: 0.7158865429 | CC100: 1 | CD100: =_xlfn.XLOOKUP(A100,'[1]2_Asukastiheys'!$A:$A,'[1]2_Asukastiheys'!$H:$H,"-",0)/X100 -> 138.3668278 | CE100: 1 | CF100: 1 | CG100: 1 | CH100: 0 | CI100: 1 | CJ100: 8 | CK100: 2.666666667 | CL100: 36.37283391 | CM100: 12.12427797 | CN100: 2 | CO100: =VLOOKUP(A100,Taul1!$F$6:$G$953,2,FALSE) -> 1 | CP100: 31.755 | CQ100: 14.55 | CR100: 12.205 | CS100: 5 | CU100: https://www.google.com/maps/@61.86200459,25.1797585,3a,75y,90t/data=!3m3!1e1!3m1!2e0 | CZ100: =_xlfn.XLOOKUP(A100,[1]Maito!$A:$A,[1]Maito!$J:$J,"-",0) -> 0 | DA100: 0 | DB100: =_xlfn.XLOOKUP(A100,[1]Kaatopaikat_jäte!$A:$A,[1]Kaatopaikat_jäte!$F:$F,"-",0) -> 0 | DC100: =_xlfn.XLOOKUP(A100,'[1]Maa-aines'!$A:$A,'[1]Maa-aines'!$F:$F,"-",0) -> 0 | DD100: =_xlfn.XLOOKUP(A100,[1]Turve!$A:$A,[1]Turve!$F:$F,"-",0) -> 0 | DE100: =_xlfn.XLOOKUP(A100,[1]Vilja!$A:$A,[1]Vilja!$F:$F,"-",0) -> 1 | DF100: =_xlfn.XLOOKUP(A100,[1]Kasvihuoneet!$A:$A,[1]Kasvihuoneet!$F:$F,"-",0) -> 0 | DG100: =_xlfn.XLOOKUP(A100,[1]Eläintilat!$A:$A,[1]Eläintilat!$H:$H,"-",0) -> 1 | DH100: =_xlfn.XLOOKUP(A100,[1]Eläintilat!$A:$A,[1]Eläintilat!$J:$J,"-",0) -> 0 | DI100: =_xlfn.XLOOKUP(A100,[1]Eläintilat!$A:$A,[1]Eläintilat!$I:$I,"-",0) -> 0 | DJ100: =_xlfn.XLOOKUP(A100,[1]Eläintilat!$A:$A,[1]Eläintilat!$K:$K,"-",0) -> 0 | DK100: =_xlfn.XLOOKUP(A100,'[1]Elintarvike ja varasto'!$A:$A,'[1]Elintarvike ja varasto'!$F:$F,"-",0) -> 0 | DM100: =_xlfn.XLOOKUP(A100,[1]Koulut!$A:$A,[1]Koulut!$F:$F,"-",0) -> 1981.99 | DN100: =_xlfn.XLOOKUP(A100,'[1]Tuotanto ja teollisuus'!$A:$A,'[1]Tuotanto ja teollisuus'!$F:$F,"-",0) -> 3 | DP100: =_xlfn.XLOOKUP(A100,[1]Varareitit!$A:$A,[1]Varareitit!$F:$F,"-",0) -> 3 | DQ100: =_xlfn.XLOOKUP(A100,[1]Taajama!$A:$A,[1]Taajama!$F:$F,"-",0) -> 2814.15 | DR100: 1 | DS100: 0 | DT100: 1 | DU100: =_xlfn.XLOOKUP(A100,[1]Matkailukohteet!$A:$A,[1]Matkailukohteet!$F:$F,"-",0) -> 0 | DV100: =_xlfn.XLOOKUP(A100,[1]Matkailu!$A:$A,[1]Matkailu!$F:$F,"-",0) -> 0 | DW100: =_xlfn.XLOOKUP(A100,[1]Pyörämatkailu!$A:$A,[1]Pyörämatkailu!$F:$F,"-",0) -> 1 | DX100: 1 | DZ100: =_xlfn.XLOOKUP(A100,'[1]Verkollinen asema'!$A:$A,'[1]Verkollinen asema'!$D:$D,"-",0) -> 0 | EA100: =_xlfn.XLOOKUP(A100,[1]Kaupat!$A:$A,[1]Kaupat!$F:$F,"-",0) -> 1 | EF100: -- | EG100: -- | EH100: -- | EI100: -- | EJ100: -- | EL100: 1072_2 | EM100: LOPUT | EN100: 264 | EO100: 2 | EQ100: 148 | ER100: 1
A101: =CONCATENATE(S101,"_",T101) -> 642_5 | B101: 2 | D101: =RANK(CM101,$CM$37:$CM$984) -> 65 | E101: 65 | F101: =E101-D101 -> 0 | G101: =CM101 -> 12.12232087 | H101: =AZ101 -> 5 | I101: =BS101 -> 4.788987537 | J101: =CK101 -> 2.333333333 | K101: =CN101 -> 2 | L101: =B101-K101 -> 0 | M101: =HYPERLINK(CU101,"Gmaps") -> Gmaps | N101: =IF(Y101>$K$6,"LOPUT","VÄHÄ") -> LOPUT | O101: =IF(S101<40,"Valta",IF(S101<100,"Kanta",IF(S101<1000,"Seutu",IF(S101>999,"Yhdys")))) -> Seutu | P101: Järvenpääntie, Äänekoskentie | Q101: Äänekoski | S101: 642 | T101: 5 | U101: 0 | V101: 5 | W101: 5884 | X101: 5884 | Y101: 3784.158906 | Z101: 162.003739 | AA101: 4252 | AB101: 3300 (75 %), 5203 (25 %) | AC101: 40 (25 %), 50 (67 %), 60 (8 %) | AD101: Is (100 %) | AE101: Asfalttibetoni (72 %), Kivimastiksiasfaltti (27 %) | AF101: PK2 (100 %) | AG101: 4 | AH101: 8 | AJ101: 47.46651937 | AR101: 9 | AS101: 128 | AV101: 3 | AW101: =_xlfn.XLOOKUP(A101,[1]Työmatkat!$A:$A,[1]Työmatkat!$F:$F,"-",0) -> 3037 | AX101: 3 | AY101: =SUM(AR101,AV101,AX101) -> 15 | AZ101: =+AY101*$H$5 -> 5 | BA101: 8 | BB101: 1 | BC101: 0 | BD101: 1 | BE101: 0 | BF101: 0 | BG101: 0 | BH101: 0 | BI101: 0 | BJ101: 0 | BK101: 0 | BL101: 2 | BM101: =+IF(DN101>=$L$29,$J$29,IF(DN101<($L$29),DN101*($J$29/($L$29)),)) -> 0 | BO101: 2 | BP101: 3.669626121 | BQ101: =+IF(BP101>=$L$19,$J$19,IF(BP101<($L$19),BP101*($J$19/($L$19)),)) -> 0.3669626121 | BR101: =SUM(BA101+BC101+BD101+BE101+BB101+BF101+BL101+BH101+BI101+BJ101+BK101+BM101+BO101+BQ101+BG101) -> 14.36696261 | BS101: =+BR101*$H$9 -> 4.788987537 | BT101: =DM101 -> 0 | BU101: =BT101/X101 -> 0 | BV101: =IF(BU101>0,IF(BU101>=$CZ$28,$CX$28,IF(BU101<$CZ$28,$CX$29,0)),0) -> 0 | BW101: =_xlfn.XLOOKUP(A101,[1]Erikoiskuljetukset!$A:$A,[1]Erikoiskuljetukset!$F:$F,"-",0) -> 5670.28 | BX101: =BW101/X101 -> 0.9636777702 | BY101: =IF(BX101,$F$23,0) -> 1 | BZ101: =IF(DP101>0,$F$24,0) -> 1 | CA101: =DQ101 -> 4628.17 | CB101: =CA101/X101 -> 0.7865686608 | CC101: =+IF(CB101>=$K$4,$F$25,0) -> 1 | CD101: =_xlfn.XLOOKUP(A101,'[1]2_Asukastiheys'!$A:$A,'[1]2_Asukastiheys'!$H:$H,"-",0)/X101 -> 616.1869477 | CE101: =IF(CD101>0,IF(CD101>=100,$F$26,IF(CD101<100,$F$26/2)),0) -> 1 | CF101: =SUM(DT101) -> 1 | CG101: =IF(DX101>0,$F$28,0) -> 1 | CH101: =IF(DU101>0,$F$29,0) -> 0 | CI101: =IF(DZ101=0,$F$30,0) -> 1 | CJ101: =SUM(BV101,BY101,CE101,BZ101,CC101,CF101,CG101,CH101,CI101) -> 7 | CK101: =+CJ101*$H$22 -> 2.333333333 | CL101: =SUM(AY101,BR101,CJ101) -> 36.36696261 | CM101: =SUM(AZ101,BS101,CK101) -> 12.12232087 | CN101: =IF(D101<($Z$13*$CN$28),1,IF(D101<(($Z$14+$Z$13)*$CN$28),2,IF(D101<(($Z$15+$Z$13+$Z$14)*$CN$28),3,4))) -> 2 | CO101: =VLOOKUP(A101,Taul1!$F$6:$G$953,2,FALSE) -> 2 | CP101: =AR101+AV101+AX101+BA101+BC101+BD101+BF101+BG101+BH101+BI101+BJ101+BK101+BL101+BM101+BO101+BV101+BY101+BZ101+CF101+CI101 -> 32 | CQ101: =AY101 -> 15 | CR101: 13 | CS101: =BV101+BY101+BZ101+CF101+CI101 -> 4 | CU101: https://www.google.com/maps/@62.59747053,25.75420417,3a,75y,90t/data=!3m3!1e1!3m1!2e0 | CZ101: =_xlfn.XLOOKUP(A101,[1]Maito!$A:$A,[1]Maito!$J:$J,"-",0) -> 0 | DA101: =SUM(CX101:CZ101) -> 0 | DB101: =_xlfn.XLOOKUP(A101,[1]Kaatopaikat_jäte!$A:$A,[1]Kaatopaikat_jäte!$F:$F,"-",0) -> 1 | DC101: =_xlfn.XLOOKUP(A101,'[1]Maa-aines'!$A:$A,'[1]Maa-aines'!$F:$F,"-",0) -> 0 | DD101: =_xlfn.XLOOKUP(A101,[1]Turve!$A:$A,[1]Turve!$F:$F,"-",0) -> 0 | DE101: =_xlfn.XLOOKUP(A101,[1]Vilja!$A:$A,[1]Vilja!$F:$F,"-",0) -> 0 | DF101: =_xlfn.XLOOKUP(A101,[1]Kasvihuoneet!$A:$A,[1]Kasvihuoneet!$F:$F,"-",0) -> 0 | DG101: =_xlfn.XLOOKUP(A101,[1]Eläintilat!$A:$A,[1]Eläintilat!$H:$H,"-",0) -> 0 | DH101: =_xlfn.XLOOKUP(A101,[1]Eläintilat!$A:$A,[1]Eläintilat!$J:$J,"-",0) -> 0 | DI101: =_xlfn.XLOOKUP(A101,[1]Eläintilat!$A:$A,[1]Eläintilat!$I:$I,"-",0) -> 0 | DJ101: =_xlfn.XLOOKUP(A101,[1]Eläintilat!$A:$A,[1]Eläintilat!$K:$K,"-",0) -> 0 | DK101: =_xlfn.XLOOKUP(A101,'[1]Elintarvike ja varasto'!$A:$A,'[1]Elintarvike ja varasto'!$F:$F,"-",0) -> 1 | DM101: =_xlfn.XLOOKUP(A101,[1]Koulut!$A:$A,[1]Koulut!$F:$F,"-",0) -> 0 | DN101: =_xlfn.XLOOKUP(A101,'[1]Tuotanto ja teollisuus'!$A:$A,'[1]Tuotanto ja teollisuus'!$F:$F,"-",0) -> 0 | DP101: =_xlfn.XLOOKUP(A101,[1]Varareitit!$A:$A,[1]Varareitit!$F:$F,"-",0) -> 16 | DQ101: =_xlfn.XLOOKUP(A101,[1]Taajama!$A:$A,[1]Taajama!$F:$F,"-",0) -> 4628.17 | DR101: =+IF(AA101>$K$8,$F$27/2,0) -> 1 | DS101: =+IF(AA101/Y101>1.5,$F$27/2,0) -> 0 | DT101: =SUM(DR101:DS101) -> 1 | DU101: =_xlfn.XLOOKUP(A101,[1]Matkailukohteet!$A:$A,[1]Matkailukohteet!$F:$F,"-",0) -> 0 | DV101: =_xlfn.XLOOKUP(A101,[1]Matkailu!$A:$A,[1]Matkailu!$F:$F,"-",0) -> 0 | DW101: =_xlfn.XLOOKUP(A101,[1]Pyörämatkailu!$A:$A,[1]Pyörämatkailu!$F:$F,"-",0) -> 1 | DX101: =SUM(DV101:DW101) -> 1 | DZ101: =_xlfn.XLOOKUP(A101,'[1]Verkollinen asema'!$A:$A,'[1]Verkollinen asema'!$D:$D,"-",0) -> 0 | EA101: =_xlfn.XLOOKUP(A101,[1]Kaupat!$A:$A,[1]Kaupat!$F:$F,"-",0) -> 3 | EF101: =IFERROR(VLOOKUP(A101,$EL$37:$EN$992,2,FALSE),"--") -> -- | EG101: =IFERROR(VLOOKUP(A101,$EL$37:$EN$992,3,FALSE),"--") -> -- | EH101: =IFERROR(EG101-D101,"--") -> -- | EI101: =IFERROR(VLOOKUP(A101,$EL$37:$EO$992,4,FALSE),"--") -> -- | EJ101: =IFERROR(EI101-K101,"--") -> -- | EL101: 2826_1 | EM101: LOPUT | EN101: 343 | EO101: 2 | EQ101: 11029 | ER101: 2
A102: 637_5 | B102: 2 | D102: 66 | E102: 66 | F102: 0 | G102: 12.09618148 | H102: 5 | I102: 4.429514815 | J102: 2.666666667 | K102: 2 | L102: 0 | M102: Gmaps | N102: LOPUT | O102: Seutu | P102: Jyväskyläntie, Suolahdentie | Q102: Laukaa | S102: 637 | T102: 5 | U102: 0 | V102: 5 | W102: 2362 | X102: 2362 | Y102: 8021 | Z102: 448 | AA102: 8780 | AB102: 8021 (100 %) | AC102: 50 (22 %), 60 (78 %) | AD102: Ib (100 %) | AE102: Asfalttibetoni (25 %), Kivimastiksiasfaltti (75 %) | AF102: PK2 (100 %) | AG102: 2 | AH102: 2 | AJ102: 131 | AR102: =+IF(Y102>=$K$6,$F$5,($F$5/($K$6))*Y102) -> 9 | AS102: 159 | AV102: =+IF(AS102>=$L$15,$J$15,IF(AS102<($L$15),AS102*($J$15/($L$15)),)) -> 3 | AW102: =_xlfn.XLOOKUP(A102,[1]Työmatkat!$A:$A,[1]Työmatkat!$F:$F,"-",0) -> 1609 | AX102: =+IF(AW102>=$L$11,$J$11,IF(AW102<($L$11),AW102*($J$11/($L$11)),)) -> 3 | AY102: 15 | AZ102: 5 | BA102: =+IF(Z102=0,0,IF(Z102>$K$7,$F$9,($F$9/$K$7)*Z102)) -> 8 | BB102: =+IF(AJ102=0,0,IF(AJ102>$L$6,$F$10,($F$10/$L$6)*AJ102)) -> 1 | BC102: =IF(DA102>0,$F$11,0) -> 0 | BD102: =IF(DB102>0,$F$12,0) -> 1 | BE102: =IF(DC102>0,$F$13,0) -> 0 | BF102: =IF(DE102>0,$F$14,0) -> 1 | BG102: =IF(DF102>0,$F$15,0) -> 0 | BH102: =+IF(DG102>=$L$23,$J$23,IF(DG102<($L$23),DG102*($J$23/($L$23)),)) -> 0 | BI102: =+IF(DH102>=$L$24,$J$24,IF(DH102<($L$24),DH102*($J$24/($L$24)),)) -> 0 | BJ102: =+IF(DI102>=$L$25,$J$25,IF(DI102<($L$25),DI102*($J$25/($L$25)),)) -> 0 | BK102: =+IF(DJ102>=$L$26,$J$26,IF(DJ102<($L$26),DJ102*($J$26/($L$26)),)) -> 0 | BL102: =IF(DK102>0,$F$17,0) -> 0 | BM102: 0 | BO102: =IF(EA102>0,$F$19,0) -> 2 | BP102: 2.885444463 | BQ102: 0.2885444463 | BR102: 13.28854445 | BS102: 4.429514815 | BT102: 2371.61 | BU102: 1.004068586 | BV102: 1 | BW102: =_xlfn.XLOOKUP(A102,[1]Erikoiskuljetukset!$A:$A,[1]Erikoiskuljetukset!$F:$F,"-",0) -> 2346.46 | BX102: 0.9934208298 | BY102: 1 | BZ102: 1 | CA102: 2342.52 | CB102: 0.9917527519 | CC102: 1 | CD102: =_xlfn.XLOOKUP(A102,'[1]2_Asukastiheys'!$A:$A,'[1]2_Asukastiheys'!$H:$H,"-",0)/X102 -> 465.5783235 | CE102: 1 | CF102: 1 | CG102: 1 | CH102: 0 | CI102: 1 | CJ102: 8 | CK102: 2.666666667 | CL102: 36.28854445 | CM102: 12.09618148 | CN102: 2 | CO102: =VLOOKUP(A102,Taul1!$F$6:$G$953,2,FALSE) -> 1 | CP102: 32 | CQ102: 15 | CR102: =BA102+BC102+BD102+BF102+BG102+BH102+BI102+BJ102+BK102+BL102+BM102+BO102 -> 12 | CS102: 5 | CU102: https://www.google.com/maps/@62.41248603,25.94982874,3a,75y,90t/data=!3m3!1e1!3m1!2e0 | CZ102: =_xlfn.XLOOKUP(A102,[1]Maito!$A:$A,[1]Maito!$J:$J,"-",0) -> 0 | DA102: 0 | DB102: =_xlfn.XLOOKUP(A102,[1]Kaatopaikat_jäte!$A:$A,[1]Kaatopaikat_jäte!$F:$F,"-",0) -> 2 | DC102: =_xlfn.XLOOKUP(A102,'[1]Maa-aines'!$A:$A,'[1]Maa-aines'!$F:$F,"-",0) -> 0 | DD102: =_xlfn.XLOOKUP(A102,[1]Turve!$A:$A,[1]Turve!$F:$F,"-",0) -> 0 | DE102: =_xlfn.XLOOKUP(A102,[1]Vilja!$A:$A,[1]Vilja!$F:$F,"-",0) -> 2 | DF102: =_xlfn.XLOOKUP(A102,[1]Kasvihuoneet!$A:$A,[1]Kasvihuoneet!$F:$F,"-",0) -> 0 | DG102: =_xlfn.XLOOKUP(A102,[1]Eläintilat!$A:$A,[1]Eläintilat!$H:$H,"-",0) -> 0 | DH102: =_xlfn.XLOOKUP(A102,[1]Eläintilat!$A:$A,[1]Eläintilat!$J:$J,"-",0) -> 0 | DI102: =_xlfn.XLOOKUP(A102,[1]Eläintilat!$A:$A,[1]Eläintilat!$I:$I,"-",0) -> 0 | DJ102: =_xlfn.XLOOKUP(A102,[1]Eläintilat!$A:$A,[1]Eläintilat!$K:$K,"-",0) -> 0 | DK102: =_xlfn.XLOOKUP(A102,'[1]Elintarvike ja varasto'!$A:$A,'[1]Elintarvike ja varasto'!$F:$F,"-",0) -> 0 | DM102: =_xlfn.XLOOKUP(A102,[1]Koulut!$A:$A,[1]Koulut!$F:$F,"-",0) -> 2371.61 | DN102: =_xlfn.XLOOKUP(A102,'[1]Tuotanto ja teollisuus'!$A:$A,'[1]Tuotanto ja teollisuus'!$F:$F,"-",0) -> 0 | DP102: =_xlfn.XLOOKUP(A102,[1]Varareitit!$A:$A,[1]Varareitit!$F:$F,"-",0) -> 10 | DQ102: =_xlfn.XLOOKUP(A102,[1]Taajama!$A:$A,[1]Taajama!$F:$F,"-",0) -> 2342.52 | DR102: 1 | DS102: 0 | DT102: 1 | DU102: =_xlfn.XLOOKUP(A102,[1]Matkailukohteet!$A:$A,[1]Matkailukohteet!$F:$F,"-",0) -> 0 | DV102: =_xlfn.XLOOKUP(A102,[1]Matkailu!$A:$A,[1]Matkailu!$F:$F,"-",0) -> 0 | DW102: =_xlfn.XLOOKUP(A102,[1]Pyörämatkailu!$A:$A,[1]Pyörämatkailu!$F:$F,"-",0) -> 1 | DX102: 1 | DZ102: =_xlfn.XLOOKUP(A102,'[1]Verkollinen asema'!$A:$A,'[1]Verkollinen asema'!$D:$D,"-",0) -> 0 | EA102: =_xlfn.XLOOKUP(A102,[1]Kaupat!$A:$A,[1]Kaupat!$F:$F,"-",0) -> 3 | EF102: -- | EG102: -- | EH102: -- | EI102: -- | EJ102: -- | EL102: 410_5 | EM102: LOPUT | EN102: 114 | EO102: 2 | EQ102: 213 | ER102: 1
A103: 6375_2 | B103: 2 | D103: 67 | E103: 67 | F103: 0 | G103: 12.07350669 | H103: 3.9125 | I103: 5.994340022 | J103: 2.166666667 | K103: 2 | L103: 0 | M103: Gmaps | N103: LOPUT | O103: Yhdys | P103: Vehniäntie | Q103: Laukaa | S103: 6375 | T103: 2 | U103: 0 | V103: 2 | W103: 5982 | X103: 5982 | Y103: 1010 | Z103: 53 | AA103: 1109 | AB103: 1010 (100 %) | AC103: 60 (45 %), 80 (55 %) | AD103: Ic (100 %) | AE103: Asfalttibetoni (45 %), Pehmeät asfalttibetonit (PAB-B) (55 %) | AF103: PK2 (100 %) | AG103: 0 | AH103: 2 | AJ103: 13 | AR103: 9 | AS103: 2 | AV103: 0.3 | AW103: =_xlfn.XLOOKUP(A103,[1]Työmatkat!$A:$A,[1]Työmatkat!$F:$F,"-",0) -> 325 | AX103: 2.4375 | AY103: 11.7375 | AZ103: 3.9125 | BA103: 8 | BB103: 0.65 | BC103: 3 | BD103: 1 | BE103: 1 | BF103: 1 | BG103: 1 | BH103: 0.09 | BI103: 0 | BJ103: 0 | BK103: 0 | BL103: 0 | BM103: 0 | BO103: 2 | BP103: 2.430200653 | BQ103: 0.2430200653 | BR103: 17.98302007 | BS103: 5.994340022 | BT103: 0 | BU103: 0 | BV103: 0 | BW103: =_xlfn.XLOOKUP(A103,[1]Erikoiskuljetukset!$A:$A,[1]Erikoiskuljetukset!$F:$F,"-",0) -> 5973.47 | BX103: 0.9985740555 | BY103: 1 | BZ103: 1 | CA103: 0 | CB103: 0 | CC103: 0 | CD103: =_xlfn.XLOOKUP(A103,'[1]2_Asukastiheys'!$A:$A,'[1]2_Asukastiheys'!$H:$H,"-",0)/X103 -> 18.87328653 | CE103: 0.5 | CF103: 1 | CG103: 1 | CH103: 1 | CI103: 1 | CJ103: 6.5 | CK103: 2.166666667 | CL103: 36.22052007 | CM103: 12.07350669 | CN103: 2 | CO103: =VLOOKUP(A103,Taul1!$F$6:$G$953,2,FALSE) -> 1 | CP103: 31.8275 | CQ103: 11.7375 | CR103: 16.09 | CS103: 4 | CU103: https://www.google.com/maps/@62.42479122,25.77248368,3a,75y,90t/data=!3m3!1e1!3m1!2e0 | CZ103: =_xlfn.XLOOKUP(A103,[1]Maito!$A:$A,[1]Maito!$J:$J,"-",0) -> 1 | DA103: 1 | DB103: =_xlfn.XLOOKUP(A103,[1]Kaatopaikat_jäte!$A:$A,[1]Kaatopaikat_jäte!$F:$F,"-",0) -> 3 | DC103: =_xlfn.XLOOKUP(A103,'[1]Maa-aines'!$A:$A,'[1]Maa-aines'!$F:$F,"-",0) -> 1 | DD103: =_xlfn.XLOOKUP(A103,[1]Turve!$A:$A,[1]Turve!$F:$F,"-",0) -> 0 | DE103: =_xlfn.XLOOKUP(A103,[1]Vilja!$A:$A,[1]Vilja!$F:$F,"-",0) -> 7 | DF103: =_xlfn.XLOOKUP(A103,[1]Kasvihuoneet!$A:$A,[1]Kasvihuoneet!$F:$F,"-",0) -> 2 | DG103: =_xlfn.XLOOKUP(A103,[1]Eläintilat!$A:$A,[1]Eläintilat!$H:$H,"-",0) -> 18 | DH103: =_xlfn.XLOOKUP(A103,[1]Eläintilat!$A:$A,[1]Eläintilat!$J:$J,"-",0) -> 0 | DI103: =_xlfn.XLOOKUP(A103,[1]Eläintilat!$A:$A,[1]Eläintilat!$I:$I,"-",0) -> 0 | DJ103: =_xlfn.XLOOKUP(A103,[1]Eläintilat!$A:$A,[1]Eläintilat!$K:$K,"-",0) -> 0 | DK103: =_xlfn.XLOOKUP(A103,'[1]Elintarvike ja varasto'!$A:$A,'[1]Elintarvike ja varasto'!$F:$F,"-",0) -> 0 | DM103: =_xlfn.XLOOKUP(A103,[1]Koulut!$A:$A,[1]Koulut!$F:$F,"-",0) -> 0 | DN103: =_xlfn.XLOOKUP(A103,'[1]Tuotanto ja teollisuus'!$A:$A,'[1]Tuotanto ja teollisuus'!$F:$F,"-",0) -> 0 | DP103: =_xlfn.XLOOKUP(A103,[1]Varareitit!$A:$A,[1]Varareitit!$F:$F,"-",0) -> 2 | DQ103: =_xlfn.XLOOKUP(A103,[1]Taajama!$A:$A,[1]Taajama!$F:$F,"-",0) -> 0 | DR103: 1 | DS103: 0 | DT103: 1 | DU103: =_xlfn.XLOOKUP(A103,[1]Matkailukohteet!$A:$A,[1]Matkailukohteet!$F:$F,"-",0) -> 1 | DV103: =_xlfn.XLOOKUP(A103,[1]Matkailu!$A:$A,[1]Matkailu!$F:$F,"-",0) -> 0 | DW103: =_xlfn.XLOOKUP(A103,[1]Pyörämatkailu!$A:$A,[1]Pyörämatkailu!$F:$F,"-",0) -> 1 | DX103: 1 | DZ103: =_xlfn.XLOOKUP(A103,'[1]Verkollinen asema'!$A:$A,'[1]Verkollinen asema'!$D:$D,"-",0) -> 0 | EA103: =_xlfn.XLOOKUP(A103,[1]Kaupat!$A:$A,[1]Kaupat!$F:$F,"-",0) -> 3 | EF103: -- | EG103: -- | EH103: -- | EI103: -- | EJ103: -- | EL103: 2814_1 | EM103: LOPUT | EN103: 408 | EO103: 2 | EQ103: 3174 | ER103: 1
A104: 69_4 | B104: 2 | D104: 68 | E104: 68 | F104: 0 | G104: 12.045 | H104: 4.25 | I104: 6.295 | J104: 1.5 | K104: 2 | L104: 0 | M104: Gmaps | N104: LOPUT | O104: Kanta | P104: Suolahdentie, Suonenjoentie | Q104: Konnevesi, Laukaa, Äänekoski | S104: 69 | T104: 4 | U104: 0 | V104: 4 | W104: 9506 | X104: 9506 | Y104: 1545.554807 | Z104: 164.4125815 | AA104: 1821 | AB104: 1444 (87 %), 2234 (13 %) | AC104: 100 (57 %), 60 (2 %), 80 (41 %) | AD104: Ib (100 %) | AE104: Asfalttibetoni (100 %) | AF104: PK2 (100 %) | AG104: 1 | AH104: 5 | AJ104: 94.85651168 | AR104: 9 | AS104: 5 | AV104: 0.75 | AW104: =_xlfn.XLOOKUP(A104,[1]Työmatkat!$A:$A,[1]Työmatkat!$F:$F,"-",0) -> 753 | AX104: 3 | AY104: 12.75 | AZ104: 4.25 | BA104: 8 | BB104: 1 | BC104: 3 | BD104: 1 | BE104: 1 | BF104: 1 | BG104: 0 | BH104: 0.5 | BI104: 0.385 | BJ104: 0 | BK104: 0 | BL104: 2 | BM104: 0 | BO104: 0 | BP104: 26.90437941 | BQ104: 1 | BR104: 18.885 | BS104: 6.295 | BT104: 0 | BU104: 0 | BV104: 0 | BW104: =_xlfn.XLOOKUP(A104,[1]Erikoiskuljetukset!$A:$A,[1]Erikoiskuljetukset!$F:$F,"-",0) -> 9490.95 | BX104: 0.9984167894 | BY104: 1 | BZ104: 1 | CA104: 0 | CB104: 0 | CC104: 0 | CD104: =_xlfn.XLOOKUP(A104,'[1]2_Asukastiheys'!$A:$A,'[1]2_Asukastiheys'!$H:$H,"-",0)/X104 -> 5.095729013 | CE104: 0.5 | CF104: 1 | CG104: 0 | CH104: 0 | CI104: 1 | CJ104: 4.5 | CK104: 1.5 | CL104: 36.135 | CM104: 12.045 | CN104: 2 | CO104: =VLOOKUP(A104,Taul1!$F$6:$G$953,2,FALSE) -> 2 | CP104: 32.635 | CQ104: 12.75 | CR104: 15.885 | CS104: 4 | CU104: https://www.google.com/maps/@62.54586447,25.91863925,3a,75y,90t/data=!3m3!1e1!3m1!2e0 | CZ104: =_xlfn.XLOOKUP(A104,[1]Maito!$A:$A,[1]Maito!$J:$J,"-",0) -> 1 | DA104: 1 | DB104: =_xlfn.XLOOKUP(A104,[1]Kaatopaikat_jäte!$A:$A,[1]Kaatopaikat_jäte!$F:$F,"-",0) -> 1 | DC104: =_xlfn.XLOOKUP(A104,'[1]Maa-aines'!$A:$A,'[1]Maa-aines'!$F:$F,"-",0) -> 2 | DD104: =_xlfn.XLOOKUP(A104,[1]Turve!$A:$A,[1]Turve!$F:$F,"-",0) -> 0 | DE104: =_xlfn.XLOOKUP(A104,[1]Vilja!$A:$A,[1]Vilja!$F:$F,"-",0) -> 5 | DF104: =_xlfn.XLOOKUP(A104,[1]Kasvihuoneet!$A:$A,[1]Kasvihuoneet!$F:$F,"-",0) -> 0 | DG104: =_xlfn.XLOOKUP(A104,[1]Eläintilat!$A:$A,[1]Eläintilat!$H:$H,"-",0) -> 439 | DH104: =_xlfn.XLOOKUP(A104,[1]Eläintilat!$A:$A,[1]Eläintilat!$J:$J,"-",0) -> 77 | DI104: =_xlfn.XLOOKUP(A104,[1]Eläintilat!$A:$A,[1]Eläintilat!$I:$I,"-",0) -> 0 | DJ104: =_xlfn.XLOOKUP(A104,[1]Eläintilat!$A:$A,[1]Eläintilat!$K:$K,"-",0) -> 0 | DK104: =_xlfn.XLOOKUP(A104,'[1]Elintarvike ja varasto'!$A:$A,'[1]Elintarvike ja varasto'!$F:$F,"-",0) -> 1 | DM104: =_xlfn.XLOOKUP(A104,[1]Koulut!$A:$A,[1]Koulut!$F:$F,"-",0) -> 0 | DN104: =_xlfn.XLOOKUP(A104,'[1]Tuotanto ja teollisuus'!$A:$A,'[1]Tuotanto ja teollisuus'!$F:$F,"-",0) -> 0 | DP104: =_xlfn.XLOOKUP(A104,[1]Varareitit!$A:$A,[1]Varareitit!$F:$F,"-",0) -> 2 | DQ104: =_xlfn.XLOOKUP(A104,[1]Taajama!$A:$A,[1]Taajama!$F:$F,"-",0) -> 0 | DR104: 1 | DS104: 0 | DT104: 1 | DU104: =_xlfn.XLOOKUP(A104,[1]Matkailukohteet!$A:$A,[1]Matkailukohteet!$F:$F,"-",0) -> 0 | DV104: =_xlfn.XLOOKUP(A104,[1]Matkailu!$A:$A,[1]Matkailu!$F:$F,"-",0) -> 0 | DW104: =_xlfn.XLOOKUP(A104,[1]Pyörämatkailu!$A:$A,[1]Pyörämatkailu!$F:$F,"-",0) -> 0 | DX104: 0 | DZ104: =_xlfn.XLOOKUP(A104,'[1]Verkollinen asema'!$A:$A,'[1]Verkollinen asema'!$D:$D,"-",0) -> 0 | EA104: =_xlfn.XLOOKUP(A104,[1]Kaupat!$A:$A,[1]Kaupat!$F:$F,"-",0) -> 0 | EF104: -- | EG104: -- | EH104: -- | EI104: -- | EJ104: -- | EL104: 140_30 | EM104: LOPUT | EN104: 116 | EO104: 2 | EQ104: 11291 | ER104: 1
A105: 9_234 | B105: 2 | D105: 69 | E105: 69 | F105: 0 | G105: 12.0371741 | H105: 5 | I105: 5.037174102 | J105: 2 | K105: 2 | L105: 0 | M105: Gmaps | N105: LOPUT | O105: Valta | P105: Ysitie | Q105: Jyväskylä, Muurame | S105: 9 | T105: 234 | U105: 0 | V105: 234 | W105: 3286 | X105: 3286 | Y105: 16234 | Z105: 1056 | AA105: 19676 | AB105: 16234 (100 %) | AC105: 100 (44 %), 80 (56 %) | AD105: Ise (100 %) | AE105: Kivimastiksiasfaltti (100 %) | AF105: PK1 (100 %) | AG105: 4 | AH105: 10 | AJ105: 477 | AR105: 9 | AS105: 433 | AV105: 3 | AW105: =_xlfn.XLOOKUP(A105,[1]Työmatkat!$A:$A,[1]Työmatkat!$F:$F,"-",0) -> 6589 | AX105: 3 | AY105: 15 | AZ105: 5 | BA105: 8 | BB105: 1 | BC105: 3 | BD105: 0 | BE105: 0 | BF105: 0 | BG105: 0 | BH105: 0.29 | BI105: 0 | BJ105: 0 | BK105: 0 | BL105: 0 | BM105: 0 | BO105: 2 | BP105: 8.215223049 | BQ105: 0.8215223049 | BR105: 15.1115223 | BS105: 5.037174102 | BT105: 1686.39 | BU105: 0.513204504 | BV105: 1 | BW105: =_xlfn.XLOOKUP(A105,[1]Erikoiskuljetukset!$A:$A,[1]Erikoiskuljetukset!$F:$F,"-",0) -> 3282.25 | BX105: 0.9988587949 | BY105: 1 | BZ105: 1 | CA105: 1447.73 | CB105: 0.4405751674 | CC105: 0 | CD105: =_xlfn.XLOOKUP(A105,'[1]2_Asukastiheys'!$A:$A,'[1]2_Asukastiheys'!$H:$H,"-",0)/X105 -> 101.1923311 | CE105: 1 | CF105: 1 | CG105: 0 | CH105: 0 | CI105: 1 | CJ105: 6 | CK105: 2 | CL105: 36.1115223 | CM105: 12.0371741 | CN105: 2 | CO105: =VLOOKUP(A105,Taul1!$F$6:$G$953,2,FALSE) -> 1 | CP105: 33.29 | CQ105: 15 | CR105: 13.29 | CS105: 5 | CU105: https://www.google.com/maps/@62.16374279,25.6819003,3a,75y,90t/data=!3m3!1e1!3m1!2e0 | CZ105: =_xlfn.XLOOKUP(A105,[1]Maito!$A:$A,[1]Maito!$J:$J,"-",0) -> 6 | DA105: 6 | DB105: =_xlfn.XLOOKUP(A105,[1]Kaatopaikat_jäte!$A:$A,[1]Kaatopaikat_jäte!$F:$F,"-",0) -> 0 | DC105: =_xlfn.XLOOKUP(A105,'[1]Maa-aines'!$A:$A,'[1]Maa-aines'!$F:$F,"-",0) -> 0 | DD105: =_xlfn.XLOOKUP(A105,[1]Turve!$A:$A,[1]Turve!$F:$F,"-",0) -> 0 | DE105: =_xlfn.XLOOKUP(A105,[1]Vilja!$A:$A,[1]Vilja!$F:$F,"-",0) -> 0 | DF105: =_xlfn.XLOOKUP(A105,[1]Kasvihuoneet!$A:$A,[1]Kasvihuoneet!$F:$F,"-",0) -> 0 | DG105: =_xlfn.XLOOKUP(A105,[1]Eläintilat!$A:$A,[1]Eläintilat!$H:$H,"-",0) -> 58 | DH105: =_xlfn.XLOOKUP(A105,[1]Eläintilat!$A:$A,[1]Eläintilat!$J:$J,"-",0) -> 0 | DI105: =_xlfn.XLOOKUP(A105,[1]Eläintilat!$A:$A,[1]Eläintilat!$I:$I,"-",0) -> 0 | DJ105: =_xlfn.XLOOKUP(A105,[1]Eläintilat!$A:$A,[1]Eläintilat!$K:$K,"-",0) -> 0 | DK105: =_xlfn.XLOOKUP(A105,'[1]Elintarvike ja varasto'!$A:$A,'[1]Elintarvike ja varasto'!$F:$F,"-",0) -> 0 | DM105: =_xlfn.XLOOKUP(A105,[1]Koulut!$A:$A,[1]Koulut!$F:$F,"-",0) -> 1686.39 | DN105: =_xlfn.XLOOKUP(A105,'[1]Tuotanto ja teollisuus'!$A:$A,'[1]Tuotanto ja teollisuus'!$F:$F,"-",0) -> 0 | DP105: =_xlfn.XLOOKUP(A105,[1]Varareitit!$A:$A,[1]Varareitit!$F:$F,"-",0) -> 3 | DQ105: =_xlfn.XLOOKUP(A105,[1]Taajama!$A:$A,[1]Taajama!$F:$F,"-",0) -> 1447.73 | DR105: 1 | DS105: 0 | DT105: 1 | DU105: =_xlfn.XLOOKUP(A105,[1]Matkailukohteet!$A:$A,[1]Matkailukohteet!$F:$F,"-",0) -> 0 | DV105: =_xlfn.XLOOKUP(A105,[1]Matkailu!$A:$A,[1]Matkailu!$F:$F,"-",0) -> 0 | DW105: =_xlfn.XLOOKUP(A105,[1]Pyörämatkailu!$A:$A,[1]Pyörämatkailu!$F:$F,"-",0) -> 0 | DX105: 0 | DZ105: =_xlfn.XLOOKUP(A105,'[1]Verkollinen asema'!$A:$A,'[1]Verkollinen asema'!$D:$D,"-",0) -> 0 | EA105: =_xlfn.XLOOKUP(A105,[1]Kaupat!$A:$A,[1]Kaupat!$F:$F,"-",0) -> 1 | EF105: -- | EG105: -- | EH105: -- | EI105: -- | EJ105: -- | EL105: 170_6 | EM105: LOPUT | EN105: 63 | EO105: 1 | EQ105: 15046 | ER105: 1
A106: 18_47 | B106: 2 | D106: 70 | E106: 70 | F106: 0 | G106: 12.035 | H106: 5 | I106: 5.368333333 | J106: 1.666666667 | K106: 2 | L106: 0 | M106: Gmaps | N106: LOPUT | O106: Valta | P106: Keuruuntie, Kintaudentie | Q106: Jyväskylä, Petäjävesi | S106: 18 | T106: 47 | U106: 0 | V106: 47 | W106: 6566 | X106: 6566 | Y106: 4746 | Z106: 361 | AA106: 5891 | AB106: 4746 (100 %) | AC106: 100 (70 %), 80 (30 %) | AD106: Is (100 %) | AF106: PK1 (100 %) | AG106: 4 | AH106: 12 | AJ106: 238 | AR106: 9 | AS106: 23 | AV106: 3 | AW106: =_xlfn.XLOOKUP(A106,[1]Työmatkat!$A:$A,[1]Työmatkat!$F:$F,"-",0) -> 1720 | AX106: 3 | AY106: 15 | AZ106: 5 | BA106: 8 | BB106: 1 | BC106: 3 | BD106: 1 | BE106: 1 | BF106: 1 | BG106: 0 | BH106: 0.08 | BI106: 0.025 | BJ106: 0 | BK106: 0 | BL106: 0 | BM106: 0 | BO106: 0 | BP106: 11.59342513 | BQ106: 1 | BR106: 16.105 | BS106: 5.368333333 | BT106: 2345.15 | BU106: 0.3571657021 | BV106: 0.5 | BW106: =_xlfn.XLOOKUP(A106,[1]Erikoiskuljetukset!$A:$A,[1]Erikoiskuljetukset!$F:$F,"-",0) -> 6557.98 | BX106: 0.9987785562 | BY106: 1 | BZ106: 1 | CA106: 1675.99 | CB106: 0.2552528175 | CC106: 0 | CD106: =_xlfn.XLOOKUP(A106,'[1]2_Asukastiheys'!$A:$A,'[1]2_Asukastiheys'!$H:$H,"-",0)/X106 -> 57.08802924 | CE106: 0.5 | CF106: 1 | CG106: 0 | CH106: 0 | CI106: 1 | CJ106: 5 | CK106: 1.666666667 | CL106: 36.105 | CM106: 12.035 | CN106: 2 | CO106: =VLOOKUP(A106,Taul1!$F$6:$G$953,2,FALSE) -> 1 | CP106: 32.605 | CQ106: 15 | CR106: 13.105 | CS106: 4.5 | CU106: https://www.google.com/maps/@62.27055545,25.33997176,3a,75y,90t/data=!3m3!1e1!3m1!2e0 | CZ106: =_xlfn.XLOOKUP(A106,[1]Maito!$A:$A,[1]Maito!$J:$J,"-",0) -> 5 | DA106: 5 | DB106: =_xlfn.XLOOKUP(A106,[1]Kaatopaikat_jäte!$A:$A,[1]Kaatopaikat_jäte!$F:$F,"-",0) -> 1 | DC106: =_xlfn.XLOOKUP(A106,'[1]Maa-aines'!$A:$A,'[1]Maa-aines'!$F:$F,"-",0) -> 2 | DD106: =_xlfn.XLOOKUP(A106,[1]Turve!$A:$A,[1]Turve!$F:$F,"-",0) -> 4 | DE106: =_xlfn.XLOOKUP(A106,[1]Vilja!$A:$A,[1]Vilja!$F:$F,"-",0) -> 2 | DF106: =_xlfn.XLOOKUP(A106,[1]Kasvihuoneet!$A:$A,[1]Kasvihuoneet!$F:$F,"-",0) -> 0 | DG106: =_xlfn.XLOOKUP(A106,[1]Eläintilat!$A:$A,[1]Eläintilat!$H:$H,"-",0) -> 16 | DH106: =_xlfn.XLOOKUP(A106,[1]Eläintilat!$A:$A,[1]Eläintilat!$J:$J,"-",0) -> 5 | DI106: =_xlfn.XLOOKUP(A106,[1]Eläintilat!$A:$A,[1]Eläintilat!$I:$I,"-",0) -> 0 | DJ106: =_xlfn.XLOOKUP(A106,[1]Eläintilat!$A:$A,[1]Eläintilat!$K:$K,"-",0) -> 0 | DK106: =_xlfn.XLOOKUP(A106,'[1]Elintarvike ja varasto'!$A:$A,'[1]Elintarvike ja varasto'!$F:$F,"-",0) -> 0 | DM106: =_xlfn.XLOOKUP(A106,[1]Koulut!$A:$A,[1]Koulut!$F:$F,"-",0) -> 2345.15 | DN106: =_xlfn.XLOOKUP(A106,'[1]Tuotanto ja teollisuus'!$A:$A,'[1]Tuotanto ja teollisuus'!$F:$F,"-",0) -> 0 | DP106: =_xlfn.XLOOKUP(A106,[1]Varareitit!$A:$A,[1]Varareitit!$F:$F,"-",0) -> 1 | DQ106: =_xlfn.XLOOKUP(A106,[1]Taajama!$A:$A,[1]Taajama!$F:$F,"-",0) -> 1675.99 | DR106: 1 | DS106: 0 | DT106: 1 | DU106: =_xlfn.XLOOKUP(A106,[1]Matkailukohteet!$A:$A,[1]Matkailukohteet!$F:$F,"-",0) -> 0 | DV106: =_xlfn.XLOOKUP(A106,[1]Matkailu!$A:$A,[1]Matkailu!$F:$F,"-",0) -> 0 | DW106: =_xlfn.XLOOKUP(A106,[1]Pyörämatkailu!$A:$A,[1]Pyörämatkailu!$F:$F,"-",0) -> 0 | DX106: 0 | DZ106: =_xlfn.XLOOKUP(A106,'[1]Verkollinen asema'!$A:$A,'[1]Verkollinen asema'!$D:$D,"-",0) -> 0 | EA106: =_xlfn.XLOOKUP(A106,[1]Kaupat!$A:$A,[1]Kaupat!$F:$F,"-",0) -> 0 | EF106: -- | EG106: -- | EH106: -- | EI106: -- | EJ106: -- | EL106: 25_36 | EM106: LOPUT | EN106: 109 | EO106: 2 | EQ106: 13857 | ER106: 1
A107: 637_8 | B107: 2 | D107: 71 | E107: 71 | F107: 0 | G107: 12.01605961 | H107: 4.1525 | I107: 6.030226279 | J107: 1.833333333 | K107: 2 | L107: 0 | M107: Gmaps | N107: LOPUT | O107: Seutu | P107: Äijäläntie | Q107: Laukaa | S107: 637 | T107: 8 | U107: 0 | V107: 8 | W107: 6002 | X107: 6002 | Y107: 1167 | Z107: 74 | AA107: 1488 | AB107: 1167 (100 %) | AC107: 40 (11 %), 60 (24 %), 80 (65 %) | AD107: Ic (100 %) | AE107: Asfalttibetoni (81 %), Pehmeät asfalttibetonit (PAB-B) (19 %) | AF107: PK2 (100 %) | AG107: 1 | AH107: 3 | AJ107: 18 | AR107: 9 | AS107: 8 | AV107: 1.2 | AW107: =_xlfn.XLOOKUP(A107,[1]Työmatkat!$A:$A,[1]Työmatkat!$F:$F,"-",0) -> 301 | AX107: 2.2575 | AY107: 12.4575 | AZ107: 4.1525 | BA107: 8 | BB107: 0.9 | BC107: 3 | BD107: 0 | BE107: 1 | BF107: 1 | BG107: 1 | BH107: 0.5 | BI107: 0.11 | BJ107: 0.5 | BK107: 0 | BL107: 2 | BM107: 0 | BO107: 0 | BP107: 0.8067883702 | BQ107: 0.08067883702 | BR107: 18.09067884 | BS107: 6.030226279 | BT107: 4333.04 | BU107: 0.7219326891 | BV107: 1 | BW107: =_xlfn.XLOOKUP(A107,[1]Erikoiskuljetukset!$A:$A,[1]Erikoiskuljetukset!$F:$F,"-",0) -> 0 | BX107: 0 | BY107: 0 | BZ107: 1 | CA107: 0 | CB107: 0 | CC107: 0 | CD107: =_xlfn.XLOOKUP(A107,'[1]2_Asukastiheys'!$A:$A,'[1]2_Asukastiheys'!$H:$H,"-",0)/X107 -> 23.20159947 | CE107: 0.5 | CF107: 1 | CG107: 0 | CH107: 1 | CI107: 1 | CJ107: 5.5 | CK107: 1.833333333 | CL107: 36.04817884 | CM107: 12.01605961 | CN107: 2 | CO107: =VLOOKUP(A107,Taul1!$F$6:$G$953,2,FALSE) -> 1 | CP107: 32.5675 | CQ107: 12.4575 | CR107: 16.11 | CS107: 4 | CU107: https://www.google.com/maps/@62.48127065,26.01017434,3a,75y,90t/data=!3m3!1e1!3m1!2e0 | CZ107: =_xlfn.XLOOKUP(A107,[1]Maito!$A:$A,[1]Maito!$J:$J,"-",0) -> 1 | DA107: 1 | DB107: =_xlfn.XLOOKUP(A107,[1]Kaatopaikat_jäte!$A:$A,[1]Kaatopaikat_jäte!$F:$F,"-",0) -> 0 | DC107: =_xlfn.XLOOKUP(A107,'[1]Maa-aines'!$A:$A,'[1]Maa-aines'!$F:$F,"-",0) -> 3 | DD107: =_xlfn.XLOOKUP(A107,[1]Turve!$A:$A,[1]Turve!$F:$F,"-",0) -> 1 | DE107: =_xlfn.XLOOKUP(A107,[1]Vilja!$A:$A,[1]Vilja!$F:$F,"-",0) -> 12 | DF107: =_xlfn.XLOOKUP(A107,[1]Kasvihuoneet!$A:$A,[1]Kasvihuoneet!$F:$F,"-",0) -> 2 | DG107: =_xlfn.XLOOKUP(A107,[1]Eläintilat!$A:$A,[1]Eläintilat!$H:$H,"-",0) -> 316 | DH107: =_xlfn.XLOOKUP(A107,[1]Eläintilat!$A:$A,[1]Eläintilat!$J:$J,"-",0) -> 22 | DI107: =_xlfn.XLOOKUP(A107,[1]Eläintilat!$A:$A,[1]Eläintilat!$I:$I,"-",0) -> 1085 | DJ107: =_xlfn.XLOOKUP(A107,[1]Eläintilat!$A:$A,[1]Eläintilat!$K:$K,"-",0) -> 0 | DK107: =_xlfn.XLOOKUP(A107,'[1]Elintarvike ja varasto'!$A:$A,'[1]Elintarvike ja varasto'!$F:$F,"-",0) -> 2 | DM107: =_xlfn.XLOOKUP(A107,[1]Koulut!$A:$A,[1]Koulut!$F:$F,"-",0) -> 4333.04 | DN107: =_xlfn.XLOOKUP(A107,'[1]Tuotanto ja teollisuus'!$A:$A,'[1]Tuotanto ja teollisuus'!$F:$F,"-",0) -> 0 | DP107: =_xlfn.XLOOKUP(A107,[1]Varareitit!$A:$A,[1]Varareitit!$F:$F,"-",0) -> 1 | DQ107: =_xlfn.XLOOKUP(A107,[1]Taajama!$A:$A,[1]Taajama!$F:$F,"-",0) -> 0 | DR107: 1 | DS107: 0 | DT107: 1 | DU107: =_xlfn.XLOOKUP(A107,[1]Matkailukohteet!$A:$A,[1]Matkailukohteet!$F:$F,"-",0) -> 1 | DV107: =_xlfn.XLOOKUP(A107,[1]Matkailu!$A:$A,[1]Matkailu!$F:$F,"-",0) -> 0 | DW107: =_xlfn.XLOOKUP(A107,[1]Pyörämatkailu!$A:$A,[1]Pyörämatkailu!$F:$F,"-",0) -> 0 | DX107: 0 | DZ107: =_xlfn.XLOOKUP(A107,'[1]Verkollinen asema'!$A:$A,'[1]Verkollinen asema'!$D:$D,"-",0) -> 0 | EA107: =_xlfn.XLOOKUP(A107,[1]Kaupat!$A:$A,[1]Kaupat!$F:$F,"-",0) -> 0 | EF107: -- | EG107: -- | EH107: -- | EI107: -- | EJ107: -- | EL107: 292_2 | EM107: LOPUT | EN107: 244 | EO107: 2 | EQ107: 11053 | ER107: 1
A108: 638_1 | B108: 2 | D108: 72 | E108: 72 | F108: 0 | G108: 12.01279494 | H108: 5 | I108: 5.012794939 | J108: 2 | K108: 2 | L108: 0 | M108: Gmaps | N108: LOPUT | O108: Seutu | P108: Leppävedentie, Vaajakoskentie | Q108: Jyväskylä, Laukaa | S108: 638 | T108: 1 | U108: 0 | V108: 1 | W108: 10424 | X108: 10424 | Y108: 3585.585955 | Z108: 268.8476592 | AA108: 4148 | AB108: 2556 (13 %), 2771 (26 %), 3354 (38 %), 5541 (22 %) | AC108: 40 (6 %), 50 (34 %), 80 (60 %) | AD108: Ib (78 %), Is (22 %) | AE108: Asfalttibetoni (80 %), Kivimastiksiasfaltti (20 %) | AF108: PK2 (100 %) | AG108: 4 | AH108: 13 | AJ108: 114.9507866 | AR108: 9 | AS108: 1088 | AV108: 3 | AW108: =_xlfn.XLOOKUP(A108,[1]Työmatkat!$A:$A,[1]Työmatkat!$F:$F,"-",0) -> 2422 | AX108: 3 | AY108: 15 | AZ108: 5 | BA108: 8 | BB108: 1 | BC108: 0 | BD108: 1 | BE108: 1 | BF108: 1 | BG108: 0 | BH108: 0 | BI108: 0 | BJ108: 0 | BK108: 0 | BL108: 0 | BM108: 0.8 | BO108: 2 | BP108: 2.383848163 | BQ108: 0.2383848163 | BR108: 15.03838482 | BS108: 5.012794939 | BT108: 7703.78 | BU108: 0.739042594 | BV108: 1 | BW108: =_xlfn.XLOOKUP(A108,[1]Erikoiskuljetukset!$A:$A,[1]Erikoiskuljetukset!$F:$F,"-",0) -> 10229 | BX108: 0.9812931696 | BY108: 1 | BZ108: 1 | CA108: 4715.57 | CB108: 0.4523762471 | CC108: 0 | CD108: =_xlfn.XLOOKUP(A108,'[1]2_Asukastiheys'!$A:$A,'[1]2_Asukastiheys'!$H:$H,"-",0)/X108 -> 277.4359171 | CE108: 1 | CF108: 1 | CG108: 0 | CH108: 0 | CI108: 1 | CJ108: 6 | CK108: 2 | CL108: 36.03838482 | CM108: 12.01279494 | CN108: 2 | CO108: =VLOOKUP(A108,Taul1!$F$6:$G$953,2,FALSE) -> 4 | CP108: 32.8 | CQ108: 15 | CR108: 12.8 | CS108: 5 | CU108: https://www.google.com/maps/@62.24651969,25.87302837,3a,75y,90t/data=!3m3!1e1!3m1!2e0 | CZ108: =_xlfn.XLOOKUP(A108,[1]Maito!$A:$A,[1]Maito!$J:$J,"-",0) -> 0 | DA108: 0 | DB108: =_xlfn.XLOOKUP(A108,[1]Kaatopaikat_jäte!$A:$A,[1]Kaatopaikat_jäte!$F:$F,"-",0) -> 2 | DC108: =_xlfn.XLOOKUP(A108,'[1]Maa-aines'!$A:$A,'[1]Maa-aines'!$F:$F,"-",0) -> 3 | DD108: =_xlfn.XLOOKUP(A108,[1]Turve!$A:$A,[1]Turve!$F:$F,"-",0) -> 0 | DE108: =_xlfn.XLOOKUP(A108,[1]Vilja!$A:$A,[1]Vilja!$F:$F,"-",0) -> 9 | DF108: =_xlfn.XLOOKUP(A108,[1]Kasvihuoneet!$A:$A,[1]Kasvihuoneet!$F:$F,"-",0) -> 0 | DG108: =_xlfn.XLOOKUP(A108,[1]Eläintilat!$A:$A,[1]Eläintilat!$H:$H,"-",0) -> 0 | DH108: =_xlfn.XLOOKUP(A108,[1]Eläintilat!$A:$A,[1]Eläintilat!$J:$J,"-",0) -> 0 | DI108: =_xlfn.XLOOKUP(A108,[1]Eläintilat!$A:$A,[1]Eläintilat!$I:$I,"-",0) -> 0 | DJ108: =_xlfn.XLOOKUP(A108,[1]Eläintilat!$A:$A,[1]Eläintilat!$K:$K,"-",0) -> 0 | DK108: =_xlfn.XLOOKUP(A108,'[1]Elintarvike ja varasto'!$A:$A,'[1]Elintarvike ja varasto'!$F:$F,"-",0) -> 0 | DM108: =_xlfn.XLOOKUP(A108,[1]Koulut!$A:$A,[1]Koulut!$F:$F,"-",0) -> 7703.78 | DN108: =_xlfn.XLOOKUP(A108,'[1]Tuotanto ja teollisuus'!$A:$A,'[1]Tuotanto ja teollisuus'!$F:$F,"-",0) -> 2 | DP108: =_xlfn.XLOOKUP(A108,[1]Varareitit!$A:$A,[1]Varareitit!$F:$F,"-",0) -> 24 | DQ108: =_xlfn.XLOOKUP(A108,[1]Taajama!$A:$A,[1]Taajama!$F:$F,"-",0) -> 4715.57 | DR108: 1 | DS108: 0 | DT108: 1 | DU108: =_xlfn.XLOOKUP(A108,[1]Matkailukohteet!$A:$A,[1]Matkailukohteet!$F:$F,"-",0) -> 0 | DV108: =_xlfn.XLOOKUP(A108,[1]Matkailu!$A:$A,[1]Matkailu!$F:$F,"-",0) -> 0 | DW108: =_xlfn.XLOOKUP(A108,[1]Pyörämatkailu!$A:$A,[1]Pyörämatkailu!$F:$F,"-",0) -> 0 | DX108: 0 | DZ108: =_xlfn.XLOOKUP(A108,'[1]Verkollinen asema'!$A:$A,'[1]Verkollinen asema'!$D:$D,"-",0) -> 0 | EA108: =_xlfn.XLOOKUP(A108,[1]Kaupat!$A:$A,[1]Kaupat!$F:$F,"-",0) -> 1 | EF108: -- | EG108: -- | EH108: -- | EI108: -- | EJ108: -- | EL108: 6_119 | EM108: LOPUT | EN108: 400 | EO108: 2 | EQ108: 11861 | ER108: 2
A109: 9_230 | B109: 2 | D109: 73 | E109: 73 | F109: 0 | G109: 12 | H109: 5 | I109: 5 | J109: 2 | K109: 2 | L109: 0 | M109: Gmaps | N109: LOPUT | O109: Valta | P109: Ysitie | Q109: Jyväskylä | S109: 9 | T109: 230 | U109: 0 | V109: 230 | W109: 1958 | X109: 1958 | Y109: 10674 | Z109: 966 | AA109: 12937 | AB109: 10674 (100 %) | AC109: 60 (8 %), 80 (91 %) | AD109: Is (99 %) | AE109: Kivimastiksiasfaltti (99 %) | AF109: PK1 (99 %) | AG109: 1 | AH109: 6 | AJ109: 460 | AR109: 9 | AS109: 167 | AV109: 3 | AW109: =_xlfn.XLOOKUP(A109,[1]Työmatkat!$A:$A,[1]Työmatkat!$F:$F,"-",0) -> 2967 | AX109: 3 | AY109: 15 | AZ109: 5 | BA109: 8 | BB109: 1 | BC109: 3 | BD109: 0 | BE109: 0 | BF109: 1 | BG109: 1 | BH109: 0 | BI109: 0 | BJ109: 0 | BK109: 0 | BL109: 0 | BM109: 0 | BO109: 0 | BP109: 43.6492943 | BQ109: 1 | BR109: 15 | BS109: 5 | BT109: 1947.37 | BU109: 0.9945709908 | BV109: 1 | BW109: =_xlfn.XLOOKUP(A109,[1]Erikoiskuljetukset!$A:$A,[1]Erikoiskuljetukset!$F:$F,"-",0) -> 1868.87 | BX109: 0.9544790603 | BY109: 1 | BZ109: 0 | CA109: 1185.28 | CB109: 0.6053524004 | CC109: 1 | CD109: =_xlfn.XLOOKUP(A109,'[1]2_Asukastiheys'!$A:$A,'[1]2_Asukastiheys'!$H:$H,"-",0)/X109 -> 266.3789581 | CE109: 1 | CF109: 1 | CG109: 0 | CH109: 0 | CI109: 1 | CJ109: 6 | CK109: 2 | CL109: 36 | CM109: 12 | CN109: 2 | CO109: =VLOOKUP(A109,Taul1!$F$6:$G$953,2,FALSE) -> 1 | CP109: 32 | CQ109: 15 | CR109: 13 | CS109: 4 | CU109: https://www.google.com/maps/@62.02163281,25.57254905,3a,75y,90t/data=!3m3!1e1!3m1!2e0 | CZ109: =_xlfn.XLOOKUP(A109,[1]Maito!$A:$A,[1]Maito!$J:$J,"-",0) -> 5 | DA109: 5 | DB109: =_xlfn.XLOOKUP(A109,[1]Kaatopaikat_jäte!$A:$A,[1]Kaatopaikat_jäte!$F:$F,"-",0) -> 0 | DC109: =_xlfn.XLOOKUP(A109,'[1]Maa-aines'!$A:$A,'[1]Maa-aines'!$F:$F,"-",0) -> 0 | DD109: =_xlfn.XLOOKUP(A109,[1]Turve!$A:$A,[1]Turve!$F:$F,"-",0) -> 0 | DE109: =_xlfn.XLOOKUP(A109,[1]Vilja!$A:$A,[1]Vilja!$F:$F,"-",0) -> 1 | DF109: =_xlfn.XLOOKUP(A109,[1]Kasvihuoneet!$A:$A,[1]Kasvihuoneet!$F:$F,"-",0) -> 1 | DG109: =_xlfn.XLOOKUP(A109,[1]Eläintilat!$A:$A,[1]Eläintilat!$H:$H,"-",0) -> 0 | DH109: =_xlfn.XLOOKUP(A109,[1]Eläintilat!$A:$A,[1]Eläintilat!$J:$J,"-",0) -> 0 | DI109: =_xlfn.XLOOKUP(A109,[1]Eläintilat!$A:$A,[1]Eläintilat!$I:$I,"-",0) -> 0 | DJ109: =_xlfn.XLOOKUP(A109,[1]Eläintilat!$A:$A,[1]Eläintilat!$K:$K,"-",0) -> 0 | DK109: =_xlfn.XLOOKUP(A109,'[1]Elintarvike ja varasto'!$A:$A,'[1]Elintarvike ja varasto'!$F:$F,"-",0) -> 0 | DM109: =_xlfn.XLOOKUP(A109,[1]Koulut!$A:$A,[1]Koulut!$F:$F,"-",0) -> 1947.37 | DN109: =_xlfn.XLOOKUP(A109,'[1]Tuotanto ja teollisuus'!$A:$A,'[1]Tuotanto ja teollisuus'!$F:$F,"-",0) -> 0 | DP109: =_xlfn.XLOOKUP(A109,[1]Varareitit!$A:$A,[1]Varareitit!$F:$F,"-",0) -> 0 | DQ109: =_xlfn.XLOOKUP(A109,[1]Taajama!$A:$A,[1]Taajama!$F:$F,"-",0) -> 1185.28 | DR109: 1 | DS109: 0 | DT109: 1 | DU109: =_xlfn.XLOOKUP(A109,[1]Matkailukohteet!$A:$A,[1]Matkailukohteet!$F:$F,"-",0) -> 0 | DV109: =_xlfn.XLOOKUP(A109,[1]Matkailu!$A:$A,[1]Matkailu!$F:$F,"-",0) -> 0 | DW109: =_xlfn.XLOOKUP(A109,[1]Pyörämatkailu!$A:$A,[1]Pyörämatkailu!$F:$F,"-",0) -> 0 | DX109: 0 | DZ109: =_xlfn.XLOOKUP(A109,'[1]Verkollinen asema'!$A:$A,'[1]Verkollinen asema'!$D:$D,"-",0) -> 0 | EA109: =_xlfn.XLOOKUP(A109,[1]Kaupat!$A:$A,[1]Kaupat!$F:$F,"-",0) -> 0 | EF109: -- | EG109: -- | EH109: -- | EI109: -- | EJ109: -- | EL109: 1224_4 | EM109: LOPUT | EN109: 84 | EO109: 1 | EQ109: 11087 | ER109: 2
A110: 23_219 | B110: 2 | D110: 74 | E110: 74 | F110: 0 | G110: 11.96666667 | H110: 4.3 | I110: 5 | J110: 2.666666667 | K110: 2 | L110: 0 | M110: Gmaps | N110: LOPUT | O110: Valta | P110: Haapamäentie, Jyväskyläntie | Q110: Keuruu | S110: 23 | T110: 219 | U110: 0 | V110: 219 | W110: 1952 | X110: 1952 | Y110: 6254.993852 | Z110: 346.4129098 | AA110: 7040 | AB110: 4832 (40 %), 7198 (60 %) | AC110: 50 (68 %), 60 (32 %) | AD110: Is (100 %) | AE110: Asfalttibetoni (78 %), Kivimastiksiasfaltti (22 %) | AF110: PK1 (100 %) | AG110: 0 | AH110: 3 | AJ110: 157.0430328 | AR110: 9 | AS110: 6 | AV110: 0.9 | AW110: =_xlfn.XLOOKUP(A110,[1]Työmatkat!$A:$A,[1]Työmatkat!$F:$F,"-",0) -> 2140 | AX110: 3 | AY110: 12.9 | AZ110: 4.3 | BA110: 8 | BB110: 1 | BC110: 3 | BD110: 0 | BE110: 0 | BF110: 0 | BG110: 0 | BH110: 0 | BI110: 0 | BJ110: 0 | BK110: 0 | BL110: 0 | BM110: 0 | BO110: 2 | BP110: 13.06924238 | BQ110: 1 | BR110: 15 | BS110: 5 | BT110: 1954.65 | BU110: 1.001357582 | BV110: 1 | BW110: =_xlfn.XLOOKUP(A110,[1]Erikoiskuljetukset!$A:$A,[1]Erikoiskuljetukset!$F:$F,"-",0) -> 1954.65 | BX110: 1.001357582 | BY110: 1 | BZ110: 1 | CA110: 1954.65 | CB110: 1.001357582 | CC110: 1 | CD110: =_xlfn.XLOOKUP(A110,'[1]2_Asukastiheys'!$A:$A,'[1]2_Asukastiheys'!$H:$H,"-",0)/X110 -> 717.0942623 | CE110: 1 | CF110: 1 | CG110: 1 | CH110: 0 | CI110: 1 | CJ110: 8 | CK110: 2.666666667 | CL110: 35.9 | CM110: 11.96666667 | CN110: 2 | CO110: =VLOOKUP(A110,Taul1!$F$6:$G$953,2,FALSE) -> 2 | CP110: 30.9 | CQ110: 12.9 | CR110: 13 | CS110: 5 | CU110: https://www.google.com/maps/@62.25584667,24.70800549,3a,75y,90t/data=!3m3!1e1!3m1!2e0 | CZ110: =_xlfn.XLOOKUP(A110,[1]Maito!$A:$A,[1]Maito!$J:$J,"-",0) -> 3 | DA110: 3 | DB110: =_xlfn.XLOOKUP(A110,[1]Kaatopaikat_jäte!$A:$A,[1]Kaatopaikat_jäte!$F:$F,"-",0) -> 0 | DC110: =_xlfn.XLOOKUP(A110,'[1]Maa-aines'!$A:$A,'[1]Maa-aines'!$F:$F,"-",0) -> 0 | DD110: =_xlfn.XLOOKUP(A110,[1]Turve!$A:$A,[1]Turve!$F:$F,"-",0) -> 0 | DE110: =_xlfn.XLOOKUP(A110,[1]Vilja!$A:$A,[1]Vilja!$F:$F,"-",0) -> 0 | DF110: =_xlfn.XLOOKUP(A110,[1]Kasvihuoneet!$A:$A,[1]Kasvihuoneet!$F:$F,"-",0) -> 0 | DG110: =_xlfn.XLOOKUP(A110,[1]Eläintilat!$A:$A,[1]Eläintilat!$H:$H,"-",0) -> 0 | DH110: =_xlfn.XLOOKUP(A110,[1]Eläintilat!$A:$A,[1]Eläintilat!$J:$J,"-",0) -> 0 | DI110: =_xlfn.XLOOKUP(A110,[1]Eläintilat!$A:$A,[1]Eläintilat!$I:$I,"-",0) -> 0 | DJ110: =_xlfn.XLOOKUP(A110,[1]Eläintilat!$A:$A,[1]Eläintilat!$K:$K,"-",0) -> 0 | DK110: =_xlfn.XLOOKUP(A110,'[1]Elintarvike ja varasto'!$A:$A,'[1]Elintarvike ja varasto'!$F:$F,"-",0) -> 0 | DM110: =_xlfn.XLOOKUP(A110,[1]Koulut!$A:$A,[1]Koulut!$F:$F,"-",0) -> 1954.65 | DN110: =_xlfn.XLOOKUP(A110,'[1]Tuotanto ja teollisuus'!$A:$A,'[1]Tuotanto ja teollisuus'!$F:$F,"-",0) -> 0 | DP110: =_xlfn.XLOOKUP(A110,[1]Varareitit!$A:$A,[1]Varareitit!$F:$F,"-",0) -> 9 | DQ110: =_xlfn.XLOOKUP(A110,[1]Taajama!$A:$A,[1]Taajama!$F:$F,"-",0) -> 1954.65 | DR110: 1 | DS110: 0 | DT110: 1 | DU110: =_xlfn.XLOOKUP(A110,[1]Matkailukohteet!$A:$A,[1]Matkailukohteet!$F:$F,"-",0) -> 0 | DV110: =_xlfn.XLOOKUP(A110,[1]Matkailu!$A:$A,[1]Matkailu!$F:$F,"-",0) -> 0 | DW110: =_xlfn.XLOOKUP(A110,[1]Pyörämatkailu!$A:$A,[1]Pyörämatkailu!$F:$F,"-",0) -> 2 | DX110: 2 | DZ110: =_xlfn.XLOOKUP(A110,'[1]Verkollinen asema'!$A:$A,'[1]Verkollinen asema'!$D:$D,"-",0) -> 0 | EA110: =_xlfn.XLOOKUP(A110,[1]Kaupat!$A:$A,[1]Kaupat!$F:$F,"-",0) -> 3 | EF110: -- | EG110: -- | EH110: -- | EI110: -- | EJ110: -- | EL110: 170_7 | EM110: LOPUT | EN110: 129 | EO110: 2 | EQ110: 11609 | ER110: 1
A111: 6110_1 | B111: 2 | D111: 75 | E111: 75 | F111: 0 | G111: 11.9555806 | H111: 5 | I111: 4.288913929 | J111: 2.666666667 | K111: 2 | L111: 0 | M111: Gmaps | N111: LOPUT | O111: Yhdys | P111: Eteläväylä, Kinkomaantie, Säynätsalontie | Q111: Jyväskylä, Muurame | S111: 6110 | T111: 1 | U111: 0 | V111: 1 | W111: 5430 | X111: 5430 | Y111: 5775.047882 | Z111: 214.8729282 | AA111: 5924 | AB111: 4813 (81 %), 9836 (19 %) | AC111: 40 (25 %), 50 (75 %) | AD111: Ic (100 %) | AE111: Asfalttibetoni (5 %), Kivimastiksiasfaltti (95 %) | AF111: PK2 (100 %) | AG111: 5 | AH111: 11 | AJ111: 68.21178637 | AR111: 9 | AS111: 1098 | AV111: 3 | AW111: =_xlfn.XLOOKUP(A111,[1]Työmatkat!$A:$A,[1]Työmatkat!$F:$F,"-",0) -> 3594 | AX111: 3 | AY111: 15 | AZ111: 5 | BA111: 8 | BB111: 1 | BC111: 0 | BD111: 1 | BE111: 0 | BF111: 0 | BG111: 0 | BH111: 0 | BI111: 0.01 | BJ111: 0 | BK111: 0 | BL111: 0 | BM111: 0.8 | BO111: 2 | BP111: 0.5674178675 | BQ111: 0.05674178675 | BR111: 12.86674179 | BS111: 4.288913929 | BT111: 5435.64 | BU111: 1.001038674 | BV111: 1 | BW111: =_xlfn.XLOOKUP(A111,[1]Erikoiskuljetukset!$A:$A,[1]Erikoiskuljetukset!$F:$F,"-",0) -> 5435.64 | BX111: 1.001038674 | BY111: 1 | BZ111: 1 | CA111: 5435.64 | CB111: 1.001038674 | CC111: 1 | CD111: =_xlfn.XLOOKUP(A111,'[1]2_Asukastiheys'!$A:$A,'[1]2_Asukastiheys'!$H:$H,"-",0)/X111 -> 765.359116 | CE111: 1 | CF111: 1 | CG111: 1 | CH111: 0 | CI111: 1 | CJ111: 8 | CK111: 2.666666667 | CL111: 35.86674179 | CM111: 11.9555806 | CN111: 2 | CO111: =VLOOKUP(A111,Taul1!$F$6:$G$953,2,FALSE) -> 2 | CP111: 31.81 | CQ111: 15 | CR111: 11.81 | CS111: 5 | CU111: https://www.google.com/maps/@62.17966697,25.7311898,3a,75y,90t/data=!3m3!1e1!3m1!2e0 | CZ111: =_xlfn.XLOOKUP(A111,[1]Maito!$A:$A,[1]Maito!$J:$J,"-",0) -> 0 | DA111: 0 | DB111: =_xlfn.XLOOKUP(A111,[1]Kaatopaikat_jäte!$A:$A,[1]Kaatopaikat_jäte!$F:$F,"-",0) -> 2 | DC111: =_xlfn.XLOOKUP(A111,'[1]Maa-aines'!$A:$A,'[1]Maa-aines'!$F:$F,"-",0) -> 0 | DD111: =_xlfn.XLOOKUP(A111,[1]Turve!$A:$A,[1]Turve!$F:$F,"-",0) -> 0 | DE111: =_xlfn.XLOOKUP(A111,[1]Vilja!$A:$A,[1]Vilja!$F:$F,"-",0) -> 0 | DF111: =_xlfn.XLOOKUP(A111,[1]Kasvihuoneet!$A:$A,[1]Kasvihuoneet!$F:$F,"-",0) -> 0 | DG111: =_xlfn.XLOOKUP(A111,[1]Eläintilat!$A:$A,[1]Eläintilat!$H:$H,"-",0) -> 0 | DH111: =_xlfn.XLOOKUP(A111,[1]Eläintilat!$A:$A,[1]Eläintilat!$J:$J,"-",0) -> 2 | DI111: =_xlfn.XLOOKUP(A111,[1]Eläintilat!$A:$A,[1]Eläintilat!$I:$I,"-",0) -> 0 | DJ111: =_xlfn.XLOOKUP(A111,[1]Eläintilat!$A:$A,[1]Eläintilat!$K:$K,"-",0) -> 0 | DK111: =_xlfn.XLOOKUP(A111,'[1]Elintarvike ja varasto'!$A:$A,'[1]Elintarvike ja varasto'!$F:$F,"-",0) -> 0 | DM111: =_xlfn.XLOOKUP(A111,[1]Koulut!$A:$A,[1]Koulut!$F:$F,"-",0) -> 5435.64 | DN111: =_xlfn.XLOOKUP(A111,'[1]Tuotanto ja teollisuus'!$A:$A,'[1]Tuotanto ja teollisuus'!$F:$F,"-",0) -> 2 | DP111: =_xlfn.XLOOKUP(A111,[1]Varareitit!$A:$A,[1]Varareitit!$F:$F,"-",0) -> 8 | DQ111: =_xlfn.XLOOKUP(A111,[1]Taajama!$A:$A,[1]Taajama!$F:$F,"-",0) -> 5435.64 | DR111: 1 | DS111: 0 | DT111: 1 | DU111: =_xlfn.XLOOKUP(A111,[1]Matkailukohteet!$A:$A,[1]Matkailukohteet!$F:$F,"-",0) -> 0 | DV111: =_xlfn.XLOOKUP(A111,[1]Matkailu!$A:$A,[1]Matkailu!$F:$F,"-",0) -> 0 | DW111: =_xlfn.XLOOKUP(A111,[1]Pyörämatkailu!$A:$A,[1]Pyörämatkailu!$F:$F,"-",0) -> 2 | DX111: 2 | DZ111: =_xlfn.XLOOKUP(A111,'[1]Verkollinen asema'!$A:$A,'[1]Verkollinen asema'!$D:$D,"-",0) -> 0 | EA111: =_xlfn.XLOOKUP(A111,[1]Kaupat!$A:$A,[1]Kaupat!$F:$F,"-",0) -> 1 | EF111: -- | EG111: -- | EH111: -- | EI111: -- | EJ111: -- | EL111: 4231_1 | EM111: LOPUT | EN111: 329 | EO111: 2 | EQ111: 305 | ER111: 1
A112: 13_138 | B112: 2 | D112: 76 | E112: 76 | F112: 0 | G112: 11.90333333 | H112: 4.9 | I112: 5.17 | J112: 1.833333333 | K112: 2 | L112: 0 | M112: Gmaps | N112: LOPUT | O112: Valta | P112: Saarijärventie | Q112: Äänekoski | S112: 13 | T112: 138 | U112: 0 | V112: 138 | W112: 4584 | X112: 4584 | Y112: 4089.603839 | Z112: 410.5270506 | AA112: 4498 | AB112: 3588 (44 %), 4489 (56 %) | AC112: 80 (100 %) | AD112: Is (100 %) | AE112: Kivimastiksiasfaltti (100 %) | AF112: PK1 (100 %) | AG112: 2 | AH112: 4 | AJ112: 279.2687609 | AR112: 9 | AS112: 18 | AV112: 2.7 | AW112: =_xlfn.XLOOKUP(A112,[1]Työmatkat!$A:$A,[1]Työmatkat!$F:$F,"-",0) -> 1160 | AX112: 3 | AY112: 14.7 | AZ112: 4.9 | BA112: 8 | BB112: 1 | BC112: 3 | BD112: 0 | BE112: 1 | BF112: 1 | BG112: 0 | BH112: 0.5 | BI112: 0.01 | BJ112: 0 | BK112: 0 | BL112: 0 | BM112: 0 | BO112: 0 | BP112: 34.72626172 | BQ112: 1 | BR112: 15.51 | BS112: 5.17 | BT112: 4383.08 | BU112: 0.9561692845 | BV112: 1 | BW112: =_xlfn.XLOOKUP(A112,[1]Erikoiskuljetukset!$A:$A,[1]Erikoiskuljetukset!$F:$F,"-",0) -> 4568.53 | BX112: 0.9966252182 | BY112: 1 | BZ112: 1 | CA112: 0 | CB112: 0 | CC112: 0 | CD112: =_xlfn.XLOOKUP(A112,'[1]2_Asukastiheys'!$A:$A,'[1]2_Asukastiheys'!$H:$H,"-",0)/X112 -> 34.69895288 | CE112: 0.5 | CF112: 1 | CG112: 0 | CH112: 0 | CI112: 1 | CJ112: 5.5 | CK112: 1.833333333 | CL112: 35.71 | CM112: 11.90333333 | CN112: 2 | CO112: =VLOOKUP(A112,Taul1!$F$6:$G$953,2,FALSE) -> 2 | CP112: 32.21 | CQ112: 14.7 | CR112: 12.51 | CS112: 5 | CU112: https://www.google.com/maps/@62.61983659,25.54784511,3a,75y,90t/data=!3m3!1e1!3m1!2e0 | CZ112: =_xlfn.XLOOKUP(A112,[1]Maito!$A:$A,[1]Maito!$J:$J,"-",0) -> 7 | DA112: 7 | DB112: =_xlfn.XLOOKUP(A112,[1]Kaatopaikat_jäte!$A:$A,[1]Kaatopaikat_jäte!$F:$F,"-",0) -> 0 | DC112: =_xlfn.XLOOKUP(A112,'[1]Maa-aines'!$A:$A,'[1]Maa-aines'!$F:$F,"-",0) -> 4 | DD112: =_xlfn.XLOOKUP(A112,[1]Turve!$A:$A,[1]Turve!$F:$F,"-",0) -> 1 | DE112: =_xlfn.XLOOKUP(A112,[1]Vilja!$A:$A,[1]Vilja!$F:$F,"-",0) -> 2 | DF112: =_xlfn.XLOOKUP(A112,[1]Kasvihuoneet!$A:$A,[1]Kasvihuoneet!$F:$F,"-",0) -> 0 | DG112: =_xlfn.XLOOKUP(A112,[1]Eläintilat!$A:$A,[1]Eläintilat!$H:$H,"-",0) -> 237 | DH112: =_xlfn.XLOOKUP(A112,[1]Eläintilat!$A:$A,[1]Eläintilat!$J:$J,"-",0) -> 2 | DI112: =_xlfn.XLOOKUP(A112,[1]Eläintilat!$A:$A,[1]Eläintilat!$I:$I,"-",0) -> 0 | DJ112: =_xlfn.XLOOKUP(A112,[1]Eläintilat!$A:$A,[1]Eläintilat!$K:$K,"-",0) -> 0 | DK112: =_xlfn.XLOOKUP(A112,'[1]Elintarvike ja varasto'!$A:$A,'[1]Elintarvike ja varasto'!$F:$F,"-",0) -> 0 | DM112: =_xlfn.XLOOKUP(A112,[1]Koulut!$A:$A,[1]Koulut!$F:$F,"-",0) -> 4383.08 | DN112: =_xlfn.XLOOKUP(A112,'[1]Tuotanto ja teollisuus'!$A:$A,'[1]Tuotanto ja teollisuus'!$F:$F,"-",0) -> 0 | DP112: =_xlfn.XLOOKUP(A112,[1]Varareitit!$A:$A,[1]Varareitit!$F:$F,"-",0) -> 3 | DQ112: =_xlfn.XLOOKUP(A112,[1]Taajama!$A:$A,[1]Taajama!$F:$F,"-",0) -> 0 | DR112: 1 | DS112: 0 | DT112: 1 | DU112: =_xlfn.XLOOKUP(A112,[1]Matkailukohteet!$A:$A,[1]Matkailukohteet!$F:$F,"-",0) -> 0 | DV112: =_xlfn.XLOOKUP(A112,[1]Matkailu!$A:$A,[1]Matkailu!$F:$F,"-",0) -> 0 | DW112: =_xlfn.XLOOKUP(A112,[1]Pyörämatkailu!$A:$A,[1]Pyörämatkailu!$F:$F,"-",0) -> 0 | DX112: 0 | DZ112: =_xlfn.XLOOKUP(A112,'[1]Verkollinen asema'!$A:$A,'[1]Verkollinen asema'!$D:$D,"-",0) -> 0 | EA112: =_xlfn.XLOOKUP(A112,[1]Kaupat!$A:$A,[1]Kaupat!$F:$F,"-",0) -> 0 | EF112: -- | EG112: -- | EH112: -- | EI112: -- | EJ112: -- | EL112: 313_1 | EM112: LOPUT | EN112: 95 | EO112: 2 | EQ112: 11289 | ER112: 2
A113: 16711_2 | B113: 2 | D113: 77 | E113: 77 | F113: 0 | G113: 11.88814604 | H113: 5 | I113: 5.221479378 | J113: 1.666666667 | K113: 2 | L113: 0 | M113: Gmaps | N113: LOPUT | O113: Yhdys | P113: Matinmäentie | Q113: Jyväskylä | S113: 16711 | T113: 2 | U113: 0 | V113: 2 | W113: 6124 | X113: 6124 | Y113: 1490.183867 | Z113: 86.02090137 | AA113: 1586 | AB113: 819 (58 %), 2429 (42 %) | AC113: 50 (66 %), 60 (34 %) | AD113: Ic (100 %) | AE113: Asfalttibetoni (57 %), Kivimastiksiasfaltti (43 %) | AF113: PK2 (100 %) | AG113: 1 | AH113: 2 | AJ113: 48.60401698 | AR113: 9 | AS113: 614 | AV113: 3 | AW113: =_xlfn.XLOOKUP(A113,[1]Työmatkat!$A:$A,[1]Työmatkat!$F:$F,"-",0) -> 1303 | AX113: 3 | AY113: 15 | AZ113: 5 | BA113: 8 | BB113: 1 | BC113: 3 | BD113: 0 | BE113: 0 | BF113: 1 | BG113: 1 | BH113: 0.435 | BI113: 0 | BJ113: 0 | BK113: 0 | BL113: 0 | BM113: 1.2 | BO113: 0 | BP113: 0.2943813363 | BQ113: 0.02943813363 | BR113: 15.66443813 | BS113: 5.221479378 | BT113: 4747.45 | BU113: 0.7752204442 | BV113: 1 | BW113: =_xlfn.XLOOKUP(A113,[1]Erikoiskuljetukset!$A:$A,[1]Erikoiskuljetukset!$F:$F,"-",0) -> 0 | BX113: 0 | BY113: 0 | BZ113: 0 | CA113: 5514.08 | CB113: 0.9004049641 | CC113: 1 | CD113: =_xlfn.XLOOKUP(A113,'[1]2_Asukastiheys'!$A:$A,'[1]2_Asukastiheys'!$H:$H,"-",0)/X113 -> 556.8334422 | CE113: 1 | CF113: 1 | CG113: 0 | CH113: 0 | CI113: 1 | CJ113: 5 | CK113: 1.666666667 | CL113: 35.66443813 | CM113: 11.88814604 | CN113: 2 | CO113: =VLOOKUP(A113,Taul1!$F$6:$G$953,2,FALSE) -> 2 | CP113: 32.635 | CQ113: 15 | CR113: 14.635 | CS113: 3 | CU113: https://www.google.com/maps/@62.29430397,25.73531952,3a,75y,90t/data=!3m3!1e1!3m1!2e0 | CZ113: =_xlfn.XLOOKUP(A113,[1]Maito!$A:$A,[1]Maito!$J:$J,"-",0) -> 1 | DA113: 1 | DB113: =_xlfn.XLOOKUP(A113,[1]Kaatopaikat_jäte!$A:$A,[1]Kaatopaikat_jäte!$F:$F,"-",0) -> 0 | DC113: =_xlfn.XLOOKUP(A113,'[1]Maa-aines'!$A:$A,'[1]Maa-aines'!$F:$F,"-",0) -> 0 | DD113: =_xlfn.XLOOKUP(A113,[1]Turve!$A:$A,[1]Turve!$F:$F,"-",0) -> 0 | DE113: =_xlfn.XLOOKUP(A113,[1]Vilja!$A:$A,[1]Vilja!$F:$F,"-",0) -> 1 | DF113: =_xlfn.XLOOKUP(A113,[1]Kasvihuoneet!$A:$A,[1]Kasvihuoneet!$F:$F,"-",0) -> 2 | DG113: =_xlfn.XLOOKUP(A113,[1]Eläintilat!$A:$A,[1]Eläintilat!$H:$H,"-",0) -> 87 | DH113: =_xlfn.XLOOKUP(A113,[1]Eläintilat!$A:$A,[1]Eläintilat!$J:$J,"-",0) -> 0 | DI113: =_xlfn.XLOOKUP(A113,[1]Eläintilat!$A:$A,[1]Eläintilat!$I:$I,"-",0) -> 0 | DJ113: =_xlfn.XLOOKUP(A113,[1]Eläintilat!$A:$A,[1]Eläintilat!$K:$K,"-",0) -> 0 | DK113: =_xlfn.XLOOKUP(A113,'[1]Elintarvike ja varasto'!$A:$A,'[1]Elintarvike ja varasto'!$F:$F,"-",0) -> 0 | DM113: =_xlfn.XLOOKUP(A113,[1]Koulut!$A:$A,[1]Koulut!$F:$F,"-",0) -> 4747.45 | DN113: =_xlfn.XLOOKUP(A113,'[1]Tuotanto ja teollisuus'!$A:$A,'[1]Tuotanto ja teollisuus'!$F:$F,"-",0) -> 3 | DP113: =_xlfn.XLOOKUP(A113,[1]Varareitit!$A:$A,[1]Varareitit!$F:$F,"-",0) -> 0 | DQ113: =_xlfn.XLOOKUP(A113,[1]Taajama!$A:$A,[1]Taajama!$F:$F,"-",0) -> 5514.08 | DR113: 1 | DS113: 0 | DT113: 1 | DU113: =_xlfn.XLOOKUP(A113,[1]Matkailukohteet!$A:$A,[1]Matkailukohteet!$F:$F,"-",0) -> 0 | DV113: =_xlfn.XLOOKUP(A113,[1]Matkailu!$A:$A,[1]Matkailu!$F:$F,"-",0) -> 0 | DW113: =_xlfn.XLOOKUP(A113,[1]Pyörämatkailu!$A:$A,[1]Pyörämatkailu!$F:$F,"-",0) -> 0 | DX113: 0 | DZ113: =_xlfn.XLOOKUP(A113,'[1]Verkollinen asema'!$A:$A,'[1]Verkollinen asema'!$D:$D,"-",0) -> 0 | EA113: =_xlfn.XLOOKUP(A113,[1]Kaupat!$A:$A,[1]Kaupat!$F:$F,"-",0) -> 0 | EF113: -- | EG113: -- | EH113: -- | EI113: -- | EJ113: -- | EL113: 1081_2 | EM113: VÄHÄ | EN113: 719 | EO113: 3 | EQ113: 1050 | ER113: 3
A114: 604_2 | B114: 2 | D114: 78 | E114: 78 | F114: 0 | G114: 11.88166667 | H114: 4.75 | I114: 4.965 | J114: 2.166666667 | K114: 2 | L114: 0 | M114: Gmaps | N114: LOPUT | O114: Seutu | P114: Koskenpääntie | Q114: Jämsä | S114: 604 | T114: 2 | U114: 0 | V114: 2 | W114: 7490 | X114: 7490 | Y114: 1537.738318 | Z114: 86.28971963 | AA114: 1955 | AB114: 1461 (52 %), 1622 (48 %) | AC114: 50 (61 %), 60 (39 %) | AD114: Ib (100 %) | AE114: Asfalttibetoni (100 %) | AF114: PK2 (100 %) | AG114: 1 | AH114: 4 | AJ114: 35.38317757 | AR114: 9 | AS114: 15 | AV114: 2.25 | AW114: =_xlfn.XLOOKUP(A114,[1]Työmatkat!$A:$A,[1]Työmatkat!$F:$F,"-",0) -> 677 | AX114: 3 | AY114: 14.25 | AZ114: 4.75 | BA114: 8 | BB114: 1 | BC114: 0 | BD114: 1 | BE114: 0 | BF114: 1 | BG114: 0 | BH114: 0.14 | BI114: 0.355 | BJ114: 0 | BK114: 0 | BL114: 0 | BM114: 0.4 | BO114: 2 | BP114: 13.07841678 | BQ114: 1 | BR114: 14.895 | BS114: 4.965 | BT114: 2998.06 | BU114: 0.4002750334 | BV114: 0.5 | BW114: =_xlfn.XLOOKUP(A114,[1]Erikoiskuljetukset!$A:$A,[1]Erikoiskuljetukset!$F:$F,"-",0) -> 7441.72 | BX114: 0.9935540721 | BY114: 1 | BZ114: 1 | CA114: 4175.39 | CB114: 0.5574619493 | CC114: 1 | CD114: =_xlfn.XLOOKUP(A114,'[1]2_Asukastiheys'!$A:$A,'[1]2_Asukastiheys'!$H:$H,"-",0)/X114 -> 188.0480641 | CE114: 1 | CF114: 1 | CG114: 0 | CH114: 0 | CI114: 1 | CJ114: 6.5 | CK114: 2.166666667 | CL114: 35.645 | CM114: 11.88166667 | CN114: 2 | CO114: =VLOOKUP(A114,Taul1!$F$6:$G$953,2,FALSE) -> 2 | CP114: 31.645 | CQ114: 14.25 | CR114: 12.895 | CS114: 4.5 | CU114: https://www.google.com/maps/@61.92325681,25.16775451,3a,75y,90t/data=!3m3!1e1!3m1!2e0 | CZ114: =_xlfn.XLOOKUP(A114,[1]Maito!$A:$A,[1]Maito!$J:$J,"-",0) -> 0 | DA114: 0 | DB114: =_xlfn.XLOOKUP(A114,[1]Kaatopaikat_jäte!$A:$A,[1]Kaatopaikat_jäte!$F:$F,"-",0) -> 1 | DC114: =_xlfn.XLOOKUP(A114,'[1]Maa-aines'!$A:$A,'[1]Maa-aines'!$F:$F,"-",0) -> 0 | DD114: =_xlfn.XLOOKUP(A114,[1]Turve!$A:$A,[1]Turve!$F:$F,"-",0) -> 0 | DE114: =_xlfn.XLOOKUP(A114,[1]Vilja!$A:$A,[1]Vilja!$F:$F,"-",0) -> 4 | DF114: =_xlfn.XLOOKUP(A114,[1]Kasvihuoneet!$A:$A,[1]Kasvihuoneet!$F:$F,"-",0) -> 0 | DG114: =_xlfn.XLOOKUP(A114,[1]Eläintilat!$A:$A,[1]Eläintilat!$H:$H,"-",0) -> 28 | DH114: =_xlfn.XLOOKUP(A114,[1]Eläintilat!$A:$A,[1]Eläintilat!$J:$J,"-",0) -> 71 | DI114: =_xlfn.XLOOKUP(A114,[1]Eläintilat!$A:$A,[1]Eläintilat!$I:$I,"-",0) -> 0 | DJ114: =_xlfn.XLOOKUP(A114,[1]Eläintilat!$A:$A,[1]Eläintilat!$K:$K,"-",0) -> 0 | DK114: =_xlfn.XLOOKUP(A114,'[1]Elintarvike ja varasto'!$A:$A,'[1]Elintarvike ja varasto'!$F:$F,"-",0) -> 0 | DM114: =_xlfn.XLOOKUP(A114,[1]Koulut!$A:$A,[1]Koulut!$F:$F,"-",0) -> 2998.06 | DN114: =_xlfn.XLOOKUP(A114,'[1]Tuotanto ja teollisuus'!$A:$A,'[1]Tuotanto ja teollisuus'!$F:$F,"-",0) -> 1 | DP114: =_xlfn.XLOOKUP(A114,[1]Varareitit!$A:$A,[1]Varareitit!$F:$F,"-",0) -> 5 | DQ114: =_xlfn.XLOOKUP(A114,[1]Taajama!$A:$A,[1]Taajama!$F:$F,"-",0) -> 4175.39 | DR114: 1 | DS114: 0 | DT114: 1 | DU114: =_xlfn.XLOOKUP(A114,[1]Matkailukohteet!$A:$A,[1]Matkailukohteet!$F:$F,"-",0) -> 0 | DV114: =_xlfn.XLOOKUP(A114,[1]Matkailu!$A:$A,[1]Matkailu!$F:$F,"-",0) -> 0 | DW114: =_xlfn.XLOOKUP(A114,[1]Pyörämatkailu!$A:$A,[1]Pyörämatkailu!$F:$F,"-",0) -> 0 | DX114: 0 | DZ114: =_xlfn.XLOOKUP(A114,'[1]Verkollinen asema'!$A:$A,'[1]Verkollinen asema'!$D:$D,"-",0) -> 0 | EA114: =_xlfn.XLOOKUP(A114,[1]Kaupat!$A:$A,[1]Kaupat!$F:$F,"-",0) -> 1 | EF114: -- | EG114: -- | EH114: -- | EI114: -- | EJ114: -- | EL114: 24_8 | EM114: LOPUT | EN114: 267 | EO114: 2
A115: 610_6 | B115: 2 | D115: 79 | E115: 79 | F115: 0 | G115: 11.87166667 | H115: 3.705 | I115: 6 | J115: 2.166666667 | K115: 2 | L115: 0 | M115: Gmaps | N115: LOPUT | O115: Seutu | P115: Korpilahdentie, Tammijärventie | Q115: Joutsa, Luhanka | S115: 610 | T115: 6 | U115: 0 | V115: 6 | W115: 6746 | X115: 6746 | Y115: 929 | Z115: 101 | AA115: 1133 | AB115: 929 (100 %) | AC115: 40 (6 %), 60 (34 %), 80 (60 %) | AD115: Ib (100 %) | AE115: Asfalttibetoni (97 %) | AF115: PK2 (100 %) | AG115: 0 | AH115: 1 | AJ115: 32 | AR115: 9 | AS115: 3 | AV115: 0.45 | AW115: =_xlfn.XLOOKUP(A115,[1]Työmatkat!$A:$A,[1]Työmatkat!$F:$F,"-",0) -> 222 | AX115: 1.665 | AY115: 11.115 | AZ115: 3.705 | BA115: 8 | BB115: 1 | BC115: 3 | BD115: 0 | BE115: 1 | BF115: 1 | BG115: 0 | BH115: 0.5 | BI115: 0.5 | BJ115: 0 | BK115: 0 | BL115: 0 | BM115: 0 | BO115: 2 | BP115: 13.79138566 | BQ115: 1 | BR115: 18 | BS115: 6 | BT115: 4903.27 | BU115: 0.726841091 | BV115: 1 | BW115: =_xlfn.XLOOKUP(A115,[1]Erikoiskuljetukset!$A:$A,[1]Erikoiskuljetukset!$F:$F,"-",0) -> 6516.33 | BX115: 0.9659546398 | BY115: 1 | BZ115: 1 | CA115: 0 | CB115: 0 | CC115: 0 | CD115: =_xlfn.XLOOKUP(A115,'[1]2_Asukastiheys'!$A:$A,'[1]2_Asukastiheys'!$H:$H,"-",0)/X115 -> 30.3883783 | CE115: 0.5 | CF115: 1 | CG115: 1 | CH115: 0 | CI115: 1 | CJ115: 6.5 | CK115: 2.166666667 | CL115: 35.615 | CM115: 11.87166667 | CN115: 2 | CO115: =VLOOKUP(A115,Taul1!$F$6:$G$953,2,FALSE) -> 1 | CP115: 31.115 | CQ115: 11.115 | CR115: 15 | CS115: 5 | CU115: https://www.google.com/maps/@61.83966915,25.78134412,3a,75y,90t/data=!3m3!1e1!3m1!2e0 | CZ115: =_xlfn.XLOOKUP(A115,[1]Maito!$A:$A,[1]Maito!$J:$J,"-",0) -> 1 | DA115: 1 | DB115: =_xlfn.XLOOKUP(A115,[1]Kaatopaikat_jäte!$A:$A,[1]Kaatopaikat_jäte!$F:$F,"-",0) -> 0 | DC115: =_xlfn.XLOOKUP(A115,'[1]Maa-aines'!$A:$A,'[1]Maa-aines'!$F:$F,"-",0) -> 2 | DD115: =_xlfn.XLOOKUP(A115,[1]Turve!$A:$A,[1]Turve!$F:$F,"-",0) -> 2 | DE115: =_xlfn.XLOOKUP(A115,[1]Vilja!$A:$A,[1]Vilja!$F:$F,"-",0) -> 4 | DF115: =_xlfn.XLOOKUP(A115,[1]Kasvihuoneet!$A:$A,[1]Kasvihuoneet!$F:$F,"-",0) -> 0 | DG115: =_xlfn.XLOOKUP(A115,[1]Eläintilat!$A:$A,[1]Eläintilat!$H:$H,"-",0) -> 445 | DH115: =_xlfn.XLOOKUP(A115,[1]Eläintilat!$A:$A,[1]Eläintilat!$J:$J,"-",0) -> 354 | DI115: =_xlfn.XLOOKUP(A115,[1]Eläintilat!$A:$A,[1]Eläintilat!$I:$I,"-",0) -> 0 | DJ115: =_xlfn.XLOOKUP(A115,[1]Eläintilat!$A:$A,[1]Eläintilat!$K:$K,"-",0) -> 0 | DK115: =_xlfn.XLOOKUP(A115,'[1]Elintarvike ja varasto'!$A:$A,'[1]Elintarvike ja varasto'!$F:$F,"-",0) -> 0 | DM115: =_xlfn.XLOOKUP(A115,[1]Koulut!$A:$A,[1]Koulut!$F:$F,"-",0) -> 4903.27 | DN115: =_xlfn.XLOOKUP(A115,'[1]Tuotanto ja teollisuus'!$A:$A,'[1]Tuotanto ja teollisuus'!$F:$F,"-",0) -> 0 | DP115: =_xlfn.XLOOKUP(A115,[1]Varareitit!$A:$A,[1]Varareitit!$F:$F,"-",0) -> 1 | DQ115: =_xlfn.XLOOKUP(A115,[1]Taajama!$A:$A,[1]Taajama!$F:$F,"-",0) -> 0 | DR115: 1 | DS115: 0 | DT115: 1 | DU115: =_xlfn.XLOOKUP(A115,[1]Matkailukohteet!$A:$A,[1]Matkailukohteet!$F:$F,"-",0) -> 0 | DV115: =_xlfn.XLOOKUP(A115,[1]Matkailu!$A:$A,[1]Matkailu!$F:$F,"-",0) -> 0 | DW115: =_xlfn.XLOOKUP(A115,[1]Pyörämatkailu!$A:$A,[1]Pyörämatkailu!$F:$F,"-",0) -> 1 | DX115: 1 | DZ115: =_xlfn.XLOOKUP(A115,'[1]Verkollinen asema'!$A:$A,'[1]Verkollinen asema'!$D:$D,"-",0) -> 0 | EA115: =_xlfn.XLOOKUP(A115,[1]Kaupat!$A:$A,[1]Kaupat!$F:$F,"-",0) -> 2 | EE115: 1 | EF115: -- | EG115: -- | EH115: -- | EI115: -- | EJ115: -- | EL115: 1611_1 | EM115: LOPUT | EN115: 319 | EO115: 2 | EQ115: 14061 | ER115: 1
A116: 9_215 | B116: 2 | D116: 80 | E116: 80 | F116: 0 | G116: 11.83333333 | H116: 5 | I116: 5 | J116: 1.833333333 | K116: 2 | L116: 0 | M116: Gmaps | N116: LOPUT | O116: Valta | P116: Tampereentie | Q116: Jämsä | S116: 9 | T116: 215 | U116: 0 | V116: 215 | W116: 3401 | X116: 3401 | Y116: 5742 | Z116: 606 | AA116: 7246 | AB116: 5742 (100 %) | AC116: 100 (7 %), 80 (92 %) | AD116: Is (100 %) | AE116: Asfalttibetoni (100 %) | AF116: PK1 (100 %) | AG116: 0 | AH116: 1 | AJ116: 357 | AR116: 9 | AS116: 24 | AV116: 3 | AW116: =_xlfn.XLOOKUP(A116,[1]Työmatkat!$A:$A,[1]Työmatkat!$F:$F,"-",0) -> 1758 | AX116: 3 | AY116: 15 | AZ116: 5 | BA116: 8 | BB116: 1 | BC116: 3 | BD116: 0 | BE116: 0 | BF116: 1 | BG116: 1 | BH116: 0 | BI116: 0 | BJ116: 0 | BK116: 0 | BL116: 0 | BM116: 0 | BO116: 0 | BP116: 18.06793853 | BQ116: 1 | BR116: 15 | BS116: 5 | BT116: 3051 | BU116: 0.8970890914 | BV116: 1 | BW116: =_xlfn.XLOOKUP(A116,[1]Erikoiskuljetukset!$A:$A,[1]Erikoiskuljetukset!$F:$F,"-",0) -> 3390.1 | BX116: 0.9967950603 | BY116: 1 | BZ116: 1 | CA116: 938.913 | CB116: 0.2760696854 | CC116: 0 | CD116: =_xlfn.XLOOKUP(A116,'[1]2_Asukastiheys'!$A:$A,'[1]2_Asukastiheys'!$H:$H,"-",0)/X116 -> 16.53043223 | CE116: 0.5 | CF116: 1 | CG116: 0 | CH116: 0 | CI116: 1 | CJ116: 5.5 | CK116: 1.833333333 | CL116: 35.5 | CM116: 11.83333333 | CN116: 2 | CO116: =VLOOKUP(A116,Taul1!$F$6:$G$953,2,FALSE) -> 1 | CP116: 33 | CQ116: 15 | CR116: 13 | CS116: 5 | CU116: https://www.google.com/maps/@61.73566522,24.74165281,3a,75y,90t/data=!3m3!1e1!3m1!2e0 | CZ116: =_xlfn.XLOOKUP(A116,[1]Maito!$A:$A,[1]Maito!$J:$J,"-",0) -> 3 | DA116: 3 | DB116: =_xlfn.XLOOKUP(A116,[1]Kaatopaikat_jäte!$A:$A,[1]Kaatopaikat_jäte!$F:$F,"-",0) -> 0 | DC116: =_xlfn.XLOOKUP(A116,'[1]Maa-aines'!$A:$A,'[1]Maa-aines'!$F:$F,"-",0) -> 0 | DD116: =_xlfn.XLOOKUP(A116,[1]Turve!$A:$A,[1]Turve!$F:$F,"-",0) -> 0 | DE116: =_xlfn.XLOOKUP(A116,[1]Vilja!$A:$A,[1]Vilja!$F:$F,"-",0) -> 2 | DF116: =_xlfn.XLOOKUP(A116,[1]Kasvihuoneet!$A:$A,[1]Kasvihuoneet!$F:$F,"-",0) -> 1 | DG116: =_xlfn.XLOOKUP(A116,[1]Eläintilat!$A:$A,[1]Eläintilat!$H:$H,"-",0) -> 0 | DH116: =_xlfn.XLOOKUP(A116,[1]Eläintilat!$A:$A,[1]Eläintilat!$J:$J,"-",0) -> 0 | DI116: =_xlfn.XLOOKUP(A116,[1]Eläintilat!$A:$A,[1]Eläintilat!$I:$I,"-",0) -> 0 | DJ116: =_xlfn.XLOOKUP(A116,[1]Eläintilat!$A:$A,[1]Eläintilat!$K:$K,"-",0) -> 0 | DK116: =_xlfn.XLOOKUP(A116,'[1]Elintarvike ja varasto'!$A:$A,'[1]Elintarvike ja varasto'!$F:$F,"-",0) -> 0 | DM116: =_xlfn.XLOOKUP(A116,[1]Koulut!$A:$A,[1]Koulut!$F:$F,"-",0) -> 3051 | DN116: =_xlfn.XLOOKUP(A116,'[1]Tuotanto ja teollisuus'!$A:$A,'[1]Tuotanto ja teollisuus'!$F:$F,"-",0) -> 0 | DP116: =_xlfn.XLOOKUP(A116,[1]Varareitit!$A:$A,[1]Varareitit!$F:$F,"-",0) -> 6 | DQ116: =_xlfn.XLOOKUP(A116,[1]Taajama!$A:$A,[1]Taajama!$F:$F,"-",0) -> 938.913 | DR116: 1 | DS116: 0 | DT116: 1 | DU116: =_xlfn.XLOOKUP(A116,[1]Matkailukohteet!$A:$A,[1]Matkailukohteet!$F:$F,"-",0) -> 0 | DV116: =_xlfn.XLOOKUP(A116,[1]Matkailu!$A:$A,[1]Matkailu!$F:$F,"-",0) -> 0 | DW116: =_xlfn.XLOOKUP(A116,[1]Pyörämatkailu!$A:$A,[1]Pyörämatkailu!$F:$F,"-",0) -> 0 | DX116: 0 | DZ116: =_xlfn.XLOOKUP(A116,'[1]Verkollinen asema'!$A:$A,'[1]Verkollinen asema'!$D:$D,"-",0) -> 0 | EA116: =_xlfn.XLOOKUP(A116,[1]Kaupat!$A:$A,[1]Kaupat!$F:$F,"-",0) -> 0 | EF116: -- | EG116: -- | EH116: -- | EI116: -- | EJ116: -- | EL116: 54_10 | EM116: LOPUT | EN116: 32 | EO116: 1 | EQ116: 139 | ER116: 2
A117: 6050_1 | B117: 2 | D117: 81 | E117: 81 | F117: 0 | G117: 11.81333333 | H117: 5 | I117: 4.48 | J117: 2.333333333 | K117: 2 | L117: 0 | M117: Gmaps | N117: LOPUT | O117: Yhdys | P117: Juokslahdentie, Koskenväylä, Taipaleentie | Q117: Jämsä | S117: 6050 | T117: 1 | U117: 0 | V117: 1 | W117: 4471 | X117: 4471 | Y117: 1646.083427 | Z117: 106.3120107 | AA117: 1939 | AB117: 1409 (72 %), 2257 (28 %) | AC117: 40 (13 %), 50 (61 %), 80 (25 %) | AD117: Ib (100 %) | AE117: Asfalttibetoni (93 %), Kivimastiksiasfaltti (2 %) | AF117: PK2 (100 %) | AG117: 3 | AH117: 5 | AJ117: 55.83873854 | AR117: 9 | AS117: 28 | AV117: 3 | AW117: =_xlfn.XLOOKUP(A117,[1]Työmatkat!$A:$A,[1]Työmatkat!$F:$F,"-",0) -> 700 | AX117: 3 | AY117: 15 | AZ117: 5 | BA117: 8 | BB117: 1 | BC117: 0 | BD117: 0 | BE117: 0 | BF117: 0 | BG117: 1 | BH117: 0 | BI117: 0.04 | BJ117: 0 | BK117: 0 | BL117: 0 | BM117: 0.4 | BO117: 2 | BP117: 19.38152731 | BQ117: 1 | BR117: 13.44 | BS117: 4.48 | BT117: 3335.73 | BU117: 0.7460814136 | BV117: 1 | BW117: =_xlfn.XLOOKUP(A117,[1]Erikoiskuljetukset!$A:$A,[1]Erikoiskuljetukset!$F:$F,"-",0) -> 4251.64 | BX117: 0.9509371505 | BY117: 1 | BZ117: 1 | CA117: 3299.81 | CB117: 0.7380474167 | CC117: 1 | CD117: =_xlfn.XLOOKUP(A117,'[1]2_Asukastiheys'!$A:$A,'[1]2_Asukastiheys'!$H:$H,"-",0)/X117 -> 337.8438828 | CE117: 1 | CF117: 1 | CG117: 0 | CH117: 0 | CI117: 1 | CJ117: 7 | CK117: 2.333333333 | CL117: 35.44 | CM117: 11.81333333 | CN117: 2 | CO117: =VLOOKUP(A117,Taul1!$F$6:$G$953,2,FALSE) -> 2 | CP117: 31.44 | CQ117: 15 | CR117: 11.44 | CS117: 5 | CU117: https://www.google.com/maps/@61.92312049,25.16772291,3a,75y,90t/data=!3m3!1e1!3m1!2e0 | CZ117: =_xlfn.XLOOKUP(A117,[1]Maito!$A:$A,[1]Maito!$J:$J,"-",0) -> 0 | DA117: 0 | DB117: =_xlfn.XLOOKUP(A117,[1]Kaatopaikat_jäte!$A:$A,[1]Kaatopaikat_jäte!$F:$F,"-",0) -> 0 | DC117: =_xlfn.XLOOKUP(A117,'[1]Maa-aines'!$A:$A,'[1]Maa-aines'!$F:$F,"-",0) -> 0 | DD117: =_xlfn.XLOOKUP(A117,[1]Turve!$A:$A,[1]Turve!$F:$F,"-",0) -> 0 | DE117: =_xlfn.XLOOKUP(A117,[1]Vilja!$A:$A,[1]Vilja!$F:$F,"-",0) -> 0 | DF117: =_xlfn.XLOOKUP(A117,[1]Kasvihuoneet!$A:$A,[1]Kasvihuoneet!$F:$F,"-",0) -> 2 | DG117: =_xlfn.XLOOKUP(A117,[1]Eläintilat!$A:$A,[1]Eläintilat!$H:$H,"-",0) -> 0 | DH117: =_xlfn.XLOOKUP(A117,[1]Eläintilat!$A:$A,[1]Eläintilat!$J:$J,"-",0) -> 8 | DI117: =_xlfn.XLOOKUP(A117,[1]Eläintilat!$A:$A,[1]Eläintilat!$I:$I,"-",0) -> 0 | DJ117: =_xlfn.XLOOKUP(A117,[1]Eläintilat!$A:$A,[1]Eläintilat!$K:$K,"-",0) -> 0 | DK117: =_xlfn.XLOOKUP(A117,'[1]Elintarvike ja varasto'!$A:$A,'[1]Elintarvike ja varasto'!$F:$F,"-",0) -> 0 | DM117: =_xlfn.XLOOKUP(A117,[1]Koulut!$A:$A,[1]Koulut!$F:$F,"-",0) -> 3335.73 | DN117: =_xlfn.XLOOKUP(A117,'[1]Tuotanto ja teollisuus'!$A:$A,'[1]Tuotanto ja teollisuus'!$F:$F,"-",0) -> 1 | DP117: =_xlfn.XLOOKUP(A117,[1]Varareitit!$A:$A,[1]Varareitit!$F:$F,"-",0) -> 3 | DQ117: =_xlfn.XLOOKUP(A117,[1]Taajama!$A:$A,[1]Taajama!$F:$F,"-",0) -> 3299.81 | DR117: 1 | DS117: 0 | DT117: 1 | DU117: =_xlfn.XLOOKUP(A117,[1]Matkailukohteet!$A:$A,[1]Matkailukohteet!$F:$F,"-",0) -> 0 | DV117: =_xlfn.XLOOKUP(A117,[1]Matkailu!$A:$A,[1]Matkailu!$F:$F,"-",0) -> 0 | DW117: =_xlfn.XLOOKUP(A117,[1]Pyörämatkailu!$A:$A,[1]Pyörämatkailu!$F:$F,"-",0) -> 0 | DX117: 0 | DZ117: =_xlfn.XLOOKUP(A117,'[1]Verkollinen asema'!$A:$A,'[1]Verkollinen asema'!$D:$D,"-",0) -> 0 | EA117: =_xlfn.XLOOKUP(A117,[1]Kaupat!$A:$A,[1]Kaupat!$F:$F,"-",0) -> 1 | EF117: -- | EG117: -- | EH117: -- | EI117: -- | EJ117: -- | EL117: 11490_1 | EM117: LOPUT | EN117: 459 | EO117: 3 | EQ117: 11270 | ER117: 1
A118: 6403_1 | B118: 2 | D118: 82 | E118: 82 | F118: 0 | G118: 11.79202845 | H118: 5 | I118: 4.458695112 | J118: 2.333333333 | K118: 2 | L118: 0 | M118: Gmaps | N118: LOPUT | O118: Yhdys | P118: Liepeentie | Q118: Laukaa | S118: 6403 | T118: 1 | U118: 0 | V118: 1 | W118: 5886 | X118: 5886 | Y118: 1425.915392 | Z118: 59.67787971 | AA118: 1646 | AB118: 1015 (64 %), 2141 (36 %) | AC118: 40 (40 %), 50 (25 %), 60 (9 %), 80 (26 %) | AD118: Ib (100 %) | AE118: Asfalttibetoni (84 %), Kivimastiksiasfaltti (15 %) | AF118: PK3 (100 %) | AG118: 1 | AH118: 4 | AJ118: 19.64933741 | AR118: 9 | AS118: 78 | AV118: 3 | AW118: =_xlfn.XLOOKUP(A118,[1]Työmatkat!$A:$A,[1]Työmatkat!$F:$F,"-",0) -> 930 | AX118: 3 | AY118: 15 | AZ118: 5 | BA118: 8 | BB118: 0.9824668705 | BC118: 0 | BD118: 1 | BE118: 0 | BF118: 1 | BG118: 0 | BH118: 0.305 | BI118: 0 | BJ118: 0 | BK118: 0 | BL118: 0 | BM118: 0 | BO118: 2 | BP118: 0.8861846597 | BQ118: 0.08861846597 | BR118: 13.37608534 | BS118: 4.458695112 | BT118: 4510.26 | BU118: 0.7662691131 | BV118: 1 | BW118: =_xlfn.XLOOKUP(A118,[1]Erikoiskuljetukset!$A:$A,[1]Erikoiskuljetukset!$F:$F,"-",0) -> 0 | BX118: 0 | BY118: 0 | BZ118: 1 | CA118: 4390.33 | CB118: 0.7458936459 | CC118: 1 | CD118: =_xlfn.XLOOKUP(A118,'[1]2_Asukastiheys'!$A:$A,'[1]2_Asukastiheys'!$H:$H,"-",0)/X118 -> 371.5212368 | CE118: 1 | CF118: 1 | CG118: 1 | CH118: 0 | CI118: 1 | CJ118: 7 | CK118: 2.333333333 | CL118: 35.37608534 | CM118: 11.79202845 | CN118: 2 | CO118: =VLOOKUP(A118,Taul1!$F$6:$G$953,2,FALSE) -> 2 | CP118: 31.305 | CQ118: 15 | CR118: 12.305 | CS118: 4 | CU118: https://www.google.com/maps/@62.25000771,26.17580388,3a,75y,90t/data=!3m3!1e1!3m1!2e0 | CZ118: =_xlfn.XLOOKUP(A118,[1]Maito!$A:$A,[1]Maito!$J:$J,"-",0) -> 0 | DA118: 0 | DB118: =_xlfn.XLOOKUP(A118,[1]Kaatopaikat_jäte!$A:$A,[1]Kaatopaikat_jäte!$F:$F,"-",0) -> 1 | DC118: =_xlfn.XLOOKUP(A118,'[1]Maa-aines'!$A:$A,'[1]Maa-aines'!$F:$F,"-",0) -> 0 | DD118: =_xlfn.XLOOKUP(A118,[1]Turve!$A:$A,[1]Turve!$F:$F,"-",0) -> 0 | DE118: =_xlfn.XLOOKUP(A118,[1]Vilja!$A:$A,[1]Vilja!$F:$F,"-",0) -> 2 | DF118: =_xlfn.XLOOKUP(A118,[1]Kasvihuoneet!$A:$A,[1]Kasvihuoneet!$F:$F,"-",0) -> 0 | DG118: =_xlfn.XLOOKUP(A118,[1]Eläintilat!$A:$A,[1]Eläintilat!$H:$H,"-",0) -> 61 | DH118: =_xlfn.XLOOKUP(A118,[1]Eläintilat!$A:$A,[1]Eläintilat!$J:$J,"-",0) -> 0 | DI118: =_xlfn.XLOOKUP(A118,[1]Eläintilat!$A:$A,[1]Eläintilat!$I:$I,"-",0) -> 0 | DJ118: =_xlfn.XLOOKUP(A118,[1]Eläintilat!$A:$A,[1]Eläintilat!$K:$K,"-",0) -> 0 | DK118: =_xlfn.XLOOKUP(A118,'[1]Elintarvike ja varasto'!$A:$A,'[1]Elintarvike ja varasto'!$F:$F,"-",0) -> 0 | DM118: =_xlfn.XLOOKUP(A118,[1]Koulut!$A:$A,[1]Koulut!$F:$F,"-",0) -> 4510.26 | DN118: =_xlfn.XLOOKUP(A118,'[1]Tuotanto ja teollisuus'!$A:$A,'[1]Tuotanto ja teollisuus'!$F:$F,"-",0) -> 0 | DP118: =_xlfn.XLOOKUP(A118,[1]Varareitit!$A:$A,[1]Varareitit!$F:$F,"-",0) -> 2 | DQ118: =_xlfn.XLOOKUP(A118,[1]Taajama!$A:$A,[1]Taajama!$F:$F,"-",0) -> 4390.33 | DR118: 1 | DS118: 0 | DT118: 1 | DU118: =_xlfn.XLOOKUP(A118,[1]Matkailukohteet!$A:$A,[1]Matkailukohteet!$F:$F,"-",0) -> 0 | DV118: =_xlfn.XLOOKUP(A118,[1]Matkailu!$A:$A,[1]Matkailu!$F:$F,"-",0) -> 0 | DW118: =_xlfn.XLOOKUP(A118,[1]Pyörämatkailu!$A:$A,[1]Pyörämatkailu!$F:$F,"-",0) -> 1 | DX118: 1 | DZ118: =_xlfn.XLOOKUP(A118,'[1]Verkollinen asema'!$A:$A,'[1]Verkollinen asema'!$D:$D,"-",0) -> 0 | EA118: =_xlfn.XLOOKUP(A118,[1]Kaupat!$A:$A,[1]Kaupat!$F:$F,"-",0) -> 1 | EF118: -- | EG118: -- | EH118: -- | EI118: -- | EJ118: -- | EL118: 25_27 | EM118: LOPUT | EN118: 427 | EO118: 2 | EQ118: 11819 | ER118: 1
A119: 13_201 | B119: 2 | D119: 83 | E119: 83 | F119: 0 | G119: 11.78604557 | H119: 4.8 | I119: 4.986045566 | J119: 2 | K119: 2 | L119: 0 | M119: Gmaps | N119: LOPUT | O119: Valta | P119: Kangasniementie, Mikkelintie | Q119: Laukaa, Toivakka | S119: 13 | T119: 201 | U119: 0 | V119: 201 | W119: 6425 | X119: 6425 | Y119: 2625 | Z119: 360 | AA119: 3151 | AB119: 2625 (100 %) | AC119: 100 (93 %), 80 (7 %) | AD119: Is (100 %) | AE119: Asfalttibetoni (100 %) | AF119: PK2 (100 %) | AG119: 2 | AH119: 8 | AJ119: 212 | AR119: 9 | AS119: 16 | AV119: 2.4 | AW119: =_xlfn.XLOOKUP(A119,[1]Työmatkat!$A:$A,[1]Työmatkat!$F:$F,"-",0) -> 629 | AX119: 3 | AY119: 14.4 | AZ119: 4.8 | BA119: 8 | BB119: 1 | BC119: 3 | BD119: 0 | BE119: 0 | BF119: 1 | BG119: 1 | BH119: 0.135 | BI119: 0 | BJ119: 0 | BK119: 0 | BL119: 0 | BM119: 0 | BO119: 0 | BP119: 8.231366973 | BQ119: 0.8231366973 | BR119: 14.9581367 | BS119: 4.986045566 | BT119: 995.27 | BU119: 0.1549058366 | BV119: 0.5 | BW119: =_xlfn.XLOOKUP(A119,[1]Erikoiskuljetukset!$A:$A,[1]Erikoiskuljetukset!$F:$F,"-",0) -> 6425 | BX119: 1 | BY119: 1 | BZ119: 1 | CA119: 55.5352 | CB119: 0.008643610895 | CC119: 0 | CD119: =_xlfn.XLOOKUP(A119,'[1]2_Asukastiheys'!$A:$A,'[1]2_Asukastiheys'!$H:$H,"-",0)/X119 -> 3.112840467 | CE119: 0.5 | CF119: 1 | CG119: 1 | CH119: 0 | CI119: 1 | CJ119: 6 | CK119: 2 | CL119: 35.3581367 | CM119: 11.78604557 | CN119: 2 | CO119: =VLOOKUP(A119,Taul1!$F$6:$G$953,2,FALSE) -> 1 | CP119: 32.035 | CQ119: 14.4 | CR119: 13.135 | CS119: 4.5 | CU119: https://www.google.com/maps/@62.25000771,26.17580388,3a,75y,90t/data=!3m3!1e1!3m1!2e0 | CZ119: =_xlfn.XLOOKUP(A119,[1]Maito!$A:$A,[1]Maito!$J:$J,"-",0) -> 5 | DA119: 5 | DB119: =_xlfn.XLOOKUP(A119,[1]Kaatopaikat_jäte!$A:$A,[1]Kaatopaikat_jäte!$F:$F,"-",0) -> 0 | DC119: =_xlfn.XLOOKUP(A119,'[1]Maa-aines'!$A:$A,'[1]Maa-aines'!$F:$F,"-",0) -> 0 | DD119: =_xlfn.XLOOKUP(A119,[1]Turve!$A:$A,[1]Turve!$F:$F,"-",0) -> 0 | DE119: =_xlfn.XLOOKUP(A119,[1]Vilja!$A:$A,[1]Vilja!$F:$F,"-",0) -> 3 | DF119: =_xlfn.XLOOKUP(A119,[1]Kasvihuoneet!$A:$A,[1]Kasvihuoneet!$F:$F,"-",0) -> 1 | DG119: =_xlfn.XLOOKUP(A119,[1]Eläintilat!$A:$A,[1]Eläintilat!$H:$H,"-",0) -> 27 | DH119: =_xlfn.XLOOKUP(A119,[1]Eläintilat!$A:$A,[1]Eläintilat!$J:$J,"-",0) -> 0 | DI119: =_xlfn.XLOOKUP(A119,[1]Eläintilat!$A:$A,[1]Eläintilat!$I:$I,"-",0) -> 0 | DJ119: =_xlfn.XLOOKUP(A119,[1]Eläintilat!$A:$A,[1]Eläintilat!$K:$K,"-",0) -> 0 | DK119: =_xlfn.XLOOKUP(A119,'[1]Elintarvike ja varasto'!$A:$A,'[1]Elintarvike ja varasto'!$F:$F,"-",0) -> 0 | DM119: =_xlfn.XLOOKUP(A119,[1]Koulut!$A:$A,[1]Koulut!$F:$F,"-",0) -> 995.27 | DN119: =_xlfn.XLOOKUP(A119,'[1]Tuotanto ja teollisuus'!$A:$A,'[1]Tuotanto ja teollisuus'!$F:$F,"-",0) -> 0 | DP119: =_xlfn.XLOOKUP(A119,[1]Varareitit!$A:$A,[1]Varareitit!$F:$F,"-",0) -> 3 | DQ119: =_xlfn.XLOOKUP(A119,[1]Taajama!$A:$A,[1]Taajama!$F:$F,"-",0) -> 55.5352 | DR119: 1 | DS119: 0 | DT119: 1 | DU119: =_xlfn.XLOOKUP(A119,[1]Matkailukohteet!$A:$A,[1]Matkailukohteet!$F:$F,"-",0) -> 0 | DV119: =_xlfn.XLOOKUP(A119,[1]Matkailu!$A:$A,[1]Matkailu!$F:$F,"-",0) -> 0 | DW119: =_xlfn.XLOOKUP(A119,[1]Pyörämatkailu!$A:$A,[1]Pyörämatkailu!$F:$F,"-",0) -> 1 | DX119: 1 | DZ119: =_xlfn.XLOOKUP(A119,'[1]Verkollinen asema'!$A:$A,'[1]Verkollinen asema'!$D:$D,"-",0) -> 0 | EA119: =_xlfn.XLOOKUP(A119,[1]Kaupat!$A:$A,[1]Kaupat!$F:$F,"-",0) -> 0 | EF119: -- | EG119: -- | EH119: -- | EI119: -- | EJ119: -- | EL119: 51_8 | EM119: LOPUT | EN119: 82 | EO119: 1 | EQ119: 11061 | ER119: 2
